Workbook

Sheet Design Converter
A1: =CONCATENATE(Device, " DC/DC Controller Design Tool") -> LM34938-Q1 DC/DC Controller Design Tool
A3: About | C3: xx | F3: = Input Box | J3: =HYPERLINK(Link) -> http://www.ti.com/product/lm34938-q1 | N3: TERMS OF USE
J4: =CONCATENATE("Version: ",Licenses!$B$5) -> Version: 1.0.0
A5: Step 1: Operating Specifications
D6: Device | E6: =Device -> LM34938-Q1
D7: Input Voltage - Min, VIN(min) | E7: 9 | F7: V
D8: Input Voltage - Nom, VIN(nom) | E8: 12 | F8: V
D9: Input Voltage - Max, VIN(max) | E9: 36 | F9: V
D10: Output Voltage, VOUT | E10: 20 | F10: V
D11: Full Load Output Current, IOUT(max) | E11: 3 | F11: A
D12: Switching Frequency | E12: 2100 | F12: kHz
D13: Frequency Set Resistor, RT | E13: =IF('Standard Value Calculator'!R4/1000>288, "N/A",'Standard Value Calculator'!R4/1000) -> 15 | F13: kΩ
A15: Step 2: Filter Inductor
D16: Recommended Filter Inductance | E16: =Lopt_Limit*1000000 -> 1.594387755 | F16: µH
D17: Inductance, LF | E17: 3.3 | F17: µH
D18: Inductance at max Current, LF,eff | E18: 3 | F18: µH
D19: Inductor DCR | E19: 6.5 | F19: mΩ
D20: Pk-to-Pk Ripple Current at VIN(min), DIL1 | E20: ='Variable Management'!B84 -> 0.7900813171 | F20: Apk-pk
D21: Pk-to-Pk Ripple Current at VIN(nom), DIL2 | E21: ='Variable Management'!B85 -> 0.7659691906 | F21: Apk-pk
D22: Pk-to-Pk Ripple Current at VIN(max), DIL3 | E22: ='Variable Management'!B86 -> 1.412686071 | F22: Apk-pk
D23: DIL as a % at VIN(min) | E23: ='Variable Management'!B96*100 -> 11.25865877 | F23: %
D24: DIL as a % at VIN(nom) | E24: ='Variable Management'!B97*100 -> 14.55341462 | F24: %
D25: DIL as a % at VIN(max) | E25: ='Variable Management'!B98*100 -> 47.0895357 | F25: %
D26: Recommended RDIFF for Current Sense Filter | E26: =R_CS -> 10 | F26: Ω
D27: Recommended CDIFF for Current Sense Filter | E27: =C_CS_ideal*1000000000000 -> 68 | F27: pF
A29: Step 3: OCP, Sense Resistors, Slope Comp
D30: Peak Current Limit Margin | E30: 20 | F30: %
D31: Recommended Sense Resistance | E31: =Rs_ideal*1000 -> 5.621071377 | F31: mΩ
D32: Sense Resistance, RS | E32: 4 | F32: mΩ
D33: Peak Inductor Over-Current Limit, ILPK,Limit | E33: ='Variable Management'!B143 -> 13.75 | F33: A
D34: Max Peak Inductor Current, ILPk,Max | E34: =Ipeak_inductor_max -> 7.412584518 | F34: A
D35: =IF('Variable Management'!B91>'Variable Management'!B89, "Power Loss in Rcs at Full Load (Max VIN)", "Power Loss in Rs at Full Load (Min VIN)") -> Power Loss in Rs at Full Load (Min VIN) | E35: ='Variable Management'!B92 -> 0.1971917635 | F35: W
D36: Recommended SLOPE Factor | E36: ='Variable Management'!C147 -> 0.5
D37: Recommended Inductor De-Rating | E37: =(E17-E18)/E17*100 -> 9.090909091 | F37: %
D38: VIN(min) | E38: ='Variable Management'!B135 -> 5.410227787 | F38: A
C39: IOUT(typ) at OCP Inception: | D39: VIN(nom) | E39: ='Variable Management'!B136 -> 7.244353651 | F39: A
D40: VIN(max) | E40: ='Variable Management'!B137 -> 11.79365696 | F40: A
A42: Step 4: Output Capacitor
D43: Output Voltage Ripple Spec | E43: 150 | F43: mVpk-pk
D44: Minimum Output Capacitance | E44: ='Variable Management'!B176 -> 5.267208781 | F44: µF
D45: Output Capacitance, COUT | E45: 30 | F45: µF | H45: =Device -> LM34938-Q1
D46: Maximum Permitted ESR | E46: ='Variable Management'!B180 -> 41.2213187 | F46: mΩ | L46: =IF(useI2C=1,"Set Slope Comp. via I2C","") ->  | N46: ='CFG Setting'!H56 -> 
D47: Output Capacitor ESR | E47: 5 | F47: mΩ | N47: ='CFG Setting'!H85 -> R_CFG2: 8.3 kΩ
D48: Resulting Output Voltage Ripple (max) | E48: =Vripple2*1000 -> 41.3360439 | F48: mVpk-pk | N48: =IF(useI2C=1,"Set Config via I2C",'CFG Setting'!H115) -> R_CFG3: 1.15 kΩ
D49: Output Capacitor RMS Current (max) | E49: ='Variable Management'!B171 -> 3.31662479 | F49: A (rms) | N49: =IF(useI2C=1,"Set Config via I2C",'CFG Setting'!H145) -> R_CFG4: 0 kΩ
A51: Step 5: Input Capacitor
D52: Input Voltage Ripple Spec | E52: 180 | F52: mVpk-pk | J52: Current Monitor/Drop comp. via CDC | N52: =_xlfn.SWITCH(IMONLIM_select+1,1,"",2,"Current Limiter via ISET", 3,"Current Limiter via I2C",4,"Current Limiter via I2C") -> 
D53: Minimum Input Capacitance | E53: ='Variable Management'!B196 -> 10 | F53: µF | J53: =IF(CDC_enabled = 2, "Maximum Output Current","Resistance of Cable") -> Resistance of Cable | K53: 5 | L53: =IF(CDC_enabled=2,"A","mΩ") -> mΩ | N53: =CHOOSE(IMONLIM_select+1,"","Average Current Limit","Average Current Limit","Average Current Limit") ->  | O53: 5 | P53: A
D54: Input Capacitance, CIN | E54: 30 | F54: µF | J54: =IF(CDC_enabled = 2, "Maximum Voltage at VCDC","CDC_Gain setting in MFR_SPECIFIC_D8") -> CDC_Gain setting in MFR_SPECIFIC_D8 | K54: 1 | L54: V | N54: =_xlfn.SWITCH(IMONLIM_select+1,1,"",2,"", 3,"DAC ILIM_THRESHOLD",4,"DAC ILIM_THRESHOLD") ->  | O54: 100 | P54: =_xlfn.SWITCH(IMONLIM_select+1,1,"",2,"",3,"", 4,"") -> 
D55: Maximum Permitted ESR | E55: ='Variable Management'!B201 -> 45.39403938 | F55: mΩ | J55: Recommended Current Sense, RISNS(out/in) | K55: =IF(CDC_enabled=2,CDC_Threshold/K53*1000,CDC_Threshold/Iout*1000) -> 16.66666667 | L55: mΩ | N55: Recommended Current Sense, RISNS(out/in) | O55: =_xlfn.SWITCH(IMONLIM_select+1,1,0,2,ILIM_Threshold/O53, 3,0.05/O53, 4,0.05/O53)*1000 -> 0 | P55: mΩ
D56: Input Capacitor ESR | E56: 5 | F56: mΩ | J56: Used Current Sense, RISNS(out/in) | K56: 10 | L56: mΩ | N56: Used Current Sense, RISNS(out/in) | O56: 10 | P56: mΩ
D57: Resulting Input Voltage Ripple (max) | E57: =Vinripple2*1000 -> 30.28583347 | F57: mVpk-pk | J57: CDC Resistance, RCDC | K57: =IF(CDC_enabled = 2,(K54)/(K56/1000*K53*gm_CDC)/1000,'Variable Management'!L249/1000) -> 1 | L57: kΩ | N57: =_xlfn.SWITCH(IMONLIM_select+1,1,"",2,"ILIMCOMP Resistance, RILIM", 3,"Effective average Current Limit",4,"Effective average Current Limit") ->  | O57: =_xlfn.SWITCH(IMONLIM_select+1,1,"",2,V_Ilimit/(O56/1000*O53*gm_IL)/1000,3,O54*0.0005/(O56*0.001),4,O54*0.0005/(O56*0.001)) ->  | P57: =_xlfn.SWITCH(IMONLIM_select+1,1,"",2,"kΩ", 3,"A",4,"A") -> 
D58: Input Capacitor RMS Current (max) | E58: ='Variable Management'!B189 -> 1.490479238 | F58: A (rms) | N58: =_xlfn.SWITCH(IMONLIM_select+1,1,"",2,"ILIMCOMP Capacitor, CILIM,HF", 3,"ILIMCOMP Capacitor, CILIM", 4,"ILIMCOMP Capacitor, CILIM") ->  | O58: =_xlfn.SWITCH(IMONLIM_select+1,1,"",2,C_ILimit_HF_STD*1000000000000,3,C_limitcomp_STD*1000000000,4,C_limitcomp_STD*1000000000) ->  | P58: =_xlfn.SWITCH(IMONLIM_select+1,1,"",2,"pF", 3,"nF",4,"nF") -> 
N59: COUT2 Output Capacitance | O59: =Co2_u*1000000 -> 5.6 | P59: µF
A60: Step 6: Soft-start, UVLO, CFG
D61: recommended Soft-Start Time, tSS for ISCP(MIN) | E61: =E45*0.000001*E10/(E30/100*E11)*1000 -> 1 | F61: ms | M61: VIN(nom) | N61: =VIN_nom&"V" -> 12V
D62: Soft-Start Time, tSS | E62: 2 | F62: ms
D63: Soft-Start Capacitance, CSS | E63: =Css_u*1000000000 -> 22 | F63: nF
D65: Required Input Voltage UVLO On | E65: 9.22 | F65: V
D66: Input Voltage UVLO Off | E66: 8.15 | F66: V
D67: Upper UVLO Resistor, RUV1 | E67: ='Variable Management'!G220 -> 75 | F67: kΩ
D68: Lower UVLO Resistor, RUV2 | E68: ='Variable Management'!G221 -> 12.7 | F68: kΩ
A70: Step 7: Compensation Design
D71: Load Pole Frequency | E71: =Fp_dominant -> 1591.549431 | F71: Hz
D72: COUT ESR Zero Frequency | E72: =Fesr/1000 -> 1061.032954 | F72: kHz
D73: Boost RHP Zero Frequency @ VIN(MIN) | E73: =IF(E7<E10,Frhp_Vinmin/1000,"---") -> 70.64998094 | F73: kHz
D74: Boost RHP Zero Frequency @ VIN(NOM) | E74: =IF(E8<E10,Frhp/1000,"---") -> 126.4199414 | F74: kHz
D75: Suggested Crossover Frequency | E75: =MIN(Fsw/1000*0.05,E73/4,IF(E74<>"---",E74/4,E73/4)) -> 17.66249523 | F75: kHz
D76: Desired Crossover Frequency | E76: 13 | F76: =" kHz " -> kHz
D77: Error Amp Pole Frequency | E77: =Fp1_u -> 1.939234563 | F77: Hz
D78: Upper Feedback Resistor, RFBT | E78: 100 | F78: kΩ
D79: Lower Feedback Resistor, RFBB | E79: =Rfb2_u/1000 -> 5.23 | F79: kΩ
A88: Step 7.1: Compensation Components | J88: Step 7.2: Current Limiter Compensation Design
B89: Calculated / | C89: Std Values | E89: =" Selected" -> Selected | G89: Actual P/Z Frequencies | K89: Calculated / | L89: Std Values | N89: =" Selected" -> Selected
A90: RCOMP | B90: =Rcea1/1000 -> 5.43619571 | C90: ='Standard Value Calculator'!R27 -> 5.49 | E90: 8.66 | F90: kΩ | G90: =Fp1_u -> 1.939234563 | H90: Hz (FPEA) | J90: RIL,COMP | K90: ='Variable Management'!E275/1000 ->  | L90: ='Variable Management'!F275/1000 ->  | N90: 34 | O90: kΩ
A91: CCOMP | B91: =Cc1ea*1000000000 -> 12.26347803 | C91: ='Standard Value Calculator'!R28 -> 12 | E91: 8.2 | F91: nF | G91: =Fz1_u/1000 -> 2.241240116 | H91: kHz (FZCOMP) | J91: CIL,COMP | K91: ='Variable Management'!E276/0.000000001 ->  | L91: ='Variable Management'!F276/0.000000001 ->  | N91: 47 | O91: nF
A92: CHF | B92: =IF(Cc2ea*1000000000000<0, 0, Cc2ea*1000000000000) -> 217.861289 | C92: ='Standard Value Calculator'!R29 -> 220 | E92: 150 | F92: pF | G92: =Fp2_u/1000 -> 116.8012798 | H92: kHz (FPCOMP) | J92: CIL,HF | K92: ='Variable Management'!E277/0.000000000001 ->  | L92: ='Variable Management'!F277/0.000000000001 ->  | N92: 2200 | O92: pF
A94: Efficiency / Power Loss Analyzer
A96: Step 8: Efficiency | M96: VIN(nom) | N96: =VIN_nom&"V" -> 12V
D97: Buck-Leg Power MOSFETs (Q1, Q2) | E97: IAUZN04S7L046ATMA1
E98: Hi-side | F98: Low-side
D99: On-State Resistance, RDS(on) | E99: 5.9 | F99: 5.9 | G99: mΩ
D100: Total Gate Charge, QG | E100: 12 | F100: 12 | G100: nC
D101: Gate-Drain Charge, QGD | E101: 2.2 | F101: 2.2 | G101: nC
D102: Gate-Source Charge, QGS | E102: 2.4 | F102: 2.4 | G102: nC
D103: Gate Resistance, RG | E103: 1.7 | F103: 1.7 | G103: Ω
D104: Output Capacitance, COSS | E104: 403 | F104: 403 | G104: pF
D105: Transconductance, gFS | E105: 100 | F105: 100 | G105: S
D106: Gate-Source Threshold Voltage, VTH | E106: 1.5 | F106: 1.5 | G106: V
D107: Body Diode Forward Voltage, VBD | E107: 0.8 | F107: 0.8 | G107: V
D108: Body Diode Rev Recovery Charge, QRR | F108: 2.9 | G108: nC
D109: Thermal Resistance, θJA | E109: 41 | F109: 41 | G109: °C/W
D111: Boost-Leg Power MOSFETs (Q3, Q4) | E111: IAUZN04S7L046ATMA1
E112: Hi-side | F112: Low-side
D113: On-State Resistance, RDS(on) | E113: 5.9 | F113: 5.9 | G113: mΩ
D114: Total Gate Charge, QG | E114: 12 | F114: 12 | G114: nC
D115: Gate-Drain Charge, QGD | E115: 2.2 | F115: 2.2 | G115: nC
D116: Gate-Source Charge, QGS | E116: 2.4 | F116: 2.4 | G116: nC
D117: Gate Resistance, RG | E117: 1.7 | F117: 1.7 | G117: Ω
D118: Output Capacitance, COSS | E118: 403 | F118: 403 | G118: pF
D119: Transconductance, gFS | E119: 100 | F119: 100 | G119: S
D120: Gate-Source Threshold Voltage, VTH | E120: 1.5 | F120: 1.5 | G120: V
D121: Body Diode Forward Voltage, VBD | E121: 0.8 | F121: 0.8 | G121: V
D122: Body Diode Rev Recovery Charge, QRR | E122: 2.9 | G122: nC
D123: Thermal Resistance, θJA | E123: 41 | F123: 41 | G123: °C/W
A125: External Schottky Diode (if applicable) | E125: Buck Leg | F125: Boost Leg
D126: Schottky Fwd Voltage, VFWDsch | E126: 0 | F126: 0 | G126: V
D127: Schottky Rev Recovery Charge, QRRsch | E127: 0 | F127: 0 | G127: nC

Sheet Extended Calculations (hidden)
A6: FB Resisitor (calc RFBT)
D7: Lower Feedback Resistor, RFBB | E7: 4.32 | F7: kΩ
D8: Upper Feedback Resistor, RFBT | E8: =(Vout-Vref)/(Vref/E7) -> 82.08 | F8: kΩ
A19: Mode Transitions
D20: =Timings!E2 -> Buck -> BuBo | E20: =Timings!F2 -> 24.03846154 | F20: V
D21: =Timings!E3 -> BuBo -> Buck | E21: =Timings!F3 -> 29.40609952 | F21: V
D22: =Timings!E4 -> Boost -> BuBo | E22: =Timings!F4 -> 16.64 | F22: V
D23: =Timings!E5 -> BuBo -> Boost | E23: =Timings!F5 -> 13.60262009 | F23: V

Sheet Additional Info
A1: This page provides additonal/alternative calculation tools and power stage infos
A2: Note: This entries are just for reference and do not have impact on the calculation of the power stage (on Design Converter Page)
A4: Step 1: Rt
D5: Frequency Set Resistor, RT | E5: 65 | F5: kΩ
D6: Switching Frequency | E6: =1/E5/(0.000000000032)*0.000001 -> 480.7692308 | F6: kHz
A10: Step 6: UVLO
D12: Upper UVLO Resistor, RUV1 | E12: 75 | F12: kΩ
D13: Lower UVLO Resistor, RUV2 | E13: 12.7 | F13: kΩ
D14: Input Voltage UVLO On | E14: =(Iuvlo1+Vuvlo_on/E13)*(E12)+Vuvlo_on -> 9.22 | F14: V
D15: Input Voltage UVLO Off | E15: =Vuvlo_off*(E12+E13)/E13 -> 8.148503937 | F15: V
A18: Step 7: FB | H18: Coss Losses | L18: Gate Driver Losses
D19: Vout | E19: =Vout -> 20 | F19: V | I19: Q1 | J19: =0.5*Vin^2*Coss1*Fsw*1000 -> 60.9336 | K19: mW | M19: =Qg_Q1 * Vdd * Fsw*1000 -> 126 | N19: mW
D20: Upper Feedback Resistor, RFBT | E20: =((Vout-Vref))*E21/Vref -> 82.08 | F20: kΩ | I20: Q2 | J20: =0.5*Vin^2*Coss2*Fsw*1000 -> 60.9336 | K20: mW | M20: =Qg_Q2 * Vdd * Fsw*1000 -> 126 | N20: mW
D21: Lower Feedback Resistor, RFBB | E21: 4.32 | F21: kΩ | I21: Q3 | J21: =0.5*Vout^2*Coss3*Fsw*1000 -> 169.26 | K21: mW | M21: =Qg_Q3 * Vdd * Fsw*1000 -> 126 | N21: mW
I22: Q4 | J22: =0.5*Vout^2*Coss4*Fsw*1000 -> 169.26 | K22: mW | M22: =Qg_Q4 * Vdd * Fsw*1000 -> 126 | N22: mW
I23: Total | J23: =SUM(J19:J22) -> 460.3872 | K23: mW | M23: =SUM(M19:M22) -> 504 | N23: mW
D24: Upper Feedback Resistor, RFBT | E24: 82 | F24: kΩ | J24: =(J23/1000)/(Vout*Iout)*100 -> 0.767312 | K24: % | M24: =M23/1000/(Vout*Iout)*100 -> 0.84 | N24: %
D25: Lower Feedback Resistor, RFBB | E25: =4.32 -> 4.32 | F25: kΩ
D26: Vout | E26: =1/E25*(E24+E25) -> 19.98148148 | F26: V | H26: Controller IC Loss
I27: Power Disipation | J27: ='Efficiency vs VIN Calculations'!B75 -> 2.076 | K27: W
I28: Temp rise | J28: ='Efficiency vs VIN Calculations'!B76 -> 62.28 | K28: °C
A30: Mode Transition
D31: Transition | E31: Vin
D32: Buck -> BuBo | E32: =Timings!F2 -> 24.03846154 | F32: V
D33: BuBo -> Buck | E33: =Timings!F3 -> 29.40609952 | F33: V
D34: Boost -> BuBo | E34: =Timings!F4 -> 16.64 | F34: V
D35: BuBo -> Boost | E35: =Timings!F5 -> 13.60262009 | F35: V
A37: Load Transition
D38: Output current step [% of max current] | E38: 50 | F38: %
D39: Output current step [A] | E39: =Iout*'Additional Info'!E38/100 -> 1.5 | F39: A
D40: Maximum Voltage Peak | E40: 0.5 | F40: V
D41: Minimum Output Capacitance | E41: =E39/(E40*4*Fcross)*1000000 -> 57.69230769 | F41: µF

Sheet Licenses
A5: Version Number | B5: 1.0.0
A35: Version History
A36: Version | B36: Change List Description
A37: 1.0.0 | B37: Initial Release

Sheet BOM & Schematic (hidden)
B45: ** Tie MODE to VCC (or voltage > 2.4V) for No Hiccup **
A46: ="VIN = "&VIN_min&" V to "&VIN_max&" V, VOUT = "& Vout &" V, IOUT = " &Iout & " A, Fsw = " & Fsw/1000 &" kHz, Current Limit = "&ROUNDUP(Ilimit_DC,0)&" A" -> 
A47: High Efficiency Synchronous Buck-Boost Regulator BOM
A48: Count | B48: Ref Des | C48: Value | D48: Description | H48: Size | I48: Part Number | J48: MFR
A49: 2 | B49: CBOOT1, CBOOT2 | C49: 0.1 | D49: =C49 -> 0.1 | H49: 0603 | I49: Std | J49: Std
A50: 1 | B50: CC1 | C50: ='Design Converter'!E91 -> 8.2 | D50: 8.2 | H50: 0603 | I50: Std | J50: Std
A51: 1 | B51: CC2 | C51: ='Design Converter'!E92 -> 150 | D51: 150 | H51: 0603 | I51: Std | J51: Std
A52: 1 | B52: RSLOPE | C52: =Rslope/1000 -> 9.920634921 | H52: 0603 | I52: Std | J52: Std
A53: 1 | B53: CCS | C53: 100 | D53: =C53 -> 100 | H53: 0603 | I53: Std | J53: Std
A54: 1 | B54: CDITH | C54: =Cdither*1000000000 -> 0 | D54: =C54 -> 0 | H54: 0603 | I54: Std | J54: Std
A55: =ROUNDUP('Design Converter'!E54/10,0) -> 3 | B55: CIN | C55: 10 | D55: =C55 -> 10 | H55: 1210 | I55: Std | J55: Std
A56: =ROUNDUP('Design Converter'!E45/22,0) -> 2 | B56: COUT | C56: 22 | D56: =C56 -> 22 | H56: 1210 | I56: Std | J56: Std
A57: 1 | B57: CSS | C57: ='Design Converter'!E63 -> 22 | D57: =C57 -> 22 | H57: 0603 | I57: Std | J57: Std
A58: 1 | B58: CVCC | C58: 1 | D58: 1 | H58: 0603 | I58: Std | J58: Std
A59: 1 | B59: CVIN | C59: 0.1 | D59: 0.1 | H59: 0603 | I59: Std | J59: Std
A60: 3 | B60: DBOOT1, DBOOT2, DVIN | C60: See description | D60: Schottky Diode, 200mA | H60: - | I60: - | J60: Various
A61: 1 | B61: LF | C61: ='Design Converter'!E18 -> 3 | D61: ="Inductor, "&Lf*1000000&"µH, "&Rdcr*1000&"mΩ, >"&ROUNDUP(IL_peak_OCP*1.1,0)&"A" -> Inductor, 3µH, 6.5mΩ, >16A | H61: - | I61: - | J61: Various
A62: 2 | B62: Q1, Q2 | C62: See description | D62: ='Design Converter'!E99 -> 5.9 | H62: Std | I62: ='Design Converter'!E97 -> IAUZN04S7L046ATMA1 | J62: -
A63: 2 | B63: Q3, Q4 | C63: See description | D63: ='Design Converter'!E113 -> 5.9 | H63: Std | I63: ='Design Converter'!E111 -> IAUZN04S7L046ATMA1 | J63: -
A64: 1 | B64: RC1 | C64: ='Design Converter'!E90 -> 8.66 | D64: =C64 -> 8.66 | H64: 0603 | I64: Std | J64: Std
A65: 1 | B65: RS | C65: =Rs*1000 -> 4 | D65: 4 | H65: 2512 | I65: Std | J65: Std
A66: 1 | B66: RCS(out) | C66: ='Standard Value Calculator'!R21 -> 0 | D66: =C66 -> 0 | H66: 2512 | I66: Std | J66: Std
A67: 1 | B67: RT | C67: ='Design Converter'!E13 -> 15 | D67: 15 | H67: 0603 | I67: Std | J67: Std
A68: 1 | B68: RFB1 | C68: ='Design Converter'!E78 -> 100 | D68: 100 | H68: 0603 | I68: Std | J68: Std
A69: 1 | B69: RFB2 | C69: ='Design Converter'!E79 -> 5.23 | D69: 5.23 | H69: 0603 | I69: Std | J69: Std
A70: 1 | B70: RPGOOD | C70: 20 | D70: 20 | H70: 0603 | I70: Std | J70: Std
A71: 2 | B71: RCS, RCSG | C71: 100 | D71: 100 | H71: 0603 | I71: Std | J71: Std
A72: 1 | B72: RUV1 | C72: ='Design Converter'!E67 -> 75 | D72: 75 | H72: 0603 | I72: Std | J72: Std
A73: 1 | B73: RUV2 | C73: ='Design Converter'!E68 -> 12.7 | D73: 12.7 | H73: 0603 | I73: Std | J73: Std
A74: 1 | B74: RVIN | C74: 2.2 | D74: 2.2 | H74: 0603 | I74: Std | J74: Std
A75: 1 | B75: U1 | C75: LM5177 | D75: IC, LM5177, Buck-Boost PWM Controller | H75: TSSOP-38 | I75: LM5177HTSSOP | J75: TI
A78: NOTES:
A79: ** For information on TI NexFETTM MOSFETs, see ** | D79: http://www.ti.com/nexfet | E79: **
A80: ** Inductor saturation current should be higher than the peak inductor current at the OCP setpoint for all input voltages and operating temperatures **
A81: ** Effective input and output capacitances should be appropriately derated for applied voltage and temperature, particularly with ceramics **

Sheet MOSFET LOSS (hidden)

Sheet Efficiency Plot Details (hidden)

Sheet DeviceParameter (hidden)
A1: EXCEL Device Parameter
B2: Input from user = | E2: to check
B3: Output =
B4: Constant
A5: Variable Name | B5: Selected Value | C5: STD Units | D5: Device
D6: LM5177 | E6: LM51772 | F6: LM51772-Q1 | G6: LM251772 | H6: LM251772-Q1 | I6: LM851772-Q1 | J6: LM34938-Q1 | N6: t_on_min_Boost | O6: =VLOOKUP((Fsw/1000000),Q9:R110,2) -> 94.04588298 | Q6: Freq[Mhz] | R6: Minimum off-time Boost[ns]
A7: Index | D7: 1 | E7: =D7+1 -> 2 | F7: =E7+1 -> 3 | G7: 4 | H7: 5 | I7: 6 | J7: 7
A8: Released | D8: 1 | E8: 0 | F8: 0 | G8: 0 | H8: 0 | I8: 0 | J8: 1
A9: MaxVin | B9: =_xlfn.XLOOKUP(Device,$D$6:$J$6,D9:J9) -> 36 | C9: V | D9: 60 | E9: 55 | F9: 55 | G9: 36 | H9: 36 | I9: 36 | J9: 36 | Q9: 0.09875 | R9: 604.1806325
A10: MinVin | B10: 3.5 | C10: V | D10: 2.8 | E10: 3.5 | F10: 3.5 | G10: 3.5 | H10: 3.5 | I10: 3.5 | J10: 3.5 | N10: R_CS | O10: 10 | Q10: 0.1404166667 | R10: 523.3381075
A11: MaxVout | B11: 45 | C11: V | D11: 78 | E11: 55 | F11: 55 | G11: 55 | H11: 55 | I11: 55 | J11: 45 | N11: C_CS | O11: =(O6*0.000000001)/(2*PI()*(2*O10)*10) -> 7.483933577e-11 | Q11: 0.1820833333 | R11: 459.9117989
A12: MinVout | B12: 1 | C12: V | D12: 3.3 | E12: 1 | F12: 1 | G12: 1 | H12: 1 | I12: 1 | J12: 1 | N12: C_CS_ideal | O12: ='Standard Value Calculator'!R23 -> 6.8e-11 | Q12: 0.22375 | R12: 415.9309591
A13: MaxfSW | B13: 2200 | C13: kHz | D13: 600 | E13: 2200 | F13: 2200 | G13: 600 | H13: 2200 | I13: 2200 | J13: 2200 | Q13: 0.2654166667 | R13: 378.5534256
B14: 0 | Q14: 0.3070833333 | R14: 349.8049772
A15: gm_monitor | B15: 0.001 | C15: S | D15: 0.001 | E15: 0.001 | F15: 0.001 | G15: 0.001 | H15: 0.001 | I15: 0.001 | J15: 0.001 | Q15: 0.34875 | R15: 323.5475647
A16: gm_IL_DAC | B16: 0 | C16: S | E16: 0.0005 | F16: 0.0005 | G16: 0.0005 | H16: 0.0005 | I16: 0.0005 | L16: CDC Transconductance | Q16: 0.3904166667 | R16: 300.0906675
A17: gm_IL_iSET | B17: 0.001 | C17: S | D17: 0.0002 | E17: 0.001 | F17: 0.001 | I17: 0.001 | J17: 0.001 | Q17: 0.4320833333 | R17: 283.5498289
A18: gm_CDC | B18: 0.0005 | C18: S | E18: 0.0005 | F18: 0.0005 | G18: 0.0005 | H18: 0.0005 | I18: 0.0005 | J18: 0.0005 | Q18: 0.47375 | R18: 265.4306752
Q19: 0.5154166667 | R19: 251.2544049
A20: CDC_Threshold | B20: =_xlfn.XLOOKUP(Device,$D$6:$J$6,D20:J20) -> 0.05 | C20: V | E20: 0.05 | F20: 0.05 | G20: 0.05 | H20: 0.05 | I20: 0.05 | J20: 0.05 | Q20: 0.5570833333 | R20: 238.8266086
A21: IMON_Threshold | B21: =_xlfn.XLOOKUP(Device,$D$6:$J$6,D21:J21) -> 0.05 | C21: V | E21: 0.05 | F21: 0.05 | G21: 0.05 | H21: 0.05 | I21: 0.05 | J21: 0.05 | Q21: 0.59875 | R21: 226.4947348
A22: ILIM_Threshold | B22: =_xlfn.XLOOKUP(Device,$D$6:$J$6,D22:J22) -> 0.05 | C22: V | E22: 0.05 | F22: 0.05 | G22: 0.05 | H22: 0.05 | I22: 0.05 | J22: 0.05 | Q22: 0.6404166667 | R22: 216.9915209
Q23: 0.6820833333 | R23: 207.092641
A24: V_Ilimit | B24: =_xlfn.XLOOKUP(Device,$D$6:$J$6,D24:J24) -> 1 | C24: V | E24: 1 | F24: 1 | G24: 1 | H24: 1 | I24: 1 | J24: 1 | Q24: 0.72375 | R24: 198.487035
Q25: 0.7654166667 | R25: 190.6922922
Q26: 0.8070833333 | R26: 183.753459
A27: Schematic_Prefix | B27: =_xlfn.XLOOKUP(Device,$D$6:$J$6,D27:J27) -> SCH251772 | E27: SCH772 | F27: SCH772 | G27: SCH251772 | H27: SCH251772 | I27: SCH772 | J27: SCH251772 | Q27: 0.84875 | R27: 176.9759273
A28: I2C_only | B28: =_xlfn.XLOOKUP(Device,$D$6:$J$6,D28:J28) -> 1 | E28: 0 | F28: 0 | G28: 1 | H28: 1 | I28: 1 | J28: 1 | Q28: 0.8904166667 | R28: 170.8368949
A29: has_ISET | B29: =_xlfn.XLOOKUP(Device,$D$6:$J$6,D29:J29) -> 1 | E29: 1 | F29: 1 | G29: 0 | H29: 0 | I29: 1 | J29: 1
A30: has_IDAC | B30: =_xlfn.XLOOKUP(Device,$D$6:$J$6,D30:J30) -> 0 | E30: 1 | F30: 1 | G30: 1 | H30: 1 | I30: 1 | J30: 0 | Q30: 0.9320833333 | R30: 165.3238823
Q31: 0.97375 | R31: 160.0510081
A32: CFG1 | B32: =_xlfn.XLOOKUP(Device,$D$6:$J$6,D32:J32) -> Slope Comp. | D32: DRSS | E32: Slope Comp. | F32: Slope Comp. | G32: Slope Comp. | H32: Slope Comp. | I32: Slope Comp. | J32: Slope Comp. | Q32: 1.015416667 | R32: 155.2803568
B33: I2C | D33: HICCUP | E33: I2C | F33: I2C | G33: I2C | H33: I2C | I33: I2C | J33: I2C | Q33: 1.057083333 | R33: 150.6014904
B34: 0 | D34: USLEEP | Q34: 1.09875 | R34: 146.5348152
B35: 0 | D35: IMON_LIMIT | Q35: 1.140416667 | R35: 142.552153
A36: CFG2 | B36: SYNC_OUT | D36: NA | E36: SYNC_OUT | F36: SYNC_OUT | G36: SYNC_OUT | H36: SYNC_OUT | I36: SYNC_OUT | J36: SYNC_OUT | Q36: 1.182083333 | R36: 138.8581795
B37: SYNC_IN_FALLING | D37: NA | E37: SYNC_IN_FALLING | F37: SYNC_IN_FALLING | G37: SYNC_IN_FALLING | H37: SYNC_IN_FALLING | I37: SYNC_IN_FALLING | J37: SYNC_IN_FALLING | Q37: 1.22375 | R37: 135.3446622
B38: VDET | D38: NA | E38: VDET | F38: VDET | G38: VDET | H38: VDET | I38: VDET | J38: VDET | Q38: 1.265416667 | R38: 131.8995688
B39: PCM_HYST | D39: NA | E39: PCM_HYST | F39: PCM_HYST | G39: PCM_HYST | H39: PCM_HYST | I39: PCM_HYST | J39: PCM_HYST | Q39: 1.307083333 | R39: 128.9805854
A40: CFG3 | B40: NA | D40: NA | E40: EN_VCC1 | F40: EN_VCC1 | G40: NA | H40: NA | I40: NA | J40: NA | Q40: 1.34875 | R40: 125.8853923
B41: NA | D41: NA | E41: INC_INDUCT_De-Rate | F41: INC_INDUCT_De-Rate | G41: NA | H41: NA | I41: NA | J41: NA | Q41: 1.390416667 | R41: 123.1361358
B42: NA | D42: NA | E42: CONST_TDEAD | F42: CONST_TDEAD | G42: NA | H42: NA | I42: NA | J42: NA | Q42: 1.432083333 | R42: 120.5779206
B43: NA | D43: NA | E43: SCALE_DT | F43: uSLEEP | G43: NA | H43: NA | I43: NA | J43: NA | Q43: 1.47375 | R43: 117.9004862
A44: CFG4 | B44: NA | D44: NA | E44: DRSS | F44: DRSS | G44: NA | H44: NA | I44: NA | J44: NA | Q44: 1.515416667 | R44: 115.2237354
B45: NA | D45: NA | E45: SCP – Hiccup Mode | F45: SCP – Hiccup Mode | G45: NA | H45: NA | I45: NA | J45: NA | Q45: 1.557083333 | R45: 113.0683191
B46: Neg. Current Limit | D46: NA | E46: Neg. Current Limit | F46: Neg. Current Limit | G46: Neg. Current Limit | H46: Neg. Current Limit | I46: Neg. Current Limit | J46: Neg. Current Limit | Q46: 1.59875 | R46: 111.187763
B47: Current Limit | D47: NA | E47: Current Limit | F47: Current Limit | G47: Current Limit | H47: Current Limit | I47: Current Limit | J47: Current Limit | Q47: 1.640416667 | R47: 109.0574641
Q48: 1.682083333 | R48: 107.0780446
Q49: 1.72375 | R49: 105.3681463
Q50: 1.765416667 | R50: 103.4496675
Q51: 1.807083333 | R51: 101.8866401
Q52: 1.84875 | R52: 100.3398169
Q53: 1.890416667 | R53: 98.88521679
Q54: 1.932083333 | R54: 97.35229424
Q55: 1.97375 | R55: 95.90047656
Q56: 2.015416667 | R56: 94.52075533
Q57: 2.057083333 | R57: 93.43900133
Q58: 2.09875 | R58: 94.04588298
Q59: 2.140416667 | R59: 94.3702141
Q60: 2.182083333 | R60: 94.83257655
Q61: 2.22375 | R61: 94.9212079
Q62: 2.265416667 | R62: 95.11539857
Q63: 2.307083333 | R63: 95.20430256
Q64: 2.34875 | R64: 95.26965324
Q65: 2.390416667 | R65: 95.30232968
Q66: 2.432083333 | R66: 95.35252595
Q67: 2.47375 | R67: 95.22957209
Q68: 2.515416667 | R68: 95.27100455
Q69: 2.557083333 | R69: 95.21658888

Sheet Variable Management (hidden)
A1: EXCEL Variables Names/Calculations
B2: Input from user = | F2: to check
B3: Output =
B4: Constant
A5: Variable Name | B5: Value | C5: STD Units | E5: Notes | I5: Iteration
A6: Step 1: Operational Specs
A7: VIN_min | B7: ='Design Converter'!E7 -> 9 | C7: V | D7: Minimum input voltage | I7: 1
A8: VIN | B8: ='Design Converter'!E8 -> 12 | C8: V | D8: Nominal input voltage | K8: Efficiency vs IOUT Plot | L8: 1
A9: VIN_max | B9: ='Design Converter'!E9 -> 36 | C9: V | D9: Maximum input voltage | K9: Efficiency vs VIN Plot | L9: 2
A10: VIN_edgebuckboost | B10: =B44 -> 13.60262009 | C10: V | K10: PLOT_TYPE | L10: 1 | M10: CFG | O10: ='CFG Setting'!G28 -> 13 | P10: 1 = Yes, 2 = No
K11: BODEPLOT_TYPE | L11: FALSE
A12: Vout | B12: ='Design Converter'!E10 -> 20 | C12: V | D12: Output Voltage | I12: 1
A13: Iout | B13: ='Design Converter'!E11 -> 3 | C13: A | D13: Maximum Output Current | I13: 1
A14: Rout | B14: =Vout/Iout -> 6.666666667 | C14: W | D14: Load resistance
A15: Pout | B15: =Vout*Iout -> 60 | C15: W | D15: Output power
A16: Efficiency | B16: 0.95 | D16: Edited by Vijay from 96% to 90% to match datasheet calculations.
A17: Pin | B17: =Pout/Efficiency -> 63.15789474 | C17: W | D17: Calculate input power assuming 90% efficiency
A18: Iin_Vinmin | B18: =Pin/VIN_min -> 7.01754386 | C18: A
A19: Iin_Vinnom | B19: =Pin/VIN_nom -> 5.263157895 | C19: A | D19: Input currents at min, nom, max Vin
A20: Iin_Vinmax | B20: =Pin/VIN_max -> 1.754385965 | C20: A
A22: Fsw | B22: ='Design Converter'!E12*1000 -> 2100000 | C22: Hz | D22: Nominal Switching Frequency | I22: 1
A23: Ts | B23: =1/Fsw -> 4.761904762e-07 | C23: sec | D23: Period
A24: Vref | B24: =_xlfn.SWITCH(Internal_FB_enabled,1,1,2,Vout/10,3,Vout/20) -> 1 | C24: V | D24: Reference Voltage
A25: Vref_eff | B25: =Vref -> 1 | C25: V | D25: effective Vref with Tracking
A26: Rt | B26: =1/(0.000000000032*Fsw) -> 14880.95238 | C26: W | D26: Frequency Set Resistor | F26: edited based on LM5177 curve fit.
A27: Ifb | B27: 6e-08 | C27: A
A29: Device | B29: =INDEX(L29:L35,C29) -> LM34938-Q1 | C29: =D29+1 -> 2 | D29: 1 | K29: Device | L29: =TRANSPOSE(_xlfn._xlws.FILTER(DeviceParameter!D6:J6,DeviceParameter!D8:J8)) -> LM5177 | M29: =TRANSPOSE(_xlfn._xlws.FILTER(DeviceParameter!D7:J7,DeviceParameter!D8:J8)) -> 1
A30: Mode | B30: 1 | D30: 0: PSM 1: FPWM 2: ACM | L30: LM34938-Q1 | M30: 7
A31: Link | B31: =CONCATENATE("http://www.ti.com/product/",LOWER(Device)) -> http://www.ti.com/product/lm34938-q1
K40: useI2C | L40: =IF(OR('CFG Setting'!G57=1,'CFG Setting'!G57=16),1,0) -> 0
A44: VIN_BB_to_boost | B44: =IF($B$30=0,Vout,Timings!F5) -> 13.60262009 | C44: V
A45: VIN_boost_to_BB | B45: =IF($B$30=0,Vout,Timings!F4) -> 16.64 | C45: V
A46: VIN_buck_to_BB | B46: =IF($B$30=0,Vout,Timings!F2) -> 24.03846154 | C46: V
A47: VIN_BB_to_buck | B47: =IF($B$30=0,Vout,Timings!F3) -> 29.40609952 | C47: V
A51: Step 2: Filter Inductor
A52: Don1 | B52: =Vout/VIN_nom -> 1.666666667 | C52: =(Vout-VIN_nom)/Vout -> 0.4 | E52: Ideal Duty Cycle at VIN(nom) | I52: 1
A53: Doff1 | B53: =1-_Don1 -> -0.6666666667 | E53: Ideal 1- Duty Cycle at VIN(nom) | I53: 1
A55: Don_Vinmin | B55: =IF(VIN_min>Vout, Vout/VIN_min, (Vout-VIN_min)/Vout) -> 0.55 | C55: =IF(VIN_min>Vout, "BUCK", "BOOST") -> BOOST
A56: Don_Vinnom | B56: =IF(VIN_nom>Vout, Vout/VIN_nom, (Vout-VIN_nom)/Vout) -> 0.4 | C56: =IF(VIN_nom>Vout, "BUCK", "BOOST") -> BOOST
A57: Don_Vinmax | B57: =IF(VIN_max>Vout, Vout/VIN_max, (Vout-VIN_max)/Vout) -> 0.5555555556 | C57: =IF(VIN_max>Vout, "BUCK", "BOOST") -> BUCK
B59: BUCK | C59: BOOST
A60: Lf_Vinmin | B60: =(VIN_min-Vout)*Don_Vinmin/(Fsw*Iout*0.3) -> -3.201058201e-06 | C60: =VIN_min/(Iin_Vinmin*0.3*Fsw)*(1-VIN_min/Vout) -> 1.119642857e-06 | D60: H | E60: Calculated inductance for 30% ripple at VIN(min)
A61: Lf_Vinnom | B61: =(VIN_nom-Vout)*Don_Vinnom/(Fsw*Iout*0.35) -> -1.451247166e-06 | C61: =VIN_nom/(Iin_Vinnom*0.35*Fsw)*(1-VIN_nom/Vout) -> 1.240816327e-06 | D61: H | E61: Calculated inductance for 35% ripple at VIN(nom) | I61: 1
A62: Lf_Vinmax | B62: =(VIN_max-Vout)*Don_Vinmax/(Fsw*Iout*0.4) -> 3.527336861e-06 | C62: =VIN_max/(Iin_Vinmax*0.4*Fsw)*(1-VIN_max/Vout) -> -1.954285714e-05 | D62: H | E62: Calculated inductance for 40% ripple at VIN(max) | K62: Joerg's Calculation | R62: LM5177
A64: L_Vinmin | B64: =MAX(IF(VIN_min>Vout,B60,C60),O64) -> 1.119642857e-06 | C64: H | D64: =IF(VIN_min>Vout, "BUCK", "BOOST") -> BOOST | E64: Calculated inductance for 30% ripple at VIN(min) | K64: Lbuck | L64: =(VIN_max-Vout)*Vout/(0.4*Iout*Fsw*VIN_max) -> 3.527336861e-06 | M64: H | N64: Lmin | O64: =MAX(10*Vout*Rs/Fsw,Rs*125/Fsw) -> 3.80952381e-07 | P64: H
A65: L_Vinnom | B65: =IF(VIN_nom>Vout, B61,C61) -> 1.240816327e-06 | C65: H | D65: =IF(VIN_nom>Vout, "BUCK", "BOOST") -> BOOST | E65: Calculated inductance for 35% ripple at VIN(nom) | K65: Lboost | L65: =(Vout-VIN_min)*VIN_min^2/(0.3*Iout*Fsw*Vout^2) -> 1.178571429e-06 | M65: H | N65: Lmax | O65: =Rs*5000/Fsw -> 9.523809524e-06 | P65: H
A66: L_Vinmax | B66: =MIN(IF(VIN_max>Vout,B62,C62),O65) -> 3.527336861e-06 | C66: H | D66: =IF(VIN_max>Vout, "BUCK", "BOOST") -> BUCK | E66: Calculated inductance for 40% ripple at VIN(max) | K66: Lmax(0.5d boost) | L66: =Rs*25*Vout/Fsw -> 9.523809524e-07 | M66: H | N66: Ltyp | O66: =Rs*625/Fsw -> 1.19047619e-06 | P66: H
K67: Iinpeakmax | L67: =Vout/VIN_min*1.4*Iout -> 9.333333333 | M67: A | N67: Lminheadroom | O67: =Rs*10*Vout/Fsw -> 3.80952381e-07 | P67: H
A68: Lopt | B68: =O74 -> 1.594387755e-06 | C68: H | D68: average of calculated inductances at VIN(min), VIN(max) and VIN(nom) | K68: Rsns_suggest | L68: =Buck_CS_threshold/L67 -> 0.005357142857 | M68: W | N68: LminSC | O68: =Rs*125/Fsw -> 2.380952381e-07 | P68: H
A69: Lmin | B69: =O64 -> 3.80952381e-07 | C69: H
A70: Lmax | B70: =O65 -> 9.523809524e-06 | C70: H | K70: L_avg | L70: =(MAX(MIN(AVERAGE(L64:L65),O65),O64)) -> 2.352954145e-06 | M70: H
A71: Lopt_Limit | B71: =MAX(MIN(B68,B70),B69) -> 1.594387755e-06 | C71: H | K71: L_min | L71: =(MAX(MIN(MIN(L64:L65),O65),O64)) -> 1.178571429e-06 | M71: H
A72: Lf | B72: ='Design Converter'!E18/1000000 -> 3e-06 | C72: H | E72: Chosen inductance | I72: 2
A73: Rdcr | B73: ='Design Converter'!E19/1000 -> 0.0065 | C73: W | E73: Chosen inductor DCR | I73: 1 | N73: Ltyp_sugguest | O73: =L68*625/Fsw -> 1.594387755e-06 | P73: H
N74: Ltyp_sugguest_limit | O74: =MAX(O64,MIN(O65,O73)) -> 1.594387755e-06 | P74: H
A75: Don2 | B75: =(Vout+Iout*(Rdcr+Rs))/(Vin+Iout*Rs) -> 1.667624043 | I75: 2
A76: Doff2 | B76: =1-_Don2 -> -0.6676240426 | I76: 2
A78: Don_Vinmin_2 | B78: =IF(VIN_min>Vout, (Vout+Iout*(Rdcr+Rs))/(VIN_min+Iout*Rs), (Vout-VIN_min+Iin_Vinmin*(Rdcr))/(Vout-Iin_Vinmin*Rs)) -> 0.553056922 | C78: =IF(VIN_min>Vout, "BUCK", "BOOST") -> BOOST | E78: Duty cycles adjusted for DCR and shunt voltage drops | I78: 2
A79: Don_Vinnom_2 | B79: =IF(VIN_nom>Vout, (Vout+Iout*(Rdcr+Rs))/(VIN_nom+Iout*Rs), (Vout-VIN_nom+Iin_Vinnom*(Rdcr))/(Vout-Iin_Vinnom*Rs)) -> 0.4021338251 | C79: =IF(VIN_nom>Vout, "BUCK", "BOOST") -> BOOST | E79: need to include RDS(on) later | R79: LM51772
A80: Don_Vinmax_2 | B80: =IF(VIN_max>Vout, (Vout+Iout*(Rdcr+Rs))/(VIN_max+Iout*Rs), (Vout-VIN_max+Iin_Vinmax*(Rdcr))/(Vout-Iin_Vinmax*Rs)) -> 0.5562451405 | C80: =IF(VIN_max>Vout, "BUCK", "BOOST") -> BUCK
A82: Vripple1 | B82: ='Design Converter'!E43/1000 -> 0.15 | C82: V | E82: Output voltage ripple spec(pk-pk) | I82: 1
A84: Iripple_Vinmin | B84: =IF(VIN_min>Vout, (VIN_min-Vout)*Don_Vinmin_2/(Fsw*Lf),VIN_min*Don_Vinmin_2/(Lf*Fsw)) -> 0.7900813171 | C84: =(VIN_min-Vout)*Don_Vinmin_2/(Fsw*Lf) -> -0.9656549432 | D84: A | E84: =IF(VIN_min>Vout, "BUCK", "BOOST") -> BOOST | H84: =VIN_min*Don_Vinmin_2/(Lopt*Fsw) -> 1.486617006
A85: Iripple_Vinnom | B85: =IF(VIN_nom>Vout, (VIN_nom-Vout)*Don_Vinnom_2/(Fsw*Lf),VIN_nom*Don_Vinnom_2/(Lf*Fsw)) -> 0.7659691906 | C85: =(VIN_nom-Vout)*Don_Vinnom_2/(Fsw*Lf) -> -0.5106461271 | D85: A | E85: =IF(VIN_nom>Vout, "BUCK", "BOOST") -> BOOST
A86: Iripple_Vinmax | B86: =IF(VIN_max>Vout, (VIN_max-Vout)*Don_Vinmax_2/(Fsw*Lf),VIN_max*Don_Vinmax_2/(Lf*Fsw)) -> 1.412686071 | C86: =(VIN_max-Vout)*Don_Vinmax_2/(Fsw*Lf) -> 1.412686071 | D86: A | E86: =IF(VIN_max>Vout, "BUCK", "BOOST") -> BUCK
A89: Ishunt_rms_Vinmin | B89: =IF(VIN_min>Vout, SQRT(Iout^2+(Iripple_Vinmin^2)/12), SQRT(Iin_Vinmin^2+(Iripple_Vinmin^2)/12)) -> 7.021249238 | C89: A | D89: =IF(VIN_min>Vout, SQRT(Iout^2+(Iripple_Vinmin^2)/12), SQRT(Iin_Vinmin^2+(Iripple_Vinmin^2)/12)) -> 7.021249238 | E89: =SQRT(1-Don_Vinmin_2)*SQRT(Iout^2+(Iripple_Vinmin^2)/12) -> 2.011401813 | F89: =SQRT(Don_Vinmin_2)*SQRT(Iout^2+(Iripple_Vinmin^2)/12) -> 2.237472187
A90: Ishunt_rms_Vinnom | B90: =IF(VIN_nom>Vout, SQRT(Iout^2+(Iripple_Vinnom^2)/12), SQRT(Iin_Vinnom^2+(Iripple_Vinnom^2)/12)) -> 5.267800625 | C90: A | D90: =IF(VIN_nom>Vout, SQRT(Iout^2+(Iripple_Vinnom^2)/12), SQRT(Iin_Vinnom^2+(Iripple_Vinnom^2)/12)) -> 5.267800625 | E90: =SQRT(1-Don_Vinnom_2)*SQRT(Iout^2+(Iripple_Vinnom^2)/12) -> 2.325946407 | F90: =SQRT(Don_Vinnom_2)*SQRT(Iout^2+(Iripple_Vinnom^2)/12) -> 1.907581116
A91: Ishunt_rms_Vinmax | B91: =IF(VIN_max>Vout, SQRT(Iout^2+(Iripple_Vinmax^2)/12), SQRT(Iin_Vinmax^2+(Iripple_Vinmax^2)/12)) -> 3.027590928 | C91: A | D91: =IF(VIN_max>Vout, SQRT(Iout^2+(Iripple_Vinmax^2)/12), SQRT(Iin_Vinmax^2+(Iripple_Vinmax^2)/12)) -> 3.027590928 | E91: =SQRT(1-Don_Vinmax_2)*SQRT(Iout^2+(Iripple_Vinmax^2)/12) -> 2.016827508 | F91: =SQRT(Don_Vinmax_2)*SQRT(Iout^2+(Iripple_Vinmax^2)/12) -> 2.258033133
A92: Max shunt power loss at full load | B92: =MAX(B89,B91)^2*Rs -> 0.1971917635 | C92: W | D92: =IF(B91>B89, "BUCK", "BOOST") -> BOOST
A94: Max inductor ripple current | B94: =MAX(B84:B86) -> 1.412686071 | C94: A
F95: Ripple I | G95: Iin
A96: % Ripple Current | B96: =IF(VIN_min>Vout, B84/Iout, B84/Iin_Vinmin) -> 0.1125865877 | C96: =IF(VIN_min>Vout, "BUCK", "BOOST") -> BOOST | F96: =B84 -> 0.7900813171 | G96: =Iin_Vinmin -> 7.01754386
B97: =IF(VIN_nom>Vout, B85/Iout, B85/Iin_Vinnom) -> 0.1455341462 | C97: =IF(VIN_nom>Vout, "BUCK", "BOOST") -> BOOST | F97: =B85 -> 0.7659691906 | G97: =Iin_Vinnom -> 5.263157895
B98: =IF(VIN_max>Vout, B86/Iout, B86/Iin_Vinmax) -> 0.470895357 | C98: =IF(VIN_max>Vout, "BUCK", "BOOST") -> BUCK | F98: =B86 -> 1.412686071 | G98: =Iin_Vinmax -> 1.754385965
A100: Temp | B100: 100
A101: DCR at hot | B101: =Rdcr*(1+0.0039*(B100-25)) -> 0.00840125 | C101: W
A104: Step 3: Sense Resistors, Slope Comp, Current Limit
A106: Ilimit_Margin | B106: ='Design Converter'!E30 -> 20 | C106: % | E106: Chosen OCP level - based on output current
A108: Ipeak_inductor_Vinmin | B108: =IF(VIN_min>Vout, Iout/Efficiency+Iripple_Vinmin/2, Iin_Vinmin+Iripple_Vinmin/2) -> 7.412584518 | C108: A | D108: =IF(VIN_min>Vout, "BUCK", "BOOST") -> BOOST
A109: Ipeak_inductor_Vinnom | B109: =IF(VIN_nom>Vout, Iout/Efficiency+Iripple_Vinnom/2,Iin_Vinnom+Iripple_Vinnom/2) -> 5.64614249 | C109: A | D109: =IF(VIN_nom>Vout, "BUCK", "BOOST") -> BOOST
A110: Ipeak_inductor_Vinmax | B110: =IF(VIN_max>Vout, Iout/Efficiency+Iripple_Vinmax/2,Iin_Vinmin+Iripple_Vinmax/2) -> 3.864237772 | C110: A | D110: =IF(VIN_max>Vout, "BUCK", "BOOST") -> BUCK
A111: Ipeak_inductor_buckboost | B111: =I_2 -> 4.03773935 | C111: A | D111: edge of buck-boost
A112: Ipeak_inductor_max | B112: =MAX(B108:B110) -> 7.412584518 | C112: A | D112: Max inductor of Boost and Buck
A113: Ipeak_inductor_max_margin | B113: =Ipeak_inductor_max*(1+Ilimit_Margin/100) -> 8.895101422 | C113: A | D113: with added margin
A115: Buck CS threshold_min | B115: 0.045 | C115: V
A116: Buck CS threshold | B116: 0.05 | C116: V | E116: Pos and neg. is identical - otherwise take lower value
A117: Buck CS threshold_max | B117: 0.055 | C117: V | E117: Identical for Buck and Boost
A119: Boost CS Threshold_min | B119: 0.045 | C119: V
A120: Boost CS Threshold | B120: 0.05 | C120: V | E120: Pos and neg. is identical - otherwise take lower value
A121: Boost CS Threshold_max | B121: 0.055 | C121: V | E121: Identical for Buck and Boost
A123: Assume we'd like to achieve current limit particularly at VIN(min) and boost side of buck-boost region; accept inevitable variation over line thereafter
A124: Shunt required to get OCP at VIN(min) | B124: =IF(VIN_min>Vout,Buck_CS_threshold/B108, Boost_CS_Threshold/B108)/(1+Ilimit_Margin/100) -> 0.005621071377 | C124: W | D124: =IF(VIN_min>Vout, "BUCK", "BOOST") -> BOOST
A125: Shunt required to get OCP at VIN(nom) | B125: =IF(VIN_nom>Vout,Buck_CS_threshold/B109, Boost_CS_Threshold/B109)/(1+Ilimit_Margin/100) -> 0.007379669702 | C125: W | D125: =IF(VIN_nom>Vout, "BUCK", "BOOST") -> BOOST
A126: Shunt required to get OCP at VIN(max) | B126: =IF(VIN_max>Vout,Buck_CS_threshold/B110, Boost_CS_Threshold/B110)/(1+Ilimit_Margin/100) -> 0.01078263531 | C126: W | D126: =IF(VIN_max>Vout, "BUCK", "BOOST") -> BUCK
A129: Rs_ideal | B129: =MIN(B124:B126) -> 0.005621071377 | C129: W | E129: Ideal Rs for the required OCP -- based on 80mV or 160mV CL threshold
A130: Rs | B130: ='Design Converter'!E32/1000 -> 0.004 | C130: W | E130: Selected (starndard value) current limit sense resistor
A131: Rs_in_range | B131: =IF(AND(100<Rs/Lf,Rs/Lf<8000,Rs/Lf<(1*Fsw/(Vout*10))),1,0) -> 1
A132: BOOST current limit - peak | B132: =Boost_CS_Threshold_max/Rs -> 13.75 | C132: A | E132: Peak inductor current limit in BOOST
A133: BUCK current limit - peak | B133: =Buck_CS_threshold_max/Rs -> 13.75 | C133: A | E133: Peak inductor current limit in BUCK
A135: Iout_OCP_Vinmin | B135: =IF(VIN_min>Vout,Buck_CS_threshold/Rs-Iripple_Vinmin/2, (Boost_CS_Threshold/Rs-Iripple_Vinmin/2)*(1-Don_Vinmin_2)) -> 5.410227787 | C135: A | D135: =IF(VIN_min>Vout, "BUCK", "BOOST") -> BOOST | E135: Current limit setpoints (i.e. IOUT) after standard components are selected
A136: Iout_OCP_Vinnom | B136: =IF(VIN_nom>Vout,Buck_CS_threshold/Rs-Iripple_Vinnom/2, IF(VIN_nom<VIN_edgebuckboost,(Boost_CS_Threshold/Rs-Iripple_Vinnom/2)*(1-Don_Vinnom_2),(Buck_CS_threshold/Rs-Iripple_Vinnom/2)*(1-Don_Vinnom_2))) -> 7.244353651 | C136: A | D136: =IF(VIN_nom>Vout,"BUCK",IF(VIN_nom<VIN_edgebuckboost,"BOOST","BUCK-BOOST")) -> BOOST
A137: Iout_OCP_Vinmax | B137: =IF(VIN_max>Vout, Buck_CS_threshold/Rs-Iripple_Vinmax/2, (Boost_CS_Threshold/Rs-Iripple_Vinmax/2)*(1-Don_Vinmax_2)) -> 11.79365696 | C137: A | D137: =IF(VIN_max>Vout, "BUCK", "BOOST") -> BUCK
K138: RMS current in Rs | M138: Power diss in Rs
A140: ILpeak_OCP_Vinmin | B140: =IF(VIN_min>Vout, Buck_CS_threshold_max/Rs, Boost_CS_Threshold_max/Rs) -> 13.75 | C140: A | D140: =IF(VIN_min>Vout, "BUCK", "BOOST") -> BOOST | E140: Peak inductor currents in OCP | H140: =SQRT(Don_Vinmin_2)*SQRT(Iin_Vinmin^2+(Iripple_Vinmin^2)/12) -> 5.221548375 | K140: =IF(VIN_min>Vout, SQRT(1-Don_Vinmin_2)*SQRT(Iout_OCP_Vinmin^2+(Iripple_Vinmin^2)/12), SQRT(Don_Vinmin_2)*SQRT(Iin_Vinmin^2+(Iripple_Vinmin^2)/12)) -> 5.221548375 | L140: A | M140: =K140^2*Rs -> 0.1090582697 | N140: W
A141: ILpeak_OCP_Vinnom | B141: =IF(VIN_nom>Vout, Buck_CS_threshold_max/Rs, IF(VIN_nom<VIN_edgebuckboost, Boost_CS_Threshold_max/Rs, Buck_CS_threshold_max/Rs)) -> 13.75 | C141: A | D141: =IF(VIN_nom>Vout,"BUCK",IF(VIN_nom<VIN_edgebuckboost,"BOOST","BUCK-BOOST")) -> BOOST | H141: =SQRT(1-Don_Vinnom_2)*SQRT(Iout_OCP_Vinnom^2+(Iripple_Vinnom^2)/12) -> 5.604073738 | K141: =IF(VIN_nom>Vout, SQRT(1-Don_Vinnom_2)*SQRT(Iout_OCP_Vinnom^2+(Iripple_Vinnom^2)/12), SQRT(Don_Vinnom_2)*SQRT(Iin_Vinnom^2+(Iripple_Vinnom^2)/12)) -> 3.340524274 | L141: A | M141: =K141^2*Rs -> 0.0446364097 | N141: W
A142: ILpeak_OCP_Vinmax | B142: =IF(VIN_max>Vout, Buck_CS_threshold_max/Rs, Boost_CS_Threshold_max/Rs) -> 13.75 | C142: A | D142: =IF(VIN_max>Vout, "BUCK", "BOOST") -> BUCK | H142: =SQRT(1-Don_Vinmax_2)*SQRT(Iout_OCP_Vinmax^2+(Iripple_Vinmax^2)/12) -> 7.861031471 | K142: =IF(VIN_max>Vout, SQRT(1-Don_Vinmax_2)*SQRT(Iout_OCP_Vinmax^2+(Iripple_Vinmax^2)/12), SQRT(Don_Vinmax_2)*SQRT(Iin_Vinmax^2+(Iripple_Vinmax^2)/12)) -> 7.861031471 | L142: A | M142: =K142^2*Rs -> 0.2471832631 | N142: W
A143: Worst case peak inductor current | B143: =MAX(B140:B142) -> 13.75 | C143: A
A145: IL_peak_OCP | B145: =MAX(B140:B142) -> 13.75 | C145: A | E145: Peak inductor current over the full input range
A147: Rslope calc LM51772 | B147: =Rs/Lf/Fsw*625 -> 0.3968253968 | C147: =INDEX(P153:P168,MATCH(B147,P153:P168,1)+1) -> 0.5
A148: Rslope select LM51772 | B148: ='CFG Setting'!K58 -> 1.5
A149: Rslope setting for CFG1 in LM51772 | B149: =INDEX(O153:O168,MATCH(B147,P153:P168)+1)+1 -> 4
A150: Rslope_equ_772 | B150: =625*50000000/(Fsw*B148) -> 9920.634921 | C150: W
A151: Islope_fixed | B151: =Isc_const -> 0 | C151: A | K151: BUCK | L151: BOOST | O151: LM51772 Slope table
A152: Rslope | B152: =B150 -> 9920.634921 | C152: W | K152: =B153*(1-Don_Vinmin_2)/Fsw -> 0.1769894589 | L152: =B153*Don_Vinmin_2/Fsw -> 0.2190105411 | M152: =IF(VIN_min>Vout, "BUCK", "BOOST") -> BOOST | O152: SEL_SLOPE | P152: Factor
A153: SLOPE comp dv/dt = I_slope_total/Cslope | B153: =(ABS((VIN_min-Vout))*gm_slopecomp/Cslope + Islope_fixed)/(Rslope) -> 831600 | C153: V/s | E153: at VIN_min | K153: =B154*(1-Don_Vinnom_2)/Fsw -> 0.1721854584 | L153: =B154*Don_Vinnom_2/Fsw -> 0.1158145416 | M153: =IF(VIN_nom>Vout, "BUCK", "BOOST") -> BOOST | O153: 0 | P153: =0.125 + 0.125 *O153 -> 0.125
A154: SLOPE comp dv/dt = I_slope_total/Cslope | B154: =(ABS((VIN_nom-Vout))*gm_slopecomp/Cslope + Islope_fixed)/(Rslope) -> 604800 | C154: V/s | E154: at VIN_nom | K154: =B155*(1-Don_Vinmax_2)/Fsw -> 0.2556027991 | L154: =B155*Don_Vinmax_2/Fsw -> 0.3203972009 | M154: =IF(VIN_max>Vout, "BUCK", "BOOST") -> BUCK | O154: 1 | P154: =0.125 + 0.125 *O154 -> 0.25
A155: SLOPE comp dv/dt = I_slope_total/Cslope | B155: =(ABS((VIN_max-Vout))*gm_slopecomp/Cslope + Islope_fixed)/(Rslope) -> 1209600 | C155: V/s | E155: at VIN_max | O155: 2 | P155: =0.125 + 0.125 *O155 -> 0.375
O156: 3 | P156: 0.5
A157: DV_SLOPEcomp at Vinmin | B157: =IF(D157="BUCK", K152,L152) -> 0.2190105411 | C157: V | D157: =IF(VIN_min>Vout, "BUCK", "BOOST") -> BOOST | E157: at VIN_min | O157: 4 | P157: 0.625
A158: DV_SLOPEcomp at Vinnom | B158: =IF(D158="BUCK", K153,L153) -> 0.1158145416 | C158: V | D158: =IF(VIN_nom>Vout,"BUCK",IF(VIN_nom<VIN_edgebuckboost,"BOOST","BUCK-BOOST")) -> BOOST | E158: at VIN_nom | O158: 5 | P158: 0.75
A159: DV_SLOPEcomp at Vinmax | B159: =IF(D159="BUCK", K154,L154) -> 0.2556027991 | C159: V | D159: =IF(VIN_max>Vout, "BUCK", "BOOST") -> BUCK | E159: at VIN_max | O159: 6 | P159: 0.875
O160: 7 | P160: 1
O161: 8 | P161: =1 + 4 *P153 -> 1.5
O162: 9 | P162: =1 + 4 *P154 -> 2
O163: 10 | P163: 2.5
O164: 11 | P164: 3
O165: 12 | P165: 3.5
O166: 13 | P166: 4
A167: Step 4: Output Capacitor | O167: 14 | P167: 4.5
A168: Icoutrms_VINmin | B168: =IF(D168="BUCK", Iripple_Vinmin/SQRT(12), Iout*SQRT((Vout-VIN_min)/VIN_min)) -> 3.31662479 | C168: A | D168: =IF(VIN_min>Vout, "BUCK", "BOOST") -> BOOST | E168: Output Cap RMS current | O168: 15 | P168: 5
A169: Icoutrms_VINnom | B169: =IF(D169="BUCK", Iripple_Vinnom/SQRT(12), Iout*SQRT((Vout-VIN_nom)/VIN_nom)) -> 2.449489743 | C169: A | D169: =IF(VIN_nom>Vout,"BUCK",IF(VIN_nom<VIN_edgebuckboost,"BOOST","BUCK-BOOST")) -> BOOST
A170: Icoutrms_VINmax | B170: =IF(D170="BUCK", Iripple_Vinmax/SQRT(12), Iout*SQRT((Vout-VIN_max)/VIN_max)) -> 0.4078073417 | C170: A | D170: =IF(VIN_max>Vout, "BUCK", "BOOST") -> BUCK
A171: Max Cout rms current | B171: =MAX(B168:B170) -> 3.31662479 | C171: A
A173: Output Ripple Spec (pk-pk) | B173: =Vripple1*1000 -> 150 | C173: mV | E173: Vout ripple spec at Vin(nom)
A175: Coutmin | B175: =IF(VIN_min>Vout, Iripple_Vinmin/(Fsw*8*Vripple1), Iout*Don_Vinmin_2/(Vripple1*Fsw)) -> 5.267208781e-06 | C175: F | E175: Minimum Output Capacitnace | H175: =Vripple2 -> 0.0413360439 | I175: 1 | K175: =Coutmin -> 5.267208781e-06
A176: Reported Coutmin | B176: =IF(Coutmin*1000000<H176, H176,Coutmin*1000000) -> 5.267208781 | C176: uF | E176: Limit Min. output Cap | H176: 0.1 | K176: =Coutmin*1000000 -> 5.267208781
A177: Cout | B177: ='Design Converter'!E45/1000000 -> 3e-05 | C177: F | E177: Chosen Output Capacitance | I177: 1
A178: Resrmax | B178: =IF(VIN_min>Vout, SQRT((Vripple1/Iripple_Vinmin)^2-(1/(Fsw*Cout*8))^2), (Vripple1-Iout*Don_Vinmin_2/(Fsw*Cout))/Iout) -> 0.0412213187 | C178: W | E178: Max ESR before ripple exceeds Vripple1 | I178: 1
A180: Reported Cout ESR max | B180: =IF(OR(CoutEsrMax>0.3, CoutEsrMax<0, (ISERROR(CoutEsrMax))), "N/A", CoutEsrMax*1000) -> 41.2213187 | C180: mΩ
A181: CoutEsr | B181: ='Design Converter'!E47/1000 -> 0.005 | C181: W | E181: Chosen ESR | I181: 1 | K181: =ISERROR(CoutEsrMax) -> FALSE | L181: =ISERROR(B180) -> FALSE
A182: Vripple | B182: =IF(VIN_min>Vout, Iripple_Vinmax*SQRT(CoutEsr^2+(1/(8*Fsw*Cout))^2), CoutEsr*Iout+Iout*Don_Vinmin_2/(Fsw*Cout)) -> 0.0413360439 | C182: Vp-p | L182: =OR(CoutEsrMax>0.3,CoutEsrMax<0) -> FALSE
K183: =OR(TRUE, FALSE, TRUE) -> TRUE
A184: Step 5: Input Capacitor
A186: Icinrms_VINmin | B186: =IF(D186="BUCK", Iout*SQRT(Don_Vinmin_2*(1-Don_Vinmax_2)), Iripple_Vinmin/SQRT(12)) -> 0.2280768306 | C186: A | D186: =IF(VIN_min>Vout, "BUCK", "BOOST") -> BOOST | F186: =Iripple_Vinmin/SQRT(12) -> 0.2280768306 | G186: =Iout*SQRT(Don_Vinmax_2*(1-Don_Vinmax_2)) -> 1.490479238 | H186: =Iout*0.25 -> 0.75
A187: Icinrms_VINnom | B187: =IF(D187="BUCK", Iout*SQRT(Don_Vinnom_2*(1-Don_Vinnom_2)), Iripple_Vinnom/SQRT(12)) -> 0.2211162592 | C187: A | D187: =IF(VIN_nom>Vout,"BUCK",IF(VIN_nom<VIN_edgebuckboost,"BOOST","BUCK-BOOST")) -> BOOST
A188: Icinrms_VINmiax | B188: =IF(D188="BUCK", Iout*SQRT(Don_Vinmax_2*(1-Don_Vinmax_2)), Iripple_Vinmax/SQRT(12)) -> 1.490479238 | C188: A | D188: =IF(VIN_max>Vout, "BUCK", "BOOST") -> BUCK
A189: Max Cin rms current | B189: =MAX(B186:B188) -> 1.490479238 | C189: A | D189: …report this
A191: Vinripple1 | B191: ='Design Converter'!E52/1000 -> 0.18 | C191: Vp-p | D191: Input voltage ripple spec (pk-pk)
A193: Cinmin_Vinmax | B193: =IF(VIN_max>Vout, Iout*Don_Vinmax_2*(1-Don_Vinmax_2)/(Vinripple1*Fsw), Iripple_Vinmax/(Fsw*8*Vinripple1)) -> 1.959019716e-06 | C193: F | D193: Calculate cap at Vinmax and 50% duty cycle (Vin = 2*Vout) | K193: =Iripple_Vinnom/(Fsw*8*Vinripple1) -> 2.5329669e-07
A194: Cinmin_50%D | B194: =IF(VIN_max>Vout, Iout*0.5*(1-0.5)/(Vinripple1*Fsw), Iripple_Vinmax/(Fsw*8*Vinripple1)) -> 1.984126984e-06 | D194: Buck 50% typically worst case
A195: Cinmin | B195: =IF(VIN_max<2*Vout, B193,B194) -> 1.959019716e-06
A196: Reported Cinmin | B196: =IF(Cinmin*1000000<10, 10,Cinmin*1000000) -> 10 | C196: uF | D196: …report this
A197: Cin | B197: ='Design Converter'!E54/1000000 -> 3e-05 | C197: F | D197: Input capacitance
A198: CinEsrMax_Vinmax | B198: =IF(VIN_max>Vout, -(Iout*Don_Vinmax_2*(1-Don_Vinmax_2)/(Cin*Fsw)-Vinripple1)/(Iout+Iripple_Vinmax/2), SQRT((Vinripple1/Iripple_Vinmax)^2-(1/(Fsw*Cin*8))^2)) -> 0.04539403938 | C198: W
A199: CinEsrMax_50%D | B199: =IF(VIN_max>Vout, -(Iout*0.5*(1-0.5)/(Cin*Fsw)-Vinripple1)/(Iout+Iripple_Vinmax/2), SQRT((Vinripple1/Iripple_Vinmax)^2-(1/(Fsw*Cin*8))^2)) -> 0.04535339457 | C199: W | D199: Calculate ESR at Vinmax and 50% duty cycle (Vin = 2*Vout)
A200: CinEsrMax | B200: =IF(VIN_max<2*Vout, B198,B199) -> 0.04539403938 | C200: W
A201: Reported Cin ESR max | B201: =IF(OR(CinEsrMax>0.3, CinEsrMax<0), "N/A",CinEsrMax*1000) -> 45.39403938 | C201: mΩ | D201: …report this
A202: RCinEsr | B202: ='Design Converter'!E56/1000 -> 0.005 | C202: W | D202: Input capacitance series resistance (ESR)
K203: =CinEsrMax -> 0.04539403938
A204: Vinripple2_Vinmax | B204: =IF(VIN_max>Vout, Iout*Don_Vinmax_2*(1-Don_Vinmax_2)/(Cin*Fsw)+(Iout +Iripple_Vinmax/2)*RCinEsr, Iripple_Vinmax*SQRT(RCinEsr^2+(1/(8*Fsw*Cin))^2)) -> 0.03028583347 | C204: Vp-p
A205: Vinripple2_50%D | B205: =IF(VIN_max>Vout, Iout*0.5*(1-0.5)/(Cin*Fsw)+(Iout +Iripple_Vinmax/2)*RCinEsr, Iripple_Vinmax*SQRT(RCinEsr^2+(1/(8*Fsw*Cin))^2)) -> 0.03043647708 | C205: Vp-p | D205: Calculate ripple at Vinmax and 50% duty cycle (Vin = 2*Vout)
A206: Vinripple2 | B206: =IF(VIN_max<2*Vout, B204,B205) -> 0.03028583347 | C206: Vp-p | D206: …report highest of these
B208: =Iout*Don_Vinmax_2*(1-Don_Vinmax_2)/(Cin*Fsw) -> 0.01175411829 | C208: Vp-p
A210: Step 6a: Soft Start
A211: Tss | B211: ='Design Converter'!E62/1000 -> 0.002 | C211: s | D211: Soft-start time
A212: Iss | B212: 1e-05 | C212: A | D212: Load cap current during soft start
A213: Css | B213: =Iss*Tss/Vref -> 2e-08 | C213: F
A214: Css_u | B214: ='Standard Value Calculator'!B4 -> 2.2e-08 | C214: F
A216: Step 6b: Other Components - UVLO, Dither, MODE
A218: VINUVLO_ON | B218: ='Design Converter'!E65 -> 9.22 | C218: V
A219: VINUVLO_OFF | B219: ='Design Converter'!E66 -> 8.15 | C219: V
A220: RUV1 | B220: =1/Iuvlo1*(VINuvlo_on-Vuvlo_on*VINuvlo_off/Vuvlo_off) -> 74.73163842 | C220: kΩ | D220: RUV1_STD | E220: ='Standard Value Calculator'!R16 -> 75 | F220: kΩ | G220: =IF(Ruvlo1<0,"N/A",E220) -> 75 | H220: =IF(Ruvlo1<0,"N/A",E220&"kΩ") -> 75kΩ
A221: RUV2 | B221: =Ruvlo1/(VINuvlo_off/Vuvlo_off-1) -> 12.65184122 | C221: kΩ | D221: RUV2_STD | E221: ='Standard Value Calculator'!R17 -> 12.7 | F221: kΩ | G221: =IF(G220="N/A","N/A",E221) -> 12.7 | H221: =IF(H220="N/A","N/A",E221&"kΩ") -> 12.7kΩ
A223: VINUVLO_ON_ACTUAL | B223: =(Iuvlo1+Vuvlo_on/RUV2_STD)*(RUV1_STD)+Vuvlo_on -> 9.22
A224: VINUVLO_OFF_ACTUAL | B224: =Vuvlo_off*(RUV1_STD+RUV2_STD)/RUV2_STD -> 8.148503937
A226: Rising UVLO/EN Threshold | B226: 1.27 | C226: V | D226: 1.23
A227: Falling UVLO/EN Threshold | B227: 1.18 | C227: V | D227: 1.22
A228: Voltage Hysteresis | B228: =B226-B227 -> 0.09 | C228: V
A229: Rising UVLO/EN Current | B229: 0.006 | C229: mA
A230: Falling UVLO/EN Current | C230: mA
A231: UVLO/EN Current Hysteresis | C231: mA
A233: RPG | B233: 20 | C233: kΩ
A234: RSB | C234: W
A235: Rh | B235: 0 | C235: W
A236: Rmode | C236: W | D236: TBD | E236: Tie to GND or VCC for DCM/CCM, respectively. Use 93.1k or 200k for hiccup in DCM, CCM, respectively.
A243: Step 6c: Current Monitor / Current Limiter
A244: Monitor | K244: CDC
A245: With Rcs | B245: ='CFG Setting'!J146 -> 1 | E245: Flag to show current sense is used | K245: CDC_Gain | L245: ='Design Converter'!K54 -> 1 | M245: V
A246: With_CDC | B246: ='CFG Setting'!B159 -> 1 | E246: Flag to show CDC is used | K246: R Cable | L246: ='Design Converter'!K53 -> 5 | M246: mΩ
A247: IMONLIM_select | B247: =_xlfn.SWITCH('CFG Setting'!F145-1,0,0,1,has_ISET,2,has_IDAC*2,3,has_IDAC*3) -> 0 | E247: 0:off / 1: ILIM (ext) / 2: ILIM (DAC) | K247: Needed_offset_Voltage | L247: =L246/1000*Iout -> 0.015 | M247: V
A248: Imonitor,Max | K248: V_CDC | L248: =L247/L245 -> 0.015 | M248: V
A249: Required Constant Current Loop Setpoint | B249: ='Design Converter'!O53 -> 5 | C249: A | K249: R_CDC | L249: =L248/(Iout*Rsns_Selected*gm_CDC) -> 1000 | M249: Ω
A250: Current Limit Threshold | B250: 50 | C250: mV | E250: Restored to 50mV as ICTRL went away and the 25mV centering also went away.
A251: Shunt Resistor in Output Leg | B251: =IF(IMONLIM_select>0,'Design Converter'!O56, 0) -> 0 | C251: mΩ | K251: CDC and Ilim Enabled | L251: =AND(IMONLIM_select>0,CDC_enabled>1) -> FALSE
A252: used Shunt Resistor in Output Leg | B252: ='Design Converter'!O56/1000 -> 0.01 | C252: Ω | K252: Different R_SNS | L252: =AND(L251,'Design Converter'!K56<>'Design Converter'!O56) -> FALSE
A253: Ilimit | B253: =IF(IMONLIM_select=1,'Design Converter'!O53,'Design Converter'!O57) ->  | C253: A | E253: Current limit with DAC
A254: g_m | B254: =DeviceParameter!B15 -> 0.001 | C254: S | E254: g_m of Current monitor amplifier
A255: V_ILIM | C255: V | E255: max Voltage at IMONOUT
A256: RiLim | B256: ='Design Converter'!O57*1000 ->  | C256: Ω | E256: Resistor to be connected to IMONOUT
A257: Limit iSet | B257: .
A258: IMONOUT Filter , CISET | B258: ='Design Converter'!O58*0.000000000001 ->  | C258: F
... 236 more rows

Sheet Inductor Current (hidden)
A1: VIN_min | B1: ='Design Converter'!E7 -> 9 | C1: V | D1: Minimum input voltage
B2: ='Design Converter'!E8 -> 12 | C2: V | D2: Nominal input voltage
A3: VIN_max | B3: ='Design Converter'!E9 -> 36 | C3: V | D3: Maximum input voltage | I3: Vin | J3: Iin | K3: D | L3: IL | N3: Ripple
H4: 0 | I4: =Vin -> 12 | J4: =Pin/I4 -> 5.263157895 | K4: =IF(I4>Vout, (Vout+Iout*(Rdcr+Rs))/(I4+Iout*Rs), (Vout-I4+J4*(Rdcr))/(Vout-J4*Rs)) -> 0.4021338251 | L4: =IF(I4>Vout, (I4-Vout)*K4/(Fsw*Lf),I4*K4/(Lf*Fsw)) -> 0.7659691906 | M4: =(I4-Vout)*K4/(Fsw*Lf) -> -0.5106461271 | N4: =IF(I4>Vout, L4/Iout, L4/J4) -> 0.1455341462 | Q4: =IF(I4>Vout, "BUCK", "BOOST") -> BOOST
H5: 1 | I5: =VIN_min+(VIN_max-VIN_min)/20*H5 -> 10.35 | J5: 6.102212052 | K5: 0.4850752253 | L5: 0.7969092987 | M5: -0.7430120514 | N5: 0.1305935113 | Q5: BOOST
H6: 2 | I6: 11.7 | J6: 5.398110661 | K6: 0.4172048095 | L6: 0.7748089319 | M6: -0.5496507808 | N6: 0.1435333546 | Q6: BOOST
H7: 3 | I7: 13.05 | J7: 4.83968542 | K7: 0.3494111057 | L7: 0.7237801476 | M7: -0.3854614579 | N7: 0.149551073 | Q7: BOOST
H8: 4 | I8: 14.4 | J8: 4.385964912 | K8: 0.2816725198 | L8: 0.6438229023 | M8: -0.2503755731 | N8: 0.1467916217 | Q8: BOOST
H9: 5 | I9: 15.75 | J9: 4.010025063 | K9: 0.2139748671 | L9: 0.5349371677 | M9: -0.1443481246 | N9: 0.1333999562 | Q9: BOOST
H10: 6 | I10: 17.1 | J10: 3.693444137 | K10: 0.1463084458 | L10: 0.3971229242 | M10: -0.06734833217 | N10: 0.1075210317 | Q10: BOOST
H11: 7 | I11: 18.45 | J11: 3.423192127 | K11: 0.07866639548 | L11: 0.2303801582 | M11: -0.01935443063 | N11: 0.06729980371 | Q11: BOOST
H12: 8 | I12: 19.8 | J12: 3.189792663 | K12: 0.01104372806 | L12: 0.03470885961 | M12: -0.0003505945415 | N12: 0.01088122749 | Q12: BOOST
H13: 9 | I13: 21.15 | J13: 2.986188876 | K13: 0.9465787733 | L13: 0.1727881888 | M13: 0.1727881888 | N13: 0.05759606292 | Q13: BUCK
H14: 10 | I14: 22.5 | J14: 2.807017544 | K14: 0.8898143213 | L14: 0.3531009211 | M14: 0.3531009211 | N14: 0.117700307 | Q14: BUCK
H15: 11 | I15: 23.85 | J15: 2.648129758 | K15: 0.8394728019 | L15: 0.5130111567 | M15: 0.5130111567 | N15: 0.1710037189 | Q15: BUCK
H16: 12 | I16: 25.2 | J16: 2.506265664 | K16: 0.7945224496 | L16: 0.6557963076 | M16: 0.6557963076 | N16: 0.2185987692 | Q16: BUCK
H17: 13 | I17: 26.55 | J17: 2.378828427 | K17: 0.7541412544 | L17: 0.7840674947 | M17: 0.7840674947 | N17: 0.2613558316 | Q17: BUCK
H18: 14 | I18: 27.9 | J18: 2.263723826 | K18: 0.7176662367 | L18: 0.8999306778 | M18: 0.8999306778 | N18: 0.2999768926 | Q18: BUCK
H19: 15 | I19: 29.25 | J19: 2.159244265 | K19: 0.684556763 | L19: 1.005103184 | M19: 1.005103184 | N19: 0.3350343946 | Q19: BUCK
H20: 16 | I20: 30.6 | J20: 2.063983488 | K20: 0.6543675683 | L20: 1.100999401 | M20: 1.100999401 | N20: 0.3669998002 | Q20: BUCK
H21: 17 | I21: 31.95 | J21: 1.976772918 | K21: 0.6267286152 | L21: 1.188794754 | M21: 1.188794754 | N21: 0.3962649181 | Q21: BUCK
H22: 18 | I22: 33.3 | J22: 1.896633476 | K22: 0.6013298511 | L22: 1.26947413 | M22: 1.26947413 | N22: 0.4231580434 | Q22: BUCK
H23: 19 | I23: 34.65 | J23: 1.822738665 | K23: 0.5779095263 | L23: 1.343868978 | M23: 1.343868978 | N23: 0.4479563259 | Q23: BUCK
H24: 20 | I24: 36 | J24: 1.754385965 | K24: 0.5562451405 | L24: 1.412686071 | M24: 1.412686071 | N24: 0.470895357 | Q24: BUCK
H28: Vin | I28: =VIN_min -> 9
I29: L | J29: Iin | K29: D | L29: IL Peak,Peak | N29: Ripple Ratio | O29: IL Peak
H30: 0 | I30: =Lmin -> 3.80952381e-07 | J30: =Pin/$I$28 -> 7.01754386 | K30: =IF($I$28>Vout, (Vout+Iout*(Rdcr+Rs))/($I$28+Iout*Rs), (Vout-$I$28+J30*(Rdcr))/(Vout-J30*Rs)) -> 0.553056922 | L30: =IF($I$28>Vout, ($I$28-Vout)*K30/(Fsw*I30),$I$28*K30/(I30*Fsw)) -> 6.221890372 | M30: =($I$28-Vout)*K30/(Fsw*I30) -> -7.604532677 | N30: =IF($I$28>Vout, L30/Iout, L30/J30) -> 0.8866193781 | O30: =IF($I$80>Vout, L30/2+Iout, L30/2+J30) -> 6.110945186 | Q30: =IF(I30>Vout, "BUCK", "BOOST") -> BOOST
H31: 1 | I31: =Lmin+(Lmax-Lmin)/20*H5 -> 8.380952381e-07 | J31: 7.01754386 | K31: 0.553056922 | L31: 2.828131987 | M31: -3.456605762 | N31: 0.4030088082 | O31: 4.414065994 | Q31: BOOST
H32: 2 | I32: 1.295238095e-06 | J32: 7.01754386 | K32: 0.553056922 | L32: 1.829967757 | M32: -2.236627258 | N32: 0.2607704053 | O32: 3.914983878 | Q32: BOOST
H33: 3 | I33: 1.752380952e-06 | J33: 7.01754386 | K33: 0.553056922 | L33: 1.352584864 | M33: -1.653159278 | N33: 0.1927433431 | O33: 3.676292432 | Q33: BOOST
H34: 4 | I34: 2.20952381e-06 | J34: 7.01754386 | K34: 0.553056922 | L34: 1.072739719 | M34: -1.311126324 | N34: 0.15286541 | O34: 3.53636986 | Q34: BOOST
H35: 5 | I35: 2.666666667e-06 | J35: 7.01754386 | K35: 0.553056922 | L35: 0.8888414818 | M35: -1.086361811 | N35: 0.1266599112 | O35: 3.444420741 | Q35: BOOST
H36: 6 | I36: 3.123809524e-06 | J36: 7.01754386 | K36: 0.553056922 | L36: 0.7587671186 | M36: -0.9273820338 | N36: 0.1081243144 | O36: 3.379383559 | Q36: BOOST
H37: 7 | I37: 3.580952381e-06 | J37: 7.01754386 | K37: 0.553056922 | L37: 0.6619032311 | M37: -0.808992838 | N37: 0.09432121043 | O37: 3.330951616 | Q37: BOOST
H38: 8 | I38: 4.038095238e-06 | J38: 7.01754386 | K38: 0.553056922 | L38: 0.5869707899 | M38: -0.7174087432 | N38: 0.08364333755 | O38: 3.293485395 | Q38: BOOST
H39: 9 | I39: 4.495238095e-06 | J39: 7.01754386 | K39: 0.553056922 | L39: 0.5272788451 | M39: -0.6444519218 | N39: 0.07513723543 | O39: 3.263639423 | Q39: BOOST
H40: 10 | I40: 4.952380952e-06 | J40: 7.01754386 | K40: 0.553056922 | L40: 0.4786069517 | M40: -0.5849640521 | N40: 0.06820149062 | O40: 3.239303476 | Q40: BOOST
H41: 11 | I41: 5.40952381e-06 | J41: 7.01754386 | K41: 0.553056922 | L41: 0.4381612938 | M41: -0.5355304702 | N41: 0.06243798437 | O41: 3.219080647 | Q41: BOOST
H42: 12 | I42: 5.866666667e-06 | J42: 7.01754386 | K42: 0.553056922 | L42: 0.4040188554 | M42: -0.4938008232 | N42: 0.05757268689 | O42: 3.202009428 | Q42: BOOST
H43: 13 | I43: 6.323809524e-06 | J43: 7.01754386 | K43: 0.553056922 | L43: 0.374812673 | M43: -0.4581043782 | N43: 0.05341080591 | O43: 3.187406337 | Q43: BOOST
H44: 14 | I44: 6.780952381e-06 | J44: 7.01754386 | K44: 0.553056922 | L44: 0.3495444029 | M44: -0.4272209369 | N44: 0.04981007742 | O44: 3.174772201 | Q44: BOOST
H45: 15 | I45: 7.238095238e-06 | J45: 7.01754386 | K45: 0.553056922 | L45: 0.3274679143 | M45: -0.400238562 | N45: 0.04666417779 | O45: 3.163733957 | Q45: BOOST
H46: 16 | I46: 7.695238095e-06 | J46: 7.01754386 | K46: 0.553056922 | L46: 0.3080143749 | M46: -0.3764620137 | N46: 0.04389204842 | O46: 3.154007187 | Q46: BOOST
H47: 17 | I47: 8.152380952e-06 | J47: 7.01754386 | K47: 0.553056922 | L47: 0.2907425408 | M47: -0.3553519943 | N47: 0.04143081206 | O47: 3.14537127 | Q47: BOOST
H48: 18 | I48: 8.60952381e-06 | J48: 7.01754386 | K48: 0.553056922 | L48: 0.2753048837 | M48: -0.3364837468 | N48: 0.03923094593 | O48: 3.137652442 | Q48: BOOST
H49: 19 | I49: 9.066666667e-06 | J49: 7.01754386 | K49: 0.553056922 | L49: 0.2614239652 | M49: -0.3195181797 | N49: 0.03725291505 | O49: 3.130711983 | Q49: BOOST
H50: 20 | I50: 9.523809524e-06 | J50: 7.01754386 | K50: 0.553056922 | L50: 0.2488756149 | M50: -0.3041813071 | N50: 0.03546477512 | O50: 3.124437807 | Q50: BOOST
H54: Vin | I54: =VIN_nom -> 12
I55: L | J55: Iin | K55: D | L55: IL Peak,Peak | N55: Ripple Ratio | O55: IL Peak
H56: 0 | I56: =Lmin -> 3.80952381e-07 | J56: =Pin/$I$54 -> 5.263157895 | K56: =IF($I$54>Vout, (Vout+Iout*(Rdcr+Rs))/($I$54+Iout*Rs), (Vout-$I$54+J56*(Rdcr))/(Vout-J56*Rs)) -> 0.4021338251 | L56: =IF($I$54>Vout, ($I$54-Vout)*K56/(Fsw*I56),$I$54*K56/(I56*Fsw)) -> 6.032007376 | M56: =($I$54-Vout)*K56/(Fsw*I56) -> -4.021338251 | N56: =IF($I$54>Vout, L56/Iout, L56/J56) -> 1.146081401 | O56: =IF($I$80>Vout, L56/2+Iout, L56/2+J56) -> 6.016003688 | Q56: =IF(I56>Vout, "BUCK", "BOOST") -> BOOST
H57: 1 | I57: =Lmin+(Lmax-Lmin)/20*H31 -> 8.380952381e-07 | J57: 5.263157895 | K57: 0.4021338251 | L57: 2.741821535 | M57: -1.827881023 | N57: 0.5209460916 | O57: 4.370910767 | Q57: BOOST
H58: 2 | I58: 1.295238095e-06 | J58: 5.263157895 | K58: 0.4021338251 | L58: 1.774119817 | M58: -1.182746544 | N58: 0.3370827651 | O58: 3.887059908 | Q58: BOOST
H59: 3 | I59: 1.752380952e-06 | J59: 5.263157895 | K59: 0.4021338251 | L59: 1.311305951 | M59: -0.8742039676 | N59: 0.2491481308 | O59: 3.655652976 | Q59: BOOST
H60: 4 | I60: 2.20952381e-06 | J60: 5.263157895 | K60: 0.4021338251 | L60: 1.040001272 | M60: -0.6933341812 | N60: 0.1976002416 | O60: 3.520000636 | Q60: BOOST
H61: 5 | I61: 2.666666667e-06 | J61: 5.263157895 | K61: 0.4021338251 | L61: 0.8617153395 | M61: -0.574476893 | N61: 0.1637259145 | O61: 3.43085767 | Q61: BOOST
H62: 6 | I62: 3.123809524e-06 | J62: 5.263157895 | K62: 0.4021338251 | L62: 0.7356106556 | M62: -0.4904071038 | N62: 0.1397660246 | O62: 3.367805328 | Q62: BOOST
H63: 7 | I63: 3.580952381e-06 | J63: 5.263157895 | K63: 0.4021338251 | L63: 0.6417029124 | M63: -0.4278019416 | N63: 0.1219235533 | O63: 3.320851456 | Q63: BOOST
H64: 8 | I64: 4.038095238e-06 | J64: 5.263157895 | K64: 0.4021338251 | L64: 0.5690572996 | M64: -0.3793715331 | N64: 0.1081208869 | O64: 3.28452865 | Q64: BOOST
H65: 9 | I65: 4.495238095e-06 | J65: 5.263157895 | K65: 0.4021338251 | L65: 0.5111870658 | M65: -0.3407913772 | N65: 0.0971255425 | O65: 3.255593533 | Q65: BOOST
H66: 10 | I66: 4.952380952e-06 | J66: 5.263157895 | K66: 0.4021338251 | L66: 0.4640005674 | M66: -0.3093337116 | N66: 0.08816010781 | O66: 3.232000284 | Q66: BOOST
H67: 11 | I67: 5.40952381e-06 | J67: 5.263157895 | K67: 0.4021338251 | L67: 0.4247892518 | M67: -0.2831928346 | N67: 0.08070995785 | O67: 3.212394626 | Q67: BOOST
H68: 12 | I68: 5.866666667e-06 | J68: 5.263157895 | K68: 0.4021338251 | L68: 0.3916887907 | M68: -0.2611258604 | N68: 0.07442087023 | O68: 3.195844395 | Q68: BOOST
H69: 13 | I69: 6.323809524e-06 | J69: 5.263157895 | K69: 0.4021338251 | L69: 0.3633739383 | M69: -0.2422492922 | N69: 0.06904104828 | O69: 3.181686969 | Q69: BOOST
H70: 14 | I70: 6.780952381e-06 | J70: 5.263157895 | K70: 0.4021338251 | L70: 0.3388768189 | M70: -0.2259178793 | N70: 0.06438659559 | O70: 3.169438409 | Q70: BOOST
H71: 15 | I71: 7.238095238e-06 | J71: 5.263157895 | K71: 0.4021338251 | L71: 0.3174740724 | M71: -0.2116493816 | N71: 0.06032007376 | O71: 3.158737036 | Q71: BOOST
H72: 16 | I72: 7.695238095e-06 | J72: 5.263157895 | K72: 0.4021338251 | L72: 0.2986142265 | M72: -0.199076151 | N72: 0.05673670304 | O72: 3.149307113 | Q72: BOOST
H73: 17 | I73: 8.152380952e-06 | J73: 5.263157895 | K73: 0.4021338251 | L73: 0.2818695036 | M73: -0.1879130024 | N73: 0.05355520568 | O73: 3.140934752 | Q73: BOOST
H74: 18 | I74: 8.60952381e-06 | J74: 5.263157895 | K74: 0.4021338251 | L74: 0.2669029812 | M74: -0.1779353208 | N74: 0.05071156644 | O74: 3.133451491 | Q74: BOOST
H75: 19 | I75: 9.066666667e-06 | J75: 5.263157895 | K75: 0.4021338251 | L75: 0.2534456881 | M75: -0.1689637921 | N75: 0.04815468073 | O75: 3.126722844 | Q75: BOOST
H76: 20 | I76: 9.523809524e-06 | J76: 5.263157895 | K76: 0.4021338251 | L76: 0.241280295 | M76: -0.16085353 | N76: 0.04584325606 | O76: 3.120640148 | Q76: BOOST
H80: Vin | I80: =VIN_max -> 36 | S80: IL Peak,Peak | X80: IL Peak | AC80: Ripple Ratio
I81: L | J81: Iin | K81: D | L81: IL Peak,Peak | N81: Ripple Ratio | O81: IL Peak | R81: =I81 -> L | S81: =CONCATENATE("Vin = ",$I$28," V") -> Vin = 9 V | T81: =CONCATENATE("Vin = ",$I$54," V") -> Vin = 12 V | U81: =CONCATENATE("Vin = ",$I$80," V") -> Vin = 36 V | W81: =I81 -> L | X81: =CONCATENATE("Vin = ",$I$28," V") -> Vin = 9 V | Y81: =CONCATENATE("Vin = ",$I$54," V") -> Vin = 12 V | Z81: =CONCATENATE("Vin = ",$I$80," V") -> Vin = 36 V | AB81: =I81 -> L | AC81: =CONCATENATE("Vin = ",$I$28," V") -> Vin = 9 V | AD81: =CONCATENATE("Vin = ",$I$54," V") -> Vin = 12 V | AE81: =CONCATENATE("Vin = ",$I$80," V") -> Vin = 36 V
H82: 0 | I82: =Lmin -> 3.80952381e-07 | J82: =Pin/$I$80 -> 1.754385965 | K82: =IF($I$80>Vout, (Vout+Iout*(Rdcr+Rs))/($I$80+Iout*Rs), (Vout-$I$80+J82*(Rdcr))/(Vout-J82*Rs)) -> 0.5562451405 | L82: =IF($I$80>Vout, ($I$80-Vout)*K82/(Fsw*I82),$I$80*K82/(I82*Fsw)) -> 11.12490281 | M82: =($I$80-Vout)*K82/(Fsw*I82) -> 11.12490281 | N82: =IF($I$80>Vout, L82/Iout, L82/J82) -> 3.708300937 | O82: =IF($I$80>Vout, L82/2+Iout, L82/2+J82) -> 8.562451405 | Q82: =IF(I82>Vout, "BUCK", "BOOST") -> BOOST | R82: =I82*1000000 -> 0.380952381 | S82: =L30 -> 6.221890372 | T82: =L56 -> 6.032007376 | U82: =L82 -> 11.12490281 | W82: =I82 -> 3.80952381e-07 | X82: =O30 -> 6.110945186 | Y82: =O56 -> 6.016003688 | Z82: =O82 -> 8.562451405 | AB82: =I82*1000000 -> 0.380952381 | AC82: =N30 -> 0.8866193781 | AD82: =N56 -> 1.146081401 | AE82: =N82 -> 3.708300937
H83: 1 | I83: =Lmin+(Lmax-Lmin)/20*H57 -> 8.380952381e-07 | J83: 1.754385965 | K83: 0.5562451405 | L83: 5.056774005 | M83: 5.056774005 | N83: 1.685591335 | O83: 5.528387002 | Q83: BOOST | R83: =I83*1000000 -> 0.8380952381 | S83: =L31 -> 2.828131987 | T83: =L57 -> 2.741821535 | U83: =L83 -> 5.056774005 | W83: =I83 -> 8.380952381e-07 | X83: =O31 -> 4.414065994 | Y83: =O57 -> 4.370910767 | Z83: =O83 -> 5.528387002 | AB83: 0.8380952381 | AC83: 0.4030088082 | AD83: 0.5209460916 | AE83: 1.685591335
H84: 2 | I84: 1.295238095e-06 | J84: 1.754385965 | K84: 0.5562451405 | L84: 3.272030238 | M84: 3.272030238 | N84: 1.090676746 | O84: 4.636015119 | Q84: BOOST | R84: =I84*1000000 -> 1.295238095 | S84: 1.829967757 | T84: 1.774119817 | U84: 3.272030238 | W84: 1.295238095e-06 | X84: 3.914983878 | Y84: 3.887059908 | Z84: 4.636015119 | AB84: 1.295238095 | AC84: 0.2607704053 | AD84: 0.3370827651 | AE84: 1.090676746
H85: 3 | I85: 1.752380952e-06 | J85: 1.754385965 | K85: 0.5562451405 | L85: 2.418457133 | M85: 2.418457133 | N85: 0.8061523775 | O85: 4.209228566 | Q85: BOOST | R85: 1.752380952 | S85: 1.352584864 | T85: 1.311305951 | U85: 2.418457133 | W85: 1.752380952e-06 | X85: 3.676292432 | Y85: 3.655652976 | Z85: 4.209228566 | AB85: 1.752380952 | AC85: 0.1927433431 | AD85: 0.2491481308 | AE85: 0.8061523775
H86: 4 | I86: 2.20952381e-06 | J86: 1.754385965 | K86: 0.5562451405 | L86: 1.918086691 | M86: 1.918086691 | N86: 0.6393622305 | O86: 3.959043346 | Q86: BOOST | R86: 2.20952381 | S86: 1.072739719 | T86: 1.040001272 | U86: 1.918086691 | W86: 2.20952381e-06 | X86: 3.53636986 | Y86: 3.520000636 | Z86: 3.959043346 | AB86: 2.20952381 | AC86: 0.15286541 | AD86: 0.1976002416 | AE86: 0.6393622305
H87: 5 | I87: 2.666666667e-06 | J87: 1.754385965 | K87: 0.5562451405 | L87: 1.58927183 | M87: 1.58927183 | N87: 0.5297572767 | O87: 3.794635915 | Q87: BOOST | R87: 2.666666667 | S87: 0.8888414818 | T87: 0.8617153395 | U87: 1.58927183 | W87: 2.666666667e-06 | X87: 3.444420741 | Y87: 3.43085767 | Z87: 3.794635915 | AB87: 2.666666667 | AC87: 0.1266599112 | AD87: 0.1637259145 | AE87: 0.5297572767
H88: 6 | I88: 3.123809524e-06 | J88: 1.754385965 | K88: 0.5562451405 | L88: 1.356695465 | M88: 1.356695465 | N88: 0.4522318216 | O88: 3.678347732 | Q88: BOOST | R88: 3.123809524 | S88: 0.7587671186 | T88: 0.7356106556 | U88: 1.356695465 | W88: 3.123809524e-06 | X88: 3.379383559 | Y88: 3.367805328 | Z88: 3.678347732 | AB88: 3.123809524 | AC88: 0.1081243144 | AD88: 0.1397660246 | AE88: 0.4522318216
H89: 7 | I89: 3.580952381e-06 | J89: 1.754385965 | K89: 0.5562451405 | L89: 1.183500299 | M89: 1.183500299 | N89: 0.3945000997 | O89: 3.591750149 | Q89: BOOST | R89: 3.580952381 | S89: 0.6619032311 | T89: 0.6417029124 | U89: 1.183500299 | W89: 3.580952381e-06 | X89: 3.330951616 | Y89: 3.320851456 | Z89: 3.591750149 | AB89: 3.580952381 | AC89: 0.09432121043 | AD89: 0.1219235533 | AE89: 0.3945000997
H90: 8 | I90: 4.038095238e-06 | J90: 1.754385965 | K90: 0.5562451405 | L90: 1.049519133 | M90: 1.049519133 | N90: 0.349839711 | O90: 3.524759567 | Q90: BOOST | R90: 4.038095238 | S90: 0.5869707899 | T90: 0.5690572996 | U90: 1.049519133 | W90: 4.038095238e-06 | X90: 3.293485395 | Y90: 3.28452865 | Z90: 3.524759567 | AB90: 4.038095238 | AC90: 0.08364333755 | AD90: 0.1081208869 | AE90: 0.349839711
H91: 9 | I91: 4.495238095e-06 | J91: 1.754385965 | K91: 0.5562451405 | L91: 0.9427883737 | M91: 0.9427883737 | N91: 0.3142627912 | O91: 3.471394187 | Q91: BOOST | R91: 4.495238095 | S91: 0.5272788451 | T91: 0.5111870658 | U91: 0.9427883737 | W91: 4.495238095e-06 | X91: 3.263639423 | Y91: 3.255593533 | Z91: 3.471394187 | AB91: 4.495238095 | AC91: 0.07513723543 | AD91: 0.0971255425 | AE91: 0.3142627912
H92: 10 | I92: 4.952380952e-06 | J92: 1.754385965 | K92: 0.5562451405 | L92: 0.8557617546 | M92: 0.8557617546 | N92: 0.2852539182 | O92: 3.427880877 | Q92: BOOST | R92: 4.952380952 | S92: 0.4786069517 | T92: 0.4640005674 | U92: 0.8557617546 | W92: 4.952380952e-06 | X92: 3.239303476 | Y92: 3.232000284 | Z92: 3.427880877 | AB92: 4.952380952 | AC92: 0.06820149062 | AD92: 0.08816010781 | AE92: 0.2852539182
H93: 11 | I93: 5.40952381e-06 | J93: 1.754385965 | K93: 0.5562451405 | L93: 0.7834438599 | M93: 0.7834438599 | N93: 0.2611479533 | O93: 3.39172193 | Q93: BOOST | R93: 5.40952381 | S93: 0.4381612938 | T93: 0.4247892518 | U93: 0.7834438599 | W93: 5.40952381e-06 | X93: 3.219080647 | Y93: 3.212394626 | Z93: 3.39172193 | AB93: 5.40952381 | AC93: 0.06243798437 | AD93: 0.08070995785 | AE93: 0.2611479533
H94: 12 | I94: 5.866666667e-06 | J94: 1.754385965 | K94: 0.5562451405 | L94: 0.7223962864 | M94: 0.7223962864 | N94: 0.2407987621 | O94: 3.361198143 | Q94: BOOST | R94: 5.866666667 | S94: 0.4040188554 | T94: 0.3916887907 | U94: 0.7223962864 | W94: 5.866666667e-06 | X94: 3.202009428 | Y94: 3.195844395 | Z94: 3.361198143 | AB94: 5.866666667 | AC94: 0.05757268689 | AD94: 0.07442087023 | AE94: 0.2407987621
H95: 13 | I95: 6.323809524e-06 | J95: 1.754385965 | K95: 0.5562451405 | L95: 0.6701748681 | M95: 0.6701748681 | N95: 0.2233916227 | O95: 3.335087434 | Q95: BOOST | R95: 6.323809524 | S95: 0.374812673 | T95: 0.3633739383 | U95: 0.6701748681 | W95: 6.323809524e-06 | X95: 3.187406337 | Y95: 3.181686969 | Z95: 3.335087434 | AB95: 6.323809524 | AC95: 0.05341080591 | AD95: 0.06904104828 | AE95: 0.2233916227
H96: 14 | I96: 6.780952381e-06 | J96: 1.754385965 | K96: 0.5562451405 | L96: 0.6249945399 | M96: 0.6249945399 | N96: 0.2083315133 | O96: 3.31249727 | Q96: BOOST | R96: 6.780952381 | S96: 0.3495444029 | T96: 0.3388768189 | U96: 0.6249945399 | W96: 6.780952381e-06 | X96: 3.174772201 | Y96: 3.169438409 | Z96: 3.31249727 | AB96: 6.780952381 | AC96: 0.04981007742 | AD96: 0.06438659559 | AE96: 0.2083315133
H97: 15 | I97: 7.238095238e-06 | J97: 1.754385965 | K97: 0.5562451405 | L97: 0.5855212005 | M97: 0.5855212005 | N97: 0.1951737335 | O97: 3.2927606 | Q97: BOOST | R97: 7.238095238 | S97: 0.3274679143 | T97: 0.3174740724 | U97: 0.5855212005 | W97: 7.238095238e-06 | X97: 3.163733957 | Y97: 3.158737036 | Z97: 3.2927606 | AB97: 7.238095238 | AC97: 0.04666417779 | AD97: 0.06032007376 | AE97: 0.1951737335
H98: 16 | I98: 7.695238095e-06 | J98: 1.754385965 | K98: 0.5562451405 | L98: 0.5507377629 | M98: 0.5507377629 | N98: 0.1835792543 | O98: 3.275368881 | Q98: BOOST | R98: 7.695238095 | S98: 0.3080143749 | T98: 0.2986142265 | U98: 0.5507377629 | W98: 7.695238095e-06 | X98: 3.154007187 | Y98: 3.149307113 | Z98: 3.275368881 | AB98: 7.695238095 | AC98: 0.04389204842 | AD98: 0.05673670304 | AE98: 0.1835792543
H99: 17 | I99: 8.152380952e-06 | J99: 1.754385965 | K99: 0.5562451405 | L99: 0.5198552715 | M99: 0.5198552715 | N99: 0.1732850905 | O99: 3.259927636 | Q99: BOOST | R99: 8.152380952 | S99: 0.2907425408 | T99: 0.2818695036 | U99: 0.5198552715 | W99: 8.152380952e-06 | X99: 3.14537127 | Y99: 3.140934752 | Z99: 3.259927636 | AB99: 8.152380952 | AC99: 0.04143081206 | AD99: 0.05355520568 | AE99: 0.1732850905
H100: 18 | I100: 8.60952381e-06 | J100: 1.754385965 | K100: 0.5562451405 | L100: 0.4922523367 | M100: 0.4922523367 | N100: 0.1640841122 | O100: 3.246126168 | Q100: BOOST | R100: 8.60952381 | S100: 0.2753048837 | T100: 0.2669029812 | U100: 0.4922523367 | W100: 8.60952381e-06 | X100: 3.137652442 | Y100: 3.133451491 | Z100: 3.246126168 | AB100: 8.60952381 | AC100: 0.03923094593 | AD100: 0.05071156644 | AE100: 0.1640841122
H101: 19 | I101: 9.066666667e-06 | J101: 1.754385965 | K101: 0.5562451405 | L101: 0.4674328912 | M101: 0.4674328912 | N101: 0.1558109637 | O101: 3.233716446 | Q101: BOOST | R101: 9.066666667 | S101: 0.2614239652 | T101: 0.2534456881 | U101: 0.4674328912 | W101: 9.066666667e-06 | X101: 3.130711983 | Y101: 3.126722844 | Z101: 3.233716446 | AB101: 9.066666667 | AC101: 0.03725291505 | AD101: 0.04815468073 | AE101: 0.1558109637
H102: 20 | I102: 9.523809524e-06 | J102: 1.754385965 | K102: 0.5562451405 | L102: 0.4449961124 | M102: 0.4449961124 | N102: 0.1483320375 | O102: 3.222498056 | Q102: BOOST | R102: 9.523809524 | S102: 0.2488756149 | T102: 0.241280295 | U102: 0.4449961124 | W102: 9.523809524e-06 | X102: 3.124437807 | Y102: 3.120640148 | Z102: 3.222498056 | AB102: 9.523809524 | AC102: 0.03546477512 | AD102: 0.04584325606 | AE102: 0.1483320375

Sheet Timings (hidden)
A1: Device | B1: 2 | C1: 1:LM5177 / 2:LM51772 | E1: Transition | F1: Vin | G1: 1.15e-07 | H1: 8e-08 | I1: =IF($B$1=2,H1,G1) -> 8e-08 | L1: =I1 -> 8e-08 | N1: =0.75/$L$1*0.000001/2000000*0.2 -> 9.375e-07 | V1: BuckBoost | X1: iripple,avg_L | Y1: =1/2*Fsw/L*((W16)^2*(Vin-Vout)+(W15)^2*Vin+(W17)^2*Vout) -> 0.165455253 | AA1: di = du/L * dt | AC1: avg = 1/T * (I1 * dt1 + …
E2: Buck -> BuBo | F2: =$P$9 -> 24.03846154 | G2: 2 | H2: 4 | I2: =IF($B$1=2,H2,G2) -> 4 | N2: =MIN(0.000001/2000000*$B$3*1000*$L$5+0.000001*(1-$L$5),$N$1) -> 9.375e-07 | P2: =$N$5 -> 8e-08 | R2: =$N$5 -> 8e-08 | T2: =MAX(MAX(0.5*$N$5/$L$4*$L$6,0),0) -> 4e-08 | X2: iripple,avg_L_out_path | Y2: =1/2*Fsw/L*((W16)^2*(Vin-Vout)+(W17)^2*Vout) -> -0.1112314137
A3: Fsw [kHz] | B3: =Fsw/1000 -> 2100 | E3: BuBo -> Buck | F3: =$T$9 -> 29.40609952 | G3: 1 | H3: 1 | I3: 1 | L3: =0.225-I2*0.025 -> 0.125 | P3: =$N$5 -> 8e-08 | R3: =$N$5 -> 8e-08 | T3: =MAX(0.5*$N$5/$L$4*$L$6,0) -> 4e-08 | X3: iripple,avg_L_in_path | Y3: =1/2*Fsw/L*((W16)^2*(Vin-Vout)+(W15)^2*Vin) -> 0.1631480853
A4: IL [A] | B4: 0 | E4: Boost -> BuBo | F4: =$R$8 -> 16.64 | G4: 2 | H4: 2 | I4: 2 | L4: =0.75+I3*0.25 -> 1 | N4: =$L$3/$B$3*0.001 -> 5.952380952e-08 | P4: =0.001/$B$3-$P$3 -> 3.961904762e-07 | R4: =0.001/$B$3-R3 -> 3.961904762e-07 | T4: =MAX($T$5-$T$3,0) -> 1.795238095e-07
A5: Vin | B5: =VIN_nom -> 12 | E5: BuBo -> Boost | F5: =$T$8 -> 13.60262009 | G5: 1 | H5: 1 | I5: 1 | L5: =1-I4*0.0416666 -> 0.9166668 | N5: =$L$4*0.000000075/$N$2*0.000001 -> 8e-08 | T5: =$N$4+2*$N$5 -> 2.195238095e-07 | X5: iavg | Y5: =IF(B5>B6,Iin+Y1,Iout+Y1) -> 3.165455253
A6: Vout [V] | B6: =Vout -> 20 | G6: LM5177 | H6: LM51772 | L6: =0.75+I5*0.25 -> 1 | N6: =N4+2*N5 -> 2.195238095e-07 | T6: =0.001/$B$3-$T$5 -> 2.566666667e-07 | X6: dI1 | Y6: =Vin/L*W16 -> 0.8054761905
A7: Iout | B7: =Iout -> 3 | X7: dI2 | Y7: =(Vin-Vout)/L*W15 -> -0.6844444444
A8: Iin | B8: =Iin_Vinnom -> 5.263157895 | E8: Timings [ns] | F8: Phase II (Q1-Q4) | G8: Phase I (Q1-Q3) | H8: Phase III (Q2-Q4) | P8: =B6*1/($P$2*1000*$B$3) -> 119.047619 | R8: =$B$6*(1-$R$2*1000*$B$3) -> 16.64 | T8: =$B$6*((0.001/$B$3-$T$4)/($T$6+$T$4)) -> 13.60262009 | X8: dI3 | Y8: =Vout/L*W17 -> 0.121031746
A9: eff | B9: =Efficiency -> 0.95 | E9: BuBo -> Buck | F9: =Timings!$T$6*1000000000 -> 256.6666667 | G9: =Timings!$T$2*1000000000 -> 40 | H9: =(Timings!$T$5-Timings!$T$2)*1000000000 -> 179.5238095 | P9: =$B$6/($P$4*1000*$B$3) -> 24.03846154 | R9: =B6*(1-$R$4*1000*$B$3) -> 3.36 | T9: =$B$6*((0.001/$B$3-$T$2)/($T$6+$T$2)) -> 29.40609952
A10: L | B10: =Lf -> 3e-06 | E10: BuBo -> Boost | F10: =Timings!$T$6*1000000000 -> 256.6666667 | G10: =Timings!$T$4*1000000000 -> 179.5238095 | H10: =(Timings!$T$5-Timings!$T$4)*1000000000 -> 40 | X10: Abs currents at
E11: BuBo center | F11: =Timings!$T$6*1000000000 -> 256.6666667 | G11: =Timings!$N$6*1000000000*L11 -> 144.2271429 | H11: =Timings!$N$6*1000000000*(1-L11) -> 75.29666667 | K11: Simplis Align factor | L11: 0.657 | X11: I_0 | Y11: =IF(Vin>B6,0,Y6)+Iout-Y2 -> 3.916707604 | AA11: =1/(W15+W16)*(Iin/Fsw-1/2*dI1_*W15-dI1_*W16-1/2*dI2_*W16) -> 5.042426032
K12: default 0.5 | X12: I_1 | Y12: =IF(Vin>B6,Y7,0)+Iout-Y2 -> 3.111231414
X13: I_2 | Y13: =Y11+Y8 -> 4.03773935
E14: Duty cycles [%] | F14: Phase II (Q1-Q4) | G14: Phase I (Q1-Q3) | H14: Phase III (Q2-Q4) | V14: Timings | X14: I_PP | Y14: =ABS(MAX(Y11:Y13))-ABS(MIN(Y11:Y13)) -> 0.9265079365
E15: BuBo -> Buck | F15: =F9*$B$3*0.000001*100 -> 53.9 | G15: 8.4 | H15: 37.7 | V15: t1 - Ph. II | W15: =$F$11*0.000000001 -> 2.566666667e-07
E16: BuBo -> Boost | F16: 53.9 | G16: 37.7 | H16: 8.4 | V16: t2 - Ph. I | W16: =(Vout/Fsw-Vin*W15)/(Vin+Vout) -> 2.013690476e-07 | X16: i_rms | Y16: =SQRT(Fsw*(M75*(I_0*I_1+((I_1-I_0)^2)/3)+M76*(I_1*I_2+((I_2-I_1)^2)/3)+M77*(I_2*I_0+((I_0-I_2)^2)/3))) -> 3.566668526
E17: BuBo center | F17: 53.9 | G17: 30.2877 | H17: 15.8123 | V17: t3 - Ph. III | W17: =1/Fsw-(W15+W16) -> 1.81547619e-08
V18: t period | W18: =1/Fsw -> 4.761904762e-07
AC24: Boost | AE24: BuckBoost | AG24: Boost
AA25: =VIN_min -> 9 | AB25: =VIN_min -> 9 | AC25: =$F$5 -> 13.60262009 | AD25: =$F$4 -> 16.64 | AE25: =$F$2 -> 24.03846154 | AF25: =$F$3 -> 29.40609952 | AG25: =VIN_max -> 36
AA26: =$F$5 -> 13.60262009 | AB26: =AB25 -> 9 | AC26: =AC25-AB25 -> 4.602620087 | AD26: =AD25-AC25 -> 3.037379913 | AE26: 7.398461538 | AF26: 5.36763798 | AG26: 6.593900482
P27: Simplis | AA27: =$F$4 -> 16.64
P28: Boost | AA28: =$F$2 -> 24.03846154
K29: Simplis | M29: Ref - Calc | P29: Vin < vout | Q29: 16 | R29: 18 | AA29: =$F$3 -> 29.40609952
K30: t[ns] | L30: Delta t [ns] | AA30: =VIN_max -> 36
J31: t0 | K31: 806.5584 | P31: I start | Q31: Delta
J32: t1 - Ph. II | K32: 807.8462 | L32: =(K32-K31)*1000*0.000000001 -> 1.2878e-06 | M32: =$F$11*0.000000001 -> 2.566666667e-07 | O32: Ph. II | P32: 14.09 | Q32: =P33-P32 -> -1.81
J33: t2 - Ph. I | K33: 808.3201 | L33: =(K33-K32)*1000*0.000000001 -> 4.739e-07 | M33: =(Vout/Fsw-Vin*M32)/(Vin+Vout) -> 2.013690476e-07 | O33: Ph. I | P33: 12.28 | Q33: =P34-P33 -> 4.11
J34: t3 - Ph. III | K34: 808.5702 | L34: =(K34-K33)*1000*0.000000001 -> 2.501e-07 | M34: =1/Fsw-(M32+M33) -> 1.81547619e-08 | O34: Ph. III | P34: 16.39 | Q34: =P32-P34 -> -2.3
J35: t period | L35: =(K34-K31)*1000*0.000000001 -> 2.0118e-06 | M35: =1/Fsw -> 4.761904762e-07
P37: Buck
P38: Vin < vout | Q38: 20 | R38: 18
J39: t0 | K39: 1082.558 | P39: I start | Q39: Delta
J40: t1 - Ph. II | K40: 1083.841 | L40: =(K40-K39)*1000*0.000000001 -> 1.283e-06 | M40: =$F$11*0.000000001 -> 2.566666667e-07 | O40: Ph. II | P40: 10.9972 | Q40: =P41-P40 -> 1.0903
J41: t2 - Ph. I | K41: 1084.136 | L41: =(K41-K40)*1000*0.000000001 -> 2.95e-07 | M41: =(Vout/Fsw-Vin*M40)/(Vin+Vout) -> 2.013690476e-07 | O41: Ph. I | P41: 12.0875 | Q41: =P42-P41 -> 3.2568
J42: t3 - Ph. III | K42: 1084.558 | L42: =(K42-K41)*1000*0.000000001 -> 4.22e-07 | M42: =1/Fsw-(M40+M41) -> 1.81547619e-08 | O42: Ph. III | P42: 15.3443 | Q42: =P40-P42 -> -4.3471
J43: t period | L43: =(K42-K39)*1000*0.000000001 -> 2e-06 | M43: =1/Fsw -> 4.761904762e-07
D45: EVM
D46: XGL1060-332MEC
P54: Buck
J55: t0 | K55: 806.5584 | P55: Vin < vout | Q55: 16 | R55: 14
J56: t1 - Ph. II | K56: 807.8462 | L56: =(K56-K55)*1000*0.000000001 -> 1.2878e-06 | M56: =$F$11*0.000000001 -> 2.566666667e-07 | P56: I start | Q56: Delta
J57: t2 - Ph. I | K57: 808.118 | L57: =(K57-K56)*1000*0.000000001 -> 2.718e-07 | M57: =(Vout/Fsw-Vin*M56)/(Vin+Vout) -> 2.013690476e-07 | O57: Ph. II | P57: 10.92 | Q57: =P58-P57 -> 1.15
J58: t3 - Ph. III | K58: 808.5702 | L58: =(K58-K57)*1000*0.000000001 -> 4.522e-07 | M58: =1/Fsw-(M56+M57) -> 1.81547619e-08 | O58: Ph. I | P58: 12.07 | Q58: =P59-P58 -> 2.33
J59: T period | L59: =(K58-K55)*1000*0.000000001 -> 2.0118e-06 | M59: =1/Fsw -> 4.761904762e-07 | O59: Ph. III | P59: 14.4 | Q59: =P57-P59 -> -3.48
F69: Volt second balance
F71: U = L dI/dt
F72: V dt = L dI
F74: (Ui - Uo)* t1 + Ui * t2 - Uo * t3 = 0 | L74: math
F75: t3 = T -t1 -t2 | L75: t1 - Ph. II | M75: =$F$11*0.000000001 -> 2.566666667e-07
F76: (Ui - Uo)* t1 + Ui * t2 - Uo * (T -t1 -t2) = 0 | L76: t2 - Ph. I | M76: =(Vout/Fsw-Vin*M75)/(Vin+Vout) -> 2.013690476e-07
F77: (Ui - Uo)*t1 -Uo*T+Uo*t1 +Uo*t2 + Ui * t2 = 0 | L77: t3 - Ph. III | M77: =1/Fsw-(M75+M76) -> 1.81547619e-08
F78: (Ui *t1 + (Uo + Ui) * t2 -Uo*T = 0 | L78: T period | M78: =1/Fsw -> 4.761904762e-07
F79: (Ui *t1 + (Uo + ui) * t2 -Uo*T = 0
F80: t2 = (Uo*T - Ui*t1)/(Ui+Uo)
F94: rms = sqrt(1/T * t1 (i0 * i1 + (i1-i0)^2/3)
F96: rms = sqrt(1/T * ( t1 * (i0 * i1 + ((i1-i0)^2)/3) + t2 * (i1 * i2 + ((i2-i1)^2)/3) + t2 * (i2 * i0 + ((i0-i2)^2)/3) ) )

Sheet CFG Setting (hidden)
A1: LM5177
A2: CFG
A3: Setting | B3: R_CFG [ | C3: =DeviceParameter!B32 -> Slope Comp. | D3: =DeviceParameter!B33 -> I2C | E3: =DeviceParameter!B34 -> 0 | F3: =DeviceParameter!B35 -> 0 | G3: =C3 -> Slope Comp. | H3: =D3 -> I2C | I3: =E3 -> 0 | J3: =F3 -> 0
A4: 1 | B4: 0 | C4: 0 | D4: 0 | E4: 0 | F4: 0 | G4: =IF(C4=1,"Enable","Disable") -> Disable | H4: =IF(D4=1,"Enable","Disable") -> Disable | I4: =IF(E4=1,"Enable","Disable") -> Disable | J4: =IF(F4=1,"Enable","Disable") -> Disable | L4: =CONCATENATE(G$3,": ",C4) -> Slope Comp.: 0 | M4: =CONCATENATE(H$3,": ",D4) -> I2C: 0 | N4: =CONCATENATE(I$3,": ",E4) -> 0: 0 | O4: =CONCATENATE(J$3,": ",F4) -> 0: 0 | P4: =CONCATENATE(K$3,": ",G4) -> : Disable | R4: =CONCATENATE(L4," / ",M4," / ",N4," / ",O4) -> Slope Comp.: 0 / I2C: 0 / 0: 0 / 0: 0
A5: 2 | B5: 0.511 | C5: 1 | D5: 0 | E5: 0 | F5: 0 | G5: =IF(C5=1,"Enable","Disable") -> Enable | H5: Disable | I5: Disable | J5: Disable | L5: =CONCATENATE(G$3,": ",C5) -> Slope Comp.: 1 | M5: I2C: 0 | N5: 0: 0 | O5: 0: 0 | P5: : Enable | R5: =CONCATENATE(L5," / ",M5," / ",N5," / ",O5) -> Slope Comp.: 1 / I2C: 0 / 0: 0 / 0: 0
A6: 3 | B6: 1.15 | C6: 0 | D6: 1 | E6: 0 | F6: 0 | G6: Disable | H6: Enable | I6: Disable | J6: Disable | L6: Slope Comp.: 0 | M6: I2C: 1 | N6: 0: 0 | O6: 0: 0 | P6: : Disable | R6: Slope Comp.: 0 / I2C: 1 / 0: 0 / 0: 0
A7: 4 | B7: 1.9 | C7: 1 | D7: 1 | E7: 0 | F7: 0 | G7: Enable | H7: Enable | I7: Disable | J7: Disable | L7: Slope Comp.: 1 | M7: I2C: 1 | N7: 0: 0 | O7: 0: 0 | P7: : Enable | R7: Slope Comp.: 1 / I2C: 1 / 0: 0 / 0: 0
A8: 5 | B8: 2.7 | C8: 0 | D8: 0 | E8: 0 | F8: 1 | G8: Disable | H8: Disable | I8: Disable | J8: Enable | L8: Slope Comp.: 0 | M8: I2C: 0 | N8: 0: 0 | O8: 0: 1 | P8: : Disable | R8: Slope Comp.: 0 / I2C: 0 / 0: 0 / 0: 1
A9: 6 | B9: 3.8 | C9: 1 | D9: 0 | E9: 0 | F9: 1 | G9: Enable | H9: Disable | I9: Disable | J9: Enable | L9: Slope Comp.: 1 | M9: I2C: 0 | N9: 0: 0 | O9: 0: 1 | P9: : Enable | R9: Slope Comp.: 1 / I2C: 0 / 0: 0 / 0: 1
A10: 7 | B10: 5.1 | C10: 0 | D10: 1 | E10: 0 | F10: 1 | G10: Disable | H10: Enable | I10: Disable | J10: Enable | L10: Slope Comp.: 0 | M10: I2C: 1 | N10: 0: 0 | O10: 0: 1 | P10: : Disable | R10: Slope Comp.: 0 / I2C: 1 / 0: 0 / 0: 1
A11: 8 | B11: 6.5 | C11: 1 | D11: 1 | E11: 0 | F11: 1 | G11: Enable | H11: Enable | I11: Disable | J11: Enable | L11: Slope Comp.: 1 | M11: I2C: 1 | N11: 0: 0 | O11: 0: 1 | P11: : Enable | R11: Slope Comp.: 1 / I2C: 1 / 0: 0 / 0: 1
A12: 9 | B12: 8.3 | C12: 0 | D12: 0 | E12: 1 | F12: 0 | G12: Disable | H12: Disable | I12: Enable | J12: Disable | L12: Slope Comp.: 0 | M12: I2C: 0 | N12: 0: 1 | O12: 0: 0 | P12: : Disable | R12: Slope Comp.: 0 / I2C: 0 / 0: 1 / 0: 0
A13: 10 | B13: 10.5 | C13: 1 | D13: 0 | E13: 1 | F13: 0 | G13: Enable | H13: Disable | I13: Enable | J13: Disable | L13: Slope Comp.: 1 | M13: I2C: 0 | N13: 0: 1 | O13: 0: 0 | P13: : Enable | R13: Slope Comp.: 1 / I2C: 0 / 0: 1 / 0: 0
A14: 11 | B14: 13.3 | C14: 0 | D14: 1 | E14: 1 | F14: 0 | G14: Disable | H14: Enable | I14: Enable | J14: Disable | L14: Slope Comp.: 0 | M14: I2C: 1 | N14: 0: 1 | O14: 0: 0 | P14: : Disable | R14: Slope Comp.: 0 / I2C: 1 / 0: 1 / 0: 0
A15: 12 | B15: 16.2 | C15: 1 | D15: 1 | E15: 1 | F15: 0 | G15: Enable | H15: Enable | I15: Enable | J15: Disable | L15: Slope Comp.: 1 | M15: I2C: 1 | N15: 0: 1 | O15: 0: 0 | P15: : Enable | R15: Slope Comp.: 1 / I2C: 1 / 0: 1 / 0: 0
A16: 13 | B16: 20.5 | C16: 0 | D16: 0 | E16: 1 | F16: 1 | G16: Disable | H16: Disable | I16: Enable | J16: Enable | L16: Slope Comp.: 0 | M16: I2C: 0 | N16: 0: 1 | O16: 0: 1 | P16: : Disable | R16: Slope Comp.: 0 / I2C: 0 / 0: 1 / 0: 1
A17: 14 | B17: 24.9 | C17: 1 | D17: 0 | E17: 1 | F17: 1 | G17: Enable | H17: Disable | I17: Enable | J17: Enable | L17: Slope Comp.: 1 | M17: I2C: 0 | N17: 0: 1 | O17: 0: 1 | P17: : Enable | R17: Slope Comp.: 1 / I2C: 0 / 0: 1 / 0: 1
A18: 15 | B18: 30.1 | C18: 0 | D18: 1 | E18: 1 | F18: 1 | G18: Disable | H18: Enable | I18: Enable | J18: Enable | L18: Slope Comp.: 0 | M18: I2C: 1 | N18: 0: 1 | O18: 0: 1 | P18: : Disable | R18: Slope Comp.: 0 / I2C: 1 / 0: 1 / 0: 1
A19: 16 | B19: 36.5 | C19: 1 | D19: 1 | E19: 1 | F19: 1 | G19: Enable | H19: Enable | I19: Enable | J19: Enable | L19: Slope Comp.: 1 | M19: I2C: 1 | N19: 0: 1 | O19: 0: 1 | P19: : Enable | R19: Slope Comp.: 1 / I2C: 1 / 0: 1 / 0: 1
C21: 0 | D21: 1 | E21: 3 | F21: 2
C22: DRSS: off | D22: HICCUP: off | E22: uSleep: off | F22: IMON_LIMIT: off
C23: DRSS: on | D23: HICCUP: on | E23: uSleep: on | F23: IMON: on
F24: ILIMIT: positive
F25: ILIMIT: negative
B27: CFG Setting | C27: 1 | D27: 1 | E27: 2 | F27: 3 | G27: Calc Setting | H27: =CONCATENATE("R_",A2,": ",H28,I28) -> R_CFG: 20.5 kΩ | J27: This cell give 1 for disable and 2 for enable
C28: =(C27-1)*2^C21 -> 0 | D28: =(D27-1)*2^D21 -> 0 | E28: =(E27-1)*2^E21 -> 8 | F28: =(IF(F27>2,1,0)*2^F21) -> 4 | G28: =SUM(C28:F28)+1 -> 13 | H28: =INDEX(B4:B19,G28) -> 20.5 | I28: =" kΩ" -> kΩ
A30: LM51772
A31: CFG1
A32: Setting | B32: R_CFG2 [ | C32: =DeviceParameter!B32 -> Slope Comp. | D32: =DeviceParameter!B33 -> I2C
A33: 1 | B33: 0 | C33: I2C | D33: ADDR LSB: 0 | L33: =CONCATENATE(C33) -> I2C | M33: =CONCATENATE(D$32," ",D33) -> I2C ADDR LSB: 0 | R33: =CONCATENATE(L33," / ",M33) -> I2C / I2C ADDR LSB: 0
A34: 2 | B34: 0.511 | C34: 0.25 | D34: ADDR LSB: 1 | L34: =CONCATENATE($C$32,": ",C34) -> Slope Comp.: 0.25 | M34: =CONCATENATE(D$32," ",D34) -> I2C ADDR LSB: 1 | R34: =CONCATENATE(L34," / ",M34," / ",N34," / ",O34) -> Slope Comp.: 0.25 / I2C ADDR LSB: 1 / /
A35: 3 | B35: 1.15 | C35: 0.375 | D35: Set Slope Compensation | L35: =CONCATENATE($C$32,": ",C35) -> Slope Comp.: 0.375 | M35: =IF(I2C_only=1,"NA",D35) -> NA | R35: Slope Comp.: 0.375 / NA / /
A36: 4 | B36: 1.9 | C36: 0.5 | D36: Disabled | L36: Slope Comp.: 0.5 | M36: =CONCATENATE(D$32," ",D36) -> I2C Disabled | R36: Slope Comp.: 0.5 / I2C Disabled / /
A37: 5 | B37: 2.7 | C37: 0.625 | D37: Disabled | L37: Slope Comp.: 0.625 | M37: I2C Disabled | R37: Slope Comp.: 0.625 / I2C Disabled / /
A38: 6 | B38: 3.8 | C38: 0.75 | D38: Disabled | L38: Slope Comp.: 0.75 | M38: I2C Disabled | R38: Slope Comp.: 0.75 / I2C Disabled / /
A39: 7 | B39: 5.1 | C39: 0.875 | D39: Disabled | L39: Slope Comp.: 0.875 | M39: I2C Disabled | R39: Slope Comp.: 0.875 / I2C Disabled / /
A40: 8 | B40: 6.5 | C40: 1 | D40: Disabled | L40: Slope Comp.: 1 | M40: I2C Disabled | R40: Slope Comp.: 1 / I2C Disabled / /
A41: 9 | B41: 8.3 | C41: 1.5 | D41: Disabled | L41: Slope Comp.: 1.5 | M41: I2C Disabled | R41: Slope Comp.: 1.5 / I2C Disabled / /
A42: 10 | B42: 10.5 | C42: 2 | D42: Disabled | L42: Slope Comp.: 2 | M42: I2C Disabled | R42: Slope Comp.: 2 / I2C Disabled / /
A43: 11 | B43: 13.3 | C43: 2.5 | D43: Disabled | L43: Slope Comp.: 2.5 | M43: I2C Disabled | R43: Slope Comp.: 2.5 / I2C Disabled / /
A44: 12 | B44: 16.2 | C44: 3 | D44: Disabled | L44: Slope Comp.: 3 | M44: I2C Disabled | R44: Slope Comp.: 3 / I2C Disabled / /
A45: 13 | B45: 20.5 | C45: 3.5 | D45: Disabled | L45: Slope Comp.: 3.5 | M45: I2C Disabled | R45: Slope Comp.: 3.5 / I2C Disabled / /
A46: 14 | B46: 24.9 | C46: 4 | D46: Disabled | L46: Slope Comp.: 4 | M46: I2C Disabled | R46: Slope Comp.: 4 / I2C Disabled / /
A47: 15 | B47: 30.1 | C47: 4.5 | D47: Disabled | L47: Slope Comp.: 4.5 | M47: I2C Disabled | R47: Slope Comp.: 4.5 / I2C Disabled / /
A48: 16 | B48: 36.5 | C48: I2C | D48: ADDR LSB: 1 | L48: =CONCATENATE(C48) -> I2C | M48: I2C ADDR LSB: 1 | R48: I2C / I2C ADDR LSB: 1 / /
C51: =CONCATENATE(C32,": off") -> Slope Comp.: off | D51: =CONCATENATE(D32,": 0") -> I2C: 0
C52: =CONCATENATE(C32,": on") -> Slope Comp.: on | D52: =CONCATENATE(D32,": 1") -> I2C: 1
B56: CFG Setting | C56: 8 | D56: 3 | E56: 1 | F56: 1 | G56: Calc Setting | H56: =CONCATENATE("R_",A31,": ",H57,I57) ->  | J56: This cell give 1 for disable and 2 for enable
C57: =IF(OR(I2C_only,D56<>3),0,C56+1) -> 0 | D57: =_xlfn.SWITCH(D56,1,1,2,16,3,0) -> 0 | E57: =(E56-1)*2^E50 -> 0 | F57: =(IF(F56>1,1,0)*2^F50) -> 0 | G57: =C57+D57 -> 0 | H57: =INDEX(B33:B48,G57) ->  | I57: =" kΩ" -> kΩ | K57: =_xlfn.XLOOKUP(C56,A33:A48,C33:C48) -> 1
K58: =_xlfn.XLOOKUP(C56+1,A33:A48,C33:C48) -> 1.5
A60: CFG2
A61: Setting | B61: R_CFG2 [ | C61: =DeviceParameter!B36 -> SYNC_OUT | D61: =DeviceParameter!B37 -> SYNC_IN_FALLING | E61: =DeviceParameter!B38 -> VDET | F61: =DeviceParameter!B39 -> PCM_HYST | G61: =C61 -> SYNC_OUT | H61: =D61 -> SYNC_IN_FALLING | I61: =E61 -> VDET | J61: =F61 -> PCM_HYST
A62: 1 | B62: 0 | C62: 0 | D62: 0 | E62: 0 | F62: 0 | G62: =IF(C62=1,"Enable","Disable") -> Disable | H62: =IF(D62=1,"Enable","Disable") -> Disable | I62: =IF(E62=1,"Enable","Disable") -> Disable | J62: =IF(F62=1,"Enable","Disable") -> Disable | L62: =CONCATENATE($C$61,": ",C62) -> SYNC_OUT: 0 | M62: =CONCATENATE(D$61,": ",D62) -> SYNC_IN_FALLING: 0 | N62: =CONCATENATE(E$61,": ",E62) -> VDET: 0 | O62: =CONCATENATE(F$61,": ",F62) -> PCM_HYST: 0 | P62: =CONCATENATE(K$3,": ",G62) -> : Disable | R62: =CONCATENATE(L62," / ",M62," / ",N62," / ",O62) -> SYNC_OUT: 0 / SYNC_IN_FALLING: 0 / VDET: 0 / PCM_HYST: 0
A63: 2 | B63: 0.511 | C63: 1 | D63: 0 | E63: 0 | F63: 0 | G63: Enable | H63: Disable | I63: Disable | J63: Disable | L63: =CONCATENATE($C$61,": ",C63) -> SYNC_OUT: 1 | M63: =CONCATENATE(D$61,": ",D63) -> SYNC_IN_FALLING: 0 | N63: =CONCATENATE(E$61,": ",E63) -> VDET: 0 | O63: =CONCATENATE(F$61,": ",F63) -> PCM_HYST: 0 | P63: : Enable | R63: =CONCATENATE(L63," / ",M63," / ",N63," / ",O63) -> SYNC_OUT: 1 / SYNC_IN_FALLING: 0 / VDET: 0 / PCM_HYST: 0
A64: 3 | B64: 1.15 | C64: 0 | D64: 1 | E64: 0 | F64: 0 | G64: Disable | H64: Enable | I64: Disable | J64: Disable | L64: SYNC_OUT: 0 | M64: SYNC_IN_FALLING: 1 | N64: VDET: 0 | O64: PCM_HYST: 0 | P64: : Disable | R64: SYNC_OUT: 0 / SYNC_IN_FALLING: 1 / VDET: 0 / PCM_HYST: 0
A65: 4 | B65: 1.9 | C65: 1 | D65: 1 | E65: 0 | F65: 0 | G65: Enable | H65: Enable | I65: Disable | J65: Disable | L65: SYNC_OUT: 1 | M65: SYNC_IN_FALLING: 1 | N65: VDET: 0 | O65: PCM_HYST: 0 | P65: : Enable | R65: SYNC_OUT: 1 / SYNC_IN_FALLING: 1 / VDET: 0 / PCM_HYST: 0
A66: 5 | B66: 2.7 | C66: 0 | D66: 0 | E66: 1 | F66: 0 | G66: Disable | H66: Disable | I66: Enable | J66: Disable | L66: SYNC_OUT: 0 | M66: SYNC_IN_FALLING: 0 | N66: VDET: 1 | O66: PCM_HYST: 0 | P66: : Disable | R66: SYNC_OUT: 0 / SYNC_IN_FALLING: 0 / VDET: 1 / PCM_HYST: 0
A67: 6 | B67: 3.8 | C67: 1 | D67: 1 | E67: 1 | F67: 0 | G67: Enable | H67: Enable | I67: Enable | J67: Disable | L67: SYNC_OUT: 1 | M67: SYNC_IN_FALLING: 1 | N67: VDET: 1 | O67: PCM_HYST: 0 | P67: : Enable | R67: SYNC_OUT: 1 / SYNC_IN_FALLING: 1 / VDET: 1 / PCM_HYST: 0
A68: 7 | B68: 5.1 | C68: 0 | D68: 1 | E68: 1 | F68: 0 | G68: Disable | H68: Enable | I68: Enable | J68: Disable | L68: SYNC_OUT: 0 | M68: SYNC_IN_FALLING: 1 | N68: VDET: 1 | O68: PCM_HYST: 0 | P68: : Disable | R68: SYNC_OUT: 0 / SYNC_IN_FALLING: 1 / VDET: 1 / PCM_HYST: 0
A69: 8 | B69: 6.5 | C69: 1 | D69: 1 | E69: 1 | F69: 0 | G69: Enable | H69: Enable | I69: Enable | J69: Disable | L69: SYNC_OUT: 1 | M69: SYNC_IN_FALLING: 1 | N69: VDET: 1 | O69: PCM_HYST: 0 | P69: : Enable | R69: SYNC_OUT: 1 / SYNC_IN_FALLING: 1 / VDET: 1 / PCM_HYST: 0
A70: 9 | B70: 8.3 | C70: 0 | D70: 0 | E70: 0 | F70: 1 | G70: Disable | H70: Disable | I70: Disable | J70: Enable | L70: SYNC_OUT: 0 | M70: SYNC_IN_FALLING: 0 | N70: VDET: 0 | O70: PCM_HYST: 1 | P70: : Disable | R70: SYNC_OUT: 0 / SYNC_IN_FALLING: 0 / VDET: 0 / PCM_HYST: 1
A71: 10 | B71: 10.5 | C71: 1 | D71: 0 | E71: 0 | F71: 1 | G71: Enable | H71: Disable | I71: Disable | J71: Enable | L71: SYNC_OUT: 1 | M71: SYNC_IN_FALLING: 0 | N71: VDET: 0 | O71: PCM_HYST: 1 | P71: : Enable | R71: SYNC_OUT: 1 / SYNC_IN_FALLING: 0 / VDET: 0 / PCM_HYST: 1
A72: 11 | B72: 13.3 | C72: 0 | D72: 1 | E72: 0 | F72: 1 | G72: Disable | H72: Enable | I72: Disable | J72: Enable | L72: SYNC_OUT: 0 | M72: SYNC_IN_FALLING: 1 | N72: VDET: 0 | O72: PCM_HYST: 1 | P72: : Disable | R72: SYNC_OUT: 0 / SYNC_IN_FALLING: 1 / VDET: 0 / PCM_HYST: 1
A73: 12 | B73: 16.2 | C73: 1 | D73: 1 | E73: 0 | F73: 1 | G73: Enable | H73: Enable | I73: Disable | J73: Enable | L73: SYNC_OUT: 1 | M73: SYNC_IN_FALLING: 1 | N73: VDET: 0 | O73: PCM_HYST: 1 | P73: : Enable | R73: SYNC_OUT: 1 / SYNC_IN_FALLING: 1 / VDET: 0 / PCM_HYST: 1
A74: 13 | B74: 20.5 | C74: 0 | D74: 0 | E74: 1 | F74: 1 | G74: Disable | H74: Disable | I74: Enable | J74: Enable | L74: SYNC_OUT: 0 | M74: SYNC_IN_FALLING: 0 | N74: VDET: 1 | O74: PCM_HYST: 1 | P74: : Disable | R74: SYNC_OUT: 0 / SYNC_IN_FALLING: 0 / VDET: 1 / PCM_HYST: 1
A75: 14 | B75: 24.9 | C75: 1 | D75: 0 | E75: 1 | F75: 1 | G75: Enable | H75: Disable | I75: Enable | J75: Enable | L75: SYNC_OUT: 1 | M75: SYNC_IN_FALLING: 0 | N75: VDET: 1 | O75: PCM_HYST: 1 | P75: : Enable | R75: SYNC_OUT: 1 / SYNC_IN_FALLING: 0 / VDET: 1 / PCM_HYST: 1
A76: 15 | B76: 30.1 | C76: 0 | D76: 1 | E76: 1 | F76: 1 | G76: Disable | H76: Enable | I76: Enable | J76: Enable | L76: SYNC_OUT: 0 | M76: SYNC_IN_FALLING: 1 | N76: VDET: 1 | O76: PCM_HYST: 1 | P76: : Disable | R76: SYNC_OUT: 0 / SYNC_IN_FALLING: 1 / VDET: 1 / PCM_HYST: 1
A77: 16 | B77: 36.5 | C77: 1 | D77: 1 | E77: 1 | F77: 1 | G77: Enable | H77: Enable | I77: Enable | J77: Enable | L77: SYNC_OUT: 1 | M77: SYNC_IN_FALLING: 1 | N77: VDET: 1 | O77: PCM_HYST: 1 | P77: : Enable | R77: SYNC_OUT: 1 / SYNC_IN_FALLING: 1 / VDET: 1 / PCM_HYST: 1
C79: 0 | D79: 1 | E79: 2 | F79: 3
C80: =CONCATENATE(C61,": off") -> SYNC_OUT: off | D80: =CONCATENATE(D61,": off") -> SYNC_IN_FALLING: off | E80: =CONCATENATE(E61,": off") -> VDET: off | F80: =CONCATENATE(F61,": off") -> PCM_HYST: off
C81: =CONCATENATE(C61,": on") -> SYNC_OUT: on | D81: =CONCATENATE(D61,": on") -> SYNC_IN_FALLING: on | E81: =CONCATENATE(E61,": on") -> VDET: on | F81: =CONCATENATE(F61,": on") -> PCM_HYST: on
B85: CFG Setting | C85: 1 | D85: 1 | E85: 1 | F85: 2 | G85: Calc Setting | H85: =CONCATENATE("R_",A60,": ",H86,I86) -> R_CFG2: 8.3 kΩ | J85: This cell give 1 for disable and 2 for enable
C86: =(C85-1)*2^C79 -> 0 | D86: =(D85-1)*2^D79 -> 0 | E86: =(E85-1)*2^E79 -> 0 | F86: =(F85-1)*2^F79 -> 8 | G86: =SUM(C86:F86)+1 -> 9 | H86: =INDEX(B62:B77,G86) -> 8.3 | I86: =" kΩ" -> kΩ
A90: CFG3
A91: Setting | B91: R_CFG3 [ | C91: =DeviceParameter!B40 -> NA | D91: =DeviceParameter!B41 -> NA | E91: =DeviceParameter!B42 -> NA | F91: =DeviceParameter!B43 -> NA | G91: =C91 -> NA | H91: =D91 -> NA | I91: =E91 -> NA | J91: =F91 -> NA
A92: 1 | B92: 0 | C92: 0 | D92: 0 | E92: 0 | F92: 0 | G92: =IF(C92=1,"Enable","Disable") -> Disable | H92: =IF(Device="LM51772",IF(D92=1,"40%","30%"),IF(D92=1,"30%","20%")) -> 20% | I92: =IF(E92=1,"Enable","Disable") -> Disable | J92: =IF(F92=1,"Enable","Disable") -> Disable | L92: =CONCATENATE($C$91,": ",C92) -> NA: 0 | M92: =CONCATENATE(D$91,": ",D92) -> NA: 0 | N92: =CONCATENATE(E$91,": ",E92) -> NA: 0 | O92: =CONCATENATE(F$91,": ",F92) -> NA: 0 | P92: =CONCATENATE(K$3,": ",G92) -> : Disable | R92: =CONCATENATE(L92," / ",M92," / ",N92," / ",O92) -> NA: 0 / NA: 0 / NA: 0 / NA: 0
A93: 2 | B93: 0.511 | C93: 1 | D93: 0 | E93: 0 | F93: 0 | G93: Enable | H93: 20% | I93: Disable | J93: Disable | L93: =CONCATENATE($C$91,": ",C93) -> NA: 1 | M93: =CONCATENATE(D$91,": ",D93) -> NA: 0 | N93: =CONCATENATE(E$91,": ",E93) -> NA: 0 | O93: =CONCATENATE(F$91,": ",F93) -> NA: 0 | P93: : Enable | R93: =CONCATENATE(L93," / ",M93," / ",N93," / ",O93) -> NA: 1 / NA: 0 / NA: 0 / NA: 0
A94: 3 | B94: 1.15 | C94: 0 | D94: 1 | E94: 0 | F94: 0 | G94: Disable | H94: 30% | I94: Disable | J94: Disable | L94: NA: 0 | M94: NA: 1 | N94: NA: 0 | O94: NA: 0 | P94: : Disable | R94: NA: 0 / NA: 1 / NA: 0 / NA: 0
A95: 4 | B95: 1.9 | C95: 1 | D95: 1 | E95: 0 | F95: 0 | G95: Enable | H95: 30% | I95: Disable | J95: Disable | L95: NA: 1 | M95: NA: 1 | N95: NA: 0 | O95: NA: 0 | P95: : Enable | R95: NA: 1 / NA: 1 / NA: 0 / NA: 0
A96: 5 | B96: 2.7 | C96: 0 | D96: 0 | E96: 1 | F96: 0 | G96: Disable | H96: 20% | I96: Enable | J96: Disable | L96: NA: 0 | M96: NA: 0 | N96: NA: 1 | O96: NA: 0 | P96: : Disable | R96: NA: 0 / NA: 0 / NA: 1 / NA: 0
A97: 6 | B97: 3.8 | C97: 1 | D97: 0 | E97: 1 | F97: 0 | G97: Enable | H97: 20% | I97: Enable | J97: Disable | L97: NA: 1 | M97: NA: 0 | N97: NA: 1 | O97: NA: 0 | P97: : Enable | R97: NA: 1 / NA: 0 / NA: 1 / NA: 0
A98: 7 | B98: 5.1 | C98: 0 | D98: 1 | E98: 1 | F98: 0 | G98: Disable | H98: 30% | I98: Enable | J98: Disable | L98: NA: 0 | M98: NA: 1 | N98: NA: 1 | O98: NA: 0 | P98: : Disable | R98: NA: 0 / NA: 1 / NA: 1 / NA: 0
A99: 8 | B99: 6.5 | C99: 1 | D99: 1 | E99: 1 | F99: 0 | G99: Enable | H99: 30% | I99: Enable | J99: Disable | L99: NA: 1 | M99: NA: 1 | N99: NA: 1 | O99: NA: 0 | P99: : Enable | R99: NA: 1 / NA: 1 / NA: 1 / NA: 0
A100: 9 | B100: 8.3 | C100: 0 | D100: 0 | E100: 0 | F100: 1 | G100: Disable | H100: 20% | I100: Disable | J100: Enable | L100: NA: 0 | M100: NA: 0 | N100: NA: 0 | O100: NA: 1 | P100: : Disable | R100: NA: 0 / NA: 0 / NA: 0 / NA: 1
A101: 10 | B101: 10.5 | C101: 1 | D101: 0 | E101: 0 | F101: 1 | G101: Enable | H101: 20% | I101: Disable | J101: Enable | L101: NA: 1 | M101: NA: 0 | N101: NA: 0 | O101: NA: 1 | P101: : Enable | R101: NA: 1 / NA: 0 / NA: 0 / NA: 1
A102: 11 | B102: 13.3 | C102: 0 | D102: 1 | E102: 0 | F102: 1 | G102: Disable | H102: 30% | I102: Disable | J102: Enable | L102: NA: 0 | M102: NA: 1 | N102: NA: 0 | O102: NA: 1 | P102: : Disable | R102: NA: 0 / NA: 1 / NA: 0 / NA: 1
A103: 12 | B103: 16.2 | C103: 1 | D103: 1 | E103: 0 | F103: 1 | G103: Enable | H103: 30% | I103: Disable | J103: Enable | L103: NA: 1 | M103: NA: 1 | N103: NA: 0 | O103: NA: 1 | P103: : Enable | R103: NA: 1 / NA: 1 / NA: 0 / NA: 1
A104: 13 | B104: 20.5 | C104: 0 | D104: 0 | E104: 1 | F104: 1 | G104: Disable | H104: 20% | I104: Enable | J104: Enable | L104: NA: 0 | M104: NA: 0 | N104: NA: 1 | O104: NA: 1 | P104: : Disable | R104: NA: 0 / NA: 0 / NA: 1 / NA: 1
A105: 14 | B105: 24.9 | C105: 1 | D105: 0 | E105: 1 | F105: 1 | G105: Enable | H105: 20% | I105: Enable | J105: Enable | L105: NA: 1 | M105: NA: 0 | N105: NA: 1 | O105: NA: 1 | P105: : Enable | R105: NA: 1 / NA: 0 / NA: 1 / NA: 1
A106: 15 | B106: 30.1 | C106: 0 | D106: 1 | E106: 1 | F106: 1 | G106: Disable | H106: 30% | I106: Enable | J106: Enable | L106: NA: 0 | M106: NA: 1 | N106: NA: 1 | O106: NA: 1 | P106: : Disable | R106: NA: 0 / NA: 1 / NA: 1 / NA: 1
A107: 16 | B107: 36.5 | C107: 1 | D107: 1 | E107: 1 | F107: 1 | G107: Enable | H107: 30% | I107: Enable | J107: Enable | L107: NA: 1 | M107: NA: 1 | N107: NA: 1 | O107: NA: 1 | P107: : Enable | R107: NA: 1 / NA: 1 / NA: 1 / NA: 1
C109: 0 | D109: 1 | E109: 2 | F109: 3
C110: =IF(useI2C=1,"NA",CONCATENATE(C91,": off")) -> NA: off | D110: =IF(useI2C=1,"NA",CONCATENATE(D91,": 20%")) -> NA: 20% | E110: =IF(useI2C=1,"NA",CONCATENATE(E91,": off")) -> NA: off | F110: =IF(useI2C=1,"NA",CONCATENATE(F91,": off")) -> NA: off
C111: =IF(useI2C=1,"NA",CONCATENATE(C91,": on")) -> NA: on | D111: =IF(useI2C=1,"NA",CONCATENATE(D91,": 30%")) -> NA: 30% | E111: =IF(useI2C=1,"NA",CONCATENATE(E91,": on")) -> NA: on | F111: =IF(useI2C=1,"NA",CONCATENATE(F91,": on")) -> NA: on
B115: CFG Setting | C115: 1 | D115: 2 | E115: 1 | F115: 1 | G115: Calc Setting | H115: =CONCATENATE("R_",A90,": ",H116,I116) -> R_CFG3: 1.15 kΩ | J115: This cell give 1 for disable and 2 for enable
C116: =(C115-1)*2^C109 -> 0 | D116: =(D115-1)*2^D109 -> 2 | E116: =(E115-1)*2^E109 -> 0 | F116: =(F115-1)*2^F109 -> 0 | G116: =SUM(C116:F116)+1 -> 3 | H116: =INDEX(B92:B107,G116) -> 1.15 | I116: =" kΩ" -> kΩ
A120: CFG4
A121: Setting | B121: R_CFG4 [ | C121: =DeviceParameter!B44 -> NA | D121: =DeviceParameter!B45 -> NA | E121: =DeviceParameter!B46 -> Neg. Current Limit | F121: =DeviceParameter!B47 -> Current Limit | G121: Current Limit | H121: =D121 -> NA | I121: =E121 -> Neg. Current Limit | J121: =F121 -> Current Limit
A122: 1 | B122: 0 | C122: 0 | D122: 0 | E122: 0 | F122: 0 | G122: =IF(C122=1,"Enable","Disable") -> Disable | H122: =IF(D122=1,"Enable","Disable") -> Disable | I122: =IF(E122=1,"Enable","Disable") -> Disable | J122: =IF(F122=1,"Enable","Disable") -> Disable | L122: =CONCATENATE($C$121,": ",C122) -> NA: 0 | M122: =CONCATENATE(D$121,": ",D122) -> NA: 0 | N122: =CONCATENATE(E$121,": ",E122) -> Neg. Current Limit: 0 | O122: =CONCATENATE(F$121,": ",F122) -> Current Limit: 0 | P122: =CONCATENATE(K$3,": ",G122) -> : Disable | R122: =CONCATENATE(L122," / ",M122," / ",N122," / ",O122) -> NA: 0 / NA: 0 / Neg. Current Limit: 0 / Current Limit: 0
A123: 2 | B123: 0.511 | C123: 1 | D123: 0 | E123: 0 | F123: 0 | G123: Enable | H123: Disable | I123: Disable | J123: Disable | L123: =CONCATENATE($C$121,": ",C123) -> NA: 1 | M123: =CONCATENATE(D$121,": ",D123) -> NA: 0 | N123: =CONCATENATE(E$121,": ",E123) -> Neg. Current Limit: 0 | O123: =CONCATENATE(F$121,": ",F123) -> Current Limit: 0 | P123: : Enable | R123: =CONCATENATE(L123," / ",M123," / ",N123," / ",O123) -> NA: 1 / NA: 0 / Neg. Current Limit: 0 / Current Limit: 0
A124: 3 | B124: 1.15 | C124: 0 | D124: 1 | E124: 0 | F124: 0 | G124: Disable | H124: Enable | I124: Disable | J124: Disable | L124: NA: 0 | M124: NA: 1 | N124: Neg. Current Limit: 0 | O124: Current Limit: 0 | P124: : Disable | R124: NA: 0 / NA: 1 / Neg. Current Limit: 0 / Current Limit: 0
A125: 4 | B125: 1.9 | C125: 1 | D125: 1 | E125: 0 | F125: 0 | G125: Enable | H125: Enable | I125: Disable | J125: Disable | L125: NA: 1 | M125: NA: 1 | N125: Neg. Current Limit: 0 | O125: Current Limit: 0 | P125: : Enable | R125: NA: 1 / NA: 1 / Neg. Current Limit: 0 / Current Limit: 0
A126: 5 | B126: 2.7 | C126: 0 | D126: 0 | E126: 1 | F126: 0 | G126: Disable | H126: Disable | I126: Enable | J126: Disable | L126: NA: 0 | M126: NA: 0 | N126: Neg. Current Limit: 1 | O126: Current Limit: 0 | P126: : Disable | R126: NA: 0 / NA: 0 / Neg. Current Limit: 1 / Current Limit: 0
A127: 6 | B127: 3.8 | C127: 1 | D127: 0 | E127: 1 | F127: 0 | G127: Enable | H127: Disable | I127: Enable | J127: Disable | L127: NA: 1 | M127: NA: 0 | N127: Neg. Current Limit: 1 | O127: Current Limit: 0 | P127: : Enable | R127: NA: 1 / NA: 0 / Neg. Current Limit: 1 / Current Limit: 0
A128: 7 | B128: 5.1 | C128: 0 | D128: 1 | E128: 1 | F128: 0 | G128: Disable | H128: Enable | I128: Enable | J128: Disable | L128: NA: 0 | M128: NA: 1 | N128: Neg. Current Limit: 1 | O128: Current Limit: 0 | P128: : Disable | R128: NA: 0 / NA: 1 / Neg. Current Limit: 1 / Current Limit: 0
A129: 8 | B129: 6.5 | C129: 1 | D129: 1 | E129: 1 | F129: 0 | G129: Enable | H129: Enable | I129: Enable | J129: Disable | L129: NA: 1 | M129: NA: 1 | N129: Neg. Current Limit: 1 | O129: Current Limit: 0 | P129: : Enable | R129: NA: 1 / NA: 1 / Neg. Current Limit: 1 / Current Limit: 0
A130: 9 | B130: 8.3 | C130: 0 | D130: 0 | E130: 0 | F130: 1 | G130: Disable | H130: Disable | I130: Disable | J130: Enable | L130: NA: 0 | M130: NA: 0 | N130: Neg. Current Limit: 0 | O130: Current Limit: 1 | P130: : Disable | R130: NA: 0 / NA: 0 / Neg. Current Limit: 0 / Current Limit: 1
A131: 10 | B131: 10.5 | C131: 1 | D131: 0 | E131: 0 | F131: 1 | G131: Enable | H131: Disable | I131: Disable | J131: Enable | L131: NA: 1 | M131: NA: 0 | N131: Neg. Current Limit: 0 | O131: Current Limit: 1 | P131: : Enable | R131: NA: 1 / NA: 0 / Neg. Current Limit: 0 / Current Limit: 1
A132: 11 | B132: 13.3 | C132: 0 | D132: 1 | E132: 0 | F132: 1 | G132: Disable | H132: Enable | I132: Disable | J132: Enable | L132: NA: 0 | M132: NA: 1 | N132: Neg. Current Limit: 0 | O132: Current Limit: 1 | P132: : Disable | R132: NA: 0 / NA: 1 / Neg. Current Limit: 0 / Current Limit: 1
A133: 12 | B133: 16.2 | C133: 1 | D133: 1 | E133: 0 | F133: 1 | G133: Enable | H133: Enable | I133: Disable | J133: Enable | L133: NA: 1 | M133: NA: 1 | N133: Neg. Current Limit: 0 | O133: Current Limit: 1 | P133: : Enable | R133: NA: 1 / NA: 1 / Neg. Current Limit: 0 / Current Limit: 1
A134: 13 | B134: 20.5 | C134: 0 | D134: 0 | E134: 1 | F134: 1 | G134: Disable | H134: Disable | I134: Enable | J134: Enable | L134: NA: 0 | M134: NA: 0 | N134: Neg. Current Limit: 1 | O134: Current Limit: 1 | P134: : Disable | R134: NA: 0 / NA: 0 / Neg. Current Limit: 1 / Current Limit: 1
A135: 14 | B135: 24.9 | C135: 1 | D135: 0 | E135: 1 | F135: 1 | G135: Enable | H135: Disable | I135: Enable | J135: Enable | L135: NA: 1 | M135: NA: 0 | N135: Neg. Current Limit: 1 | O135: Current Limit: 1 | P135: : Enable | R135: NA: 1 / NA: 0 / Neg. Current Limit: 1 / Current Limit: 1
A136: 15 | B136: 30.1 | C136: 0 | D136: 1 | E136: 1 | F136: 1 | G136: Disable | H136: Enable | I136: Enable | J136: Enable | L136: NA: 0 | M136: NA: 1 | N136: Neg. Current Limit: 1 | O136: Current Limit: 1 | P136: : Disable | R136: NA: 0 / NA: 1 / Neg. Current Limit: 1 / Current Limit: 1
A137: 16 | B137: 36.5 | C137: 1 | D137: 1 | E137: 1 | F137: 1 | G137: Enable | H137: Enable | I137: Enable | J137: Enable | L137: NA: 1 | M137: NA: 1 | N137: Neg. Current Limit: 1 | O137: Current Limit: 1 | P137: : Enable | R137: NA: 1 / NA: 1 / Neg. Current Limit: 1 / Current Limit: 1
C139: 0 | D139: 1 | E139: 2 | F139: 3
C140: =IF(useI2C=1,"NA",CONCATENATE(C121,": off")) -> NA: off | D140: =IF(useI2C=1,"NA",CONCATENATE(D121,": off")) -> NA: off | E140: =IF(FALSE,"NA",CONCATENATE(E121,": off")) -> Neg. Current Limit: off | F140: IMON_LIMIT: off
C141: =IF(useI2C=1,"NA",CONCATENATE(C121,": on")) -> NA: on | D141: =IF(useI2C=1,"NA",CONCATENATE(D121,": on")) -> NA: on | E141: =IF(FALSE,"NA",CONCATENATE(E121,": on")) -> Neg. Current Limit: on | F141: =IF(DeviceParameter!B29=1,"ILIMIT: iSET","NA") -> ILIMIT: iSET
F142: =IF(DeviceParameter!B30=1,"ILIMIT: ILIM_DAC","NA") -> NA
F143: =IF(DeviceParameter!B30=1,"ILIMIT: ILIM_DAC (RC-Filter)","NA") -> NA
B145: CFG Setting | C145: 1 | D145: 1 | E145: 1 | F145: 1 | G145: Calc Setting | H145: =CONCATENATE("R_",A120,": ",H146,I146) -> R_CFG4: 0 kΩ | J145: This cell give 1 for disable and 2 for enable
C146: =(C145-1)*2^C139 -> 0 | D146: =(D145-1)*2^D139 -> 0 | E146: =(E145-1)*2^E139 -> 0 | F146: =(IF(F145>1,1,0)*2^F139) -> 0 | G146: =SUM(C146:F146)+1 -> 1 | H146: =INDEX(B122:B137,G146) -> 0 | I146: =" kΩ" -> kΩ | J146: =F145 -> 1 | K146: Decoded IMON/Limiter
A151: CDC Gain
A152: 0.25
A153: 0.5
A154: 1
A155: 2
A159: CDC disabled | B159: 1
A160: Current Monitor
A161: Cable Drop Comp.
A162: Internal FB disabled | B162: 3
A163: Int. FB (SEL_DIV20 = 0)
A164: Int. FB (SEL_DIV20 = 1)

Sheet Schematic Management (hidden)
A1: =CHOOSE(With_CDC,CHOOSE(With_RCS, "_NO_RCS_NO_CDC", "_RCS_LIM_NO_CDC","_RCS_LIM_DAC_NO_CDC","_RCS_LIM_DACplus_NO_CDC"),CHOOSE(With_RCS, "_NO_RCS","_RCS_LIM","_RCS_LIM_DAC","_RCS_LIM_DACplus")) -> _NO_RCS_NO_CDC
A2: =CONCATENATE(Schematic_Prefix,A1) -> SCH251772_NO_RCS_NO_CDC
B6: "SCH772_NO_RCS_NO_CDC" | D6: "SCH772_RCS_LIM_NO_CDC" | F6: "SCH772_RCS_LIM_DAC_NO_CDC" | H6: "SCH772_RCS_LIM_DAC+_NO_CDC"
B17: "SCH772_NO_RCS" | D17: "SCH772_RCS_LIM" | F17: "SCH772_RCS_LIM_DAC" | H17: "SCH772_RCS_LIM_DAC+"

Sheet Stability Calculations (hidden)
B2: Divider Network & EA Poles/Zeros | E2: Modulator | J2: Power Stage Poles/Zeros | O2: Complex Pole Pair | Q2: Total System
B3: Afb1 | C3: =Afb -> 0.05 | D3: V/V | E3: Acs | F3: =Acs -> 25 | G3: A/V | H3: gm | I3: =gm -> 0.0006 | J3: z_ESR | L3: =Fesr -> 1061032.954 | M3: Hz | N3: p3 | O3: =Fsw/2 -> 1050000 | P3: Hz | Q3: Adc | R3: =Am*Afb*AEA -> 14946.65437 | S3: V/V
B4: EA zero, z1 | C4: =Fz1_u -> 2241.240116 | D4: Hz | E4: Am | F4: =Am -> 49.82218124 | G4: V/V | J4: p_dom | L4: =Fp_dominant -> 1591.549431 | M4: Hz | N4: pterm1 | O4: =Q*PS_Pole2 -> 141753.0476 | Q4: Crossover | R4: =AW8/1000 -> 19.83925 | S4: kHz
B5: EA pole, p1 | C5: =Fp1_u -> 1.939234563 | D5: Hz | E5: Q | F5: =Q -> 0.1350029025 | J5: z_RHP | L5: =IF(VIN_nom>Vout, 10000000,Frhp) -> 126419.9414 | M5: Hz | N5: pterm2 | O5: =PS_Pole2^2+0.01 -> 1.1025e+12 | Q5: Phase Margin | R5: =AW9 -> 55.00039122 | S5: °
B6: Aea | C6: =AEA -> 6000 | D6: V/V | E6: mc | F6: =mc -> 4.78 | Q6: radconv | R6: =180/Pi -> 57.29577951 | AV6: XOVER SEARCH
B7: EA pole, p2 | C7: =Fp2_u -> 116801.2798 | D7: Hz | E7: k | F7: =k -> 2.857800316 | Q7: Adc [dB] | R7: =20*LOG(Adc) -> 83.49087984 | S7: dB | AV7: System | AX7: Error Amp
AV8: xover | AW8: =SUM(AV12:AV613) -> 19839.25 | AX8: xover | AY8: =SUM(AX12:AX613) -> 575440
AV9: phase margin | AW9: =SUM(AW13:AW613) -> 55.00039122 | AX9: phase margin | AY9: =SUM(AY13:AY613) -> -78.74909702
B10: Freq (Hz) | C10: Power Stage | S10: Error Amplifier | AG10: System Response | AL10: ERROR AMP Response | AO10: PLANT Response
D11: p_dom | G11: z_ESR | J11: z_RHP | M11: Sampling Double Pole | P11: Total | T11: p1 | W11: z1 | Z11: p2 | AC11: Total
C12: ADC | D12: Complex | E12: Gain(V/V) | F12: Phase(rad) | G12: Complex | H12: Gain(V/V) | I12: Phase(rad) | J12: Complex | K12: Gain(V/V) | L12: Phase(rad) | M12: Complex | N12: Gain(V/V) | O12: Phase(rad) | P12: Complex | Q12: Gain(V/V) | R12: Phase(rad) | S12: ADC_EA | T12: Complex | U12: Gain(V/V) | V12: Phase(rad) | W12: Complex | X12: Gain(V/V) | Y12: Phase(rad) | Z12: Complex | AA12: Gain(V/V) | AB12: Phase(rad) | AC12: Complex | AD12: Gain(V/V) | AE12: Phase(rad) | AF12: Complex | AG12: Gain(dB) | AH12: :Loop Phase Margin (°) | AI12: Phase (°) | AL12: Gain(dB) | AM12: Phase(Deg) | AO12: Gain(dB) | AP12: Phase(Deg)
B13: 1 | C13: =COMPLEX(Am*Afb,0) -> 2.49110906217071 | D13: =IMSUM(COMPLEX(1,0),IMDIV(COMPLEX(0,2*PI()*B13),COMPLEX(2*PI()*PS_Pole1,0))) -> 1+0.000628318530717959i | E13: =IMABS(D13) -> 1.000000197 | F13: =IMARGUMENT(D13) -> 0.000628318448 | G13: =IMSUM(COMPLEX(1,0),IMDIV(COMPLEX(0,2*PI()*B13),COMPLEX(2*PI()*PS_Zero1,0))) -> 1+9.42477796076938E-07i | H13: =IMABS(G13) -> 1 | I13: =IMARGUMENT(G13) -> 9.424777961e-07 | J13: =IF(VIN_nom>Vout, 1,IMSUB(COMPLEX(1,0),IMDIV(COMPLEX(0,2*PI()*B13),COMPLEX(2*PI()*PS_RHPZ,0)))) -> 1-7.91014447018109E-06i | K13: =IMABS(J13) -> 1 | L13: =IMARGUMENT(J13) -> -7.91014447e-06 | M13: =IMSUM(COMPLEX(1,0),IMDIV(COMPLEX(0,2*PI()*B13),COMPLEX(Q*(2*PI()*PS_Pole2/2),0)),IMDIV(IMPOWER(COMPLEX(0,2*PI()*B13),2),IMPOWER(COMPLEX(2*PI()*PS_Pole2/2,0),2))) -> 0.999999999996372+0.000014109044098593i | N13: =IMABS(M13) -> 1 | O13: =IMARGUMENT(M13) -> 1.41090441e-05 | P13: =(IMDIV(IMPRODUCT(C13,G13,J13),IMPRODUCT(D13,M13))) -> 2.49110804501802-0.00161771373190215i | Q13: =IMABS(P13) -> 2.49110857 | R13: =IMARGUMENT(P13) -> -0.0006493951588 | S13: =COMPLEX(AEA,0) -> 6000 | T13: =IMSUM(COMPLEX(1,0),IMDIV(COMPLEX(0,2*PI()*B13),COMPLEX(2*PI()*EA_Pole1,0))) -> 1+0.515667376743761i | U13: =IMABS(T13) -> 1.125127923 | V13: =IMARGUMENT(T13) -> 0.4761028061 | W13: =IMSUM(COMPLEX(1,0),IMDIV(COMPLEX(0,2*PI()*B13),COMPLEX(2*PI()*EA_Zero1,0))) -> 1+0.000446181555033437i | X13: =IMABS(W13) -> 1.0000001 | Y13: =IMARGUMENT(W13) -> 0.0004461815254 | Z13: =IMSUM(COMPLEX(1,0),IMDIV(COMPLEX(0,2*PI()*B13),COMPLEX(2*PI()*EA_Pole2,0))) -> 1+8.56155002171859E-06i | AA13: =IMABS(Z13) -> 1 | AB13: =IMARGUMENT(Z13) -> 8.561550022e-06 | AC13: =IMPRODUCT(S13,IMDIV(W13,IMPRODUCT(T13,Z13))) -> 4740.73239066163-2442.01531570679i | AD13: =IMABS(AC13) -> 5332.727482 | AE13: =IMARGUMENT(AC13) -> -0.4756651862 | AF13: =IMPRODUCT(P13,AC13) -> 11805.726115945-6090.99314690205i | AG13: =20*LOG10(IMABS(AF13)) -> 82.46684093 | AH13: =(180/PI())*IMARGUMENT(AF13) -> -27.29081523 | AI13: =IF(AH13>0,AH13-180,AH13+180) -> 152.7091848 | AL13: =20*LOG10(IMABS(AC13)) -> 74.53898781 | AM13: =(180/PI())*IMARGUMENT(AC13) -> -27.25360763 | AO13: =20*LOG10(IMABS(IMPRODUCT(COMPLEX(Am/Afb,0),P13))) -> 67.89690778 | AP13: =180/PI()*IMARGUMENT(IMPRODUCT(COMPLEX(Am/Afb,0),P13)) -> -0.03720760184 | AV13: =SUM((AG14<0)*(AG13>0))*B13 -> 0 | AW13: =IF(AV13>0,AI11,0) -> 0 | AX13: =SUM((AL14<0)*(AL13>0))*B13 -> 0 | AY13: =IF(AX13>0,AM13,0) -> 0
B14: 1.0965 | C14: 2.49110906217071 | D14: 1+0.000688951268932242i | E14: =IMABS(D14) -> 1.000000237 | F14: =IMARGUMENT(D14) -> 0.0006889511599 | G14: 1+1.03342690339836E-06i | H14: =IMABS(G14) -> 1 | I14: =IMARGUMENT(G14) -> 1.033426903e-06 | J14: 1-8.67347341155357E-06i | K14: =IMABS(J14) -> 1 | L14: =IMARGUMENT(J14) -> -8.673473411e-06 | M14: 0.999999999995638+0.0000154705668541072i | N14: =IMABS(M14) -> 1 | O14: =IMARGUMENT(M14) -> 1.547056685e-05 | P14: =(IMDIV(IMPRODUCT(C14,G14,J14),IMPRODUCT(D14,M14))) -> 2.49110783923567-0.00177382296525451i | Q14: =IMABS(P14) -> 2.491108471 | R14: =IMARGUMENT(P14) -> -0.0007120617733 | S14: 6000 | T14: 1+0.565429278599534i | U14: =IMABS(T14) -> 1.148786433 | V14: =IMARGUMENT(T14) -> 0.5146118836 | W14: 1+0.000489238075094164i | X14: =IMABS(W14) -> 1.00000012 | Y14: =IMARGUMENT(W14) -> 0.0004892380361 | Z14: 1+9.38773959881444E-06i | AA14: =IMABS(Z14) -> 1 | AB14: =IMARGUMENT(Z14) -> 9.387739599e-06 | AC14: =IMPRODUCT(S14,IMDIV(W14,IMPRODUCT(T14,Z14))) -> 4547.68603089389-2568.51572973279i | AD14: =IMABS(AC14) -> 5222.903531 | AE14: =IMARGUMENT(AC14) -> -0.5141320333 | AF14: 11324.2202297543-6406.51645945785i | AG14: =20*LOG10(IMABS(AF14)) -> 82.28609286 | AH14: =(180/PI())*IMARGUMENT(AF14) -> -29.49839375 | AI14: 150.5016062 | AL14: 74.35824009 | AM14: -29.45759562 | AO14: 67.89690743 | AP14: -0.04079813436 | AV14: 0 | AW14: 0 | AX14: 0 | AY14: 0
B15: 1.2023 | C15: 2.49110906217071 | D15: 1+0.000755427369482202i | E15: =IMABS(D15) -> 1.000000285 | F15: =IMARGUMENT(D15) -> 0.0007554272258 | G15: 1+0.0000011331410542233i | H15: =IMABS(G15) -> 1 | I15: =IMARGUMENT(G15) -> 1.133141054e-06 | J15: 1-9.51036669649873E-06i | K15: =IMABS(J15) -> 1 | L15: =IMARGUMENT(J15) -> -9.510366696e-06 | M15: 0.999999999994755+0.0000169633037197383i | N15: =IMABS(M15) -> 1 | O15: =IMARGUMENT(M15) -> 1.696330372e-05 | P15: 2.49110759185103-0.00194497687752593i | Q15: =IMABS(P15) -> 2.491108351 | R15: =IMARGUMENT(P15) -> -0.0007807677551 | S15: 6000 | T15: 1+0.619986887059023i | U15: =IMABS(T15) -> 1.176598377 | V15: =IMARGUMENT(T15) -> 0.5549862554 | W15: 1+0.000536444083616702i | X15: =IMABS(W15) -> 1.000000144 | Y15: =IMARGUMENT(W15) -> 0.0005364440322 | Z15: 1+0.0000102935515911123i | AA15: =IMABS(Z15) -> 1 | AB15: =IMARGUMENT(Z15) -> 1.029355159e-05 | AC15: =IMPRODUCT(S15,IMDIV(W15,IMPRODUCT(T15,Z15))) -> 4335.47223729734-2684.77903314098i | AD15: =IMABS(AC15) -> 5099.446831 | AE15: =IMARGUMENT(AC15) -> -0.5544601049 | AF15: 10794.90597145-6696.50582515466i | AG15: =20*LOG10(IMABS(AF15)) -> 82.07831371 | AH15: =(180/PI())*IMARGUMENT(AF15) -> -31.81295861 | AI15: 148.1870414 | AL15: 74.15046136 | AM15: -31.76822392 | AO15: 67.89690701 | AP15: -0.04473469715 | AV15: 0 | AW15: 0 | AX15: 0 | AY15: 0
B16: 1.3183 | C16: 2.49110906217071 | D16: 1+0.000828312319045485i | E16: =IMABS(D16) -> 1.000000343 | F16: =IMARGUMENT(D16) -> 0.0008283121296 | G16: 1+1.24246847856823E-06i | H16: =IMABS(G16) -> 1 | I16: =IMARGUMENT(G16) -> 1.242468479e-06 | J16: 1-0.0000104279434550397i | K16: =IMABS(J16) -> 1 | L16: =IMARGUMENT(J16) -> -1.042794345e-05 | M16: 0.999999999993695+0.0000185999528351751i | N16: =IMABS(M16) -> 1 | O16: =IMARGUMENT(M16) -> 1.859995283e-05 | P16: 2.49110729444642-0.0021326313910493i | Q16: =IMABS(P16) -> 2.491108207 | R16: =IMARGUMENT(P16) -> -0.0008560975574 | S16: 6000 | T16: 1+0.679804302761299i | U16: =IMABS(T16) -> 1.209187285 | V16: =IMARGUMENT(T16) -> 0.5970428267 | W16: 1+0.00058820114400058i | X16: =IMABS(W16) -> 1.000000173 | Y16: =IMARGUMENT(W16) -> 0.0005882010762 | Z16: 1+0.0000112866913936316i | AA16: =IMABS(Z16) -> 1 | AB16: =IMARGUMENT(Z16) -> 1.128669139e-05 | AC16: =IMPRODUCT(S16,IMDIV(W16,IMPRODUCT(T16,Z16))) -> 4105.20077091915-2787.27166105464i | AD16: =IMABS(AC16) -> 4962.011354 | AE16: =IMARGUMENT(AC16) -> -0.5964659123 | AF16: 10220.551362564-6952.14764648763i | AG16: =20*LOG10(IMABS(AF16)) -> 81.84100693 | AH16: =(180/PI())*IMARGUMENT(AF16) -> -34.22403018 | AI16: 145.7759698 | AL16: 73.91315507 | AM16: -34.1749794 | AO16: 67.89690651 | AP16: -0.04905077689 | AV16: 0 | AW16: 0 | AX16: 0 | AY16: 0
B17: 1.4454 | C17: 2.49110906217071 | D17: 1+0.000908171604299737i | E17: =IMABS(D17) -> 1.000000412 | F17: =IMARGUMENT(D17) -> 0.0009081713546 | G17: 1+0.0000013622574064496i | H17: =IMABS(G17) -> 1 | I17: =IMARGUMENT(G17) -> 1.362257406e-06 | J17: 1-0.0000114333228171997i | K17: =IMABS(J17) -> 1 | L17: =IMARGUMENT(J17) -> -1.143332282e-05 | M17: 0.99999999999242+0.0000203932123401062i | N17: =IMABS(M17) -> 1 | O17: =IMARGUMENT(M17) -> 2.039321234e-05 | P17: 2.49110693715538-0.00233824242194644i | Q17: =IMABS(P17) -> 2.491108035 | R17: =IMARGUMENT(P17) -> -0.0009386356324 | S17: 6000 | T17: 1+0.745345626345431i | U17: =IMABS(T17) -> 1.247212934 | V17: =IMARGUMENT(T17) -> 0.6405156487 | W17: 1+0.00064491081964533i | X17: =IMABS(W17) -> 1.000000208 | Y17: =IMARGUMENT(W17) -> 0.0006449107302 | Z17: 1+0.000012374864401392i | AA17: =IMABS(Z17) -> 1 | AB17: =IMARGUMENT(Z17) -> 1.23748644e-05 | AC17: =IMPRODUCT(S17,IMDIV(W17,IMPRODUCT(T17,Z17))) -> 3858.99970302579-2872.49333498771i | AD17: =IMABS(AC17) -> 4810.727249 | AE17: =IMARGUMENT(AC17) -> -0.6398831128 | AF17: 9606.46434491547-7164.71135053237i | AG17: =20*LOG10(IMABS(AF17)) -> 81.57206594 | AH17: =(180/PI())*IMARGUMENT(AF17) -> -36.71638161 | AI17: 143.2836184 | AL17: 73.64421469 | AM17: -36.66260175 | AO17: 67.89690591 | AP17: -0.05377986024 | AV17: 0 | AW17: 0 | AX17: 0 | AY17: 0
B18: 1.5849 | C18: 2.49110906217071 | D18: 1+0.000995822039334893i | E18: 1.000000496 | F18: 0.0009958217102 | G18: 1+1.49373305900234E-06i | H18: 1 | I18: 1.493733059e-06 | J18: 1-0.00001253678797079i | K18: 1 | L18: -1.253678797e-05 | M18: 0.999999999990887+0.00002236142399186i | N18: 1 | O18: 2.236142399e-05 | P18: 2.49110650717824-0.00256391296225333i | Q18: 2.491107827 | R18: -0.001029226189 | S18: 6000 | T18: 1+0.817281225401186i | U18: 1.291490844 | V18: 0.6851898088 | W18: 1+0.000707153146572495i | X18: 1.00000025 | Y18: 0.0007071530287 | Z18: 1+0.0000135692006294218i | AA18: 1 | AB18: 1.356920063e-05 | AC18: 3599.27228589446-2937.45616069346i | AD18: 4645.794839 | AE18: -0.6844962249 | AF18: 8958.63923057154-7326.74437732277i | AG18: 81.26905107 | AH18: -39.2777151 | AI18: 140.7222849 | AL18: 73.34120054 | AM18: -39.21874478 | AO18: 67.89690518 | AP18: -0.0589703168 | AV18: 0 | AW18: 0 | AX18: 0 | AY18: 0
B19: 1.7378 | C19: 2.49110906217071 | D19: 1+0.00109189194268167i | E19: 1.000000596 | F19: 0.001091891509 | G19: 1+0.0000016378379140225i | H19: 1 | I19: 1.637837914e-06 | J19: 1-0.0000137462490602807i | K19: 1 | L19: -1.374624906e-05 | M19: 0.999999999989043+0.0000245186968345349i | N19: 1 | O19: 2.451869683e-05 | P19: 2.49110599042407-0.00281126067987033i | Q19: 2.491107577 | R19: -0.001128518617 | S19: 6000 | T19: 1+0.896126767305308i | U19: 1.342774435 | V19: 0.7306710683 | W19: 1+0.000775374306337108i | X19: 1.000000301 | Y19: 0.000775374151 | Z19: 1+0.0000148782616277426i | AA19: 1 | AB19: 1.487826163e-05 | AC19: 3329.97519382811-2979.51692938481i | AD19: 4468.36166 | AE19: -0.7299105724 | AF19: 8286.94495452017-7431.65389968778i | AG19: 80.93081599 | AH19: -41.88545457 | AI19: 138.1145454 | AL19: 73.00296634 | AM19: -41.82079522 | AO19: 67.89690431 | AP19: -0.06465935384 | AV19: 0 | AW19: 0 | AX19: 0 | AY19: 0
B20: 1.9055 | C20: 2.49110906217071 | D20: 1+0.00119726096028307i | E20: 1.000000717 | F20: 0.001197260388 | G20: 1+0.0000017958914404246i | H20: 1 | I20: 1.79589144e-06 | J20: 1-0.0000150727802879301i | K20: 1 | L20: -1.507278029e-05 | M20: 0.999999999986827+0.0000268847835298689i | N20: 1 | O20: 2.688478352e-05 | P20: 2.49110536896406-0.00308255031215514i | Q20: 2.491107276 | R20: -0.001237422061 | S20: 6000 | T20: 1+0.982604186385235i | U20: 1.401966828 | V20: 0.7766241644 | W20: 1+0.000850198953116214i | X20: 1.000000361 | Y20: 0.0008501987483 | Z20: 1+0.0000163140335663848i | AA20: 1 | AB20: 1.631403356e-05 | AC20: 3055.14260358055-2996.99260276616i | AD20: 4279.703376 | AE20: -0.7757902796 | AF20: 7601.44376224716-7475.2419942827i | AG20: 80.55612199 | AH20: -44.52040787 | AI20: 135.4795921 | AL20: 72.62827339 | AM20: -44.44950881 | AO20: 67.89690326 | AP20: -0.07089906155 | AV20: 0 | AW20: 0 | AX20: 0 | AY20: 0
B21: 2.0893 | C21: 2.49110906217071 | D21: 1+0.00131274590622903i | E21: 1.000000862 | F21: 0.001312745152 | G21: 1+1.96911885934354E-06i | H21: 1 | I21: 1.969118859e-06 | J21: 1-0.0000165266648415493i | K21: 1 | L21: -1.652666484e-05 | M21: 0.999999999984163+0.0000294780258351902i | N21: 1 | O21: 2.947802583e-05 | P21: 2.49110462212763-0.00337988480660841i | Q21: 2.491106915 | R21: -0.001356780724 | S21: 6000 | T21: 1+1.07738385023074i | U21: 1.469951006 | V21: 0.8226315746 | W21: 1+0.000932207122931359i | X21: 1.000000435 | Y21: 0.0009322068529 | Z21: 1+0.0000178876464603766i | AA21: 1 | AB21: 1.788764646e-05 | AC21: 2779.5413482531-2989.14704279939i | AD21: 4081.770468 | AE21: -0.8217172554 | AF21: 6914.02532735348-7455.672544109i | AG21: 80.14481893 | AH21: -47.1586685 | AI21: 132.8413315 | AL21: 72.21697158 | AM21: -47.08093069 | AO21: 67.896902 | AP21: -0.07773780921 | AV21: 0 | AW21: 0 | AX21: 0 | AY21: 0
B22: 2.2909 | C22: 2.49110906217071 | D22: 1+0.00143941492202177i | E22: 1.000001036 | F22: 0.001439413928 | G22: 1+2.15912238303265E-06i | H22: 1 | I22: 2.159122383e-06 | J22: 1-0.0000181213499667378i | K22: 1 | L22: -1.812134996e-05 | M22: 0.999999999980959+0.0000323224091254666i | N22: 1.000000001 | O22: 3.232240911e-05 | P22: 2.4911037239357-0.0037060141684882i | Q22: 2.491106481 | R22: -0.001487698565 | S22: 6000 | T22: 1+1.18134239338228i | U22: 1.547762853 | V22: 0.8683408301 | W22: 1+0.0010221573244261i | X22: 1.000000522 | Y22: 0.001022156968 | Z22: 1+0.0000196136549447551i | AA22: 1 | AB22: 1.961365494e-05 | AC22: 2507.58966639939-2956.30671611034i | AD22: 3876.564889 | AE22: -0.8673382868 | AF22: 6235.7098414939-7373.75983243102i | AG22: 79.69678699 | AH22: -49.78006209 | AI22: 130.2199379 | AL22: 71.76894116 | AM22: -49.69482324 | AO22: 67.89690049 | AP22: -0.08523884894 | AV22: 0 | AW22: 0 | AX22: 0 | AY22: 0
B23: 2.5119 | C23: 2.49110906217071 | D23: 1+0.00157827331731044i | E23: 1.000001245 | F23: 0.001578272007 | G23: 1+2.36740997596566E-06i | H23: 1 | I23: 2.367409976e-06 | J23: 1-0.0000198694918946479i | K23: 1 | L23: -1.986949189e-05 | M23: 0.999999999977108+0.0000354405078712556i | N23: 1.000000001 | O23: 3.544050786e-05 | P23: 2.49110264431521-0.00406352659924823i | Q23: 2.491105959 | R23: -0.001631214597 | S23: 6000 | T23: 1+1.29530488364265i | U23: 1.636402989 | V23: 0.9133513366 | W23: 1+0.00112076344808849i | X23: 1.000000628 | Y23: 0.001120762979 | Z23: 1+0.0000215057574995549i | AA23: 1 | AB23: 2.15057575e-05 | AC23: 2243.82340258683-2899.8398652619i | AD23: 3666.580792 | AE23: -0.9122520794 | AF23: 5577.81083513435-7232.91659252501i | AG23: 79.21306919 | AH23: -52.36165571 | AI23: 127.6383443 | AL23: 71.28522518 | AM23: -52.268194 | AO23: 67.89689867 | AP23: -0.09346171187 | AV23: 0 | AW23: 0 | AX23: 0 | AY23: 0
B24: 2.7542 | C24: 2.49110906217071 | D24: 1+0.0017305148973034i | E24: 1.000001497 | F24: 0.00173051317 | G24: 1+0.0000025957723459551i | H24: 1 | I24: 2.595772346e-06 | J24: 1-0.0000217861198997727i | K24: 1 | L24: -2.17861199e-05 | M24: 0.999999999972478+0.0000388591292563447i | N24: 1.000000001 | O24: 3.885912924e-05 | P24: 2.49110134645937-0.00445549556827032i | Q24: 2.491105331 | R24: -0.001788562647 | S24: 6000 | T24: 1+1.42025108902766i | U24: 1.736983925 | V24: 0.9573234127 | W24: 1+0.00122887323887309i | X24: 1.000000755 | Y24: 0.00122887262 | Z24: 1+0.0000235802210698173i | AA24: 1 | AB24: 2.358022107e-05 | AC24: 1992.06021528419-2821.99393206324i | AD24: 3454.266008 | AE24: -0.9561181203 | AF24: 4949.85050306459-7038.74849932384i | AG24: 78.6949574 | AH24: -54.8840101 | AI24: 125.1159899 | AL24: 70.76711558 | AM24: -54.78153301 | AO24: 67.89689648 | AP24: -0.102477091 | AV24: 0 | AW24: 0 | AX24: 0 | AY24: 0
B25: 3.02 | C25: 2.49110906217071 | D25: 1+0.00189752196276823i | E25: 1.0000018 | F25: 0.001897519685 | G25: 1+2.84628294415234E-06i | H25: 1 | I25: 2.846282944e-06 | J25: 1-0.0000238886362999468i | K25: 1 | L25: -2.38886363e-05 | M25: 0.99999999996691+0.0000426093131777506i | N25: 1.000000001 | O25: 4.260931315e-05 | P25: 2.49109978536104-0.00488547979722187i | Q25: 2.491104576 | R25: -0.001961171352 | S25: 6000 | T25: 1+1.55731547776615i | U25: 1.850738095 | V25: 0.9999730696 | W25: 1+0.00134746829620098i | X25: 1.000000908 | Y25: 0.001347467481 | Z25: 1+0.0000258558810655901i | AA25: 1 | AB25: 2.585588106e-05 | AC25: 1755.31178391752-2725.64453491457i | AD25: 3241.952743 | AE25: -0.998651458 | AF25: 4359.34072684891-6798.42805615433i | AG25: 78.14397279 | AH25: -57.33088059 | AI25: 122.6691194 | AL25: 70.2161336 | AM25: -57.21851375 | AO25: 67.89689385 | AP25: -0.1123668414 | AV25: 0 | AW25: 0 | AX25: 0 | AY25: 0
B26: 3.3113 | C26: 2.49110906217071 | D26: 1+0.00208055115076638i | E26: 1.000002164 | F26: 0.002080548149 | G26: 1+3.12082672614957E-06i | H26: 1 | I26: 3.120826726e-06 | J26: 1-0.0000261928613841107i | K26: 1 | L26: -2.619286138e-05 | M26: 0.999999999960219+0.0000467192777236709i | N26: 1.000000001 | O26: 4.671927769e-05 | P26: 2.49109790943264-0.00535671439251806i | Q26: 2.491103669 | R26: -0.002150339461 | S26: 6000 | T26: 1+1.70752938461162i | U26: 1.978801809 | V26: 1.041001484 | W26: 1+0.00147744098318222i | X26: 1.000001091 | Y26: 0.001477439908 | Z26: 1+0.0000283498605869168i | AA26: 1 | AB26: 2.834986058e-05 | AC26: 1536.10161870955-2614.24410496745i | AD26: 3032.141227 | AE26: -1.039552393 | AF26: 3812.57577202082-6520.56648228033i | AG26: 77.56282454 | AH26: -59.6851701 | AI26: 120.3148299 | AL26: 69.63498851 | AM26: -59.56196473 | AO26: 67.89689069 | AP26: -0.1232053756 | AV26: 0 | AW26: 0 | AX26: 0 | AY26: 0
B27: 3.6308 | C27: 2.49110906217071 | D27: 1+0.00228129892133076i | E27: 1.000002602 | F27: 0.002281294964 | G27: 1+3.42194838199614E-06i | H27: 1 | I27: 3.421948382e-06 | J27: 1-0.0000287201525423334i | K27: 1 | L27: -2.872015253e-05 | M27: 0.999999999952172+0.0000512271173131712i | N27: 1.000000001 | O27: 5.122711727e-05 | P27: 2.49109565340761-0.00587356674838621i | Q27: 2.491102578 | R27: -0.002357820285 | S27: 6000 | T27: 1+1.87228511148124i | U27: 2.122604895 | V27: 1.080237101 | W27: 1+0.0016199959900154i | X27: 1.000001312 | Y27: 0.001619994573 | Z27: 1+0.0000310852758188558i | AA27: 1 | AB27: 3.108527581e-05 | AC27: 1335.68180856425-2491.24369957522i | AD27: 2826.719134 | AE27: -1.078648192 | AF27: 3312.67866149407-6213.77156784813i | AG27: 76.9534854 | AH27: -61.93708212 | AI27: 118.0629179 | AL27: 69.02565317 | AM27: -61.80198897 | AO27: 67.89688688 | AP27: -0.1350931512 | AV27: 0 | AW27: 0 | AX27: 0 | AY27: 0
B28: 3.9811 | C28: 2.49110906217071 | D28: 1+0.00250139890264127i | E28: 1.000003128 | F28: 0.002501393686 | G28: 1+0.0000037520983539619i | H28: 1 | I28: 3.752098354e-06 | J28: 1-0.000031491076150238i | K28: 1 | L28: -3.149107614e-05 | M28: 0.999999999942497+0.0000561695154609085i | N28: 1.000000002 | O28: 5.616951541e-05 | P28: 2.49109294125229-0.00644024235694906i | Q28: 2.491101266 | R28: -0.002585302179 | S28: 6000 | T28: 1+2.05292339355459i | U28: 2.283526759 | V28: 1.1175136 | W28: 1+0.00177629338874362i | X28: 1.000001578 | Y28: 0.001776291521 | Z28: 1+0.0000340843867914639i | AA28: 1.000000001 | AB28: 3.408438678e-05 | AC28: 1154.75433570485-2360.16893557751i | AD28: 2627.518788 | AE28: -1.115771392 | AF28: 2861.40031460637-5886.83707336474i | AG28: 76.31874425 | AH28: -64.07711859 | AI28: 115.9228814 | AL28: 68.3909166 | AM28: -63.92899169 | AO28: 67.89688231 | AP28: -0.1481269036 | AV28: 0 | AW28: 0 | AX28: 0 | AY28: 0
B29: 4.3652 | C29: 2.49110906217071 | D29: 1+0.00274273605029003i | E29: 1.000003761 | F29: 0.002742729173 | G29: 1+4.11410407543504E-06i | H29: 1 | I29: 4.114104075e-06 | J29: 1-0.0000345293626412344i | K29: 1.000000001 | L29: -3.452936263e-05 | M29: 0.999999999930866+0.0000615887992991779i | N29: 1.000000002 | O29: 6.158879923e-05 | P29: 2.49108968049377-0.00706159361267853i | Q29: 2.491099689 | R29: -0.002834733231 | S29: 6000 | T29: 1+2.25099123296186i | U29: 2.463120283 | V29: 1.152735439 | W29: 1+0.00194767172403196i | X29: 1.000001897 | Y29: 0.001947669261 | Z29: 1+0.0000373728781548059i | AA29: 1.000000001 | AB29: 3.737287814e-05 | AC29: 993.21559785552-2224.25781015448i | AD29: 2435.93925 | AE29: -1.150825143 | AF29: 2458.4823215782-5547.83936255532i | AG29: 75.66115122 | AH29: -66.0998419 | AI29: 113.9001581 | AL29: 67.73332906 | AM29: -65.93742365 | AO29: 67.89687681 | AP29: -0.1624182502 | AV29: 0 | AW29: 0 | AX29: 0 | AY29: 0
B30: 4.7863 | C30: 2.49110906217071 | D30: 1+0.00300732098357537i | E30: 1.000004522 | F30: 0.003007311918 | G30: 1+4.51098147536305E-06i | H30: 1 | I30: 4.510981475e-06 | J30: 1-0.0000378603244776278i | K30: 1.000000001 | L30: -3.786032446e-05 | M30: 0.999999999916885+0.0000675301177690956i | N30: 1.000000002 | O30: 6.753011767e-05 | P30: 2.49108576075923-0.00774279621804907i | Q30: 2.491097794 | R30: -0.003108191378 | S30: 6000 | T30: 1+2.46813876530866i | U30: 2.663026279 | V30: 1.185846507 | W30: 1+0.00213555877685654i | X30: 1.00000228 | Y30: 0.00213555553 | Z30: 1+0.0000409781468689517i | AA30: 1.000000001 | AB30: 4.097814685e-05 | AC30: 850.432362461358-2086.41759730508i | AD30: 2253.080911 | AE30: -1.18375193 | AF30: 2102.34524233464-5204.02989212394i | AG30: 74.98335131 | AH30: -68.00207581 | AI30: 111.9979242 | AL30: 67.05553576 | AM30: -67.82398956 | AO30: 67.8968702 | AP30: -0.1780862479 | AV30: 0 | AW30: 0 | AX30: 0 | AY30: 0
B31: 5.2481 | C31: 2.49110906217071 | D31: 1+0.00329747848106092i | E31: 1.000005437 | F31: 0.00329746653 | G31: 1+4.94621772159138E-06i | H31: 1 | I31: 4.946217722e-06 | J31: 1-0.0000415132291939574i | K31: 1.000000001 | L31: -4.151322917e-05 | M31: 0.999999999900072+0.0000740456743338257i | N31: 1.000000003 | O31: 7.404567421e-05 | P31: 2.49108104748172-0.00848983441122559i | Q31: 2.491095515 | R31: -0.003408079215 | S31: 6000 | T31: 1+2.70627395988893i | U31: 2.885120231 | V31: 1.216845942 | W31: 1+0.00234160541897098i | X31: 1.000002742 | Y31: 0.002341601139 | Z31: 1+0.0000449318706689813i | AA31: 1.000000001 | AB31: 4.493187064e-05 | AC31: 725.294584226616-1949.06580527897i | AD31: 2079.641735 | AE31: -1.214549273 | AF31: 1790.22034666466-4861.43851874458i | AG31: 74.28757808 | AH31: -69.78381589 | AI31: 110.2161841 | AL31: 66.35977049 | AM31: -69.58854733 | AO31: 67.89686225 | AP31: -0.1952685553 | AV31: 0 | AW31: 0 | AX31: 0 | AY31: 0
B32: 5.7544 | C32: 2.49110906217071 | D32: 1+0.00361559615316342i | E32: 1.000006536 | F32: 0.003615580398 | G32: 1+5.42339422974513E-06i | H32: 1 | I32: 5.42339423e-06 | J32: 1-0.00004551813533921i | K32: 1.000000001 | L32: -4.551813531e-05 | M32: 0.999999999879862+0.0000811890833609433i | N32: 1.000000003 | O32: 8.118908319e-05 | P32: 2.4910753814992-0.00930885379894053i | Q32: 2.491092774 | R32: -0.003736864223 | S32: 6000 | T32: 1+2.96735635273429i | U32: 3.131326193 | V32: 1.245749135 | W32: 1+0.00256750714028441i | X32: 1.000003296 | Y32: 0.002567501499 | Z32: 1+0.0000492665834449774i | AA32: 1.000000001 | AB32: 4.926658341e-05 | AC32: 616.49263157082-1814.24388340118i | AD32: 1916.127353 | AE32: -1.2432309 | AF32: 1518.84108631552-4525.1571137516i | AG32: 73.57628545 | AH32: -71.4459901 | AI32: 108.5540099 | AL32: 65.64848741 | AM32: -71.23188355 | AO32: 67.8968527 | AP32: -0.2141065486 | AV32: 0 | AW32: 0 | AX32: 0 | AY32: 0
B33: 6.3096 | C33: 2.49110906217071 | D33: 1+0.00396443860141803i | E33: 1.000007858 | F33: 0.003964417832 | G33: 1+5.94665790212704E-06i | H33: 1 | I33: 5.946657902e-06 | J33: 1-0.0000499098475490546i | K33: 1.000000001 | L33: -4.990984751e-05 | M33: 0.999999999855561+0.0000890224246444821i | N33: 1.000000004 | O33: 8.902242442e-05 | P33: 2.49106856887227-0.0102069700596364i | Q33: 2.49108948 | R33: -0.004097403446 | S33: 6000 | T33: 1+3.25365488030243i | U33: 3.403861055 | V33: 1.272613169 | W33: 1+0.00281522713963897i | X33: 1.000003963 | Y33: 0.002815219702 | Z33: 1+0.0000540199560170356i | AA33: 1.000000001 | AB33: 5.401995596e-05 | AC33: 522.5068071359-1683.48957997558i | AD33: 1762.71113 | AE33: -1.269851969 | AF33: 1284.41695653953-4199.02119003754i | AG33: 72.85140949 | AH33: -72.99192234 | AI33: 107.0080777 | AL33: 64.92362294 | AM33: -72.75715842 | AO33: 67.89684121 | AP33: -0.2347639244 | AV33: 0 | AW33: 0 | AX33: 0 | AY33: 0
B34: 6.9183 | C34: 2.49110906217071 | D34: 1+0.00434689609106605i | E34: 1.000009448 | F34: 0.004346868712 | G34: 1+6.52034413659907E-06i | H34: 1 | I34: 6.520344137e-06 | J34: 1-0.0000547247524880538i | K34: 1.000000001 | L34: -5.472475243e-05 | M34: 0.999999999826348+0.0000976105997872956i | N34: 1.000000005 | O34: 9.761059949e-05 | P34: 2.49106037921934-0.0111916217099442i | Q34: 2.491085519 | R34: -0.00449268372 | S34: 6000 | T34: 1+3.56754161252635i | U34: 3.705044285 | V34: 1.297504755 | W34: 1+0.00308681785218783i | X34: 1.000004764 | Y34: 0.003086808048 | Z34: 1+0.0000592313715152557i | AA34: 1.000000002 | AB34: 5.923137145e-05 | AC34: 441.804567192415-1557.99065924284i | AD34: 1619.421554 | AE34: -1.294477178 | AF34: 1083.1254106053-3885.9933120194i | AG34: 72.11497105 | AH34: -74.42549082 | AI34: 105.5745092 | AL34: 64.18719831 | AM34: -74.168079 | AO34: 67.8968274 | AP34: -0.2574118159 | AV34: 0 | AW34: 0 | AX34: 0 | AY34: 0
B35: 7.5858 | C35: 2.49110906217071 | D35: 1+0.00476629871032029i | E35: 1.000011359 | F35: 0.004766262618 | G35: 1+7.14944806548043E-06i | H35: 1 | I35: 7.149448065e-06 | J35: 1-0.0000600047739218997i | K35: 1.000000002 | L35: -6.000477385e-05 | M35: 0.999999999791222+0.000107028386723106i | N35: 1.000000006 | O35: 0.0001070283863 | P35: 2.49105053207492-0.0122713786993625i | Q35: 2.491080757 | R35: -0.00492614633 | S35: 6000 | T35: 1+3.91174958650282i | U35: 4.037546882 | V35: 1.320516432 | W35: 1+0.00338464404017265i | X35: 1.000005728 | Y35: 0.003384631116 | Z35: 1+0.0000649462061547529i | AA35: 1.000000002 | AB35: 6.494620606e-05 | AC35: 372.837472544991-1438.52864214053i | AD35: 1486.059365 | AE35: -1.317196748 | AF35: 911.104254623082-3588.02276922809i | AG35: 71.36847932 | AH35: -75.75206182 | AI35: 104.2479382 | AL35: 63.44072318 | AM35: -75.46981442 | AO35: 67.8968108 | AP35: -0.282247394 | AV35: 0 | AW35: 0 | AX35: 0 | AY35: 0
B36: 8.3176 | C36: 2.49110906217071 | D36: 1+0.00522610221109969i | E36: 1.000013656 | F36: 0.005226054633 | G36: 1+7.83915331664953E-06i | H36: 1 | I36: 7.839153316e-06 | J36: 1-0.0000657934176451782i | K36: 1.000000002 | L36: -6.579341755e-05 | M36: 0.999999999748998+0.000117353385194457i | N36: 1.000000007 | O36: 0.0001173533847 | P36: 2.49103869492947-0.0134551333002198i | Q36: 2.491075033 | R36: -0.005401362282 | S36: 6000 | T36: 1+4.2891149728039i | U36: 4.404146597 | V36: 1.34173985 | W36: 1+0.00371115970214611i | X36: 1.000006886 | Y36: 0.003711142665 | Z36: 1+0.0000712115484606465i | AA36: 1.000000003 | AB36: 7.121154834e-05 | AC36: 314.163494128153-1325.64365776209i | AD36: 1362.361849 | AE36: -1.338099919 | AF36: 764.756708283697-3306.45675886476i | AG36: 70.61358565 | AH36: -76.97695319 | AI36: 103.0230468 | AL36: 62.68584947 | AM36: -76.66747793 | AO36: 67.89679084 | AP36: -0.3094752624 | AV36: 0 | AW36: 0 | AX36: 0 | AY36: 0
B37: 9.1201 | C37: 2.49110906217071 | D37: 1+0.00573032783200086i | E37: 1.000016418 | F37: 0.005730265112 | G37: 1+8.59549174800129E-06i | H37: 1 | I37: 8.595491748e-06 | J37: 1-0.0000721413085824986i | K37: 1.000000003 | L37: -7.214130846e-05 | M37: 0.999999999698227+0.000128675893083578i | N37: 1.000000008 | O37: 0.0001286758924 | P37: 2.49102446199516-0.0147532320408002i | Q37: 2.49106815 | R37: -0.005922486821 | S37: 6000 | T37: 1+4.70293804264077i | U37: 4.808079266 | V37: 1.361283648 | W37: 1+0.00406922040006045i | X37: 1.000008279 | Y37: 0.00406919794 | Z37: 1+0.0000780821923530758i | AA37: 1.000000003 | AB37: 7.808219219e-05 | AC37: 264.413926490998-1219.57548479828i | AD37: 1247.909888 | AE37: -1.357292532 | AF37: 640.668878862766-3041.89332589446i | AG37: 69.8513767 | AH37: -78.10646716 | AI37: 101.8935328 | AL37: 61.92366452 | AM37: -77.76713366 | AO37: 67.89676684 | AP37: -0.3393334991 | AV37: 0 | AW37: 0 | AX37: 0 | AY37: 0
B38: 10 | C38: 2.49110906217071 | D38: 1+0.00628318530717959i | E38: 1.000019739 | F38: 0.006283102626 | G38: 1+9.42477796076938E-06i | H38: 1 | I38: 9.42477796e-06 | J38: 1-0.0000791014447018109i | K38: 1.000000003 | L38: -7.910144454e-05 | M38: 0.999999999637188+0.00014109044098593i | N38: 1.00000001 | O38: 0.0001410904401 | P38: 2.4910073508768-0.0161765046292999i | Q38: 2.491059875 | R38: -0.006493869732 | S38: 6000 | T38: 1+5.15667376743761i | U38: 5.252740651 | V38: 1.379250366 | W38: 1+0.00446181555033437i | X38: 1.000009954 | Y38: 0.004461785942 | Z38: 1+0.0000856155002171859i | AA38: 1.000000004 | AB38: 8.561550001e-05 | AC38: 222.367396406146-1120.41891967273i | AD38: 1142.272216 | AE38: -1.374874196 | AF38: 535.794357202204-2794.56889218358i | AG38: 69.08307559 | AH38: -79.14656012 | AI38: 100.8534399 | AL38: 61.15539226 | AM38: -78.77448879 | AO38: 67.89673799 | AP38: -0.3720713284 | AV38: 0 | AW38: 0 | AX38: 0 | AY38: 0
B39: 10.965 | C39: 2.49110906217071 | D39: 1+0.00688951268932242i | E39: 1.000023732 | F39: 0.006889403688 | G39: 1+0.0000103342690339836i | H39: 1 | I39: 1.033426903e-05 | J39: 1-0.0000867347341155357i | K39: 1.000000004 | L39: -8.67347339e-05 | M39: 0.999999999563787+0.000154705668541072i | N39: 1.000000012 | O39: 0.0001547056674 | P39: 2.49098677441275-0.0177373955620273i | Q39: 2.491049924 | R39: -0.00712050982 | S39: 6000 | T39: 1+5.65429278599534i | U39: 5.742040309 | V39: 1.395749627 | W39: 1+0.00489238075094164i | X39: 1.000011968 | Y39: 0.004892341718 | Z39: 1+0.0000938773959881444i | AA39: 1.000000004 | AB39: 9.387739571e-05 | AC39: 186.915487214871-1028.08387107386i | AD39: 1044.937245 | AE39: -1.390951163 | AF39: 447.368476292982-2564.25871976545i | AG39: 68.30945281 | AH39: -80.10360629 | AI39: 99.89639371 | AL39: 60.38180418 | AM39: -79.69563113 | AO39: 67.89670329 | AP39: -0.4079751607 | AV39: 0 | AW39: 0 | AX39: 0 | AY39: 0
B40: 12.023 | C40: 2.49110906217071 | D40: 1+0.00755427369482202i | E40: 1.000028533 | F40: 0.00755413 | G40: 1+0.000011331410542233i | H40: 1 | I40: 1.133141054e-05 | J40: 1-0.0000951036669649873i | K40: 1.000000005 | L40: -9.510366668e-05 | M40: 0.999999999475546+0.000169633037197383i | N40: 1.000000014 | O40: 0.0001696330357 | P40: 2.49096203850897-0.019448669208491i | Q40: 2.491037962 | R40: -0.007807535291 | S40: 6000 | T40: 1+6.19986887059023i | U40: 6.279997931 | V40: 1.410879879 | W40: 1+0.00536444083616702i | X40: 1.000014389 | Y40: 0.005364389379 | Z40: 1+0.000102935515911123i | AA40: 1.000000005 | AB40: 0.0001029355155 | AC40: 157.098948953114-942.423851629818i | AD40: 955.4280694 | AE40: -1.405618425 | AF40: 372.998628387325-2350.59740408648i | AG40: 67.53156684 | AH40: -80.98334217 | AI40: 99.01665783 | AL40: 59.60395992 | AM40: -80.53600335 | AO40: 67.89666158 | AP40: -0.4473388206 | AV40: 0 | AW40: 0 | AX40: 0 | AY40: 0
B41: 13.183 | C41: 2.49110906217071 | D41: 1+0.00828312319045485i | E41: 1.000034304 | F41: 0.008282933763 | G41: 1+0.0000124246847856823i | H41: 1 | I41: 1.242468479e-05 | J41: 1-0.000104279434550397i | K41: 1.000000005 | L41: -0.0001042794342 | M41: 0.999999999369464+0.000185999528351751i | N41: 1.000000017 | O41: 0.0001859995263 | P41: 2.49093230174775-0.0213248644020216i | Q41: 2.491023581 | R41: -0.008560788039 | S41: 6000 | T41: 1+6.79804302761299i | U41: 6.871199968 | V41: 1.424742631 | W41: 1+0.0058820114400058i | X41: 1.000017299 | Y41: 0.005881943606 | Z41: 1+0.000112866913936316i | AA41: 1.000000006 | AB41: 0.0001128669135 | AC41: 132.066716488049-863.180354485866i | AD41: 873.2250237 | AE41: -1.418973555 | AF41: 310.562046071943-2152.94013204404i | AG41: 66.75008023 | AH41: -81.79169294 | AI41: 98.20830706 | AL41: 58.82252345 | AM41: -81.30119592 | AO41: 67.89661143 | AP41: -0.4904970239 | AV41: 0 | AW41: 0 | AX41: 0 | AY41: 0
B42: 14.454 | C42: 2.49110906217071 | D42: 1+0.00908171604299737i | E42: 1.000041238 | F42: 0.009081466376 | G42: 1+0.000013622574064496i | H42: 1 | I42: 1.362257406e-05 | J42: 1-0.000114333228171997i | K42: 1.000000007 | L42: -0.0001143332277 | M42: 0.99999999924202+0.000203932123401062i | N42: 1.00000002 | O42: 0.0002039321207 | P42: 2.49089657798812-0.0233805137677286i | Q42: 2.491006305 | R42: -0.00938610915 | S42: 6000 | T42: 1+7.45345626345431i | U42: 7.520240041 | V42: 1.437426816 | W42: 1+0.0064491081964533i | X42: 1.000020795 | Y42: 0.00644901879 | Z42: 1+0.00012374864401392i | AA42: 1.000000008 | AB42: 0.0001237486434 | AC42: 111.095206276487-790.091104327782i | AD42: 797.8634582 | AE42: -1.431101546 | AF42: 258.25393320249-1970.6326910688i | AG42: 65.96606804 | AH42: -82.53386308 | AI42: 97.46613692 | AL42: 58.0385715 | AM42: -81.99607864 | AO42: 67.89655119 | AP42: -0.5377844404 | AV42: 0 | AW42: 0 | AX42: 0 | AY42: 0
B43: 15.849 | C43: 2.49110906217071 | D43: 1+0.00995822039334893i | E43: 1.000049582 | F43: 0.00995789124 | G43: 1+0.0000149373305900234i | H43: 1 | I43: 1.493733059e-05 | J43: 1-0.0001253678797079i | K43: 1.000000008 | L43: -0.0001253678791 | M43: 0.99999999908865+0.0002236142399186i | N43: 1.000000024 | O43: 0.0002236142364 | P43: 2.49085358800512-0.025636610958758i | Q43: 2.490985514 | R43: -0.01029193602 | S43: 6000 | T43: 1+8.17281225401186i | U43: 8.233763425 | V43: 1.449044607 | W43: 1+0.00707153146572495i | X43: 1.000025003 | Y43: 0.007071413595 | Z43: 1+0.000135692006294218i | AA43: 1.000000009 | AB43: 0.0001356920055 | AC43: 93.5191474676862-722.699398418292i | AD43: 728.7250863 | AE43: -1.442108885 | AF43: 214.414940699688-1802.53590360017i | AG43: 65.17869845 | AH43: -83.21643721 | AI43: 96.78356279 | AL43: 57.25127441 | AM43: -82.62675272 | AO43: 67.8964787 | AP43: -0.5896844973 | AV43: 0 | AW43: 0 | AX43: 0 | AY43: 0
B44: 17.378 | C44: 2.49110906217071 | D44: 1+0.0109189194268167i | E44: 1.00005961 | F44: 0.01091848553 | G44: 1+0.000016378379140225i | H44: 1 | I44: 1.637837914e-05 | J44: 1-0.000137462490602807i | K44: 1.000000009 | L44: -0.0001374624897 | M44: 0.999999998904327+0.000245186968345349i | N44: 1.000000029 | O44: 0.0002451869637 | P44: 2.49080192375862-0.0281092866679934i | Q44: 2.490960529 | R44: -0.0112847566 | S44: 6000 | T44: 1+8.96126767305308i | U44: 9.016890723 | V44: 1.459664744 | W44: 1+0.00775374306337108i | X44: 1.00003006 | Y44: 0.007753587683 | Z44: 1+0.000148782616277426i | AA44: 1.000000011 | AB44: 0.0001487826152 | AC44: 78.8261611496856-660.752568029064i | AD44: 665.4378407 | AE44: -1.452059939 | AF44: 177.767070482802-1648.01951473594i | AG44: 64.38948679 | AH44: -83.84347501 | AI44: 96.15652499 | AL44: 56.46214988 | AM44: -83.19690608 | AO44: 67.89639158 | AP44: -0.6465689262 | AV44: 0 | AW44: 0 | AX44: 0 | AY44: 0
B45: 19.055 | C45: 2.49110906217071 | D45: 1+0.0119726096028307i | E45: 1.000071669 | F45: 0.01197203759 | G45: 1+0.000017958914404246i | H45: 1 | I45: 1.79589144e-05 | J45: 1-0.000150727802879301i | K45: 1.000000011 | L45: -0.0001507278017 | M45: 0.999999998682656+0.000268847835298689i | N45: 1.000000035 | O45: 0.0002688478292 | P45: 2.49073979390999-0.0308211261665312i | Q45: 2.490930481 | R45: -0.0123736543 | S45: 6000 | T45: 1+9.82604186385235i | U45: 9.876795974 | V45: 1.469375133 | W45: 1+0.00850198953116214i | X45: 1.000036141 | Y45: 0.008501784688 | Z45: 1+0.000163140335663848i | AA45: 1.000000013 | AB45: 0.0001631403342 | AC45: 66.5460002287164-603.850690277922i | AD45: 607.5064002 | AE45: -1.461036489 | AF45: 147.137412584404-1506.08596652416i | AG45: 63.5982493 | AH45: -84.4201827 | AI45: 95.5798173 | AL45: 55.67101715 | AM45: -83.71122453 | AO45: 67.8962868 | AP45: -0.7089581688 | AV45: 0 | AW45: 0 | AX45: 0 | AY45: 0
B46: 20.893 | C46: 2.49110906217071 | D46: 1+0.0131274590622903i | E46: 1.000086161 | F46: 0.01312670505 | G46: 1+0.0000196911885934354i | H46: 1 | I46: 1.969118859e-05 | J46: 1-0.000165266648415493i | K46: 1.000000014 | L46: -0.0001652666469 | M46: 0.999999998416263+0.000294780258351902i | N46: 1.000000042 | O46: 0.0002947802503 | P46: 2.49066513360046-0.0337930786093038i | Q46: 2.490894373 | R46: -0.01356706076 | S46: 6000 | T46: 1+10.7738385023074i | U46: 10.82014769 | V46: 1.478244071 | W46: 1+0.0093220712293136i | X46: 1.00004345 | Y46: 0.009321801211 | Z46: 1+0.000178876464603766i | AA46: 1.000000016 | AB46: 0.0001788764627 | AC46: 56.2974166938107-551.68010872328i | AD46: 554.5451663 | AE46: -1.469101146 | AF46: 121.575043589776-1375.95287472582i | AG46: 62.80584472 | AH46: -84.95063066 | AI46: 95.04936934 | AL46: 54.87873848 | AM46: -84.17329533 | AO46: 67.89616089 | AP46: -0.7773353221 | AV46: 0 | AW46: 0 | AX46: 0 | AY46: 0
B47: 22.909 | C47: 2.49110906217071 | D47: 1+0.0143941492202177i | E47: 1.00010359 | F47: 0.01439315523 | G47: 1+0.0000215912238303265i | H47: 1 | I47: 2.159122383e-05 | J47: 1-0.000181213499667378i | K47: 1.000000016 | L47: -0.0001812134977 | M47: 0.999999998095883+0.000323224091254666i | N47: 1.00000005 | O47: 0.0003232240806 | P47: 2.49057534814667-0.0370525360474275i | Q47: 2.49085095 | R47: -0.01487600158 | S47: 6000 | T47: 1+11.8134239338228i | U47: 11.85567312 | V47: 1.486348184 | W47: 1+0.010221573244261i | X47: 1.000052239 | Y47: 0.01022121728 | Z47: 1+0.000196136549447551i | AA47: 1.000000019 | AB47: 0.0001961365469 | AC47: 47.7430571782348-503.85635648839i | AD47: 506.1132556 | AE47: -1.476323104 | AF47: 100.238525441757-1256.6612218241i | AG47: 62.01190905 | AH47: -85.43941515 | AI47: 94.56058485 | AL47: 54.08495424 | AM47: -84.58708304 | AO47: 67.89600947 | AP47: -0.8523321067 | AV47: 0 | AW47: 0 | AX47: 0 | AY47: 0
B48: 25.119 | C48: 2.49110906217071 | D48: 1+0.0157827331731044i | E48: 1.00012454 | F48: 0.0157814229 | G48: 1+0.0000236740997596566i | H48: 1 | I48: 2.367409976e-05 | J48: 1-0.000198694918946479i | K48: 1.00000002 | L48: -0.0001986949163 | M48: 0.999999997710788+0.000354405078712556i | N48: 1.000000061 | O48: 0.0003544050647 | P48: 2.49046743485074-0.0406252404961006i | Q48: 2.490798758 | R48: -0.01631084879 | S48: 6000 | T48: 1+12.9530488364265i | U48: 12.99159244 | V48: 1.493747257 | W48: 1+0.0112076344808849i | X48: 1.000062804 | Y48: 0.01120716525 | Z48: 1+0.000215057574995549i | AA48: 1.000000023 | AB48: 0.0002150575717 | AC48: 40.6107275213071-460.077278481389i | AD48: 461.8661423 | AE48: -1.482755149 | AF48: 82.4489443123142-1147.45730014493i | AG48: 61.21709535 | AH48: -85.89015491 | AI48: 94.10984509 | AL48: 53.29032254 | AM48: -84.95561211 | AO48: 67.89582747 | AP48: -0.9345427957 | AV48: 0 | AW48: 0 | AX48: 0 | AY48: 0
B49: 27.542 | C49: 2.49110906217071 | D49: 1+0.017305148973034i | E49: 1.000149723 | F49: 0.01730342184 | G49: 1+0.000025957723459551i | H49: 1 | I49: 2.595772345e-05 | J49: 1-0.000217861198997727i | K49: 1.000000024 | L49: -0.0002178611956 | M49: 0.999999997247848+0.000388591292563447i | N49: 1.000000073 | O49: 0.0003885912741 | P49: 2.49033771972178-0.044541740804068i | Q49: 2.490736021 | R49: -0.01788391658 | S49: 6000 | T49: 1+14.2025108902766i | U49: 14.23767241 | V49: 1.500502251 | W49: 1+0.0122887323887309i | X49: 1.000075504 | Y49: 0.01228811386 | Z49: 1+0.000235802210698173i | AA49: 1.000000028 | AB49: 0.0002358022063 | AC49: 34.6655943099028-420.02090365716i | AD49: 421.449004 | AE49: -1.48844994 | AF49: 67.620574863536-1047.53796536562i | AG49: 60.42145467 | AH49: -86.3065725 | AI49: 93.6934275 | AL49: 52.49490064 | AM49: -85.28189956 | AO49: 67.89560869 | AP49: -1.024672941 | AV49: 0 | AW49: 0 | AX49: 0 | AY49: 0
B50: 30.2 | C50: 2.49110906217071 | D50: 1+0.0189752196276823i | E50: 1.000180013 | F50: 0.01897294272 | G50: 1+0.0000284628294415234i | H50: 1 | I50: 2.846282943e-05 | J50: 1-0.000238886362999468i | K50: 1.000000029 | L50: -0.0002388863585 | M50: 0.999999996691011+0.000426093131777506i | N50: 1.000000087 | O50: 0.0004260931074 | P50: 2.49018171176913-0.0488373770549931i | Q50: 2.490660564 | R50: -0.01960945936 | S50: 6000 | T50: 1+15.5731547776615i | U50: 15.60522828 | V50: 1.506671301 | W50: 1+0.0134746829620098i | X50: 1.000090779 | Y50: 0.01347386753 | Z50: 1+0.000258558810655901i | AA50: 1.000000033 | AB50: 0.0002585588049 | AC50: 29.7093763372576-383.371976440982i | AD50: 384.521416 | AE50: -1.493455992 | AF50: 55.2588638573392-956.11681255237i | AG50: 59.62470155 | AH50: -86.69226451 | AI50: 93.30773549 | AL50: 51.69841066 | AM50: -85.56872525 | AO50: 67.89534555 | AP50: -1.12353926 | AV50: 0 | AW50: 0 | AX50: 0 | AY50: 0
B51: 33.113 | C51: 2.49110906217071 | D51: 1+0.0208055115076638i | E51: 1.000216411 | F51: 0.02080251026 | G51: 1+0.0000312082672614957i | H51: 1 | I51: 3.120826725e-05 | J51: 1-0.000261928613841107i | K51: 1.000000034 | L51: -0.0002619286079 | M51: 0.999999996021875+0.000467192777236709i | N51: 1.000000105 | O51: 0.0004671927451 | P51: 2.48999426610438-0.0535441817063802i | Q51: 2.4905699 | R51: -0.02150042335 | S51: 6000 | T51: 1+17.0752938461162i | U51: 17.10455085 | V51: 1.512298997 | W51: 1+0.0147744098318222i | X51: 1.000109136 | Y51: 0.01477333497 | Z51: 1+0.000283498605869168i | AA51: 1.00000004 | AB51: 0.0002834985983 | AC51: 25.5827834853971-349.88808504694i | AD51: 350.8221072 | AE51: -1.497809161 | AF51: 44.9665129869778-872.589134752619i | AG51: 58.82771376 | AH51: -87.05002694 | AI51: 92.94997306 | AL51: 50.90173905 | AM51: -85.81814343 | AO51: 67.89502936 | AP51: -1.231883516 | AV51: 0 | AW51: 0 | AX51: 0 | AY51: 0
B52: 36.308 | C52: 2.49110906217071 | D52: 1+0.0228129892133076i | E52: 1.000260182 | F52: 0.02280903291 | G52: 1+0.0000342194838199614i | H52: 1.000000001 | I52: 3.421948381e-05 | J52: 1-0.000287201525423334i | K52: 1.000000041 | L52: -0.0002872015175 | M52: 0.999999995217158+0.000512271173131712i | N52: 1.000000126 | O52: 0.0005122711308 | P52: 2.48976887637015-0.0587053992658437i | Q52: 2.490460877 | R52: -0.02357428607 | S52: 6000 | T52: 1+18.7228511148124i | U52: 18.74953743 | V52: 1.517436359 | W52: 1+0.016199959900154i | X52: 1.000131211 | Y52: 0.01619854296 | Z52: 1+0.000310852758188558i | AA52: 1.000000048 | AB52: 0.0003108527482 | AC52: 22.1449953188377-319.282816653155i | AD52: 320.0498677 | AE52: -1.501548669 | AF52: 36.3922948818581-796.240450454755i | AG52: 58.02994752 | AH52: -87.38310858 | AI52: 92.61689142 | AL52: 50.10435304 | AM52: -86.03240148 | AO52: 67.89464913 | AP52: -1.350707097 | AV52: 0 | AW52: 0 | AX52: 0 | AY52: 0
B53: 39.811 | C53: 2.49110906217071 | D53: 1+0.0250139890264127i | E53: 1.000312801 | F53: 0.0250087739 | G53: 1+0.000037520983539619i | H53: 1.000000001 | I53: 3.752098352e-05 | J53: 1-0.00031491076150238i | K53: 1.00000005 | L53: -0.0003149107511 | M53: 0.999999994249739+0.000561695154609085i | N53: 1.000000152 | O53: 0.0005616950988 | P53: 2.48949796831845-0.0643625263173764i | Q53: 2.490329831 | R53: -0.02584785877 | S53: 6000 | T53: 1+20.5292339355459i | U53: 20.55357502 | V53: 1.522123775 | W53: 1+0.0177629338874362i | X53: 1.000157748 | Y53: 0.01776106604 | Z53: 1+0.000340843867914639i | AA53: 1.000000058 | AB53: 0.0003408438547 | AC53: 19.2828004094096-291.3285925641i | AD53: 291.9660515 | AE53: -1.504703553 | AF53: 29.2538482368043-726.503029050224i | AG53: 57.23178455 | AH53: -87.69413621 | AI53: 92.30586379 | AL53: 49.30664713 | AM53: -86.21316299 | AO53: 67.89419208 | AP53: -1.480973217 | AV53: 0 | AW53: 0 | AX53: 0 | AY53: 0
B54: 43.652 | C54: 2.49110906217071 | D54: 1+0.0274273605029003i | E54: 1.000376059 | F54: 0.0274204861 | G54: 1+0.0000411410407543504i | H54: 1.000000001 | I54: 4.114104073e-05 | J54: 1-0.000345293626412345i | K54: 1.00000006 | L54: -0.0003452936127 | M54: 0.999999993086632+0.000615887992991779i | N54: 1.000000183 | O54: 0.0006158879194 | P54: 2.48917233684036-0.0705633476382864i | Q54: 2.490172305 | R54: -0.02834052659 | S54: 6000 | T54: 1+22.5099123296186i | U54: 22.53211382 | V54: 1.526400644 | W54: 1+0.0194767172403196i | X54: 1.000189653 | Y54: 0.01947425502 | Z54: 1+0.000373728781548059i | AA54: 1.00000007 | AB54: 0.0003737287641 | AC54: 16.9000336049878-265.800360072305i | AD54: 266.3370844 | AE54: -1.507300118 | AF54: 23.3113329310443-662.815426360556i | AG54: 56.4332208 | AH54: -87.98572778 | AI54: 92.01427222 | AL54: 48.50863283 | AM54: -86.36193522 | AO54: 67.89364263 | AP54: -1.623792563 | AV54: 0 | AW54: 0 | AX54: 0 | AY54: 0
B55: 47.863 | C55: 2.49110906217071 | D55: 1+0.0300732098357537i | E55: 1.000452097 | F55: 0.0300641487 | G55: 1+0.0000451098147536305i | H55: 1.000000001 | I55: 4.510981472e-05 | J55: 1-0.000378603244776278i | K55: 1.000000072 | L55: -0.0003786032267 | M55: 0.999999991688465+0.000675301177690956i | N55: 1.00000022 | O55: 0.0006753010807 | P55: 2.4887810054721-0.0773586497195295i | Q55: 2.489982983 | R55: -0.0310729432 | S55: 6000 | T55: 1+24.6813876530866i | U55: 24.70163753 | V55: 1.530302115 | W55: 1+0.0213555877685654i | X55: 1.000228005 | Y55: 0.02135234217 | Z55: 1+0.000409781468689517i | AA55: 1.000000084 | AB55: 0.0004097814458 | AC55: 14.9169362563671-242.495869643946i | AD55: 242.954238 | AE55: -1.509359554 | AF55: 18.3658345764658-604.673068322036i | AG55: 55.63441716 | AH55: -88.26028071 | AI55: 91.73971929 | AL55: 47.71048958 | AM55: -86.47993221 | AO55: 67.89298224 | AP55: -1.780348502 | AV55: 0 | AW55: 0 | AX55: 0 | AY55: 0
B56: 52.481 | C56: 2.49110906217071 | D56: 1+0.0329747848106092i | E56: 1.000543521 | F56: 0.03296284104 | G56: 1+0.0000494621772159138i | H56: 1.000000001 | I56: 4.946217718e-05 | J56: 1-0.000415132291939574i | K56: 1.000000086 | L56: -0.0004151322681 | M56: 0.999999990007237+0.000740456743338257i | N56: 1.000000264 | O56: 0.0007404566154 | P56: 2.48831060572088-0.0848069879787087i | Q56: 2.489755389 | R56: -0.03406896775 | S56: 6000 | T56: 1+27.0627395988893i | U56: 27.08120888 | V56: 1.533861957 | W56: 1+0.0234160541897098i | X56: 1.000274118 | Y56: 0.02341177583 | Z56: 1+0.000449318706689813i | AA56: 1.000000101 | AB56: 0.0004493186765 | AC56: 13.2661925926369-221.219130525273i | AD56: 221.6165508 | AE56: -1.510899499 | AF56: 14.249479582677-551.586974510115i | AG56: 54.83517745 | AH56: -88.52017265 | AI56: 91.47982735 | AL56: 46.91204383 | AM56: -86.56816459 | AO56: 67.89218828 | AP56: -1.952008064 | AV56: 0 | AW56: 0 | AX56: 0 | AY56: 0
B57: 57.544 | C57: 2.49110906217071 | D57: 1+0.0361559615316342i | E57: 1.000653413 | F57: 0.03614021887 | G57: 1+0.0000542339422974513i | H57: 1.000000001 | I57: 5.423394224e-05 | J57: 1-0.0004551813533921i | K57: 1.000000104 | L57: -0.000455181322 | M57: 0.99999998798617+0.000811890833609433i | N57: 1.000000318 | O57: 0.000811890665 | P57: 2.48774534828689-0.0929681355744687i | Q57: 2.489481872 | R57: -0.03735305692 | S57: 6000 | T57: 1+29.6735635273429i | U57: 29.69040876 | V57: 1.537109045 | W57: 1+0.0256750714028441i | X57: 1.00032955 | Y57: 0.02566943188 | Z57: 1+0.000492665834449774i | AA57: 1.000000121 | AB57: 0.0004926657946 | AC57: 11.8926163788656-201.801910887796i | AD57: 202.1520358 | AE57: -1.511932279 | AF57: 10.8246536648799-503.137399458365i | AG57: 54.03574175 | AH57: -88.76751101 | AI57: 91.23248899 | AL57: 46.11356238 | AM57: -86.6273385 | AO57: 67.89123402 | AP57: -2.140172513 | AV57: 0 | AW57: 0 | AX57: 0 | AY57: 0
B58: 63.096 | C58: 2.49110906217071 | D58: 1+0.0396443860141803i | E58: 1.00078553 | F58: 0.03962363618 | G58: 1+0.0000594665790212704i | H58: 1.000000002 | I58: 5.946657895e-05 | J58: 1-0.000499098475490546i | K58: 1.000000125 | L58: -0.000499098434 | M58: 0.999999985556081+0.000890224246444821i | N58: 1.000000382 | O58: 0.0008902240241 | P58: 2.48706602313681-0.101911019673282i | Q58: 2.489153121 | R58: -0.04095349206 | S58: 6000 | T58: 1+32.5365488030243i | U58: 32.55191251 | V58: 1.540071332 | W58: 1+0.0281522713963897i | X58: 1.000396197 | Y58: 0.02814483757 | Z58: 1+0.000540199560170356i | AA58: 1.000000146 | AB58: 0.0005401995076 | AC58: 10.7495344815989-184.0803705988i | AD58: 184.3939677 | AE58: -1.512466694 | AF58: 7.97498370416284-458.91553126274i | AG58: 53.23596645 | AH58: -89.00442045 | AI58: 90.99557955 | AL58: 45.31493419 | AM58: -86.65795819 | AO58: 67.89008692 | AP58: -2.346462252 | AV58: 0 | AW58: 0 | AX58: 0 | AY58: 0
B59: 69.183 | C59: 2.49110906217071 | D59: 1+0.0434689609106605i | E59: 1.000944329 | F59: 0.04344161298 | G59: 1+0.0000652034413659907i | H59: 1.000000002 | I59: 6.520344127e-05 | J59: 1-0.000547247524880538i | K59: 1.00000015 | L59: -0.0005472474703 | M59: 0.999999982634785+0.000976105997872956i | N59: 1.000000459 | O59: 0.0009761057048 | P59: 2.48624985690269-0.111707105456759i | Q59: 2.48875809 | R59: -0.04489976271 | S59: 6000 | T59: 1+35.6754161252635i | U59: 35.68942863 | V59: 1.542773158 | W59: 1+0.0308681785218783i | X59: 1.000476309 | Y59: 0.03085837993 | Z59: 1+0.000592313715152557i | AA59: 1.000000175 | AB59: 0.0005923136459 | AC59: 9.7985269172022-167.911400076502i | AD59: 168.1970553 | AE59: -1.512507091 | AF59: 5.60468967001326-418.564259492194i | AG59: 52.43602146 | AH59: -89.23283972 | AI59: 90.76716028 | AL59: 44.51636776 | AM59: -86.66027282 | AO59: 67.88870835 | AP59: -2.572566904 | AV59: 0 | AW59: 0 | AX59: 0 | AY59: 0
B60: 75.858 | C60: 2.49110906217071 | D60: 1+0.0476629871032029i | E60: 1.001135236 | F60: 0.04762694326 | G60: 1+0.0000714944806548043i | H60: 1.000000003 | I60: 7.149448053e-05 | J60: 1-0.000600047739218997i | K60: 1.00000018 | L60: -0.0006000476672 | M60: 0.999999979122227+0.00107028386723106i | N60: 1.000000552 | O60: 0.001070283481 | P60: 2.48526918663094-0.122438226534168i | Q60: 2.488283354 | R60: -0.04922577993 | S60: 6000 | T60: 1+39.1174958650282i | U60: 39.13027578 | V60: 1.545237885 | W60: 1+0.0338464404017265i | X60: 1.000572627 | Y60: 0.03383352466 | Z60: 1+0.000649462061547529i | AA60: 1.000000211 | AB60: 0.0006494619702 | AC60: 9.00719426745096-153.157098486514i | AD60: 153.4217272 | AE60: -1.512053822 | AF60: 3.63301885108703-381.739442474489i | AG60: 51.63573404 | AH60: -89.45473184 | AI60: 90.54526816 | AL60: 43.71773735 | AM60: -86.63430241 | AO60: 67.88705134 | AP60: -2.820429433 | AV60: 0 | AW60: 0 | AX60: 0 | AY60: 0
B61: 83.176 | C61: 2.49110906217071 | D61: 1+0.0522610221109969i | E61: 1.001364676 | F61: 0.05221352124 | G61: 1+0.0000783915331664953i | H61: 1.000000003 | I61: 7.839153301e-05 | J61: 1-0.000657934176451782i | K61: 1.000000216 | L61: -0.0006579340815 | M61: 0.999999974899784+0.00117353385194457i | N61: 1.000000663 | O61: 0.001173533343 | P61: 2.48409131313621-0.134188250104975i | Q61: 2.487713034 | R61: -0.05396659713 | S61: 6000 | T61: 1+42.891149728039i | U61: 42.90280556 | V61: 1.547485717 | W61: 1+0.0371115970214611i | X61: 1.000688398 | Y61: 0.03709457352 | Z61: 1+0.000712115484606465i | AA61: 1.000000254 | AB61: 0.0007121153642 | AC61: 8.34891934713768-139.697971315132i | AD61: 139.9472316 | AE61: -1.511103259 | AF61: 1.99365171030699-348.142843884131i | AG61: 50.83529187 | AH61: -89.67189738 | AI61: 90.32810262 | AL61: 42.91928624 | AM61: -86.57983913 | AO61: 67.88506029 | AP61: -3.09205825 | AV61: 0 | AW61: 0 | AX61: 0 | AY61: 0
B62: 91.201 | C62: 2.49110906217071 | D62: 1+0.0573032783200086i | E62: 1.001640487 | F62: 0.05724068 | G62: 1+0.0000859549174800129i | H62: 1.000000004 | I62: 8.595491727e-05 | J62: 1-0.000721413085824986i | K62: 1.00000026 | L62: -0.0007214129607 | M62: 0.999999969822685+0.00128675893083578i | N62: 1.000000798 | O62: 0.001286758259 | P62: 2.48267645710705-0.147053944946908i | Q62: 2.487027795 | R62: -0.0591628963 | S62: 6000 | T62: 1+47.0293804264077i | U62: 47.04001088 | V62: 1.549536227 | W62: 1+0.0406922040006045i | X62: 1.000827585 | Y62: 0.04066976615 | Z62: 1+0.000780821923530758i | AA62: 1.000000305 | AB62: 0.0007808217648 | AC62: 7.80120983619348-127.417918709764i | AD62: 127.6565113 | AE62: -1.509647282 | AF62: 0.630572394074264-317.484665676082i | AG62: 50.03447221 | AH62: -89.8862021 | AI62: 90.1137979 | AL62: 42.12085943 | AM62: -86.49641783 | AO62: 67.88266744 | AP62: -3.389784262 | AV62: 0 | AW62: 0 | AX62: 0 | AY62: 0
B63: 100 | C63: 2.49110906217071 | D63: 1+0.0628318530717959i | E63: 1.001971977 | F63: 0.06274936497 | G63: 1+0.0000942477796076938i | H63: 1.000000004 | I63: 9.424777933e-05 | J63: 1-0.000791014447018109i | K63: 1.000000313 | L63: -0.000791014282 | M63: 0.999999963718821+0.0014109044098593i | N63: 1.000000959 | O63: 0.001410903525 | P63: 2.48097752955414-0.161134844260299i | Q63: 2.486204726 | R63: -0.064857035 | S63: 6000 | T63: 1+51.5667376743761i | U63: 51.57643294 | V63: 1.551406412 | W63: 1+0.0446181555033437i | X63: 1.000994895 | Y63: 0.04458858251 | Z63: 1+0.000856155002171859i | AA63: 1.000000367 | AB63: 0.000856154793 | AC63: 7.34558385396888-116.215985121218i | AD63: 116.4478974 | AE63: -1.507673984 | AF63: -0.502216179912196-289.51287717105i | AG63: 49.23337078 | AH63: -90.09939053 | AI63: 89.90060947 | AL63: 41.32263302 | AM63: -86.38335615 | AO63: 67.87979241 | AP63: -3.716034377 | AV63: 0 | AW63: 0 | AX63: 0 | AY63: 0
B64: 109.65 | C64: 2.49110906217071 | D64: 1+0.0688951268932242i | E64: 1.00237046 | F64: 0.06878643182 | G64: 1+0.000103342690339836i | H64: 1.000000005 | I64: 0.00010334269 | J64: 1-0.000867347341155357i | K64: 1.000000376 | L64: -0.0008673471237 | M64: 0.999999956378694+0.00154705668541072i | N64: 1.000001153 | O64: 0.001547055519 | P64: 2.47893747972381-0.176543805049593i | Q64: 2.485216036 | R64: -0.07109749178 | S64: 6000 | T64: 1+56.5429278599534i | U64: 56.55177001 | V64: 1.553112493 | W64: 1+0.0489238075094164i | X64: 1.001196054 | Y64: 0.04888482979 | Z64: 1+0.000938773959881444i | AA64: 1.000000441 | AB64: 0.0009387736841 | AC64: 6.96648726773376-105.995639453587i | AD64: 106.2243264 | AE64: -1.505166437 | AF64: -1.44338711779707-263.986453498864i | AG64: 48.43176266 | AH64: -90.31327049 | AI64: 89.68672951 | AL64: 40.52447972 | AM64: -86.23968428 | AO64: 67.8763376 | AP64: -4.073586213 | AV64: 0 | AW64: 0 | AX64: 0 | AY64: 0
B65: 120.23 | C65: 2.49110906217071 | D65: 1+0.0755427369482202i | E65: 1.002849293 | F65: 0.07539952694 | G65: 1+0.00011331410542233i | H65: 1.000000006 | I65: 0.0001133141049 | J65: 1-0.000951036669649873i | K65: 1.000000452 | L65: -0.0009510363829 | M65: 0.999999947554638+0.00169633037197383i | N65: 1.000001386 | O65: 0.001696328834 | P65: 2.47648928902042-0.193393363992327i | Q65: 2.484029024 | R65: -0.07793357805 | S65: 6000 | T65: 1+61.9986887059023i | U65: 62.00675287 | V65: 1.554668352 | W65: 1+0.0536444083616702i | X65: 1.001437828 | Y65: 0.05359303912 | Z65: 1+0.00102935515911123i | AA65: 1.00000053 | AB65: 0.001029354796 | AC65: 6.6511759480284-96.6742024109268i | AD65: 96.90273243 | AE65: -1.502104668 | AF65: -2.22458322084169-240.698920086346i | AG65: 47.62985379 | AH65: -90.52952294 | AI65: 89.47047706 | AL65: 39.72672047 | AM65: -86.06425784 | AO65: 67.87218798 | AP65: -4.465265105 | AV65: 0 | AW65: 0 | AX65: 0 | AY65: 0
B66: 131.83 | C66: 2.49110906217071 | D66: 1+0.0828312319045485i | E66: 1.003424642 | F66: 0.08264257255 | G66: 1+0.000124246847856823i | H66: 1.000000008 | I66: 0.0001242468472 | J66: 1-0.00104279434550397i | K66: 1.000000544 | L66: -0.001042793968 | M66: 0.999999936946399+0.00185999528351751i | N66: 1.000001667 | O66: 0.001859993256 | P66: 2.47355226641756-0.211809011892408i | Q66: 2.482604252 | R66: -0.08542111292 | S66: 6000 | T66: 1+67.9804302761299i | U66: 67.98778494 | V66: 1.556087272 | W66: 1+0.058820114400058i | X66: 1.001728409 | Y66: 0.05875241948 | Z66: 1+0.00112866913936316i | AA66: 1.000000637 | AB66: 0.00112866866 | AC66: 6.38890764576066-88.1724601452612i | AD66: 88.40362475 | AE66: -1.498463521 | AF66: -2.87242467238674-219.452416843443i | AG66: 46.82755135 | AH66: -90.74990476 | AI66: 89.25009524 | AL66: 38.92940145 | AM66: -85.85563551 | AO66: 67.86720456 | AP66: -4.894269252 | AV66: 0 | AW66: 0 | AX66: 0 | AY66: 0
B67: 144.54 | C67: 2.49110906217071 | D67: 1+0.0908171604299737i | E67: 1.00411541 | F67: 0.09056870949 | G67: 1+0.000136225740644961i | H67: 1.000000009 | I67: 0.0001362257398 | J67: 1-0.00114333228171997i | K67: 1.000000654 | L67: -0.001143331784 | M67: 0.999999924202044+0.00203932123401062i | N67: 1.000002004 | O67: 0.002039318562 | P67: 2.47003272661969-0.231910312428827i | Q67: 2.480895819 | R67: -0.0936151341 | S67: 6000 | T67: 1+74.5345626345431i | U67: 74.54127063 | V67: 1.557380537 | W67: 1+0.064491081964533i | X67: 1.002077392 | Y67: 0.06440189614 | Z67: 1+0.0012374864401392i | AA67: 1.000000766 | AB67: 0.001237485808 | AC67: 6.17088302859156-80.4230756467152i | AD67: 80.65947492 | AE67: -1.494216127 | AF67: -3.40865756695373-200.07872023392i | AG67: 46.02527835 | AH67: -90.97602984 | AI67: 89.02397016 | AL67: 38.13310781 | AM67: -85.61227775 | AO67: 67.8612252 | AP67: -5.363752082 | AV67: 0 | AW67: 0 | AX67: 0 | AY67: 0
B68: 158.49 | C68: 2.49110906217071 | D68: 1+0.0995822039334893i | E68: 1.004946076 | F68: 0.09925497593 | G68: 1+0.000149373305900234i | H68: 1.000000011 | I68: 0.0001493733048 | J68: 1-0.001253678797079i | K68: 1.000000786 | L68: -0.00125367814 | M68: 0.999999908865016+0.002236142399186i | N68: 1.000002409 | O68: 0.002236138876 | P68: 2.4658099972288-0.253872174716191i | Q68: 2.478844494 | R68: -0.1025954196 | S68: 6000 | T68: 1+81.7281225401186i | U68: 81.73424016 | V68: 1.558561247 | W68: 1+0.0707153146572495i | X68: 1.00249721 | Y68: 0.07059779275 | Z68: 1+0.00135692006294218i | AA68: 1.000000921 | AB68: 0.00135691923 | AC68: 5.98933823249653-73.347767661837i | AD68: 73.59189625 | AE68: -1.489320373 | AF68: -3.85238719641385-182.382185097168i | AG68: 45.22158553 | AH68: -91.21005629 | AI68: 88.78994371 | AL68: 37.33659987 | AM68: -85.33177174 | AO68: 67.85404032 | AP68: -5.878284543 | AV68: 0 | AW68: 0 | AX68: 0 | AY68: 0
B69: 173.78 | C69: 2.49110906217071 | D69: 1+0.109189194268167i | E69: 1.005943478 | F69: 0.1087583441 | G69: 1+0.00016378379140225i | H69: 1.000000013 | I69: 0.0001637837899 | J69: 1-0.00137462490602807i | K69: 1.000000945 | L69: -0.00137462404 | M69: 0.999999890432695+0.00245186968345349i | N69: 1.000002896 | O69: 0.002451865039 | P69: 2.46075347273596-0.277811849234507i | Q69: 2.47638589 | R69: -0.1124210494 | S69: 6000 | T69: 1+89.6126767305308i | U69: 89.61825612 | V69: 1.559637654 | W69: 1+0.0775374306337108i | X69: 1.003001522 | Y69: 0.07738260237 | Z69: 1+0.00148782616277426i | AA69: 1.000001107 | AB69: 0.001487825065 | AC69: 5.83839109742338-66.8972372845608i | AD69: 67.15152394 | AE69: -1.483742877 | AF69: -4.21800403052815-166.239583191754i | AG69: 44.41748388 | AH69: -91.4534564 | AI69: 88.5465436 | AL69: 36.54111746 | AM69: -85.01220475 | AO69: 67.84542108 | AP69: -6.441251657 | AV69: 0 | AW69: 0 | AX69: 0 | AY69: 0
B70: 190.55 | C70: 2.49110906217071 | D70: 1+0.119726096028307i | E70: 1.007141667 | F70: 0.1191589015 | G70: 1+0.00017958914404246i | H70: 1.000000016 | I70: 0.0001795891421 | J70: 1-0.00150727802879301i | K70: 1.000001136 | L70: -0.001507276887 | M70: 0.999999868265569+0.00268847835298689i | N70: 1.000003482 | O70: 0.00268847223 | P70: 2.45469886720025-0.303896154596509i | Q70: 2.473438781 | R70: -0.1231750615 | S70: 6000 | T70: 1+98.2604186385235i | U70: 98.26550703 | V70: 1.56061964 | W70: 1+0.0850198953116214i | X70: 1.003607684 | Y70: 0.08481592709 | Z70: 1+0.00163140335663848i | AA70: 1.000001331 | AB70: 0.001631401909 | AC70: 5.71279893310472-61.0123946504148i | AD70: 61.27926544 | AE70: -1.477435115 | AF70: -4.51823104735072-151.503153661301i | AG70: 43.61229433 | AH70: -91.70820776 | AI70: 88.29179224 | AL70: 35.74627101 | AM70: -84.6507966 | AO70: 67.83507797 | AP70: -7.057411166 | AV70: 0 | AW70: 0 | AX70: 0 | AY70: 0
B71: 208.93 | C71: 2.49110906217071 | D71: 1+0.131274590622903i | E71: 1.008579703 | F71: 0.1305282072 | G71: 1+0.000196911885934354i | H71: 1.000000019 | I71: 0.0001969118834 | J71: 1-0.00165266648415493i | K71: 1.000001366 | L71: -0.00165266498 | M71: 0.999999841626322+0.00294780258351902i | N71: 1.000004186 | O71: 0.002947794512 | P71: 2.44746075887749-0.332259060357258i | Q71: 2.46991098 | R71: -0.1349317548 | S71: 6000 | T71: 1+107.738385023074i | U71: 107.7430258 | V71: 1.56151485 | W71: 1+0.093220712293136i | X71: 1.004335652 | Y71: 0.0929520791 | Z71: 1+0.00178876464603766i | AA71: 1.0000016 | AB71: 0.001788762738 | AC71: 5.60837663412737-55.6475105910938i | AD71: 55.92941376 | AE71: -1.470351534 | AF71: -4.76310784718523-138.058532451506i | AG71: 42.80643136 | AH71: -91.97595737 | AI71: 88.02404263 | AL71: 34.95280534 | AM71: -84.2449373 | AO71: 67.82268067 | AP71: -7.731020074 | AV71: 0 | AW71: 0 | AX71: 0 | AY71: 0
B72: 229.09 | C72: 2.49110906217071 | D72: 1+0.143941492202177i | E72: 1.010306465 | F72: 0.1429595553 | G72: 1+0.000215912238303265i | H72: 1.000000023 | I72: 0.0002159122349 | J72: 1-0.00181213499667378i | K72: 1.000001642 | L72: -0.001812133013 | M72: 0.999999809588288+0.00323224091254666i | N72: 1.000005033 | O72: 0.003232230272 | P72: 2.43881020694213-0.363074091303702i | Q72: 2.465688144 | R72: -0.1477880063 | S72: 6000 | T72: 1+118.134239338228i | U72: 118.1384717 | V72: 1.562331583 | W72: 1+0.10221573244261i | X72: 1.005210454 | Y72: 0.1018619623 | Z72: 1+0.00196136549447551i | AA72: 1.000001923 | AB72: 0.001961362979 | AC72: 5.52148824435359-50.7529261079589i | AD72: 51.0523882 | AE72: -1.462430983 | AF72: -4.96121063981059-125.781463551233i | AG72: 41.9990842 | AH72: -92.2587522 | AI72: 87.7412478 | AL72: 34.16032126 | AM72: -83.79112317 | AO72: 67.8078176 | AP72: -8.467629025 | AV72: 0 | AW72: 0 | AX72: 0 | AY72: 0
B73: 251.19 | C73: 2.49110906217071 | D73: 1+0.157827331731044i | E73: 1.012378124 | F73: 0.1565361108 | G73: 1+0.000236740997596566i | H73: 1.000000028 | I73: 0.0002367409932 | J73: 1-0.00198694918946479i | K73: 1.000001974 | L73: -0.001986946575 | M73: 0.999999771078762+0.00354405078712556i | N73: 1.000006051 | O73: 0.00354403676 | P73: 2.42849017562938-0.396470544617273i | Q73: 2.460640857 | R73: -0.1618303531 | S73: 6000 | T73: 1+129.530488364265i | U73: 129.5343484 | V73: 1.56307629 | W73: 1+0.112076344808849i | X73: 1.006260954 | Y73: 0.1116105824 | Z73: 1+0.00215057574995549i | AA73: 1.000002312 | AB73: 0.002150572435 | AC73: 5.44923125879518-46.2900222183879i | AD73: 46.60965864 | AE73: -1.45361628 | AF73: -5.1192257425533-114.575323871941i | AG73: 41.19048306 | AH73: -92.55827411 | AI73: 87.44172589 | AL73: 33.36951844 | AM73: -83.28607788 | AO73: 67.79001927 | AP73: -9.272196231 | AV73: 0 | AW73: 0 | AX73: 0 | AY73: 0
B74: 275.42 | C74: 2.49110906217071 | D74: 1+0.17305148973034i | E74: 1.014862955 | F74: 0.1713544327 | G74: 1+0.00025957723459551i | H74: 1.000000034 | I74: 0.0002595772288 | J74: 1-0.00217861198997727i | K74: 1.000002373 | L74: -0.002178608543 | M74: 0.999999724784848+0.00388591292563447i | N74: 1.000007275 | O74: 0.003885894436 | P74: 2.41619518635016-0.43258672801003i | Q74: 2.454614115 | R74: -0.1771593584 | S74: 6000 | T74: 1+142.025108902766i | U74: 142.0286294 | V74: 1.563755435 | W74: 1+0.122887323887309i | X74: 1.007522354 | Y74: 0.1222742831 | Z74: 1+0.00235802210698173i | AA74: 1.00000278 | AB74: 0.002358017737 | AC74: 5.38913089669312-42.2201128412842i | AD74: 42.56266745 | AE74: -1.443839169 | AF74: -5.24266833902454-104.34329991569i | AG74: 40.3802413 | AH74: -92.87637423 | AI74: 87.12362577 | AL74: 32.58057676 | AM74: -82.72589069 | AO74: 67.76871921 | AP74: -10.15048354 | AV74: 0 | AW74: 0 | AX74: 0 | AY74: 0
B75: 302 | C75: 2.49110906217071 | D75: 1+0.189752196276823i | E75: 1.017843748 | F75: 0.187522766 | G75: 1+0.000284628294415234i | H75: 1.000000041 | I75: 0.0002846282867 | J75: 1-0.00238886362999468i | K75: 1.000002853 | L75: -0.002388859086 | M75: 0.999999669101134+0.00426093131777506i | N75: 1.000008747 | O75: 0.004260906941 | P75: 2.40156480533206-0.471558248746282i | Q75: 2.447423277 | R75: -0.1938879037 | S75: 6000 | T75: 1+155.731547776615i | U75: 155.7347584 | V75: 1.564375109 | W75: 1+0.134746829620098i | X75: 1.009037516 | Y75: 0.1339400807 | Z75: 1+0.00258558810655901i | AA75: 1.000003343 | AB75: 0.002585582345 | AC75: 5.33911644827929-38.5067203316578i | AD75: 38.87510354 | AE75: -1.43302061 | AF75: -5.33592745080235-94.9940887194769i | AG75: 39.5676129 | AH75: -93.2149915 | AI75: 86.7850085 | AL75: 31.79343117 | AM75: -82.10603292 | AO75: 67.74323638 | AP75: -11.10895858 | AV75: 0 | AW75: 0 | AX75: 0 | AY75: 0
B76: 331.13 | C76: 2.49110906217071 | D76: 1+0.208055115076638i | E76: 1.021414182 | F76: 0.2051287293 | G76: 1+0.000312082672614957i | H76: 1.000000049 | I76: 0.0003120826625 | J76: 1-0.00261928613841107i | K76: 1.00000343 | L76: -0.002619280148 | M76: 0.999999602187476+0.00467192777236709i | N76: 1.000010516 | O76: 0.00467189564 | P76: 2.38420866499436-0.513432226825005i | Q76: 2.43886523 | R76: -0.2121078224 | S76: 6000 | T76: 1+170.752938461162i | U76: 170.7558666 | V76: 1.564939979 | W76: 1+0.147744098318222i | X76: 1.010855241 | Y76: 0.14668296 | Z76: 1+0.00283498605869168i | AA76: 1.000004019 | AB76: 0.002834978464 | AC76: 5.29753450876157-35.1218982912142i | AD76: 35.51917245 | AE76: -1.421091998 | AF76: -5.40228677108347-86.4578591764793i | AG76: 38.75301282 | AH76: -93.57545679 | AI76: 86.42454321 | AL76: 31.00925677 | AM76: -81.42257376 | AO76: 67.7128107 | AP76: -12.15288302 | AV76: 0 | AW76: 0 | AX76: 0 | AY76: 0
B77: 363.08 | C77: =COMPLEX(Am*Afb,0) -> 2.49110906217071 | D77: =IMSUM(COMPLEX(1,0),IMDIV(COMPLEX(0,2*PI()*B77),COMPLEX(2*PI()*PS_Pole1,0))) -> 1+0.228129892133076i | E77: 1.025691595 | F77: 0.2242915144 | G77: =IMSUM(COMPLEX(1,0),IMDIV(COMPLEX(0,2*PI()*B77),COMPLEX(2*PI()*PS_Zero1,0))) -> 1+0.000342194838199614i | H77: 1.000000059 | I77: 0.0003421948248 | J77: =IF(VIN_nom>Vout, 1,IMSUB(COMPLEX(1,0),IMDIV(COMPLEX(0,2*PI()*B77),COMPLEX(2*PI()*PS_RHPZ,0)))) -> 1-0.00287201525423334i | K77: 1.000004124 | L77: -0.002872007358 | M77: =IMSUM(COMPLEX(1,0),IMDIV(COMPLEX(0,2*PI()*B77),COMPLEX(Q*(2*PI()*PS_Pole2/2),0)),IMDIV(IMPOWER(COMPLEX(0,2*PI()*B77),2),IMPOWER(COMPLEX(2*PI()*PS_Pole2/2,0),2))) -> 0.999999521715786+0.00512271173131712i | N77: 1.000012643 | O77: 0.005122669372 | P77: 2.36365401798851-0.558282955856899i | Q77: 2.428691042 | R77: -0.2319439963 | S77: =COMPLEX(AEA,0) -> 6000 | T77: =IMSUM(COMPLEX(1,0),IMDIV(COMPLEX(0,2*PI()*B77),COMPLEX(2*PI()*EA_Pole1,0))) -> 1+187.228511148124i | U77: 187.2311817 | V77: 1.565455311 | W77: =IMSUM(COMPLEX(1,0),IMDIV(COMPLEX(0,2*PI()*B77),COMPLEX(2*PI()*EA_Zero1,0))) -> 1+0.16199959900154i | X77: 1.013036954 | Y77: 0.1606043387 | Z77: =IMSUM(COMPLEX(1,0),IMDIV(COMPLEX(0,2*PI()*B77),COMPLEX(2*PI()*EA_Pole2,0))) -> 1+0.00310852758188558i | AA77: 1.000004831 | AB77: 0.003108517569 | AC77: 5.2629342088445-32.0341197184353i | AD77: 32.46356885 | AE77: -1.40795949 | AF77: =IMPRODUCT(P77,AC77) -> -5.44434745553735-78.6557822517987i | AG77: 37.93537066 | AH77: -93.95954855 | AI77: =IF(AH77>0,AH77-180,AH77+180) -> 86.04045145 | AL77: =20*LOG10(IMABS(AC77)) -> 30.22792524 | AM77: =(180/PI())*IMARGUMENT(AC77) -> -80.67013648 | AO77: =20*LOG10(IMABS(IMPRODUCT(COMPLEX(Am/Afb,0),P77))) -> 67.67650008 | AP77: =180/PI()*IMARGUMENT(IMPRODUCT(COMPLEX(Am/Afb,0),P77)) -> -13.28941207 | AV77: =SUM((AG78<0)*(AG77>0))*B77 -> 0 | AW77: =IF(AV77>0,AI75,0) -> 0 | AX77: =SUM((AL78<0)*(AL77>0))*B77 -> 0 | AY77: =IF(AX77>0,AM77,0) -> 0
B78: 398.11 | C78: 2.49110906217071 | D78: 1+0.250139890264127i | E78: 1.030810344 | F78: 0.2451103202 | G78: 1+0.00037520983539619i | H78: 1.00000007 | I78: 0.0003752098178 | J78: 1-0.0031491076150238i | K78: 1.000004958 | L78: -0.003149097205 | M78: 0.999999424973888+0.00561695154609085i | N78: 1.0000152 | O78: 0.005616895705 | P78: =(IMDIV(IMPRODUCT(C78,G78,J78),IMPRODUCT(D78,M78))) -> 2.33939196209878-0.606077146618794i | Q78: 2.416626628 | R78: -0.2535011033 | S78: 6000 | T78: 1+205.292339355459i | U78: 205.2947749 | V78: 1.565925263 | W78: 1+0.177629338874362i | X78: 1.015653574 | Y78: 0.1757957305 | Z78: 1+0.00340843867914639i | AA78: 1.000005809 | AB78: 0.00340842548 | AC78: 5.23415405536406-29.2184732801776i | AD78: 29.68359058 | AE78: -1.393537958 | AF78: -5.4639109887021-71.5257626912837i | AG78: 37.11451979 | AH78: -94.3683869 | AI78: 85.6316131 | AL78: 29.45032866 | AM78: -79.84384358 | AO78: 67.63324579 | AP78: -14.52454332 | AV78: 0 | AW78: 0 | AX78: 0 | AY78: 0
B79: 436.52 | C79: 2.49110906217071 | D79: 1+0.274273605029003i | E79: 1.036931054 | F79: 0.2676907619 | G79: 1+0.000411410407543504i | H79: 1.000000085 | I79: 0.0004114103843 | J79: 1-0.00345293626412345i | K79: 1.000005961 | L79: -0.003452922541 | M79: 0.999999308663182+0.00615887992991779i | N79: 1.000018274 | O79: 0.006158806317 | P79: 2.31085114856624-0.656723868342732i | Q79: 2.402357024 | R79: -0.2768910804 | S79: 6000 | T79: 1+225.099123296186i | U79: 225.1013445 | V79: 1.566353869 | W79: 1+0.194767172403196i | X79: 1.018790583 | Y79: 0.192358969 | Z79: 1+0.00373728781548059i | AA79: 1.000006984 | AB79: 0.003737270416 | AC79: 5.21021178891397-26.6508071755049i | AD79: 27.15532784 | AE79: -1.37773217 | AF79: -5.4621972860686-65.0077188126334i | AG79: 36.28985201 | AH79: -94.80292894 | AI79: 85.19707106 | AL79: 28.67710101 | AM79: -78.93823865 | AO79: 67.58180566 | AP79: -15.86469029 | AV79: 0 | AW79: 0 | AX79: 0 | AY79: 0
B80: 478.63 | C80: 2.49110906217071 | D80: 1+0.300732098357537i | E80: 1.044241253 | F80: 0.2921283089 | G80: 1+0.000451098147536305i | H80: 1.000000102 | I80: 0.0004510981169 | J80: 1-0.00378603244776278i | K80: 1.000007167 | L80: -0.003786014358 | M80: 0.999999168846524+0.00675301177690956i | N80: 1.00002197 | O80: 0.006752914739 | P80: 2.27741923669436-0.71002215741412i | Q80: 2.385533451 | R80: -0.3022161399 | S80: 6000 | T80: 1+246.813876530866i | U80: 246.8159023 | V80: 1.566744713 | W80: 1+0.213555877685654i | X80: 1.022548832 | Y80: 0.210395434 | Z80: 1+0.00409781468689517i | AA80: 1.000008396 | AB80: 0.00409779175 | AC80: 5.19029539709476-24.3096523761992i | AD80: 24.85756152 | AE80: -1.360447071 | AF80: -5.43991324466645-59.0484946943706i | AG80: 35.46088067 | AH80: -95.26358472 | AI80: 84.73641528 | AL80: 27.90917046 | AM80: -77.9478754 | AO80: 67.52076487 | AP80: -17.31570932 | AV80: 0 | AW80: 0 | AX80: 0 | AY80: 0
B81: 524.81 | C81: 2.49110906217071 | D81: 1+0.329747848106092i | E81: =IMABS(D81) -> 1.052964217 | F81: =IMARGUMENT(D81) -> 0.3185201542 | G81: 1+0.000494621772159138i | H81: =IMABS(G81) -> 1.000000122 | I81: =IMARGUMENT(G81) -> 0.0004946217318 | J81: 1-0.00415132291939574i | K81: =IMABS(J81) -> 1.000008617 | L81: =IMARGUMENT(J81) -> -0.004151299072 | M81: 0.999999000723679+0.00740456743338257i | N81: =IMABS(M81) -> 1.000026414 | O81: =IMARGUMENT(M81) -> 0.007404439512 | P81: 2.23843389805575-0.765672160563812i | Q81: =IMABS(P81) -> 2.365764184 | R81: =IMARGUMENT(P81) -> -0.329581271 | S81: 6000 | T81: 1+270.627395988893i | U81: =IMABS(T81) -> 270.6292435 | V81: =IMARGUMENT(T81) -> 1.567101226 | W81: 1+0.234160541897098i | X81: =IMABS(W81) -> 1.027049736 | Y81: =IMARGUMENT(W81) -> 0.2300162866 | Z81: 1+0.00449318706689813i | AA81: =IMABS(Z81) -> 1.000010094 | AB81: =IMARGUMENT(Z81) -> 0.00449315683 | AC81: =IMPRODUCT(S81,IMDIV(W81,IMPRODUCT(T81,Z81))) -> 5.17372149078881-22.1744652344338i | AD81: =IMABS(AC81) -> 22.7700308 | AE81: =IMARGUMENT(AC81) -> -1.341578096 | AF81: -5.39733714131486-53.5974491640231i | AG81: =20*LOG10(IMABS(AF81)) -> 34.62670141 | AH81: =(180/PI())*IMARGUMENT(AF81) -> -95.75037865 | AI81: 84.24962135 | AL81: 27.14727236 | AM81: -76.86676281 | AO81: 67.44848371 | AP81: -18.88361584 | AV81: 0 | AW81: 0 | AX81: 0 | AY81: 0
B82: 575.44 | C82: 2.49110906217071 | D82: 1+0.361559615316342i | E82: 1.063355705 | F82: 0.3469355731 | G82: 1+0.000542339422974513i | H82: 1.000000147 | I82: 0.0005423393698 | J82: 1-0.004551813533921i | K82: 1.000010359 | L82: -0.004551782098 | M82: 0.999998798616985+0.00811890833609433i | N82: 1.000031756 | O82: 0.008118739706 | P82: 2.19323794664066-0.823197510802574i | Q82: 2.342636727 | R82: -0.3590637555 | S82: 6000 | T82: 1+296.735635273429i | U82: 296.7373203 | V82: 1.567426336 | W82: 1+0.256750714028441i | X82: 1.032434467 | Y82: 0.2513221151 | Z82: 1+0.00492665834449774i | AA82: 1.000012136 | AB82: 0.004926618485 | AC82: 5.15993090879453-20.2277147785037i | AD82: 20.87547202 | AE82: -1.32103084 | AF82: -5.33444818367649-48.6118339060713i | AG82: 33.78682504 | AH82: -96.2623295 | AI82: 83.7376705 | AL82: 26.39272608 | AM82: -75.68949173 | AO82: 67.36315361 | AP82: -20.57283777 | AV82: 0 | AW82: 0 | AX82: 0 | AY82: 0
B83: 630.96 | C83: 2.49110906217071 | D83: 1+0.396443860141803i | E83: 1.075717311 | F83: 0.3774369851 | G83: 1+0.000594665790212704i | H83: 1.000000177 | I83: 0.0005946657201 | J83: 1-0.00499098475490546i | K83: 1.000012455 | L83: -0.004990943314 | M83: 0.999998555608085+0.00890224246444821i | N83: 1.00003818 | O83: 0.008902020166 | P83: 2.14116986832069-0.881979335191566i | Q83: 2.315706362 | R83: -0.3907352828 | S83: 6000 | T83: 1+325.365488030243i | U83: 325.3670248 | V83: 1.56772287 | W83: 1+0.281522713963897i | X83: 1.038872003 | Y83: 0.2744201563 | Z83: 1+0.00540199560170356i | AA83: 1.000014591 | AB83: 0.005401943056 | AC83: 5.14845154050689-18.4524822871874i | AD83: 19.15726118 | AE83: -1.298704656 | AF83: -5.2509987532451-44.0507269360092i | AG83: 32.94033818 | AH83: -96.79777826 | AI83: 83.20222174 | AL83: 25.6466684 | AM83: -74.41029565 | AO83: 67.26272443 | AP83: -22.38748261 | AV83: 0 | AW83: 0 | AX83: 0 | AY83: 0
B84: 691.83 | C84: 2.49110906217071 | D84: 1+0.434689609106605i | E84: 1.090392157 | F84: 0.4100491236 | G84: 1+0.000652034413659907i | H84: 1.000000213 | I84: 0.0006520343213 | J84: 1-0.00547247524880538i | K84: 1.000014974 | L84: -0.00547242062 | M84: 0.999998263478462+0.00976105997872956i | N84: 1.000045902 | O84: 0.009760766939 | P84: 2.08164256631415-0.941189233736693i | Q84: 2.284529043 | R84: -0.4246302768 | S84: 6000 | T84: 1+356.754161252635i | U84: 356.7555628 | V84: 1.567993283 | W84: 1+0.308681785218783i | X84: 1.046558381 | Y84: 0.2994025811 | Z84: 1+0.00592313715152557i | AA84: 1.000017542 | AB84: 0.005923067885 | AC84: 5.1388951192219-16.8340584796459i | AD84: 17.60095929 | AE84: -1.27451377 | AF84: -5.14669177714027-39.8791654545663i | AG84: 32.08666044 | AH84: -97.35378268 | AI84: 82.64621732 | AL84: 24.91072677 | AM84: -73.02425996 | AO84: 67.14498833 | AP84: -24.32952272 | AV84: 0 | AW84: 0 | AX84: 0 | AY84: 0
B85: 758.58 | C85: 2.49110906217071 | D85: 1+0.476629871032029i | E85: 1.107779777 | F85: 0.4447773246 | G85: 1+0.000714944806548043i | H85: 1.000000256 | I85: 0.0007149446847 | J85: 1-0.00600047739218997i | K85: 1.000018003 | L85: -0.006000405377 | M85: 0.999997912222707+0.0107028386723106i | N85: 1.000055186 | O85: 0.01070245237 | P85: 2.01415046813045-0.999828745650902i | Q85: 2.248657295 | R85: -0.4607652377 | S85: 6000 | T85: 1+391.174958650282i | U85: 391.1762368 | V85: 1.568239932 | W85: 1+0.338464404017265i | X85: 1.055726363 | Y85: 0.3263613877 | Z85: 1+0.00649462061547529i | AA85: 1.00002109 | AB85: 0.006494529303 | AC85: 5.1309343846488-15.358356903815i | AD85: 16.19276426 | AE85: -1.248373073 | AF85: -5.02125282561322-36.064097437354i | AG85: 31.22488531 | AH85: -97.92641181 | AI85: 82.07358819 | AL85: 24.18641987 | AM85: -71.52650835 | AO85: 67.0075201 | AP85: -26.39990347 | AV85: 0 | AW85: 0 | AX85: 0 | AY85: 0
B86: 831.76 | C86: 2.49110906217071 | D86: 1+0.522610221109969i | E86: 1.128326834 | F86: 0.4815717413 | G86: 1+0.000783915331664953i | H86: 1.000000307 | I86: 0.0007839151711 | J86: 1-0.00657934176451782i | K86: 1.000021644 | L86: -0.006579246832 | M86: 0.999997489978421+0.0117353385194457i | N86: 1.000066347 | O86: 0.01173482929 | P86: 1.9383820606998-1.05668364500601i | Q86: 2.207692311 | R86: -0.4991019023 | S86: 6000 | T86: 1+428.91149728039i | U86: 428.912663 | V86: 1.568464848 | W86: 1+0.371115970214612i | X86: 1.066642894 | Y86: 0.3553611529 | Z86: 1+0.00712115484606465i | AA86: 1.000025355 | AB86: 0.007121034476 | AC86: 5.12430040184425-14.0132109531562i | AD86: 14.9207418 | AE86: -1.220224729 | AF86: -4.87467885564757-32.5777211511265i | AG86: 30.3545792 | AH86: -98.51015959 | AI86: 81.48984041 | AL86: 23.4758083 | AM86: -69.91372704 | AO86: 66.84782556 | AP86: -28.59643255 | AV86: 0 | AW86: 0 | AX86: 0 | AY86: 0
B87: 912.01 | C87: 2.49110906217071 | D87: 1+0.573032783200085i | E87: 1.15254786 | F87: 0.5203546074 | G87: 1+0.000859549174800127i | H87: 1.000000369 | I87: 0.0008595489631 | J87: 1-0.00721413085824985i | K87: 1.000026022 | L87: -0.007214005712 | M87: 0.999996982268517+0.0128675893083578i | N87: 1.000079767 | O87: 0.01286691802 | P87: 1.85421773297682-1.11040458526177i | Q87: 2.161277804 | R87: -0.5395759822 | S87: 6000 | T87: 1+470.293804264077i | U87: 470.2948674 | V87: 1.56867 | W87: 1+0.406922040006045i | X87: 1.079622872 | Y87: 0.3864593732 | Z87: 1+0.00780821923530756i | AA87: 1.000030484 | AB87: 0.007808060557 | AC87: 5.11876568684408-12.7868541944105i | AD87: 13.77335843 | AE87: -1.190018687 | AF87: -4.70727542104755-29.3935126858173i | AG87: 29.47500885 | AH87: -99.09847481 | AI87: 80.90152519 | AL87: 22.78079699 | AM87: -68.1830483 | AO87: 66.66326652 | AP87: -30.91542651 | AV87: 0 | AW87: 0 | AX87: 0 | AY87: 0
B88: 1000 | C88: 2.49110906217071 | D88: 1+0.628318530717959i | E88: 1.181009812 | F88: 0.5609821161 | G88: 1+0.000942477796076938i | H88: 1.000000444 | I88: 0.000942477517 | J88: 1-0.00791014447018109i | K88: 1.000031285 | L88: -0.007909979496 | M88: 0.999996371882086+0.014109044098593i | N88: 1.0000959 | O88: 0.01410815918 | P88: 1.76185877872789-1.15950303452694i | Q88: 2.109168946 | R88: -0.5820577773 | S88: 6000 | T88: 1+515.667376743761i | U88: 515.6683464 | V88: 1.568857095 | W88: 1+0.446181555033437i | X88: 1.095024192 | Y88: 0.4196739709 | Z88: 1+0.00856155002171859i | AA88: 1.000036649 | AB88: 0.008561340843 | AC88: 5.11414291183789-11.6690811056974i | AD88: 12.74056167 | AE88: -1.157744465 | AF88: -4.51993736730651-26.4891372110412i | AG88: 28.58599885 | AH88: -99.68332565 | AI88: 80.31667435 | AL88: 22.10377148 | AM88: -66.33387158 | AO88: 66.45128203 | AP88: -33.34945407 | AV88: 0 | AW88: 0 | AX88: 0 | AY88: 0
B89: 1096.5 | C89: 2.49110906217071 | D89: 1+0.688951268932242i | E89: 1.214353264 | F89: 0.6032721556 | G89: 1+0.00103342690339836i | H89: 1.000000534 | I89: 0.001033426536 | J89: 1-0.00867347341155357i | K89: 1.000037614 | L89: -0.008673255922 | M89: 0.999995637869388+0.0154705668541072i | N89: 1.0001153 | O89: 0.01546940027 | P89: 1.6618117580499-1.20246536652971i | Q89: 2.051229211 | R89: -0.6263813853 | S89: 6000 | T89: 1+565.429278599534i | U89: 565.4301629 | V89: 1.569027761 | W89: 1+0.489238075094164i | X89: 1.113262725 | Y89: 0.4550010622 | Z89: 1+0.00938773959881444i | AA89: 1.000044064 | AB89: 0.009387463834 | AC89: 5.11027386853937-10.6501658690925i | AD89: 11.81274448 | AE89: -1.123414162 | AF89: -4.31414240378665-23.84349820684i | AG89: 27.68730005 | AH89: -100.2558999 | AI89: 79.7441001 | AL89: 21.44701619 | AM89: -64.36689015 | AO89: 66.20933851 | AP89: -35.88900974 | AV89: 0 | AW89: 0 | AX89: 0 | AY89: 0
B90: 1202.3 | C90: 2.49110906217071 | D90: 1+0.755427369482202i | E90: 1.253263943 | F90: 0.6469655859 | G90: 1+0.0011331410542233i | H90: 1.000000642 | I90: 0.001133140569 | J90: 1-0.00951036669649873i | K90: 1.000045223 | L90: -0.009510079984 | M90: 0.9999947554638+0.0169633037197383i | N90: 1.000138623 | O90: 0.01696176586 | P90: 1.55500739830257-1.23780401884643i | Q90: 1.987512716 | R90: -0.6723042912 | S90: 6000 | T90: 1+619.986887059023i | U90: 619.9876935 | V90: 1.569183391 | W90: 1+0.536444083616702i | X90: 1.134800535 | Y90: 0.4923760618 | Z90: 1+0.0102935515911123i | AA90: 1.000052977 | AB90: 0.01029318806 | AC90: 5.1070282159404-9.72179476804518i | AD90: 10.98157688 | AE90: -1.087100517 | AF90: -4.09220997515922-21.4389628391426i | AG90: 26.77949244 | AH90: -100.80647 | AI90: 79.19353003 | AL90: 20.81329412 | AM90: -62.28627154 | AO90: 65.93525298 | AP90: -38.52019843 | AV90: 0 | AW90: =IF(AV90>0,AI90,0) -> 0 | AX90: 0 | AY90: 0
B91: 1318.3 | C91: 2.49110906217071 | D91: 1+0.828312319045485i | E91: 1.298499633 | F91: 0.691767728 | G91: 1+0.00124246847856823i | H91: 1.000000772 | I91: 0.001242467839 | J91: 1-0.0104279434550397i | K91: 1.00005437 | L91: -0.01042756549 | M91: 0.999993694639855+0.0185999528351751i | N91: 1.00016666 | O91: 0.01859792558 | P91: 1.44271038716822-1.26420870794765i | Q91: 1.918237972 | R91: -0.7195507513 | S91: 6000 | T91: 1+679.804302761299i | U91: 679.8050383 | V91: 1.569325316 | W91: 1+0.58820114400058i | X91: 1.160164034 | Y91: 0.5316986957 | Z91: 1+0.0112866913936316i | AA91: 1.000063693 | AB91: 0.01128621216 | AC91: 5.10429519968501-8.87602422683268i | AD91: 10.23902513 | AE91: -1.048912833 | AF91: -3.85712741575773-19.2584267881855i | AG91: 25.86322185 | AH91: -101.3254996 | AI91: 78.67450041 | AL91: 20.20517218 | AM91: -60.09827839 | AO91: 65.62710433 | AP91: -41.22722119 | AV91: 0 | AW91: 0 | AX91: 0 | AY91: 0
B92: 1445.4 | C92: 2.49110906217071 | D92: 1+0.908171604299737i | E92: 1.350842575 | F92: 0.7373115 | G92: 1+0.0013622574064496i | H92: 1.000000928 | I92: 0.001362256564 | J92: 1-0.0114333228171997i | K92: 1.000065358 | L92: -0.01143282466 | M92: 0.999992420204408+0.0203932123401062i | N92: 1.000200342 | O92: 0.02039054049 | P92: 1.32658814831479-1.28062972745142i | Q92: 1.843867841 | R92: -0.7677726086 | S92: 6000 | T92: 1+745.345626345431i | U92: 745.3462972 | V92: 1.569454668 | W92: 1+0.64491081964533i | X92: 1.189920151 | Y92: 0.5727892657 | Z92: 1+0.012374864401392i | AA92: 1.000076566 | AB92: 0.01237423278 | AC92: 5.10198304032455-8.10611331497496i | AD92: 9.578063688 | AE92: -1.009039635 | AF92: -3.6126994510491-17.2872250029351i | AG92: 24.94015021 | AH92: -101.8038426 | AI92: 78.19615745 | AL92: 19.62555441 | AM92: -57.81371246 | AO92: 65.28365045 | AP92: -43.9901301 | AV92: 0 | AW92: 0 | AX92: 0 | AY92: 0
B93: 1584.9 | C93: 2.49110906217071 | D93: 1+0.995822039334893i | E93: 1.41126239 | F93: 0.7833048131 | G93: 1+0.00149373305900234i | H93: 1.000001116 | I93: 0.001493731948 | J93: 1-0.01253678797079i | K93: 1.000078582 | L93: -0.01253613123 | M93: 0.999990886501551+0.02236142399186i | N93: 1.000240874 | O93: 0.02235790165 | P93: 1.20828315005243-1.28640990894169i | Q93: 1.76487921 | R93: -0.8167051141 | S93: 6000 | T93: 1+817.281225401186i | U93: 817.2818372 | V93: 1.569572758 | W93: 1+0.707153146572495i | X93: 1.224771641 | Y93: 0.6155106183 | Z93: 1+0.0135692006294218i | AA93: 1.000092057 | AB93: 0.01356836792 | AC93: 5.10000928919125-7.40425411195392i | AD93: 8.990721534 | AE93: -0.967630508 | AF93: -3.36265056869912-15.5071379674906i | AG93: 24.01019068 | AH93: -102.2349004 | AI93: 77.76509962 | AL93: 19.07589093 | AM93: -55.44114424 | AO93: 64.9033544 | AP93: -46.79375614 | AV93: 0 | AW93: 0 | AX93: 0 | AY93: 0
B94: 1737.8 | C94: 2.49110906217071 | D94: 1+1.09189194268167i | E94: 1.480617444 | F94: 0.829297613 | G94: 1+0.0016378379140225i | H94: 1.000001341 | I94: 0.00163783645 | J94: 1-0.0137462490602807i | K94: 1.000094475 | L94: -0.01374538333 | M94: 0.999989043269515+0.0245186968345349i | N94: 1.000289585 | O94: 0.02451405382 | P94: 1.08993523175751-1.28128184056202i | Q94: 1.682153966 | R94: -0.8659192137 | S94: 6000 | T94: 1+896.126767305308i | U94: 896.1273253 | V94: 1.569680414 | W94: 1+0.775374306337108i | X94: 1.265387417 | Y94: 0.6595438761 | Z94: 1+0.0148782616277426i | AA94: 1.000110675 | AB94: 0.01487716394 | AC94: 5.09830988154216-6.76553367362436i | AD94: 8.471434916 | AE94: -0.9250137016 | AF94: -3.11172787541549-13.9063653813029i | AG94: 23.07645445 | AH94: -102.6128974 | AI94: 77.38710256 | AL94: 18.55913957 | AM94: -52.99938109 | AO94: 64.48636953 | AP94: -49.61351634 | AV94: 0 | AW94: 0 | AX94: 0 | AY94: 0
B95: 1905.5 | C95: 2.49110906217071 | D95: 1+1.19726096028307i | E95: 1.559946732 | F95: 0.8749339796 | G95: 1+0.0017958914404246i | H95: 1.000001613 | I95: 0.00179588951 | J95: 1-0.0150727802879301i | K95: 1.000113588 | L95: -0.01507163899 | M95: 0.999986826556916+0.0268847835298689i | N95: 1.000348162 | O95: 0.02687866289 | P95: 0.973447718955783-1.26544980422824i | Q95: 1.596547421 | R95: -0.915088392 | S95: 6000 | T95: 1+982.604186385235i | U95: 982.6046952 | V95: 1.569778623 | W95: 1+0.850198953116214i | X95: 1.312569335 | Y95: 0.7046095554 | Z95: 1+0.0163140335663848i | AA95: 1.000133065 | AB95: 0.01631258648 | AC95: 5.09682576615719-6.18408276652554i | AD95: 8.013770183 | AE95: -0.8814816544 | AF95: -2.8641529102502-12.4696584308771i | AG95: 22.14037413 | AH95: -102.9358813 | AI95: 77.06411874 | AL95: 18.07673767 | AM95: -50.50517852 | AO95: 64.03269111 | AP95: -52.43070274 | AV95: 0 | AW95: 0 | AX95: 0 | AY95: 0
B96: 2089.3 | C96: 2.49110906217071 | D96: 1+1.31274590622903i | E96: 1.650242956 | F96: 0.9198099131 | G96: 1+0.00196911885934354i | H96: 1.000001939 | I96: 0.001969116314 | J96: 1-0.0165266648415493i | K96: 1.000136556 | L96: -0.01652516044 | M96: 0.999984162632236+0.0294780258351902i | N96: 1.000418552 | O96: 0.02946995839 | P96: 0.860760923228655-1.23956783353847i | Q96: 1.509118213 | R96: -0.9638359157 | S96: 6000 | T96: 1+1077.38385023074i | U96: 1077.384314 | V96: 1.569868153 | W96: 1+0.93220712293136i | X96: 1.367117449 | Y96: 0.7503268302 | Z96: 1+0.0178876464603766i | AA96: 1.000159971 | AB96: 0.017885739 | AC96: 5.09550748403897-5.6553690163828i | AD96: 7.61231865 | AE96: -0.8374270615 | AF96: -2.62419979321831-11.1841478285096i | AG96: 21.2048044 | AH96: -103.2047664 | AI96: 76.79523361 | AL96: 17.63033919 | AM96: -47.98103628 | AO96: 63.54351987 | AP96: -55.22373011 | AV96: 0 | AW96: 0 | AX96: 0 | AY96: 0
B97: 2290.9 | C97: 2.49110906217071 | D97: 1+1.43941492202177i | E97: 1.752688026 | F97: 0.9636182546 | G97: 1+0.00215912238303265i | H97: 1.000002331 | I97: 0.002159119028 | J97: 1-0.0181213499667378i | K97: 1.000164178 | L97: -0.01811936677 | M97: 0.999980958828807+0.0323224091254666i | N97: 1.000503201 | O97: 0.03231177485 | P97: 0.753407633945767-1.20462991642591i | Q97: 1.42082944 | R97: -1.011890277 | S97: 6000 | T97: 1+1181.34239338228i | U97: 1181.342817 | V97: 1.569949832 | W97: 1+1.0221573244261i | X97: 1.429966991 | Y97: 0.7963549952 | Z97: 1+0.0196136549447551i | AA97: 1.000192329 | AB97: 0.01961114043 | AC97: 5.09430913856559-5.17448762467118i | AD97: 7.261357158 | AE97: -0.7932059776 | AF97: -2.39525120017955-10.0352556700232i | AG97: 20.27119492 | AH97: -103.424397 | AI97: 76.57560299 | AL97: 17.22035597 | AM97: -45.4473548 | AO97: 63.01989361 | AP97: -57.97704222 | AV97: 0 | AW97: 0 | AX97: 0 | AY97: 0
B98: 2511.9 | C98: 2.49110906217071 | D98: 1+1.57827331731044i | E98: 1.868407521 | F98: 1.006033906 | G98: 1+0.00236740997596566i | H98: 1.000002802 | I98: 0.002367405553 | J98: 1-0.0198694918946479i | K98: 1.000197379 | L98: -0.01986687771 | M98: 0.999977107876245+0.0354405078712556i | N98: 1.00060494 | O98: 0.03542649124 | P98: 0.652748288064163-1.16194470092084i | Q98: 1.332739965 | R98: -1.05895987 | S98: 6000 | T98: 1+1295.30488364265i | U98: 1295.30527 | V98: 1.570024308 | W98: 1+1.12076344808849i | X98: 1.502035521 | Y98: 0.84228012 | Z98: 1+0.0215057574995549i | AA98: 1.000231222 | AB98: 0.02150244297 | AC98: 5.09319068353777-4.73763631357601i | AD98: 6.955989446 | AE98: -0.7492466309 | AF98: -2.18029990998616-9.01048991867346i | AG98: 19.34208671 | AH98: -103.602601 | AI98: 76.39739901 | AL98: 16.84717829 | AM98: -42.92866977 | AO98: 62.46396308 | AP98: -60.67393122 | AV98: 0 | AW98: 0 | AX98: 0 | AY98: 0
B99: 2754.2 | C99: 2.49110906217071 | D99: 1+1.7305148973034i | E99: 1.99867001 | F99: 1.046813318 | G99: 1+0.0025957723459551i | H99: 1.000003369 | I99: 0.002595766516 | J99: 1-0.0217861198997727i | K99: 1.000237289 | L99: -0.02178267406 | M99: 0.999972478484753+0.0388591292563447i | N99: 1.00072723 | O99: 0.03884065533 | P99: 0.55969860830474-1.11296841319847i | Q99: 1.245777356 | R99: -1.104840881 | S99: 6000 | T99: 1+1420.25108902766i | U99: 1420.251441 | V99: 1.570092226 | W99: 1+1.22887323887309i | X99: 1.584338801 | Y99: 0.8877251362 | Z99: 1+0.0235802210698173i | AA99: 1.000277975 | AB99: 0.02357585212 | AC99: 5.09211389915369-4.34102084062635i | AD99: 6.691344103 | AE99: -0.705942942 | AF99: -1.98137001396785-8.0970252492874i | AG99: 18.41907593 | AH99: -103.7502707 | AI99: 76.24972934 | AL99: 16.51026728 | AM99: -40.44755115 | AO99: 61.87786331 | AP99: -63.30271951 | AV99: 0 | AW99: 0 | AX99: 0 | AY99: 0
B100: 3020 | C100: 2.49110906217071 | D100: 1+1.89752196276823i | E100: 2.144898506 | F100: 1.085780313 | G100: 1+0.00284628294415234i | H100: 1.000004051 | I100: 0.002846275258 | J100: 1-0.0238886362999468i | K100: 1.000285293 | L100: -0.0238840937 | M100: 0.999966910113379+0.0426093131777506i | N100: 1.000874305 | O100: 0.04258496216 | P100: 0.474776919617772-1.05919144662296i | Q100: 1.160732374 | R100: -1.149403094 | S100: 6000 | T100: 1+1557.31547776615i | U100: 1557.315799 | V100: 1.570154196 | W100: 1+1.34746829620098i | X100: 1.67799607 | Y100: 0.9323494693 | Z100: 1+0.0258558810655901i | AA100: 1.000334207 | AB100: 0.02585012159 | AC100: 5.09104162224847-3.98108205552254i | AD100: 6.462794994 | AE100: -0.6636548485 | AF100: -1.79961900245663-7.28251361575364i | AG100: 17.50304955 | AH100: -103.8805681 | AI100: 76.1194319 | AL100: 16.2084076 | AM100: -38.02462187 | AO100: 61.26369661 | AP100: -65.85594623 | AV100: 0 | AW100: 0 | AX100: 0 | AY100: 0
B101: 3311.3 | C101: 2.49110906217071 | D101: 1+2.08055115076638i | E101: 2.308396216 | F101: 1.122754805 | G101: 1+0.00312082672614957i | H101: 1.00000487 | I101: 0.003120816594 | J101: 1-0.0261928613841107i | K101: 1.000342974 | L101: -0.02618687384 | M101: 0.99996021874761+0.0467192777236709i | N101: 1.001051013 | O101: 0.0466871855 | P101: 0.398283369836015-1.00214902800444i | Q101: 1.078393396 | R101: -1.192508047 | S101: 6000 | T101: 1+1707.52938461162i | U101: 1707.529677 | V101: 1.570210685 | W101: 1+1.47744098318222i | X101: 1.784049287 | Y101: 0.9757795708 | Z101: 1+0.0283498605869168i | AA101: 1.000401777 | AB101: 0.02834226918 | AC101: 5.08993847942939-3.65510623578275i | AD101: 6.266360612 | AE101: -0.6227733838 | AF101: -1.63572331159751-6.55664492845875i | AG101: 16.59585207 | AH101: -104.0079646 | AI101: 75.99203536 | AL101: 15.94030767 | AM101: -35.68228648 | AO101: 60.62459905 | AP101: -68.32567816 | AV101: 0 | AW101: 0 | AX101: 0 | AY101: 0
B102: 3630.8 | C102: 2.49110906217071 | D102: 1+2.28129892133076i | E102: 2.490848203 | F102: 1.15767538 | G102: 1+0.00342194838199614i | H102: 1.000005855 | I102: 0.003421935025 | J102: 1-0.0287201525423334i | K102: 1.000412339 | L102: -0.02871225987 | M102: 0.99995217157863+0.0512271173131712i | N102: 1.001263483 | O102: 0.05118482119 | P102: 0.33007873442906-0.943169874418833i | Q102: 0.999260418 | R102: -1.234150526 | S102: 6000 | T102: 1+1872.28511148124i | U102: 1872.285379 | V102: 1.57026222 | W102: 1+1.6199959900154i | X102: 1.90378229 | Y102: 1.017763776 | Z102: 1+0.0310852758188558i | AA102: 1.000483031 | AB102: 0.03107526911 | AC102: 5.08876614944945-3.36005209721412i | AD102: 6.097990736 | AE102: -0.583573713 | AF102: -1.48940642415446-5.90865267398719i | AG102: 15.6973089 | AH102: -104.1479272 | AI102: 75.8520728 | AL102: 15.70373521 | AM102: -33.43631079 | AO102: 59.96262835 | AP102: -70.71161641 | AV102: 0 | AW102: 0 | AX102: 0 | AY102: 0
B103: 3981.1 | C103: 2.49110906217071 | D103: 1+2.50139890264127i | E103: 2.693881302 | F103: 1.190482809 | G103: 1+0.0037520983539619i | H103: 1.000007039 | I103: 0.003752080746 | J103: 1-0.031491076150238i | K103: 1.000495721 | L103: -0.03148067257 | M103: 0.999942497388807+0.0561695154609085i | N103: 1.001518853 | O103: 0.05611377508 | P103: 0.269882722079844-0.883488561020089i | Q103: 0.9237904097 | R103: -1.274325176 | S103: 6000 | T103: 1+2052.92339355459i | U103: 2052.923637 | V103: 1.570309217 | W103: 1+1.77629338874362i | X103: 2.038435234 | Y103: 1.058049858 | Z103: 1+0.0340843867914639i | AA103: 1.000580704 | AB103: 0.03407119686 | AC103: 5.08748531586645-3.09353570933347i | AD103: 5.954197681 | AE103: -0.5463305553 | AF103: -1.36007902671602-5.3296269190118i | AG103: 14.80793397 | AH103: -104.3158893 | AI103: 75.68411067 | AL103: 15.49646498 | AM103: -31.30243504 | AO103: 59.28052365 | AP103: -73.01345429 | AV103: 0 | AW103: 0 | AX103: 0 | AY103: 0
B104: 4365.2 | C104: 2.49110906217071 | D104: 1+2.74273605029003i | E104: 2.919349421 | F104: 1.221174995 | G104: 1+0.00411410407543504i | H104: 1.000008463 | I104: 0.004114080864 | J104: 1-0.0345293626412344i | K104: 1.000595961 | L104: -0.0345156496 | M104: 0.999930866318222+0.0615887992991779i | N104: 1.001825792 | O104: 0.06151534564 | P104: 0.217210603053461-0.824125362578458i | Q104: 0.8522693584 | R104: -1.31309191 | S104: 6000 | T104: 1+2250.99123296186i | U104: 2250.991455 | V104: 1.570352078 | W104: 1+1.94767172403196i | X104: 2.189389217 | Y104: 1.096459727 | Z104: 1+0.0373728781548059i | AA104: 1.000698122 | AB104: 0.03735549276 | AC104: 5.0860525129283-2.85326596549036i | AD104: 5.83172846 | AE104: -0.5112478443 | AF104: -1.24670431484779-4.81130449234619i | AG104: 13.92748337 | AH104: -104.5269683 | AI104: 75.47303171 | AL104: 15.31594588 | AM104: -29.29234376 | AO104: 58.58059215 | AP104: -75.23462453 | AV104: 0 | AW104: 0 | AX104: 0 | AY104: 0
B105: 4786.3 | C105: 2.49110906217071 | D105: 1+3.00732098357537i | E105: 3.169223801 | F105: 1.249776266 | G105: 1+0.00451098147536305i | H105: 1.000010174 | I105: 0.004510950878 | J105: 1-0.0378603244776278i | K105: 1.000716445 | L105: -0.0378422503 | M105: 0.999916884652372+0.0675301177690956i | N105: 1.002194638 | O105: 0.0674333326 | P105: 0.171479690169603-0.76591852733731i | Q105: 0.784879911 | R105: -1.350540898 | S105: 6000 | T105: 1+2468.13876530866i | U105: 2468.138968 | V105: 1.570391163 | W105: 1+2.13555877685654i | X105: 2.358094843 | Y105: 1.132860325 | Z105: 1+0.0409781468689517i | AA105: 1.000839252 | AB105: 0.040955233 | AC105: 5.0844195375164-2.63722791379679i | AD105: 5.727677811 | AE105: -0.4784860713 | AF105: -1.1480270330025-4.34648215010411i | AG105: 13.05563588 | AH105: -104.795526 | AI105: 75.20447403 | AL105: 15.15957161 | AM105: -27.41523244 | AO105: 57.86511893 | AP105: -77.38029353 | AV105: 0 | AW105: 0 | AX105: 0 | AY105: 0
B106: 5248.1 | C106: 2.49110906217071 | D106: 1+3.29747848106092i | E106: 3.445774852 | F106: 1.276349543 | G106: 1+0.00494621772159138i | H106: 1.000012232 | I106: 0.004946177386 | J106: 1-0.0415132291939574i | K106: 1.000861303 | L106: -0.04148940657 | M106: 0.999900072367855+0.0740456743338257i | N106: 1.002637979 | O106: 0.07391815243 | P106: 0.132029600903394-0.709493604371989i | Q106: 0.7216737422 | R106: -1.386810924 | S106: 6000 | T106: 1+2706.27395988893i | U106: 2706.274145 | V106: 1.570426815 | W106: 1+2.34160541897098i | X106: 2.546196367 | Y106: 1.167184306 | Z106: 1+0.0449318706689813i | AA106: 1.001008928 | AB106: 0.04490167 | AC106: 5.08253078290669-2.44351943198476i | AD106: 5.639406562 | AE106: -0.4481441787 | AF106: -1.06261689830548-3.92863997990069i | AG106: 12.19148619 | AH106: -105.135183 | AI106: 74.864817 | AL106: 15.02466811 | AM106: -25.67677006 | AO106: 57.13587274 | AP106: -79.45841294 | AV106: 0 | AW106: 0 | AX106: 0 | AY106: 0
B107: 5370.3 | C107: 2.49110906217071 | D107: 1+3.37425900551465i | E107: 3.519321502 | F107: 1.282681065 | G107: 1+0.00506138850827197i | H107: 1.000012809 | I107: 0.005061345289 | J107: 1-0.0424798488482135i | K107: 1.000901862 | L107: -0.04245432432 | M107: 0.999895364636408+0.0757697995226737i | N107: 1.002762087 | O107: 0.075633181 | P107: 0.123075278464015-0.695731636304469i | Q107: 0.7065338165 | R107: -1.395707225 | S107: 6000 | T107: 1+2769.28851332701i | U107: 2769.288694 | V107: 1.570435223 | W107: 1+2.39612880499607i | X107: 2.596427016 | Y107: 1.175431757 | Z107: 1+0.0459780920816353i | AA107: 1.001056434 | AB107: 0.04594573412 | AC107: 5.08201164346084-2.39840773448532i | AD107: 5.619537526 | AE107: -0.4409492003 | AF107: -1.04317813946246-3.8309009762154i | AG107: 11.97667058 | AH107: -105.2326616 | AI107: 74.76733842 | AL107: 14.99401151 | AM107: -25.26452816 | AO107: 56.95171372 | AP107: -79.96813342 | AV107: 0 | AW107: 0 | AX107: 0 | AY107: 0
B108: 5432.85 | C108: 2.49110906217071 | D108: 1+3.41356032961106i | E108: 3.5570204 | F108: 1.28582058 | G108: 1+0.00512034049441659i | H108: 1.000013109 | I108: 0.005120295747 | J108: 1-0.0429746283848233i | K108: 1.000922983 | L108: -0.04294820221 | M108: 0.999892912982775+0.0766523202310407i | N108: 1.002826713 | O108: 0.07651088309 | P108: 0.118699896067967-0.688863626174296i | Q108: 0.6990155655 | R108: -1.40015937 | S108: 6000 | T108: 1+2801.54350774234i | U108: 2801.543686 | V108: 1.570439381 | W108: 1+2.42403746126341i | X108: 2.622204724 | Y108: 1.179530941 | Z108: 1+0.0465136170354938i | AA108: 1.001081174 | AB108: 0.04648011619 | AC108: 5.0817426087533-2.376193407576i | AD108: 5.609848755 | AE108: -0.4373885557 | AF108: -1.03367088773108-3.78268155126688i | AG108: 11.86875998 | AH108: -105.2837408 | AI108: 74.71625922 | AL108: 14.97902305 | AM108: -25.06051825 | AO108: 56.85879159 | AP108: -80.22322253 | AV108: 0 | AW108: 0 | AX108: 0 | AY108: 0
B109: 5495.4 | C109: 2.49110906217071 | D109: 1+3.45286165370747i | E109: 3.594753622 | F109: 1.288894216 | G109: 1+0.0051792924805612i | H109: 1.000013412 | I109: 0.00517924617 | J109: 1-0.0434694079214332i | K109: 1.000944349 | L109: -0.04344205914 | M109: 0.999890432939102+0.0775348409394077i | N109: 1.002892083 | O109: 0.07738847357 | P109: 0.114458098162543-0.682111712632115i | Q109: 0.6916480642 | R109: -1.404545502 | S109: 6000 | T109: 1+2833.79850215766i | U109: 2833.798679 | V109: 1.570443444 | W109: 1+2.45194611753075i | X109: 2.648025635 | Y109: 1.183550249 | Z109: 1+0.0470491419893523i | AA109: 1.001106199 | AB109: 0.04701447169 | AC109: 5.08147129875571-2.3545460528658i | AD109: 5.60046763 | AE109: -0.4339076658 | AF109: -1.02444789986835-3.73562795353234i | AG109: 11.76218914 | AH109: -105.3356074 | AI109: 74.66439264 | AL109: 14.96448583 | AM109: -24.86107795 | AO109: 56.76675797 | AP109: -80.47452941 | AV109: 0 | AW109: 0 | AX109: 0 | AY109: 0
B110: 5559.4 | C110: 2.49110906217071 | D110: 1+3.49307403967342i | E110: 3.633395966 | F110: 1.291972996 | G110: 1+0.00523961105951013i | H110: 1.000013727 | I110: 0.005239563112 | J110: 1-0.0439756571675248i | K110: 1.000966462 | L110: -0.04394734245 | M110: 0.999887866019556+0.0784378197617177i | N110: 1.002959738 | O110: 0.07828629105 | P110: 0.110250810464005-0.675320911390983i | Q110: 0.684261335 | R110: -1.408967066 | S110: 6000 | T110: 1+2866.80121426926i | U110: 2866.801389 | V110: 1.570447506 | W110: 1+2.48050173705289i | X110: 2.674488524 | Y110: 1.187582336 | Z110: 1+0.0475970811907423i | AA110: 1.0011321 | AB110: 0.04756118652 | AC110: 5.08119131692536-2.33296374032993i | AD110: 5.591173849 | AE110: -0.4304263566 | AF110: -1.01529373854804-3.68864589425249i | AG110: 11.65449993 | AH110: -105.38948 | AI110: 74.61052001 | AL110: 14.95005992 | AM110: -24.66161362 | AO110: 56.67349467 | AP110: -80.72786637 | AV110: 0 | AW110: 0 | AX110: 0 | AY110: 0
B111: 5623.4 | C111: 2.49110906217071 | D111: 1+3.53328642563937i | E111: 3.672072026 | F111: 1.29498695 | G111: 1+0.00529992963845905i | H111: 1.000014045 | I111: 0.005299880016 | J111: 1-0.0444819064136164i | K111: 1.000988831 | L111: -0.0444526033 | M111: 0.999885269378467+0.0793407985840277i | N111: 1.003028172 | O111: 0.07918398903 | P111: 0.106172618550023-0.66864654993929i | Q111: 0.6770235104 | R111: -1.413323662 | S111: 6000 | T111: 1+2899.80392638086i | U111: 2899.804099 | V111: 1.570451476 | W111: 1+2.50905735657503i | X111: 2.700994043 | Y111: 1.19153535 | Z111: 1+0.0481450203921323i | AA111: 1.001158301 | AB111: 0.0481078729 | AC111: 5.08090889897041-2.31193533456394i | AD111: 5.582175224 | AE111: -0.4270239989 | AF111: -1.00641418272111-3.64279643424138i | AG111: 11.5481443 | AH111: -105.4441538 | AI111: 74.5558462 | AL111: 14.9360693 | AM111: -24.46667289 | AO111: 56.58112967 | AP111: -80.97748091 | AV111: 0 | AW111: 0 | AX111: 0 | AY111: 0
B112: 5688.9 | C112: 2.49110906217071 | D112: 1+3.57444128940139i | E112: 3.711688367 | F112: 1.298006478 | G112: 1+0.00536166193410208i | H112: 1.000014374 | I112: 0.005361610557 | J112: 1-0.0450000208764131i | K112: 1.001011989 | L112: -0.04496968269 | M112: 0.999882581104+0.0802649409724853i | N112: 1.003099016 | O112: 0.08010260168 | P112: 0.102127237523488-0.661933700104265i | Q112: 0.669765777 | R112: -1.417717152 | S112: 6000 | T112: 1+2933.58013955757i | U112: 2933.58031 | V112: 1.570455446 | W112: 1+2.53828224842972i | X112: 2.728163626 | Y112: 1.195501417 | Z112: 1+0.0487058019185548i | AA112: 1.001185425 | AB112: 0.04866734245 | AC112: 5.08061731331175-2.29096807945271i | AD112: 5.573258206 | AE112: -0.4236213722 | AF112: -0.99759956653036-3.59700205822323i | AG112: 11.44064233 | AH112: -105.5009261 | AI112: 74.49907392 | AL112: 14.92218328 | AM112: -24.27171674 | AO112: 56.48751371 | AP112: -81.22920934 | AV112: 0 | AW112: 0 | AX112: 0 | AY112: 0
B113: 5754.4 | C113: 2.49110906217071 | D113: 1+3.61559615316342i | E113: 3.751337834 | F113: 1.300962204 | G113: 1+0.00542339422974513i | H113: 1.000014706 | I113: 0.005423341058 | J113: 1-0.04551813533921i | K113: 1.001035414 | L113: -0.04548673801 | M113: 0.999879861698467+0.0811890833609433i | N113: 1.003170676 | O113: 0.08102108632 | P113: 0.0982066142592736-0.655337533635324i | Q113: 0.6626551306 | R113: -1.422046687 | S113: 6000 | T113: 1+2967.35635273429i | U113: 2967.356521 | V113: 1.570459327 | W113: 1+2.56750714028441i | X113: 2.755375277 | Y113: 1.199389207 | Z113: 1+0.0492665834449774i | AA113: 1.001212863 | AB113: 0.0492267815 | AC113: 5.08032312455562-2.27054223347294i | AD113: 5.564624433 | AE113: -0.4202969011 | AF113: -0.989050213893295-3.55230869179885i | AG113: 11.33446846 | AH113: -105.558512 | AI113: 74.441488 | AL113: 14.90871717 | AM113: -24.08123857 | AO113: 56.39480596 | AP113: -81.47727343 | AV113: 0 | AW113: 0 | AX113: 0 | AY113: 0
B114: 5821.4 | C114: 2.49110906217071 | D114: 1+3.65769349472152i | E114: 3.791928494 | F114: 1.30392164 | G114: 1+0.00548654024208228i | H114: 1.000015051 | I114: 0.005486485191 | J114: 1-0.0460481150187121i | K114: 1.001059653 | L114: -0.04601560911 | M114: 0.999877047807855+0.0821343893155489i | N114: 1.00324482 | O114: 0.08196047102 | P114: 0.0943201569181461-0.648708328609172i | Q114: 0.6555293949 | R114: -1.426411235 | S114: 6000 | T114: 1+3001.90606697612i | U114: 3001.906234 | V114: 1.570463205 | W114: 1+2.59740130447165i | X114: 2.783252331 | Y114: 1.203287318 | Z114: 1+0.0498402072964325i | AA114: 1.001241253 | AB114: 0.04979900023 | AC114: 5.0800194806866-2.25018969530359i | AD114: 5.556073397 | AE114: -0.4169748877 | AF114: -0.980568561728375-3.50768919177487i | AG114: 11.2272029 | AH114: -105.6182448 | AI114: 74.38175517 | AL114: 14.89535948 | AM114: -23.89090123 | AO114: 56.30089808 | AP114: -81.72734361 | AV114: 0 | AW114: 0 | AX114: 0 | AY114: 0
B115: 5888.4 | C115: 2.49110906217071 | D115: 1+3.69979083627963i | E115: 3.832551661 | F115: 1.306818364 | G115: 1+0.00554968625441944i | H115: 1.000015399 | I115: 0.005549629281 | J115: 1-0.0465780946982143i | K115: 1.001084172 | L115: -0.04654445446 | M115: 0.999874201344+0.0830796952701548i | N115: 1.003319817 | O115: 0.08289971874 | P115: 0.0905540820865542-0.642195779891025i | Q115: 0.6485487349 | R115: -1.430712908 | S115: 6000 | T115: 1+3036.45578121796i | U115: 3036.455946 | V115: 1.570466995 | W115: 1+2.62729546865889i | X115: 2.811170838 | Y115: 1.207108059 | Z115: 1+0.0504138311478878i | AA115: 1.001269971 | AB115: 0.05037118633 | AC115: 5.07971306433197-2.2303657963162i | AD115: 5.547793832 | AE115: -0.4137301226 | AF115: -0.97234274820389-3.46413902037396i | AG115: 11.1212586 | AH115: -105.6788012 | AI115: 74.3211988 | AL115: 14.88240627 | AM115: -23.70498988 | AO115: 56.20790699 | AP115: -81.97381131 | AV115: 0 | AW115: 0 | AX115: 0 | AY115: 0
B116: 5957 | C116: 2.49110906217071 | D116: 1+3.74289348748688i | E116: 3.874177546 | F116: 1.309721297 | G116: 1+0.00561434023123032i | H116: 1.00001576 | I116: 0.005614281243 | J116: 1-0.0471207306088687i | K116: 1.001109566 | L116: -0.04708590195 | M116: 0.999871253155556+0.0840475756953182i | N116: 1.003397487 | O116: 0.08386125273 | P116: 0.086817820345271-0.635645797184481i | Q116: 0.6415472807 | R116: -1.435054171 | S116: 6000 | T116: 1+3071.83056326258i | U116: 3071.830726 | V116: 1.570470788 | W116: 1+2.65790352333419i | X116: 2.839797729 | Y116: 1.210942148 | Z116: 1+0.0510011534793776i | AA116: 1.001299714 | AB116: 0.05095700236 | AC116: 5.0793964344697-2.21059756526588i | AD116: 5.539585701 | AE116: -0.4104856426 | AF116: -0.964174924517302-3.42061625808145i | AG116: 11.01411908 | AH116: -105.7416422 | AI116: 74.25835778 | AL116: 14.86954571 | AM116: -23.51909487 | AO116: 56.11362803 | AP116: -82.22254735 | AV116: 0 | AW116: 0 | AX116: 0 | AY116: 0
B117: 6025.6 | C117: 2.49110906217071 | D117: 1+3.78599613869413i | E117: 3.915835385 | F117: 1.312562489 | G117: 1+0.00567899420804119i | H117: 1.000016125 | I117: 0.005678933158 | J117: 1-0.0476633665195231i | K117: 1.001135254 | L117: -0.04762732182 | M117: 0.999868270819556+0.0850154561204817i | N117: 1.003476052 | O117: 0.08482263986 | P117: 0.0831978875394705-0.629212526501062i | Q117: 0.6346891302 | R117: -1.439333518 | S117: 6000 | T117: 1+3107.2053453072i | U117: 3107.205506 | V117: 1.570474494 | W117: 1+2.68851157800948i | X117: 2.868465531 | Y117: 1.214699654 | Z117: 1+0.0515884758108675i | AA117: 1.001329801 | AB117: 0.0515427834 | AC117: 5.07907685177756-2.1913464864023i | AD117: 5.531638192 | AE117: -0.4073176236 | AF117: -0.956254194429899-3.37813417673573i | AG117: 10.90829654 | AH117: -105.8053166 | AI117: 74.19468335 | AL117: 14.85707533 | AM117: -23.33758075 | AO117: 56.02027587 | AP117: -82.46773589 | AV117: 0 | AW117: 0 | AX117: 0 | AY117: 0
B118: 6095.8 | C118: 2.49110906217071 | D118: 1+3.83010409955053i | E118: 3.958496863 | F118: 1.315408017 | G118: 1+0.00574515614932579i | H118: 1.000016503 | I118: 0.005745092941 | J118: 1-0.0482186586613298i | K118: 1.001161845 | L118: -0.04818134062 | M118: 0.999865183573188+0.0860059110162029i | N118: 1.003557374 | O118: 0.08580629627 | P118: 0.0796091193700902-0.62274718898425i | Q118: 0.6278149992 | R118: -1.443650561 | S118: 6000 | T118: 1+3143.40519515461i | U118: 3143.405354 | V118: 1.5704782 | W118: 1+2.71983352317282i | X118: 2.897843059 | Y118: 1.218467779 | Z118: 1+0.0521894966223921i | AA118: 1.001360946 | AB118: 0.05214219031 | AC118: 5.07874673602001-2.17216354771741i | AD118: 5.523763471 | AE118: -0.4041526122 | AF118: -0.9483941881968-3.33569928058099i | AG118: 10.80133522 | AH118: -105.8713232 | AI118: 74.12867679 | AL118: 14.84470147 | AM118: -23.15623896 | AO118: 55.9256884 | AP118: -82.71508425 | AV118: 0 | AW118: 0 | AX118: 0 | AY118: 0
B119: 6166 | C119: 2.49110906217071 | D119: 1+3.87421206040693i | E119: 4.001189709 | F119: 1.318192843 | G119: 1+0.00581131809061039i | H119: 1.000016886 | I119: 0.005811252673 | J119: 1-0.0487739508031366i | K119: 1.001188743 | L119: -0.04873532982 | M119: 0.9998620605678+0.0869963659119241i | N119: 1.00363963 | O119: 0.08678979541 | P119: 0.0761325886125849-0.616398358839921i | Q119: 0.621082207 | R119: -1.447906716 | S119: 6000 | T119: 1+3179.60504500202i | U119: 3179.605202 | V119: 1.570481822 | W119: 1+2.75115546833617i | X119: 2.927260906 | Y119: 1.222160218 | Z119: 1+0.0527905174339168i | AA119: 1.00139245 | AB119: 0.05274155972 | AC119: 5.07841348415309-2.15348595878413i | AD119: 5.516138621 | AE119: -0.4010631637 | AF119: -0.940772446185721-3.29427619772558i | AG119: 10.69568518 | AH119: -105.9381706 | AI119: 74.06182945 | AL119: 14.83270343 | AM119: -22.9792266 | AO119: 55.83203641 | AP119: -82.95894396 | AV119: 0 | AW119: 0 | AX119: 0 | AY119: 0
B120: 6237.8 | C120: 2.49110906217071 | D120: 1+3.91932533091248i | E120: 4.044887026 | F120: 1.320980308 | G120: 1+0.00587898799636872i | H120: 1.000017281 | I120: 0.005878920267 | J120: 1-0.0493418991760956i | K120: 1.001216571 | L120: -0.04930191459 | M120: 0.999858829391964+0.0880093952782031i | N120: 1.003724729 | O120: 0.08779554597 | P120: 0.0726882392110729-0.610022444080404i | Q120: 0.6143378243 | R120: -1.452198848 | S120: 6000 | T120: 1+3216.62996265223i | U120: 3216.630118 | V120: 1.570485442 | W120: 1+2.78319130398757i | X120: 2.957389699 | Y120: 1.225860775 | Z120: 1+0.0534052367254762i | AA120: 1.001425044 | AB120: 0.05335455073 | AC120: 5.07806937156486-2.13488761754935i | AD120: 5.508587267 | AE120: -0.3979792181 | AF120: -0.933213441083716-3.25291751108502i | AG120: 10.58894979 | AH120: -106.0073945 | AI120: 73.99260545 | AL120: 14.82080468 | AM120: -22.80252953 | AO120: 55.73719977 | AP120: -83.20486502 | AV120: 0 | AW120: 0 | AX120: 0 | AY120: 0
B121: 6309.6 | C121: 2.49110906217071 | D121: 1+3.96443860141803i | E121: 4.088615099 | F121: 1.323708169 | G121: 1+0.00594665790212704i | H121: 1.000017681 | I121: 0.005946587807 | J121: 1-0.0499098475490546i | K121: 1.001244722 | L121: -0.04986846769 | M121: 0.99985556080849+0.0890224246444821i | N121: 1.003810806 | O121: 0.08880112829 | P121: 0.0693520236039951-0.603762589317345i | Q121: 0.6077326447 | R121: -1.456431177 | S121: 6000 | T121: 1+3253.65488030243i | U121: 3253.655034 | V121: 1.57048898 | W121: 1+2.81522713963897i | X121: 2.987558175 | Y121: 1.229486644 | Z121: 1+0.0540199560170356i | AA121: 1.001458015 | AB121: 0.05396750162 | AC121: 5.0777219367543-2.11678258341437i | AD121: 5.501275177 | AE121: -0.3949698379 | AF121: -0.925883841971811-3.21254170005774i | AG121: 10.48351869 | AH121: -106.0774643 | AI121: 73.92253566 | AL121: 14.80926738 | AM121: -22.63010475 | AO121: 55.64330597 | AP121: -83.44735959 | AV121: 0 | AW121: 0 | AX121: 0 | AY121: 0
B122: 6383.05 | C122: 2.49110906217071 | D122: 1+4.01058859749927i | E122: 4.133378872 | F122: 1.326438974 | G122: 1+0.0060158828962489i | H122: 1.000018095 | I122: 0.006015810325 | J122: 1-0.0504908476603894i | K122: 1.001273851 | L122: -0.0504480073 | M122: 0.999852178404345+0.0900587339335239i | N122: 1.003899873 | O122: 0.08982964335 | P122: 0.0660464946832674-0.597476020387024i | Q122: 0.6011154086 | R122: -1.460700815 | S122: 6000 | T122: 1+3291.53064912426i | U122: 3291.530801 | V122: 1.570492517 | W122: 1+2.84799917485618i | X122: 3.018459756 | Y122: 1.233120792 | Z122: 1+0.0546488018661309i | AA122: 1.001492133 | AB122: 0.05459449641 | AC122: 5.07736306017619-2.09875454273983i | AD122: 5.494031878 | AE122: -0.3919662214 | AF122: -0.918613479606437-3.1722180560027i | AG122: 10.37698071 | AH122: -106.150002 | AI122: 73.84999799 | AL122: 14.7978235 | AM122: -22.4580102 | AO122: 55.54821187 | AP122: -83.69199181 | AV122: 0 | AW122: 0 | AX122: 0 | AY122: 0
B123: 6456.5 | C123: 2.49110906217071 | D123: 1+4.0567385935805i | E123: 4.178172808 | F123: 1.329111246 | G123: 1+0.00608510789037075i | H123: 1.000018514 | I123: 0.006085032784 | J123: 1-0.0510718477717242i | K123: 1.001303317 | L123: -0.051027513 | M123: 0.999848756853515+0.0910950432225654i | N123: 1.003989962 | O123: 0.09085797838 | P123: 0.0628451457481754-0.591304994729881i | Q123: 0.594635274 | R123: -1.464911704 | S123: 6000 | T123: 1+3329.40641794609i | U123: 3329.406568 | V123: 1.570495973 | W123: 1+2.88077121007339i | X123: 3.049400394 | Y123: 1.236681238 | Z123: 1+0.0552776477152261i | AA123: 1.001526644 | AB123: 0.05522144825 | AC123: 5.07700066772077-2.08120823912518i | AD123: 5.487017725 | AE123: -0.3890361827 | AF123: -0.911563979941204-3.13284968819036i | AG123: 10.27174063 | AH123: -106.2233894 | AI123: 73.77661063 | AL123: 14.78672726 | AM123: -22.29013135 | AO123: 55.45406802 | AP123: -83.93325802 | AV123: 0 | AW123: 0 | AX123: 0 | AY123: 0
B124: 6531.7 | C124: 2.49110906217071 | D124: 1+4.10398814709049i | E124: 4.224064241 | F124: 1.331788449 | G124: 1+0.00615598222063573i | H124: 1.000018948 | I124: 0.00615590446 | J124: 1-0.0516666906358818i | K124: 1.001333834 | L124: -0.0516207903 | M124: 0.999845213224889+0.0921560433387796i | N124: 1.004083257 | O124: 0.09191062563 | P124: 0.0596710601888318-0.58510364783971i | Q124: 0.5881385161 | R124: -1.46916396 | S124: 6000 | T124: 1+3368.18460467722i | U124: 3368.184753 | V124: 1.570499431 | W124: 1+2.9143240630119i | X124: 3.081117451 | Y124: 1.240252385 | Z124: 1+0.0559214762768593i | AA124: 1.001562385 | AB124: 0.05586329265 | AC124: 5.07662597965493-2.06372597089676i | AD124: 5.480063523 | AE124: -0.3861103386 | AF124: -0.904565939325065-3.09349709603658i | AG124: 10.16530428 | AH124: -106.2993872 | AI124: 73.70061283 | AL124: 14.77571185 | AM124: -22.12249283 | AO124: 55.35864709 | AP124: -84.17689434 | AV124: 0 | AW124: 0 | AX124: 0 | AY124: 0
B125: 6606.9 | C125: 2.49110906217071 | D125: 1+4.15123770060048i | E125: 4.269985298 | F125: 1.334408087 | G125: 1+0.00622685655090072i | H125: 1.000019387 | I125: 0.006226776073 | J125: 1-0.0522615335000394i | K125: 1.001364703 | L125: -0.05221403124 | M125: 0.999841628561959+0.0932170434549938i | N125: 1.004177623 | O125: 0.09296307991 | P125: 0.0565974715967506-0.579017410346751i | Q125: 0.5817769635 | R125: -1.473358422 | S125: 6000 | T125: 1+3406.96279140835i | U125: 3406.962938 | V125: 1.57050281 | W125: 1+2.94787691595042i | X125: 3.112873 | Y125: 1.243750714 | Z125: 1+0.0565653048384925i | AA125: 1.001598539 | AB125: 0.05650509097 | AC125: 5.07624756914267-2.04671490964658i | AD125: 5.473329088 | AE125: -0.3832571869 | AF125: -0.897780789089021-3.05507461072935i | AG125: 10.06016164 | AH125: -106.3762386 | AI125: 73.62376142 | AL125: 14.76503122 | AM125: -21.95901928 | AO125: 55.26418507 | AP125: -84.4172193 | AV125: 0 | AW125: 0 | AX125: 0 | AY125: 0
B126: 6683.85 | C126: 2.49110906217071 | D126: 1+4.19958681153923i | E126: 4.317004678 | F126: 1.337030977 | G126: 1+0.00629938021730884i | H126: 1.000019841 | I126: 0.006299296895 | J126: 1-0.0528702191170199i | K126: 1.001396655 | L126: -0.05282103957 | M126: 0.999837918001551+0.0943027343983806i | N126: 1.004275295 | O126: 0.09403982415 | P126: 0.0535521327225927-0.572905659514146i | Q126: 0.5754030984 | R126: -1.477592544 | S126: 6000 | T126: 1+3446.64339604878i | U126: 3446.643541 | V126: 1.570506189 | W126: 1+2.98221058661024i | X126: 3.145406171 | Y126: 1.247257288 | Z126: 1+0.0572241161126638i | AA126: 1.001635962 | AB126: 0.05716177653 | AC126: 5.07585648140236-2.0297791374715i | AD126: 5.466655501 | AE126: -0.3804106778 | AF126: -0.891049015448272-3.01668590684439i | AG126: 9.953878048 | AH126: -106.4557429 | AI126: 73.54425707 | AL126: 14.75443413 | AM126: -21.79592632 | AO126: 55.16849858 | AP126: -84.65981661 | AV126: 0 | AW126: 0 | AX126: 0 | AY126: 0
B127: 6760.8 | C127: 2.49110906217071 | D127: 1+4.24793592247797i | E127: 4.364053116 | F127: 1.33959733 | G127: 1+0.00637190388371695i | H127: 1.0000203 | I127: 0.00637181765 | J127: 1-0.0534789047340002i | K127: 1.001428976 | L127: -0.05342800894 | M127: 0.999834164474775+0.0953884253417671i | N127: 1.004374088 | O127: 0.09511636178 | P127: 0.0506035953262831-0.566908357879387i | Q127: 0.5691623759 | R127: -1.481769883 | S127: 6000 | T127: 1+3486.32400068921i | U127: 3486.324144 | V127: 1.570509492 | W127: 1+3.01654425727006i | X127: 3.177977227 | Y127: 1.250692026 | Z127: 1+0.057882927386835i | AA127: 1.001673816 | AB127: 0.05781841273 | AC127: 5.07546146106414-2.01330375956695i | AD127: 5.460192402 | AE127: -0.3776358786 | AF127: -0.88452213037866-2.97920193109i | AG127: 9.848882598 | AH127: -106.5361026 | AI127: 73.46389744 | AL127: 14.74415893 | AM127: -21.63694204 | AO127: 55.07377833 | AP127: -84.89916053 | AV127: 0 | AW127: 0 | AX127: 0 | AY127: 0
B128: 6839.55 | C128: 2.49110906217071 | D128: 1+4.29741600677201i | E128: 4.41223122 | F128: 1.342167031 | G128: 1+0.00644612401015801i | H128: 1.000020776 | I128: 0.006446034728 | J128: 1-0.054101828611027i | K128: 1.001462435 | L128: -0.05404913563 | M128: 0.99983027866049+0.0964995125645314i | N128: 1.004476352 | O128: 0.09621786527 | P128: 0.0476821931953903-0.560886194555655i | Q128: 0.5629093309 | R128: -1.485987998 | S128: 6000 | T128: 1+3526.93280660778i | U128: 3526.932948 | V128: 1.570512794 | W128: 1+3.05168105472894i | X128: 3.2113482 | Y128: 1.254134929 | Z128: 1+0.0585571494510453i | AA128: 1.001713003 | AB128: 0.05849035717 | AC128: 5.07505311214653-1.99690341760447i | AD128: 5.453786515 | AE128: -0.3748682221 | AF128: -0.878045895825116-2.94174396179045i | AG128: 9.742731628 | AH128: -106.6192077 | AI128: 73.38079233 | AL128: 14.73396268 | AM128: -21.478367 | AO128: 54.97782361 | AP128: -85.14084067 | AV128: 0 | AW128: 0 | AX128: 0 | AY128: 0
B129: 6918.3 | C129: 2.49110906217071 | D129: 1+4.34689609106605i | E129: 4.460437829 | F129: 1.344681204 | G129: 1+0.00652034413659907i | H129: 1.000021257 | I129: 0.006520251735 | J129: 1-0.0547247524880538i | K129: 1.00149628 | L129: -0.05467022057 | M129: 0.999826347846204+0.0976105997872956i | N129: 1.00457979 | O129: 0.09731914752 | P129: 0.0448540218016443-0.554977754520214i | Q129: 0.5567873843 | R129: -1.490150321 | S129: 6000 | T129: 1+3567.54161252635i | U129: 3567.541753 | V129: 1.570516022 | W129: 1+3.08681785218783i | X129: 3.244756455 | Y129: 1.257506975 | Z129: 1+0.0592313715152557i | AA129: 1.001752642 | AB129: 0.05916224873 | AC129: 5.07464061171848-1.98095300401613i | AD129: 5.447582229 | AE129: -0.3721712951 | AF129: -0.871766809345414-2.90516636091878i | AG129: 9.637863618 | AH129: -106.7031687 | AI129: 73.29683132 | AL129: 14.72407589 | AM129: -21.32384446 | AO129: 54.88284239 | AP129: -85.37932421 | AV129: 0 | AW129: 0 | AX129: 0 | AY129: 0
B130: 6998.9 | C130: 2.49110906217071 | D130: 1+4.39753856464192i | E130: 4.509805476 | F130: 1.347198766 | G130: 1+0.00659630784696288i | H130: 1.000021755 | I130: 0.006596212178 | J130: 1-0.0553623101323504i | K130: 1.00153132 | L130: -0.05530585236 | M130: 0.999822278090848+0.0987477887416422i | N130: 1.004686873 | O130: 0.0984460695 | P130: 0.0420519700044646-0.549045177008876i | Q130: 0.5506532253 | R130: -1.494354475 | S130: 6000 | T130: 1+3609.1044030919i | U130: 3609.104542 | V130: 1.57051925 | W130: 1+3.12278008552352i | X130: 3.278986957 | Y130: 1.260887045 | Z130: 1+0.0599214324470062i | AA130: 1.00179368 | AB130: 0.05984986903 | AC130: 5.07421410621279-1.96507790169911i | AD130: 5.441431793 | AE130: -0.3694820734 | AF130: -0.865535844983927-2.86860817910522i | AG130: 9.531827542 | AH130: -106.7899679 | AI130: 73.21003205 | AL130: 14.7142638 | AM130: -21.16976341 | AO130: 54.78661841 | AP130: -85.62020453 | AV130: 0 | AW130: 0 | AX130: 0 | AY130: 0
B131: 7079.5 | C131: 2.49110906217071 | D131: 1+4.44818103821779i | E131: 4.559201087 | F131: 1.349661791 | G131: 1+0.00667227155732668i | H131: 1.000022259 | I131: 0.006672172545 | J131: 1-0.055999867776647i | K131: 1.001566765 | L131: -0.05594143942 | M131: 0.999818161196372+0.0998849776959889i | N131: 1.004795185 | O131: 0.09957275451 | P131: 0.0393396962701018-0.543225532530918i | Q131: 0.5446481349 | R131: -1.498503812 | S131: 6000 | T131: 1+3650.66719365745i | U131: 3650.667331 | V131: 1.570522404 | W131: 1+3.15874231885922i | X131: 3.313254146 | Y131: 1.264197236 | Z131: 1+0.0606114933787568i | AA131: 1.001835193 | AB131: 0.06053743267 | AC131: 5.0737832211233-1.94964257500401i | AD131: 5.435474436 | AE131: -0.3668626009 | AF131: -0.859494535192174-2.83290693897706i | AG131: 9.427069567 | AH131: -106.8776227 | AI131: 73.1223773 | AL131: 14.70474915 | AM131: -21.0196787 | AO131: 54.69137507 | AP131: -85.85794401 | AV131: 0 | AW131: 0 | AX131: 0 | AY131: 0
B132: 7161.95 | C132: 2.49110906217071 | D132: 1+4.49998590107548i | E132: 4.609758465 | F132: 1.352126717 | G132: 1+0.00674997885161322i | H132: 1.000022781 | I132: 0.00674987634 | J132: 1-0.0566520591882134i | K132: 1.001603442 | L132: -0.0565915682 | M132: 0.999813901032916+0.101048268381918i | N132: 1.004907254 | O132: 0.1007250522 | P132: 0.0366542142786487-0.537386043773809i | Q132: 0.5386346549 | R132: -1.502693462 | S132: 6000 | T132: 1+3693.18396886997i | U132: 3693.184104 | V132: 1.570525558 | W132: 1+3.19552998807172i | X132: 3.348344651 | Y132: 1.267513264 | Z132: 1+0.0613173931780474i | AA132: 1.001878148 | AB132: 0.06124071856 | AC132: 5.07333789985229-1.93429247549183i | AD132: 5.42957133 | AE132: -0.3642530125 | AF132: -0.853502566416827-2.7972409536036i | AG132: 9.321196695 | AH132: -106.9681535 | AI132: 73.03184646 | AL132: 14.69531086 | AM132: -20.87016029 | AO132: 54.59494049 | AP132: -86.09799325 | AV132: 0 | AW132: 0 | AX132: 0 | AY132: 0
B133: 7244.4 | C133: 2.49110906217071 | D133: 1+4.55179076393318i | E133: 4.660343245 | F133: 1.354538149 | G133: 1+0.00682768614589977i | H133: 1.000023308 | I133: 0.006827580053 | J133: 1-0.0573042505997799i | K133: 1.001640543 | L133: -0.0572416491 | M133: 0.999809591541551+0.102211559067847i | N133: 1.005020608 | O133: 0.1018770964 | P133: 0.0340550673497339-0.531658500974782i | Q133: 0.532748073 | R133: -1.506829314 | S133: 6000 | T133: 1+3735.7007440825i | U133: 3735.700878 | V133: 1.570528639 | W133: 1+3.23231765728423i | X133: 3.383471211 | Y133: 1.270760474 | Z133: 1+0.0620232929773381i | AA133: 1.001921598 | AB133: 0.06194394381 | AC133: 5.07288796696956-1.91937177030677i | AD133: 5.423852903 | AE133: -0.3617121093 | AF133: -0.847692776841808-2.76240834703902i | AG133: 9.216595806 | AH133: -107.0595374 | AI133: 72.9404626 | AL133: 14.68615806 | AM133: -20.72457726 | AO133: 54.49949241 | AP133: -86.33496015 | AV133: 0 | AW133: 0 | AX133: 0 | AY133: 0
B134: 7328.75 | C134: 2.49110906217071 | D134: 1+4.60478943199924i | E134: 4.712121148 | F134: 1.356951558 | G134: 1+0.00690718414799886i | H134: 1.000023854 | I134: 0.006907074306 | J134: 1-0.0579714712858397i | K134: 1.001678936 | L134: -0.05790666051 | M134: 0.999805131695011+0.103401656937563i | N134: 1.005137903 | O134: 0.1030554234 | P134: 0.031481655591004-0.525911685403203i | Q134: 0.5268531062 | R134: -1.511006568 | S134: 6000 | T134: 1+3779.19728731083i | U134: 3779.19742 | V134: 1.57053172 | W134: 1+3.2699530714513i | X134: 3.419443389 | Y134: 1.27401344 | Z134: 1+0.0627454597216701i | AA134: 1.001966563 | AB134: 0.06266331088 | AC134: 5.07242287987116-1.90453642377668i | AD134: 5.418185385 | AE134: -0.359181591 | AF134: -0.84192969042415-2.72760442558467i | AG134: 9.110868106 | AH134: -107.1538884 | AI134: 72.84611161 | AL134: 14.67707721 | AM134: -20.57958924 | AO134: 54.40284556 | AP134: -86.57429915 | AV134: 0 | AW134: 0 | AX134: 0 | AY134: 0
B135: 7413.1 | C135: 2.49110906217071 | D135: 1+4.6577881000653i | E135: 4.7639259 | F135: 1.359312493 | G135: 1+0.00698668215009795i | H135: 1.000024407 | I135: 0.006986568471 | J135: 1-0.0586386919718994i | K135: 1.001717773 | L135: -0.05857162065 | M135: 0.999800620220916+0.104591754807279i | N135: 1.005256542 | O135: 0.1042334791 | P135: 0.0289912594711761-0.520275779584089i | Q135: 0.5210828916 | R135: -1.515131024 | S135: 6000 | T135: 1+3822.69383053917i | U135: 3822.693961 | V135: 1.570534731 | W135: 1+3.30758848561837i | X135: 3.455450997 | Y135: 1.277198644 | Z135: 1+0.0634676264660021i | AA135: 1.002012046 | AB135: 0.06338261302 | AC135: 5.07195293951913-1.89012041109458i | AD135: 5.412694504 | AE135: -0.3567186998 | AF135: -0.836341566694838-2.69361124089194i | AG135: 9.006406608 | AH135: -107.249089 | AI135: 72.75091096 | AL135: 14.66827032 | AM135: -20.43847597 | AO135: 54.30719095 | AP135: -86.81061307 | AV135: 0 | AW135: 0 | AX135: 0 | AY135: 0
B136: 7499.45 | C136: 2.49110906217071 | D136: 1+4.7120434051928i | E136: 4.816985889 | F136: 1.361676791 | G136: 1+0.0070680651077892i | H136: 1.000024978 | I136: 0.00706794741 | J136: 1-0.0593217329468996i | K136: 1.001757989 | L136: -0.05925229377 | M136: 0.999795948298222+0.105810070765193i | N136: 1.005379386 | O136: 0.1054391832 | P136: 0.0265242212472803-0.514617984489231i | Q136: 0.5153010812 | R136: -1.51930032 | S136: 6000 | T136: 1+3867.221708521i | U136: 3867.221838 | V136: 1.570537743 | W136: 1+3.34611626289551i | X136: 3.492347927 | Y136: 1.280391303 | Z136: 1+0.0642069163103775i | AA136: 1.002059144 | AB136: 0.06411890231 | AC136: 5.07146681669842-1.87578213131573i | AD136: 5.407248309 | AE136: -0.3542653427 | AF136: -0.830794511864266-2.65962169187607i | AG136: 8.900747344 | AH136: -107.3474051 | AI136: 72.65259487 | AL136: 14.65952627 | AM136: -20.29790897 | AO136: 54.21027573 | AP136: -87.04949616 | AV136: 0 | AW136: 0 | AX136: 0 | AY136: 0
B137: 7585.8 | C137: 2.49110906217071 | D137: 1+4.76629871032029i | E137: 4.870072217 | F137: 1.363989557 | G137: 1+0.00714944806548043i | H137: 1.000025557 | I137: 0.007149326255 | J137: 1-0.0600047739218997i | K137: 1.001798669 | L137: -0.05993291192 | M137: 0.999791222270694+0.107028386723106i | N137: 1.005503637 | O137: 0.1066445967 | P137: 0.0241370871308942-0.509070140759348i | Q137: 0.5096420383 | R137: -1.52341774 | S137: 6000 | T137: 1+3911.74958650282i | U137: 3911.749714 | V137: 1.570540687 | W137: 1+3.38464404017265i | X137: 3.529279711 | Y137: 1.283517174 | Z137: 1+0.0649462061547529i | AA137: 1.002106786 | AB137: 0.06485512198 | AC137: 5.07097558305182-1.8618538838218i | AD137: 5.401971237 | AE137: -0.3518786347 | AF137: -0.825415639223744-2.62642198327021i | AG137: 8.796350229 | AH137: -107.4465676 | AI137: 72.55343241 | AL137: 14.65104535 | AM137: -20.16116067 | AO137: 54.11435954 | AP137: -87.28540692 | AV137: 0 | AW137: 0 | AX137: 0 | AY137: 0
B138: 7674.15 | C138: 2.49110906217071 | D138: 1+4.82181065250922i | E138: 4.92441448 | F138: 1.366304269 | G138: 1+0.00723271597876383i | H138: 1.000026156 | I138: 0.007232589863 | J138: 1-0.0607036351858402i | K138: 1.001840771 | L138: -0.0606292367 | M138: 0.999786330781959+0.108274920769217i | N138: 1.005632222 | O138: 0.1078776252 | P138: 0.0217739056409134-0.503504450722129i | Q138: 0.503975034 | R138: -1.527578541 | S138: 6000 | T138: 1+3957.30879923813i | U138: 3957.308926 | V138: 1.57054363 | W138: 1+3.42406418055985i | X138: 3.567101837 | Y138: 1.286648421 | Z138: 1+0.0657026190991717i | AA138: 1.002156093 | AB138: 0.06560832078 | AC138: 5.07046767028412-1.84801293835788i | AD138: 5.396739221 | AE138: -0.3495035299 | AF138: -0.820078854847204-2.59324149857371i | AG138: 8.690809111 | AH138: -107.5488804 | AI138: 72.45111956 | AL138: 14.64262865 | AM138: -20.02507719 | AO138: 54.01723511 | AP138: -87.52380325 | AV138: 0 | AW138: 0 | AX138: 0 | AY138: 0
B139: 7762.5 | C139: 2.49110906217071 | D139: 1+4.87732259469815i | E139: 4.978782551 | F139: 1.368568439 | G139: 1+0.00731598389204722i | H139: 1.000026761 | I139: 0.00731585337 | J139: 1-0.0614024964497807i | K139: 1.00188336 | L139: -0.06132550262 | M139: 0.999781382653061+0.109521454815328i | N139: 1.005762279 | O139: 0.1091103428 | P139: 0.0194875287612929-0.4980475743637i | Q139: 0.4984286811 | R139: -1.531688431 | S139: 6000 | T139: 1+4002.86801197344i | U139: 4002.868137 | V139: 1.570546506 | W139: 1+3.46348432094705i | X139: 3.604958202 | Y139: 1.289713933 | Z139: 1+0.0664590320435905i | AA139: 1.002205968 | AB139: 0.06636144504 | AC139: 5.06995438447115-1.83457248740172i | AD139: 5.391668913 | AE139: -0.3471940177 | AF139: -0.814903495458982-2.56082976743338i | AG139: 8.586524811 | AH139: -107.6520345 | AI139: 72.34796551 | AL139: 14.63446431 | AM139: -19.89275188 | AO139: 53.92111516 | AP139: -87.7592826 | AV139: 0 | AW139: 0 | AX139: 0 | AY139: 0
B140: 7852.9 | C140: 2.49110906217071 | D140: 1+4.93412258987506i | E140: 5.034437976 | F140: 1.370834515 | G140: 1+0.00740118388481259i | H140: 1.000027388 | I140: 0.00740104875 | J140: 1-0.0621175735098851i | K140: 1.001927439 | L140: -0.0620378625 | M140: 0.999776261085134+0.110796912401841i | N140: 1.005896877 | O140: 0.1103713378 | P140: 0.0172242641434627-0.49257355989535i | Q140: 0.4928746161 | R140: -1.535842666 | S140: 6000 | T140: 1+4049.48434283108i | U140: 4049.484466 | V140: 1.570549382 | W140: 1+3.50381913352208i | X140: 3.643727284 | Y140: 1.292784614 | Z140: 1+0.0672329961655539i | AA140: 1.00225759 | AB140: 0.06713196614 | AC140: 5.06942361665683-1.82122056400402i | AD140: 5.386640897 | AE140: -0.3448967341 | AF140: -0.809768005137672-2.52843322153213i | AG140: 8.481089516 | AH140: -107.75843 | AI140: 72.24156999 | AL140: 14.62636048 | AM140: -19.76112723 | AO140: 53.82378369 | AP140: -87.99730278 | AV140: 0 | AW140: 0 | AX140: 0 | AY140: 0
B141: 7943.3 | C141: =COMPLEX(Am*Afb,0) -> 2.49110906217071 | D141: =IMSUM(COMPLEX(1,0),IMDIV(COMPLEX(0,2*PI()*B141),COMPLEX(2*PI()*PS_Pole1,0))) -> 1+4.99092258505196i | E141: 5.090118687 | F141: 1.373051025 | G141: =IMSUM(COMPLEX(1,0),IMDIV(COMPLEX(0,2*PI()*B141),COMPLEX(2*PI()*PS_Zero1,0))) -> 1+0.00748638387757794i | H141: 1.000028023 | I141: 0.007486244022 | J141: =IF(VIN_nom>Vout, 1,IMSUB(COMPLEX(1,0),IMDIV(COMPLEX(0,2*PI()*B141),COMPLEX(2*PI()*PS_RHPZ,0)))) -> 1-0.0628326505699894i | K141: 1.001972027 | L141: -0.06275015933 | M141: =IMSUM(COMPLEX(1,0),IMDIV(COMPLEX(0,2*PI()*B141),COMPLEX(Q*(2*PI()*PS_Pole2/2),0)),IMDIV(IMPOWER(COMPLEX(0,2*PI()*B141),2),IMPOWER(COMPLEX(2*PI()*PS_Pole2/2,0),2))) -> 0.999771080218086+0.112072369988353i | N141: 1.006033016 | O141: 0.111632 | P141: 0.0150348122355651-0.487207177161153i | Q141: 0.4874391029 | R141: -1.53994694 | S141: =COMPLEX(AEA,0) -> 6000 | T141: =IMSUM(COMPLEX(1,0),IMDIV(COMPLEX(0,2*PI()*B141),COMPLEX(2*PI()*EA_Pole1,0))) -> 1+4096.10067368871i | U141: 4096.100796 | V141: 1.570552192 | W141: =IMSUM(COMPLEX(1,0),IMDIV(COMPLEX(0,2*PI()*B141),COMPLEX(2*PI()*EA_Zero1,0))) -> 1+3.5441539460971i | X141: 3.682529999 | Y141: 1.295790611 | Z141: =IMSUM(COMPLEX(1,0),IMDIV(COMPLEX(0,2*PI()*B141),COMPLEX(2*PI()*EA_Pole2,0))) -> 1+0.0680069602875173i | AA141: 1.002309806 | AB141: 0.06790240741 | AC141: 5.06888720279562-1.80825984472289i | AD141: 5.381767474 | AE141: -0.3426639888 | AF141: =IMPRODUCT(P141,AC141) -> -0.804787407184013-2.49678507266087i | AG141: 8.376905908 | AH141: -107.8656607 | AI141: =IF(AH141>0,AH141-180,AH141+180) -> 72.13433929 | AL141: =20*LOG10(IMABS(AC141)) -> 14.61849859 | AM141: =(180/PI())*IMARGUMENT(AC141) -> -19.63320035 | AO141: =20*LOG10(IMABS(IMPRODUCT(COMPLEX(Am/Afb,0),P141))) -> 53.72746198 | AP141: =180/PI()*IMARGUMENT(IMPRODUCT(COMPLEX(Am/Afb,0),P141)) -> -88.23246036 | AV141: =SUM((AG142<0)*(AG141>0))*B141 -> 0 | AW141: 0 | AX141: =SUM((AL142<0)*(AL141>0))*B141 -> 0 | AY141: =IF(AX141>0,AM141,0) -> 0
B142: 8035.8 | C142: 2.49110906217071 | D142: 1+5.04904204914337i | E142: 5.147118185 | F142: 1.375269374 | G142: 1+0.00757356307371505i | H142: 1.000028679 | I142: 0.007573418275 | J142: 1-0.0635643389334812i | K142: 1.002018176 | L142: -0.06347893689 | M142: 0.999765717617633+0.113377456567473i | N142: 1.00617391 | O142: 0.1129215991 | P142: =(IMDIV(IMPRODUCT(C142,G142,J142),IMPRODUCT(D142,M142))) -> 0.012867689618547-0.481824395288641i | Q142: 0.4819961881 | R142: -1.544096492 | S142: 6000 | T142: 1+4143.79990603751i | U142: 4143.800027 | V142: 1.570555002 | W142: 1+3.58542573993769i | X142: 3.722267822 | Y142: 1.298801537 | Z142: 1+0.0687989036645262i | AA142: 1.002363851 | AB142: 0.06869066253 | AC142: 5.06833247402256-1.79538915906394i | AD142: 5.376933727 | AE142: -0.3404441281 | AF142: -0.79984456671444-2.46514873986104i | AG142: 8.271565744 | AH142: -107.9762239 | AI142: 72.02377615 | AL142: 14.61069367 | AM142: -19.5060117 | AO142: 53.62992673 | AP142: -88.47021215 | AV142: 0 | AW142: 0 | AX142: 0 | AY142: 0
B143: 8128.3 | C143: 2.49110906217071 | D143: 1+5.10716151323478i | E143: 5.204142458 | F143: 1.377439119 | G143: 1+0.00766074226985217i | H143: 1.000029343 | I143: 0.007660592413 | J143: 1-0.0642960272969729i | K143: 1.002064858 | L143: -0.06420764693 | M143: 0.999760292931011+0.114682543146593i | N143: 1.006316416 | O143: 0.114210842 | P143: 0.0107714909428134-0.476548020763263i | Q143: 0.4766697401 | R143: -1.548197015 | S143: 6000 | T143: 1+4191.4991383863i | U143: 4191.499258 | V143: 1.570557749 | W143: 1+3.62669753377828i | X143: 3.762038676 | Y143: 1.301748828 | Z143: 1+0.0695908470415351i | AA143: 1.002418518 | AB143: 0.06947883217 | AC143: 5.06777181503439-1.7829006147977i | AD143: 5.372247739 | AE143: -0.3382877525 | AF143: -0.795050300993561-2.43424112595872i | AG143: 8.167472295 | AH143: -108.0876153 | AI143: 71.91238468 | AL143: 14.60312064 | AM143: -19.38246048 | AO143: 53.53340632 | AP143: -88.70515484 | AV143: 0 | AW143: 0 | AX143: 0 | AY143: 0
B144: 8222.95 | C144: 2.49110906217071 | D144: 1+5.16663186216724i | E144: 5.262516964 | F144: 1.37961061 | G144: 1+0.00774994779325086i | H144: 1.00003003 | I144: 0.007749792641 | J144: 1-0.0650447224710756i | K144: 1.002113175 | L144: -0.06495322388 | M144: 0.999754677889515+0.116017964170525i | N144: 1.006463901 | O144: 0.1155296782 | P144: 0.00869688899224311-0.471256009593721i | Q144: 0.471336252 | R144: -1.55234372 | S144: 6000 | T144: 1+4240.30705559511i | U144: 4240.307174 | V144: 1.570560495 | W144: 1+3.6689286179622i | X144: 3.802767046 | Y144: 1.304700784 | Z144: 1+0.0704011977510909i | AA144: 1.002475101 | AB144: 0.07028523192 | AC144: 5.06719197726123-1.77050385075945i | AD144: 5.367598944 | AE144: -0.3361449423 | AF144: -0.790291773550589-2.40334254649984i | AG144: 8.062218056 | AH144: -108.20243 | AI144: 71.79756999 | AL144: 14.59560118 | AM144: -19.2596865 | AO144: 53.43567154 | AP144: -88.94274351 | AV144: 0 | AW144: 0 | AX144: 0 | AY144: 0
B145: 8270.275 | C145: 2.49110906217071 | D145: 1+5.19636703663347i | E145: =IMABS(D145) -> 5.291713369 | F145: =IMARGUMENT(D145) -> 1.380678388 | G145: 1+0.0077945505549502i | H145: =IMABS(G145) -> 1.000030377 | I145: =IMARGUMENT(G145) -> 0.007794392708 | J145: 1-0.065419070058127i | K145: =IMABS(J145) -> 1.002137543 | L145: =IMARGUMENT(J145) -> -0.06532598529 | M145: 0.999751845991562+0.116685674682491i | N145: =IMABS(M145) -> 1.006538276 | O145: =IMARGUMENT(M145) -> 0.1161889537 | P145: 0.00768532067471592-0.468649622713081i | Q145: =IMABS(P145) -> 0.4687126337 | R145: =IMARGUMENT(P145) -> -1.554398934 | S145: 6000 | T145: 1+4264.71101419951i | U145: =IMABS(T145) -> 4264.711131 | V145: =IMARGUMENT(T145) -> 1.570561844 | W145: 1+3.69004416005416i | X145: =IMABS(W145) -> 3.823143458 | Y145: =IMARGUMENT(W145) -> 1.30615317 | Z145: 1+0.0708063731058688i | AA145: =IMABS(Z145) -> 1.002503637 | AB145: =IMARGUMENT(Z145) -> 0.07068839754 | AC145: =IMPRODUCT(S145,IMDIV(W145,IMPRODUCT(T145,Z145))) -> 5.06689972412835-1.76444625708426i | AD145: =IMABS(AC145) -> 5.365327894 | AE145: =IMARGUMENT(AC145) -> -0.3350970714 | AF145: -0.78796632347349-2.38816097933676i | AG145: =20*LOG10(IMABS(AF145)) -> 8.010058561 | AH145: =(180/PI())*IMARGUMENT(AF145) -> -108.2601465 | AI145: 71.73985347 | AL145: 14.59192537 | AM145: -19.19964792 | AO145: 53.38718785 | AP145: -89.06049861 | AV145: 0 | AW145: 0 | AX145: 0 | AY145: 0
B146: 8317.6 | C146: 2.49110906217071 | D146: 1+5.22610221109969i | E146: 5.320915741 | F146: 1.381734446 | G146: 1+0.00783915331664953i | H146: 1.000030726 | I146: 0.007838992745 | J146: 1-0.0657934176451782i | K146: 1.00216205 | L146: -0.06569872852 | M146: 0.999748997842141+0.117353385194457i | N146: 1.006613071 | O146: 0.1168481333 | P146: 0.00669042133954236-0.466069140884253i | Q146: 0.4661171589 | R146: -1.556442315 | S146: 6000 | T146: 1+4289.1149728039i | U146: 4289.115089 | V146: 1.570563178 | W146: 1+3.71115970214611i | X146: 3.84352785 | Y146: 1.307590154 | Z146: 1+0.0712115484606465i | AA146: 1.002532336 | AB146: 0.07109154013 | AC146: 5.06660591355692-1.75848037570635i | AD146: 5.363091339 | AE146: -0.3340645647 | AF146: -0.785675709644164-2.37315363996134i | AG146: 7.958205684 | AH146: -108.3180654 | AI146: 71.68193464 | AL146: 14.58830387 | AM146: -19.14048964 | AO146: 53.33895647 | AP146: -89.17757572 | AV146: 0 | AW146: 0 | AX146: 0 | AY146: 0
B147: 8366.05 | C147: 2.49110906217071 | D147: 1+5.25654424391298i | E147: 5.350818385 | F147: 1.382803666 | G147: 1+0.00788481636586947i | H147: 1.000031085 | I147: 0.007884652971 | J147: 1-0.0661766641447585i | K147: 1.002187283 | L147: -0.06608031358 | M147: 0.999746065151556+0.118036968381034i | N147: 1.006690082 | O147: 0.1175228829 | P147: 0.00568877135901708-0.463453764017465i | Q147: 0.4634886768 | R147: -1.55852221 | S147: 6000 | T147: 1+4314.09905720714i | U147: 4314.099173 | V147: 1.570564529 | W147: 1+3.73277719848749i | X147: 3.864404949 | Y147: 1.309045589 | Z147: 1+0.0716263555591988i | AA147: 1.002561886 | AB147: 0.07150424217 | AC147: 5.06630350423085-1.75246604979281i | AD147: 5.360836544 | AE147: -0.3330231817 | AF147: -0.78336594481834-2.35796680736237i | AG147: 7.905433882 | AH147: -108.3775677 | AI147: 71.6224323 | AL147: 14.58465131 | AM147: -19.08082279 | AO147: 53.28983723 | AP147: -89.2967449 | AV147: 0 | AW147: 0 | AX147: 0 | AY147: 0
B148: 8414.5 | C148: 2.49110906217071 | D148: 1+5.28698627672626i | E148: 5.380727078 | F148: 1.383861001 | G148: 1+0.00793047941508939i | H148: 1.000031446 | I148: 0.007930313165 | J148: 1-0.0665599106443387i | K148: 1.002212663 | L148: -0.06646187937 | M148: 0.999743115427664+0.11872055156761i | N148: 1.006767533 | O148: 0.1181975311 | P148: 0.00470385425033462-0.460864756494345i | Q148: 0.460888761 | R148: -1.560590098 | S148: 6000 | T148: 1+4339.08314161037i | U148: 4339.083257 | V148: 1.570565863 | W148: 1+3.75439469482885i | X148: 3.885290147 | Y148: 1.31048538 | Z148: 1+0.072041162657751i | AA148: 1.002591606 | AB148: 0.07191691981 | AC148: 5.06599946068193-1.74654456821945i | AD148: 5.358616283 | AE148: -0.331997403 | AF148: -0.781091114043656-2.34295609893828i | AG148: 7.852975543 | AH148: -108.4372762 | AI148: 71.5627238 | AL148: 14.58105319 | AM148: -19.02205 | AO148: 53.24097701 | AP148: -89.41522619 | AV148: 0 | AW148: 0 | AX148: 0 | AY148: 0
B149: 8462.95 | C149: 2.49110906217071 | D149: 1+5.31742830953955i | E149: 5.41064172 | F149: 1.384906646 | G149: 1+0.00797614246430932i | H149: 1.000031809 | I149: 0.007975973326 | J149: 1-0.0669431571439191i | K149: 1.002238188 | L149: -0.06684342579 | M149: 0.999740148670467+0.119404134754187i | N149: 1.006845426 | O149: 0.1188720771 | P149: 0.00373531134989028-0.458301733426082i | Q149: 0.4583169552 | R149: -1.562646175 | S149: 6000 | T149: 1+4364.06722601361i | U149: 4364.067341 | V149: 1.570567183 | W149: 1+3.77601219117023i | X149: 3.906183312 | Y149: 1.311909772 | Z149: 1+0.0724559697563033i | AA149: 1.002621498 | AB149: 0.07232957291 | AC149: 5.06569378204067-1.7407143279703i | AD149: 5.356429769 | AE149: -0.3309869837 | AF149: -0.778850450429281-2.32811835130115i | AG149: 7.80082678 | AH149: -108.4971879 | AI149: 71.50281205 | AL149: 14.5775083 | AM149: -18.96415724 | AO149: 53.19237314 | AP149: -89.53303071 | AV149: 0 | AW149: 0 | AX149: 0 | AY149: 0
B150: 8511.4 | C150: 2.49110906217071 | D150: 1+5.34787034235283i | E150: 5.440562213 | F150: 1.38594079 | G150: 1+0.00802180551352924i | H150: 1.000032174 | I150: 0.008021633454 | J150: 1-0.0673264036434993i | K150: 1.00226386 | L150: -0.06722495271 | M150: 0.999737164879964+0.120087717940764i | N150: 1.00692376 | O150: 0.1195465205 | P150: 0.00278279346688817-0.455764316918981i | Q150: 0.4557728124 | R150: -1.56469063 | S150: 6000 | T150: 1+4389.05131041684i | U150: 4389.051424 | V150: 1.570568487 | W150: 1+3.79762968751159i | X150: 3.927084318 | Y150: 1.313319005 | Z150: 1+0.0728707768548555i | AA150: 1.00265156 | AB150: 0.07274220134 | AC150: 5.06538646748284-1.7349737624833i | AD150: 5.354276237 | AE150: -0.3299916839 | AF150: -0.776643207361581-2.31345047693443i | AG150: 7.748983774 | AH150: -108.5573001 | AI150: 71.44269992 | AL150: 14.57401547 | AM150: -18.90713076 | AO150: 53.14402296 | AP150: -89.65016932 | AV150: 0 | AW150: 0 | AX150: 0 | AY150: 0
B151: 8560.95 | C151: 2.49110906217071 | D151: 1+5.37900352554991i | E151: 5.471167967 | F151: 1.386986713 | G151: 1+0.00806850528832486i | H151: 1.00003255 | I151: 0.008068330207 | J151: 1-0.0677183513019968i | K151: 1.002290265 | L151: -0.06761512148 | M151: 0.999734095728245+0.120786821075849i | N151: 1.007004329 | O151: 0.1202361696 | P151: 0.00182487039382125-0.453195389941245i | Q151: 0.453199064 | R151: -1.566769674 | S151: 6000 | T151: 1+4414.6026289345i | U151: 4414.602742 | V151: 1.570569806 | W151: 1+3.8197379835635i | X151: 3.948467837 | Y151: 1.314744798 | Z151: 1+0.0732950016584318i | AA151: 1.002682481 | AB151: 0.07316417234 | AC151: 5.06507048284772-1.72919402059471i | AD151: 5.352107151 | AE151: -0.3289891803 | AF151: -0.774419661280722-2.29862214752742i | AG151: 7.696276076 | AH151: -108.6189813 | AI151: 71.38101868 | AL151: 14.57049599 | AM151: -18.84969153 | AO151: 53.09483474 | AP151: -89.76928978 | AV151: 0 | AW151: 0 | AX151: 0 | AY151: 0
B152: 8610.5 | C152: 2.49110906217071 | D152: 1+5.41013670874698i | E152: 5.50177964 | F152: 1.388020998 | G152: 1+0.00811520506312047i | H152: 1.000032928 | I152: 0.008115026924 | J152: 1-0.0681102989604942i | K152: 1.002316823 | L152: -0.06800526963 | M152: 0.999731008760998+0.121485924210935i | N152: 1.007085359 | O152: 0.1209257101 | P152: 0.000882998581991407-0.450652467770086i | Q152: 0.4506533328 | R152: -1.568836951 | S152: 6000 | T152: 1+4440.15394745215i | U152: 4440.15406 | V152: 1.570571109 | W152: 1+3.84184627961541i | X152: 3.969859297 | Y152: 1.316155228 | Z152: 1+0.0737192264620079i | AA152: 1.00271358 | AB152: 0.07358611725 | AC152: 5.0647527855652-1.72350486971116i | AD152: 5.349971011 | AE152: -0.3280019982 | AF152: -0.772229553221304-2.28396519381638i | AG152: 7.64388032 | AH152: -108.6808662 | AI152: 71.31913378 | AL152: 14.56702858 | AM152: -18.79313017 | AO152: 53.0459064 | AP152: -89.88773605 | AV152: 0 | AW152: 0 | AX152: 0 | AY152: 0
B153: 8660.05 | C153: 2.49110906217071 | D153: 1+5.44126989194406i | E153: 5.532397133 | F153: 1.389043837 | G153: 1+0.00816190483791609i | H153: 1.000033308 | I153: 0.008161723605 | J153: 1-0.0685022466189918i | K153: 1.002343533 | L153: -0.06839539705 | M153: 0.999727903978222+0.12218502734602i | N153: 1.00716685 | O153: 0.1216151415 | P153: -0.0000431666287735364-0.448135167961088i | Q153: 0.44813517 | R153: -1.570892652 | S153: 6000 | T153: 1+4465.7052659698i | U153: 4465.705378 | V153: 1.570572398 | W153: 1+3.86395457566732i | X153: 3.991258569 | Y153: 1.317550538 | Z153: 1+0.0741434512655841i | AA153: 1.002744859 | AB153: 0.0740080359 | AC153: 5.06443337489174-1.717904745832i | AD153: 5.347867063 | AE153: -0.3270298963 | AF153: -0.770072146330016-2.26947654492842i | AG153: 7.591792642 | AH153: -108.7429519 | AI153: 71.25704815 | AL153: 14.56361206 | AM153: -18.73743283 | AO153: 52.99723524 | AP153: -90.00551902 | AV153: 0 | AW153: 0 | AX153: 0 | AY153: 0
B154: 8709.6 | C154: 2.49110906217071 | D154: 1+5.47240307514113i | E154: 5.56302035 | F154: 1.390055415 | G154: 1+0.00820860461271169i | H154: 1.00003369 | I154: 0.008208420252 | J154: 1-0.0688941942774892i | K154: 1.002370396 | L154: -0.06878550361 | M154: 0.999724781379918+0.122884130481105i | N154: 1.007248801 | O154: 0.1223044631 | P154: -0.000953960771231303-0.445643115107924i | Q154: 0.4456441361 | R154: -1.572936962 | S154: 6000 | T154: 1+4491.25658448745i | U154: 4491.256696 | V154: 1.570573672 | W154: 1+3.88606287171922i | X154: 4.012665528 | Y154: 1.318930962 | Z154: 1+0.0745676760691602i | AA154: 1.002776315 | AB154: 0.07442992816 | AC154: 5.06411225012748-1.71239212049889i | AD154: 5.345794577 | AE154: -0.3260726383 | AF154: -0.767946723293122-2.25515320349509i | AG154: 7.540009249 | AH154: -108.8052353 | AI154: 71.19476465 | AL154: 14.56024532 | AM154: -18.68258599 | AO154: 52.94881859 | AP154: -90.12264936 | AV154: 0 | AW154: =IF(AV154>0,AI154,0) -> 0 | AX154: 0 | AY154: 0
B155: 8760.325 | C155: 2.49110906217071 | D155: 1+5.5042745326118i | E155: 5.59437558 | F155: 1.391079509 | G155: 1+0.0082564117989177i | H155: 1.000034084 | I155: 0.008256224198 | J155: 1-0.0692954363557391i | K155: 1.002398053 | L155: -0.06918483922 | M155: 0.999721566279889+0.123599811743006i | N155: 1.007333174 | O155: 0.1230100167 | P155: -0.001870771841534-0.443117734545981i | Q155: 0.4431216836 | R155: -1.575018141 | S155: 6000 | T155: 1+4517.41381217278i | U155: 4517.413923 | V155: 1.570574961 | W155: 1+3.90869543109829i | X155: 4.034587956 | Y155: 1.320328944 | Z155: 1+0.0750019606940119i | AA155: 1.002808703 | AB155: 0.07486179744 | AC155: 5.06378173416718-1.70683784794038i | AD155: 5.343704791 | AE155: -0.3251078145 | AF155: -0.765803300696633-2.24065838609549i | AG155: 7.4873092 | AH155: -108.8691978 | AI155: 71.13080221 | AL155: 14.55684916 | AM155: -18.62730566 | AO155: 52.8995147 | AP155: -90.24189213 | AV155: 0 | AW155: 0 | AX155: 0 | AY155: 0
B156: 8811.05 | C156: 2.49110906217071 | D156: 1+5.53614599008247i | E156: 5.625736612 | F156: 1.392092186 | G156: 1+0.0083042189851237i | H156: 1.000034479 | I156: 0.008304028107 | J156: 1-0.0696966784339891i | K156: 1.002425871 | L156: -0.06958415273 | M156: 0.999718332509379+0.124315493004907i | N156: 1.007418029 | O156: 0.123715454 | P156: -0.00277215771997395-0.440618038311867i | Q156: 0.4406267588 | R156: -1.577087765 | S156: 6000 | T156: 1+4543.57103985811i | U156: 4543.57115 | V156: 1.570576236 | W156: 1+3.93132799047737i | X156: 4.056518183 | Y156: 1.321711814 | Z156: 1+0.0754362453188636i | AA156: 1.002841277 | AB156: 0.07529363873 | AC156: 5.06344942050844-1.70137214112379i | AD156: 5.341646487 | AE156: -0.3241580608 | AF156: -0.763691935661186-2.22633067884022i | AG156: 7.434920213 | AH156: -108.9333616 | AI156: 71.06663837 | AL156: 14.55350286 | AM156: -18.57288878 | AO156: 52.85047202 | AP156: -90.36047285 | AV156: 0 | AW156: 0 | AX156: 0 | AY156: 0
B157: 8861.775 | C157: 2.49110906217071 | D157: 1+5.56801744755314i | E157: 5.657103349 | F157: 1.393093634 | G157: 1+0.00835202617132971i | H157: 1.000034878 | I157: 0.008351831977 | J157: 1-0.070097920512239i | K157: 1.002453849 | L157: -0.06998344401 | M157: 0.999715080068388+0.125031174266809i | N157: 1.007503368 | O157: 0.1244207745 | P157: -0.00365845048375281-0.438143645620306i | Q157: 0.4381589192 | R157: -1.579146021 | S157: 6000 | T157: 1+4569.72826754344i | U157: 4569.728377 | V157: 1.570577495 | W157: 1+3.95396054985644i | X157: 4.078456084 | Y157: 1.323079809 | Z157: 1+0.0758705299437153i | AA157: 1.002874039 | AB157: 0.0757254519 | AC157: 5.06311530853397-1.69599346954511i | AD157: 5.339618945 | AE157: -0.3232231385 | AF157: -0.761611918344528-2.21216709134795i | AG157: 7.382838438 | AH157: -108.9977239 | AI157: 71.00227608 | AL157: 14.55020531 | AM157: -18.51932168 | AO157: 52.80168779 | AP157: -90.47840224 | AV157: 0 | AW157: 0 | AX157: 0 | AY157: 0
B158: 8912.5 | C158: 2.49110906217071 | D158: 1+5.59988890502381i | E158: 5.688475696 | F158: 1.394084038 | G158: 1+0.00839983335753571i | H158: 1.000035278 | I158: 0.00839963581 | J158: 1-0.070499162590489i | K158: 1.002481986 | L158: -0.07038271294 | M158: 0.999711808956916+0.12574685552871i | N158: 1.007589188 | O158: 0.1251259774 | P158: -0.00452997338503629-0.435694182782039i | Q158: 0.4357177315 | R158: -1.581193092 | S158: 6000 | T158: 1+4595.88549522877i | U158: 4595.885604 | V158: 1.570578741 | W158: 1+3.97659310923551i | X158: 4.100401536 | Y158: 1.324433163 | Z158: 1+0.076304814568567i | AA158: 1.002906987 | AB158: 0.07615723677 | AC158: 5.06277939766873-1.6907003374912i | AD158: 5.337621461 | AE158: -0.3223028142 | AF158: -0.759562557798295-2.19816470474211i | AG158: 7.331060094 | AH158: -109.0622817 | AI158: 70.93771825 | AL158: 14.54695542 | AM158: -18.46659098 | AO158: 52.75315934 | AP158: -90.59569077 | AV158: 0 | AW158: 0 | AX158: 0 | AY158: 0
B159: 8964.4 | C159: 2.49110906217071 | D159: 1+5.63249863676807i | E159: 5.720580468 | F159: 1.395086138 | G159: 1+0.0084487479551521i | H159: 1.00003569 | I159: 0.008448546936 | J159: 1-0.0709096990884914i | K159: 1.00251094 | L159: -0.07079120732 | M159: 0.999708442748807+0.126479114917427i | N159: 1.007677497 | O159: 0.1258473935 | P159: -0.00540672551390436-0.433213400574877i | Q159: 0.4332471386 | R159: -1.583276192 | S159: 6000 | T159: 1+4622.64863208177i | U159: 4622.64874 | V159: 1.570580001 | W159: 1+3.99974993194175i | X159: 4.122863024 | Y159: 1.325802953 | Z159: 1+0.0767491590146941i | AA159: 1.002940892 | AB159: 0.07659899411 | AC159: 5.06243384328904-1.68537160475746i | AD159: 5.335608106 | AE159: -0.3213760418 | AF159: -0.757496754352281-2.18400183878074i | AG159: 7.278392536 | AH159: -109.1285344 | AI159: 70.87146557 | AL159: 14.54367847 | AM159: -18.41349083 | AO159: 52.70376872 | AP159: -90.7150436 | AV159: 0 | AW159: 0 | AX159: 0 | AY159: 0
B160: 9016.3 | C160: 2.49110906217071 | D160: 1+5.66510836851233i | E160: 5.752690921 | F160: 1.396077053 | G160: 1+0.00849766255276849i | H160: 1.000036104 | I160: 0.008497458022 | J160: 1-0.0713202355864938i | K160: 1.002540062 | L160: -0.07119967804 | M160: 0.999705056995229+0.127211374306144i | N160: 1.00776631 | O160: 0.1265686851 | P160: -0.00626867312554514-0.43075794718545i | Q160: 0.4308035577 | R160: -1.585347958 | S160: 6000 | T160: 1+4649.41176893477i | U160: 4649.411876 | V160: 1.570581246 | W160: 1+4.02290675464798i | X160: 4.145332165 | Y160: 1.327157895 | Z160: 1+0.0771935034608213i | AA160: 1.002974993 | AB160: 0.0770407215 | AC160: 5.06208640462595-1.68012935977669i | AD160: 5.333624793 | AE160: -0.3204640719 | AF160: -0.755461639027277-2.17000176636698i | AG160: 7.226034842 | AH160: -109.1949858 | AI160: 70.80501416 | AL160: 14.54044922 | AM160: -18.36123881 | AO160: 52.65464028 | AP160: -90.83374704 | AV160: 0 | AW160: 0 | AX160: 0 | AY160: 0
B161: 9068.2 | C161: 2.49110906217071 | D161: 1+5.69771810025659i | E161: 5.784806959 | F161: 1.397056965 | G161: 1+0.00854657715038488i | H161: 1.000036521 | I161: 0.008546369067 | J161: 1-0.0717307720844961i | K161: 1.002569351 | L161: -0.07160812496 | M161: 0.999701651696181+0.127943633694861i | N161: 1.007855627 | O161: 0.1272898518 | P161: -0.00711613554576253-0.428327444435186i | Q161: 0.4283865533 | R161: -1.587408573 | S161: 6000 | T161: 1+4676.17490578777i | U161: 4676.175013 | V161: 1.570582477 | W161: 1+4.04606357735421i | X161: 4.167808833 | Y161: 1.328498226 | Z161: 1+0.0776378479069485i | AA161: 1.00300929 | AB161: 0.07748241876 | AC161: 5.06173708119262-1.67497210724416i | AD161: 5.33167083 | AE161: -0.3195666694 | AF161: -0.753456529362888-2.15616157983953i | AG161: 7.173983181 | AH161: -109.261633 | AI161: 70.73836698 | AL161: 14.53726658 | AM161: -18.30982143 | AO161: 52.60577126 | AP161: -90.95181159 | AV161: 0 | AW161: 0 | AX161: 0 | AY161: 0
B162: 9120.1 | C162: 2.49110906217071 | D162: 1+5.73032783200085i | E162: 5.81692849 | F162: 1.398026057 | G162: 1+0.00859549174800127i | H162: 1.000036941 | I162: 0.008595280072 | J162: 1-0.0721413085824985i | K162: 1.002598807 | L162: -0.07201654795 | M162: 0.999698226851664+0.128675893083578i | N162: 1.00794545 | O162: 0.1280108927 | P162: -0.0079494235902399-0.425921521272099i | Q162: 0.4259956991 | R162: -1.589458217 | S162: 6000 | T162: 1+4702.93804264077i | U162: 4702.938149 | V162: 1.570583694 | W162: 1+4.06922040006045i | X162: 4.190292909 | Y162: 1.329824175 | Z162: 1+0.0780821923530756i | AA162: 1.003043782 | AB162: 0.07792408574 | AC162: 5.06138587254312-1.66989838583693i | AD162: 5.329745545 | AE162: -0.318683604 | AF162: -0.751480761119989-2.142478440957i | AG162: 7.122233792 | AH162: -109.3284731 | AI162: 70.67152693 | AL162: 14.5341295 | AM162: -18.25922551 | AO162: 52.55715895 | AP162: -91.06924756 | AV162: 0 | AW162: 0 | AX162: 0 | AY162: 0
B163: 9173.2 | C163: 2.49110906217071 | D163: 1+5.76369154598198i | E163: 5.849798307 | F163: 1.399006539 | G163: 1+0.00864553731897297i | H163: 1.000037372 | I163: 0.008645321924 | J163: 1-0.0725613372538652i | K163: 1.002629118 | L163: -0.07243438933 | M163: 0.999694702591419+0.129425083325213i | N163: 1.008037872 | O163: 0.1287484743 | P163: -0.00878762416199009-0.423485028788539i | Q163: 0.4235761938 | R163: -1.591544081 | S163: 6000 | T163: 1+4730.31998034586i | U163: 4730.320086 | V163: 1.570584925 | W163: 1+4.09291264063273i | X163: 4.21330439 | Y163: 1.331166134 | Z163: 1+0.078536810659229i | AA163: 1.003079274 | AB163: 0.07837593313 | AC163: 5.06102459193561-1.66479231401928i | AD163: 5.327804742 | AE163: -0.3177947239 | AF163: -0.749489003017913-2.12863857585198i | AG163: 7.069596871 | AH163: -109.3970552 | AI163: 70.60294483 | AL163: 14.530966 | AM163: -18.20829643 | AO163: 52.50768553 | AP163: -91.18875874 | AV163: 0 | AW163: 0 | AX163: 0 | AY163: 0
B164: 9226.3 | C164: 2.49110906217071 | D164: 1+5.7970552599631i | E164: 5.882673685 | F164: 1.399976064 | G164: 1+0.00869558288994465i | H164: 1.000037806 | I164: 0.008695363733 | J164: 1-0.0729813659252318i | K164: 1.002659603 | L164: -0.07285220538 | M164: 0.999691157871419+0.130174273566848i | N164: 1.008130821 | O164: 0.1294859229 | P164: -0.00961161941543523-0.421073502040508i | Q164: 0.4211831874 | R164: -1.593618828 | S164: 6000 | T164: 1+4757.70191805096i | U164: 4757.702023 | V164: 1.570586141 | W164: 1+4.116604881205i | X164: 4.236323376 | Y164: 1.332493511 | Z164: 1+0.0789914289653822i | AA164: 1.003114971 | AB164: 0.07882774847 | AC164: 5.06066133710785-1.65977069078112i | AD164: 5.325892593 | AE164: -0.3169203788 | AF164: -0.747526608114088-2.11495730766032i | AG164: 7.017268614 | AH164: -109.4658332 | AI164: 70.53416685 | AL164: 14.52784808 | AM164: -18.15820015 | AO164: 52.4584752 | AP164: -91.30763301 | AV164: 0 | AW164: 0 | AX164: 0 | AY164: 0
B165: 9279.4 | C165: 2.49110906217071 | D165: 1+5.83041897394422i | E165: 5.915554531 | F165: 1.400934811 | G165: 1+0.00874562846091633i | H165: 1.000038242 | I165: 0.008745405498 | J165: 1-0.0734013945965983i | K165: 1.002690264 | L165: -0.07326999595 | M165: 0.999687592691664+0.130923463808483i | N165: 1.008224299 | O165: 0.1302232378 | P165: -0.0104217162837206-0.418686565798084i | Q165: 0.4188162515 | R165: -1.595682639 | S165: 6000 | T165: 1+4785.08385575605i | U165: 4785.08396 | V165: 1.570587344 | W165: 1+4.14029712177727i | X165: 4.259349746 | Y165: 1.333806539 | Z165: 1+0.0794460472715354i | AA165: 1.003150873 | AB165: 0.07927953155 | AC165: 5.06029610770723-1.65483205535213i | AD165: 5.324008436 | AE165: -0.3160603371 | AF165: -0.745592920574109-2.10143180907927i | AG165: 6.965245209 | AH165: -109.5348041 | AI165: 70.46519594 | AL165: 14.5247747 | AM165: -18.10892339 | AO165: 52.40952517 | AP165: -91.42588067 | AV165: 0 | AW165: 0 | AX165: 0 | AY165: 0
B166: 9332.5 | C166: 2.49110906217071 | D166: 1+5.86378268792535i | E166: 5.948440755 | F166: 1.401882958 | G166: 1+0.00879567403188802i | H166: 1.000038681 | I166: 0.00879544722 | J166: 1-0.073821423267965i | K166: 1.002721099 | L166: -0.0736877609 | M166: 0.999684007052154+0.131672654050119i | N166: 1.008318304 | O166: 0.1309604182 | P166: -0.0112182134985369-0.41632385197605i | Q166: 0.4164749669 | R166: -1.59773569 | S166: 6000 | T166: 1+4812.46579346114i | U166: 4812.465897 | V166: 1.570588533 | W166: 1+4.16398936234955i | X166: 4.28238338 | Y166: 1.335105444 | Z166: 1+0.0799006655776887i | AA166: 1.00318698 | AB166: 0.07973128221 | AC166: 5.05992890342078-1.64997498014849i | AD166: 5.322151627 | AE166: -0.3152143717 | AF166: -0.743687302125518-2.08805932020254i | AG166: 6.913522914 | AH166: -109.603965 | AI166: 70.39603503 | AL166: 14.52174487 | AM166: -18.06045314 | AO166: 52.36083271 | AP166: -91.54351183 | AV166: 0 | AW166: 0 | AX166: 0 | AY166: 0
B167: 9386.85 | C167: 2.49110906217071 | D167: 1+5.89793180006987i | E167: 5.982106612 | F167: 1.402842629 | G167: 1+0.0088468977001048i | H167: 1.000039133 | I167: 0.008846666902 | J167: 1-0.0742513396199194i | K167: 1.002752842 | L167: -0.07411533356 | M167: 0.999680315817061+0.132439480596877i | N167: 1.008415068 | O167: 0.1317148121 | P167: -0.0120196804654665-0.413930226315451i | Q167: 0.4141047029 | R167: -1.599826108 | S167: 6000 | T167: 1+4840.49231538717i | U167: 4840.492419 | V167: 1.570589736 | W167: 1+4.18823932986562i | X167: 4.305966638 | Y167: 1.336420532 | Z167: 1+0.0803659858213691i | AA167: 1.003224148 | AB167: 0.08019363352 | AC167: 5.05955100951158-1.64508657365367i | AD167: 5.320278776 | AE167: -0.3143628374 | AF167: -0.741765244174031-2.07452767946835i | AG167: 6.860891042 | AH167: -109.6749478 | AI167: 70.32505225 | AL167: 14.51868779 | AM167: -18.01166382 | AO167: 52.31125791 | AP167: -91.66328393 | AV167: 0 | AW167: 0 | AX167: 0 | AY167: 0
B168: 9441.2 | C168: 2.49110906217071 | D168: 1+5.93208091221439i | E168: 6.015777917 | F168: 1.403791558 | G168: 1+0.00889812136832158i | H168: 1.000039587 | I168: 0.008897886539 | J168: 1-0.0746812559718737i | K168: 1.002784768 | L168: -0.07454287906 | M168: 0.99967660314761+0.133206307143636i | N168: 1.008512385 | O168: 0.1324690637 | P168: -0.012807508035395-0.411561218847291i | Q168: 0.4117604511 | R168: -1.601905614 | S168: 6000 | T168: 1+4868.51883731319i | U168: 4868.51894 | V168: 1.570590926 | W168: 1+4.21248929738169i | X168: 4.329557261 | Y168: 1.337721292 | Z168: 1+0.0808313060650495i | AA168: 1.003261531 | AB168: 0.08065595048 | AC168: 5.05917104610116-1.64028068862016i | AD168: 5.318433267 | AE168: -0.3135255837 | AF168: -0.739871293285565-2.06115069399051i | AG168: 6.808566907 | AH168: -109.7461236 | AI168: 70.25387643 | AL168: 14.51567429 | AM168: -17.96369272 | AO168: 52.26194728 | AP168: -91.78243085 | AV168: 0 | AW168: 0 | AX168: 0 | AY168: 0
B169: 9495.55 | C169: 2.49110906217071 | D169: 1+5.96623002435891i | E169: 6.049454579 | F169: 1.404729922 | G169: 1+0.00894934503653836i | H169: 1.000040045 | I169: 0.008949106128 | J169: 1-0.075111172323828i | K169: 1.002816877 | L169: -0.07497039727 | M169: 0.9996728690438+0.133973133690394i | N169: 1.008610255 | O169: 0.1332231722 | P169: -0.0135819915036801-0.409216457105789i | Q169: 0.4094417898 | R169: -1.603974385 | S169: 6000 | T169: 1+4896.54535923921i | U169: 4896.545461 | V169: 1.570592101 | W169: 1+4.23673926489775i | X169: 4.353155131 | Y169: 1.339007952 | Z169: 1+0.0812966263087299i | AA169: 1.003299129 | AB169: 0.08111823289 | AC169: 5.05878901297522-1.63555589623798i | AD169: 5.316614465 | AE169: -0.3127023822 | AF169: -0.738004818650129-2.04792561084891i | AG169: 6.756546711 | AH169: -109.8174895 | AI169: 70.18251053 | AL169: 14.51270337 | AM169: -17.91652675 | AO169: 52.212898 | AP169: -91.90096272 | AV169: 0 | AW169: 0 | AX169: 0 | AY169: 0
B170: 9549.9 | C170: 2.49110906217071 | D170: 1+6.00037913650343i | E170: 6.083136509 | F170: 1.405657896 | G170: 1+0.00900056870475514i | H170: 1.000040504 | I170: 0.00900032567 | J170: 1-0.0755410886757823i | K170: 1.002849169 | L170: -0.07539788802 | M170: 0.999669113505633+0.134739960237153i | N170: 1.008708676 | O170: 0.1339771367 | P170: -0.0143434182522537-0.406895575789029i | Q170: 0.4071483062 | R170: -1.606032595 | S170: 6000 | T170: 1+4924.57188116524i | U170: 4924.571983 | V170: 1.570593263 | W170: 1+4.26098923241382i | X170: 4.37676013 | Y170: 1.340280735 | Z170: 1+0.0817619465524103i | AA170: 1.00333694 | AB170: 0.08158048056 | AC170: 5.0584049099581-1.63091080016008i | AD170: 5.314821753 | AE170: -0.3118930091 | AF170: -0.736165206404465-2.03484974267264i | AG170: 6.704826726 | AH170: -109.8890425 | AI170: 70.11095748 | AL170: 14.50977408 | AM170: -17.87015308 | AO170: 52.16410731 | AP170: -92.01888944 | AV170: 0 | AW170: 0 | AX170: 0 | AY170: 0
B171: 9605.525 | C171: 2.49110906217071 | D171: 1+6.03532935477462i | E171: 6.117613948 | F171: 1.406597057 | G171: 1+0.00905299403216193i | H171: 1.000040978 | I171: 0.009052746726 | J171: 1-0.0759810904619362i | K171: 1.002882409 | L171: -0.07583537872 | M171: 0.999665247671562+0.135524775815137i | N171: 1.008809978 | O171: 0.1347486387 | P171: -0.0151094794560292-0.404544602223778i | Q171: 0.4048266685 | R171: -1.608128328 | S171: 6000 | T171: 1+4953.25587899661i | U171: 4953.25598 | V171: 1.570594439 | W171: 1+4.28580808141256i | X171: 4.400926142 | Y171: 1.341569236 | Z171: 1+0.0822381827723684i | AA171: 1.003375861 | AB171: 0.08205353594 | AC171: 5.05800965280316-1.62623783305582i | AD171: 5.313013376 | AE171: -0.3110787389 | AF171: -0.734309630232252-2.02161889590811i | AG171: 6.652200477 | AH171: -109.9624649 | AI171: 70.03753506 | AL171: 14.50681819 | AM171: -17.82349884 | AO171: 52.11443695 | AP171: -92.13896611 | AV171: 0 | AW171: 0 | AX171: 0 | AY171: 0
B172: 9661.15 | C172: 2.49110906217071 | D172: 1+6.07027957304581i | E172: 6.152096723 | F172: 1.407525692 | G172: 1+0.00910541935956871i | H172: 1.000041453 | I172: 0.009105167733 | J172: 1-0.0764210922480901i | K172: 1.002915841 | L172: -0.07627284033 | M172: 0.999661359385678+0.136309591393121i | N172: 1.008911858 | O172: 0.1355199883 | P172: -0.0158624489482058-0.4022178906825i | Q172: 0.4025305564 | R172: -1.610213352 | S172: 6000 | T172: 1+4981.93987682798i | U172: 4981.939977 | V172: 1.570595602 | W172: 1+4.31062693041129i | X172: 4.425099381 | Y172: 1.342843662 | Z172: 1+0.0827144189923266i | AA172: 1.003415006 | AB172: 0.08252655452 | AC172: 5.05761222724877-1.62164548597099i | AD172: 5.311231074 | AE172: -0.3102784938 | AF172: -0.732480942556604-2.00853885320072i | AG172: 6.599881004 | AH172: -110.0360774 | AI172: 69.96392262 | AL172: 14.50390393 | AM172: -17.77764817 | AO172: 52.06503173 | AP172: -92.25842921 | AV172: 0 | AW172: 0 | AX172: 0 | AY172: 0
B173: 9716.775 | C173: 2.49110906217071 | D173: 1+6.10522979131699i | E173: 6.186584745 | F173: 1.408443973 | G173: 1+0.00915784468697548i | H173: 1.000041932 | I173: 0.009157588689 | J173: 1-0.0768610940342438i | K173: 1.002949464 | L173: -0.07671027269 | M173: 0.99965744864798+0.137094406971106i | N173: 1.009014317 | O173: 0.1362911847 | P173: -0.0166026106715895-0.39991507181502i | Q173: 0.400259555 | R173: -1.612287842 | S173: 6000 | T173: 1+5010.62387465935i | U173: 5010.623974 | V173: 1.570596751 | W173: 1+4.33544577941002i | X173: 4.449279729 | Y173: 1.344104238 | Z173: 1+0.0831906552122846i | AA173: 1.003454376 | AB173: 0.08299953608 | AC173: 5.05721263322465-1.61713236169539i | AD173: 5.309474239 | AE173: -0.3094920485 | AF173: -0.730678536994678-1.99560693439421i | AG173: 6.547864523 | AH173: -110.1098769 | AI173: 69.89012313 | AL173: 14.50103036 | AM173: -17.73258817 | AO173: 52.01588882 | AP173: -92.37728869 | AV173: 0 | AW173: 0 | AX173: 0 | AY173: 0
B174: 9772.4 | C174: 2.49110906217071 | D174: 1+6.14018000958818i | E174: 6.221077925 | F174: 1.409352072 | G174: 1+0.00921027001438227i | H174: 1.000042414 | I174: 0.009210009595 | J174: 1-0.0773010958203977i | K174: 1.00298328 | L174: -0.07714767565 | M174: 0.999653515458467+0.13787922254909i | N174: 1.009117352 | O174: 0.137062227 | P174: -0.0173302409393032-0.397635783441876i | Q174: 0.398013258 | R174: -1.614351966 | S174: 6000 | T174: 1+5039.30787249072i | U174: 5039.307972 | V174: 1.570597887 | W174: 1+4.36026462840876i | X174: 4.47346707 | Y174: 1.345351185 | Z174: 1+0.0836668914322427i | AA174: 1.00349397 | AB174: 0.08347248043 | AC174: 5.05681087069803-1.61269709476312i | AD174: 5.307742279 | AE174: -0.3087191825 | AF174: -0.728901823504255-1.98282052307305i | AG174: 6.496147322 | AH174: -110.1838605 | AI174: 69.81613952 | AL174: 14.49819655 | AM174: -17.68830621 | AO174: 51.96700544 | AP174: -92.49555427 | AV174: 0 | AW174: 0 | AX174: 0 | AY174: 0
B175: 9829.3 | C175: 2.49110906217071 | D175: 1+6.17593133398603i | E175: 6.256366984 | F175: 1.410270626 | G175: 1+0.00926389700097904i | H175: 1.000042909 | I175: 0.009263632006 | J175: 1-0.077751183040751i | K175: 1.003018069 | L175: -0.07759507386 | M175: 0.999649468885297+0.1386820271583i | N175: 1.009223348 | O175: 0.1378507825 | P175: -0.0180618641950589-0.395328226163777i | Q175: 0.3957406188 | R175: -1.61645285 | S175: 6000 | T175: 1+5068.64934622744i | U175: 5068.649445 | V175: 1.570599036 | W175: 1+4.38565235889016i | X175: 4.498215937 | Y175: 1.346612836 | Z175: 1+0.0841540436284785i | AA175: 1.003534704 | AB175: 0.08395622658 | AC175: 5.05639765560695-1.60823932899389i | AD175: 5.305995759 | AE175: -0.3079424257 | AF175: -0.727110368949764-1.96988891561634i | AG175: 6.44355054 | AH175: -110.2597274 | AI175: 69.74027258 | AL175: 14.49533797 | AM175: -17.64380133 | AO175: 51.91726723 | AP175: -92.61592609 | AV175: 0 | AW175: 0 | AX175: 0 | AY175: 0
B176: 9886.2 | C176: 2.49110906217071 | D176: 1+6.21168265838388i | E176: 6.291661263 | F176: 1.411178874 | G176: 1+0.00931752398757582i | H176: 1.000043407 | I176: 0.009317254364 | J176: 1-0.0782012702611043i | K176: 1.003053059 | L176: -0.07804244095 | M176: 0.999645398819265+0.13948483176751i | N176: 1.009329947 | O176: 0.1386391752 | P176: -0.0187809364056069-0.393044546082183i | Q176: 0.3934929971 | R176: -1.618543236 | S176: 6000 | T176: 1+5097.99081996416i | U176: 5097.990918 | V176: 1.570600171 | W176: 1+4.41104008937157i | X176: 4.522971885 | Y176: 1.347860679 | Z176: 1+0.0846411958247143i | AA176: 1.003575673 | AB176: 0.08443993334 | AC176: 5.05598217151027-1.60386023821252i | AD176: 5.304274067 | AE176: -0.3071794254 | AF176: -0.725344598938519-1.95710422046351i | AG176: 6.391259267 | AH176: -110.335781 | AI176: 69.664219 | AL176: 14.49251911 | AM176: -17.60008463 | AO176: 51.86779481 | AP176: -92.73569637 | AV176: 0 | AW176: 0 | AX176: 0 | AY176: 0
B177: 9943.1 | C177: 2.49110906217071 | D177: 1+6.24743398278173i | E177: 6.326960674 | F177: 1.412076989 | G177: 1+0.00937115097417259i | H177: 1.000043908 | I177: 0.009370876669 | J177: 1-0.0786513574814575i | K177: 1.003088249 | L177: -0.07848977674 | M177: 0.999641305260372+0.14028763637672i | N177: 1.00943715 | O177: 0.139427404 | P177: -0.0194877300939654-0.390784377771747i | Q177: 0.3912699855 | R177: -1.620623293 | S177: 6000 | T177: 1+5127.33229370088i | U177: 5127.332391 | V177: 1.570601294 | W177: 1+4.43642781985297i | X177: 4.547734799 | Y177: 1.349094934 | Z177: 1+0.08512834802095i | AA177: 1.003616877 | AB177: 0.0849236005 | AC177: 5.05556441848781-1.59955845823389i | AD177: 5.302576624 | AE177: -0.3064299599 | AF177: -0.723603931670611-1.94446383206016i | AG177: 6.339269743 | AH177: -110.4120183 | AI177: 69.58798173 | AL177: 14.48973906 | AM177: -17.55714342 | AO177: 51.81858534 | AP177: -92.85487485 | AV177: 0 | AW177: 0 | AX177: 0 | AY177: 0
B178: 10000 | C178: 2.49110906217071 | D178: 1+6.28318530717959i | E178: 6.362265132 | F178: 1.412965137 | G178: 1+0.00942477796076938i | H178: 1.000044412 | I178: 0.009424498919 | J178: 1-0.0791014447018109i | K178: 1.003123641 | L178: -0.07893708106 | M178: 0.999637188208617+0.14109044098593i | N178: 1.009544957 | O178: 0.1402154682 | P178: -0.020182510445333-0.38854736296041i | Q178: 0.389071185 | R178: -1.622693187 | S178: 6000 | T178: 1+5156.67376743761i | U178: 5156.673864 | V178: 1.570602403 | W178: 1+4.46181555033437i | X178: 4.572504566 | Y178: 1.350315819 | Z178: 1+0.0856155002171859i | AA178: 1.003658315 | AB178: 0.08540722783 | AC178: 5.05514439665594-1.59533265584968i | AD178: 5.300902862 | AE178: -0.3056938121 | AF178: -0.721887801063196-1.93196520671429i | AG178: 6.287578273 | AH178: -110.4884363 | AI178: 69.51156369 | AL178: 14.48699692 | AM178: -17.51496525 | AO178: 51.76963601 | AP178: -92.97347105 | AV178: 0 | AW178: 0 | AX178: 0 | AY178: 0
B179: 10058.25 | C179: 2.49110906217071 | D179: 1+6.31978486159391i | E179: 6.398412358 | F179: 1.413864203 | G179: 1+0.00947967729239086i | H179: 1.000044931 | I179: 0.009479393346 | J179: 1-0.079562210617199i | K179: 1.00316008 | L179: -0.07939496525 | M179: 0.999632949140816+0.141912292804673i | N179: 1.009655947 | O179: 0.1410220584 | P179: -0.0208816001926104-0.386280890405055i | Q179: 0.3868448882 | R179: -1.624801833 | S179: 6000 | T179: 1+5186.71139213293i | U179: 5186.711489 | V179: 1.570603526 | W179: 1+4.48780562591507i | X179: 4.597868999 | Y179: 1.351552042 | Z179: 1+0.086114210505951i | AA179: 1.00370098 | AB179: 0.08590228815 | AC179: 5.05471205942227-1.59108393535916i | AD179: 5.299213347 | AE179: -0.3049537722 | AF179: -0.720155795573338-1.91931429644375i | AG179: 6.23496534 | AH179: -110.5668517 | AI179: 69.43314831 | AL179: 14.48422809 | AM179: -17.47256409 | AO179: 51.71979191 | AP179: -93.0942876 | AV179: 0 | AW179: 0 | AX179: 0 | AY179: 0
B180: 10116.5 | C180: 2.49110906217071 | D180: 1+6.35638441600823i | E180: 6.434564697 | F180: 1.414753168 | G180: 1+0.00953457662401234i | H180: 1.000045453 | I180: 0.009534287716 | J180: 1-0.080022976532587i | K180: 1.003196729 | L180: -0.07985281609 | M180: 0.999628685452154+0.142734144623416i | N180: 1.00976757 | O180: 0.1418284742 | P180: -0.0215686396565554-0.384037945455734i | Q180: 0.384643146 | R180: -1.62690017 | S180: 6000 | T180: 1+5216.74901682825i | U180: 5216.749113 | V180: 1.570604637 | W180: 1+4.51379570149577i | X180: 4.623240383 | Y180: 1.352774699 | Z180: 1+0.0866129207947161i | AA180: 1.003743891 | AB180: 0.08639730625 | AC180: 5.05427734480306-1.58691210861253i | AD180: 5.2975475 | AE180: -0.3042272436 | AF180: -0.718448352584731-1.90680675182434i | AG180: 6.182657152 | AH180: -110.6454505 | AI180: 69.35454948 | AL180: 14.48149719 | AM180: -17.43093707 | AO180: 51.67021462 | AP180: -93.21451345 | AV180: 0 | AW180: 0 | AX180: 0 | AY180: 0
B181: 10174.75 | C181: 2.49110906217071 | D181: 1+6.39298397042255i | E181: 6.470722065 | F181: 1.415632198 | G181: 1+0.00958947595563382i | H181: 1.000045978 | I181: 0.009589182029 | J181: 1-0.080483742447975i | K181: 1.003233588 | L181: -0.08031063338 | M181: 0.99962439714263+0.143555996442159i | N181: 1.009879824 | O181: 0.1426347147 | P181: -0.0222438909508003-0.38181816595762i | Q181: 0.3824655573 | R181: -1.628988364 | S181: 6000 | T181: 1+5246.78664152358i | U181: 5246.786737 | V181: 1.570605734 | W181: 1+4.53978577707646i | X181: 4.648618601 | Y181: 1.353984008 | Z181: 1+0.0871116310834812i | AA181: 1.003787047 | AB181: 0.08689228191 | AC181: 5.05384025303554-1.58281584049106i | AD181: 5.295904766 | AE181: -0.3035140077 | AF181: -0.716764912736253-1.89444003350574i | AG181: 6.130649958 | AH181: -110.7242298 | AI181: 69.27577019 | AL181: 14.47880334 | AM181: -17.39007167 | AO181: 51.62090128 | AP181: -93.33415815 | AV181: 0 | AW181: 0 | AX181: 0 | AY181: 0
B182: 10233 | C182: 2.49110906217071 | D182: 1+6.42958352483687i | E182: 6.506884378 | F182: 1.416501459 | G182: 1+0.0096443752872553i | H182: 1.000046506 | I182: 0.009644076283 | J182: 1-0.0809445083633631i | K182: 1.003270658 | L182: -0.08076841693 | M182: 0.999620084212245+0.144377848260902i | N182: 1.009992711 | O182: 0.143440779 | P182: -0.0229076091123696-0.379621196905628i | Q182: 0.3803117296 | R182: -1.631066578 | S182: 6000 | T182: 1+5276.8242662189i | U182: 5276.824361 | V182: 1.570606819 | W182: 1+4.56577585265716i | X182: 4.674003545 | Y182: 1.355180183 | Z182: 1+0.0876103413722463i | AA182: 1.00383045 | AB182: 0.08738721489 | AC182: 5.05340078439284-1.57879382619911i | AD182: 5.294284601 | AE182: -0.3028138507 | AF182: -0.715104931825935-1.88221166237546i | AG182: 6.078940076 | AH182: -110.8031867 | AI182: 69.19681333 | AL182: 14.47614567 | AM182: -17.34995562 | AO182: 51.57184906 | AP182: -93.45323105 | AV182: 0 | AW182: 0 | AX182: 0 | AY182: 0
B183: 10292.5 | C183: 2.49110906217071 | D183: 1+6.46696847741459i | E183: 6.543827724 | F183: 1.417379454 | G183: 1+0.00970045271612188i | H183: 1.000047048 | I183: 0.009700148466 | J183: 1-0.0814151619593389i | K183: 1.00330874 | L183: -0.08123598914 | M183: 0.999615653310658+0.145217336384768i | N183: 1.010108672 | O183: 0.1442639578 | P183: -0.02357392115479-0.377400270697815i | Q183: 0.3781358143 | R183: -1.633179252 | S183: 6000 | T183: 1+5307.50647513515i | U183: 5307.506569 | V183: 1.570607914 | W183: 1+4.59232365518165i | X183: 4.699940059 | Y183: 1.356388685 | Z183: 1+0.0881197535985386i | AA183: 1.003875038 | AB183: 0.08789272444 | AC183: 5.05294943148154-1.5747608377253i | AD183: 5.292652421 | AE183: -0.3021119539 | AF183: -0.713432997938733-1.86986119543732i | AG183: 6.026423731 | AH183: -110.8840182 | AI183: 69.11598177 | AL183: 14.47346748 | AM183: -17.3097399 | AO183: 51.52201091 | AP183: -93.57427833 | AV183: 0 | AW183: 0 | AX183: 0 | AY183: 0
B184: 10352 | C184: 2.49110906217071 | D184: 1+6.50435342999231i | E184: 6.580776059 | F184: 1.41824759 | G184: 1+0.00975653014498846i | H184: 1.000047594 | I184: 0.009756220588 | J184: 1-0.0818858155553147i | K184: 1.003347042 | L184: -0.08170352575 | M184: 0.999611196720181+0.146056824508634i | N184: 1.010225292 | O184: 0.1450869508 | P184: -0.0242287160643576-0.37520241776766i | Q184: 0.3759838893 | R184: -1.635281846 | S184: 6000 | T184: 1+5338.18868405141i | U184: 5338.188778 | V184: 1.570608997 | W184: 1+4.61887145770614i | X184: 4.725883361 | Y184: 1.35758392 | Z184: 1+0.0886291658248309i | AA184: 1.003919882 | AB184: 0.08839818895 | AC184: 5.05249559927461-1.57080266521858i | AD184: 5.291042694 | AE184: -0.3014232662 | AF184: -0.711784439117136-1.85765003283958i | AG184: 5.974210039 | AH184: -110.9650291 | AI184: 69.03497092 | AL184: 14.47082532 | AM184: -17.270281 | AO184: 51.47243938 | AP184: -93.69474808 | AV184: 0 | AW184: 0 | AX184: 0 | AY184: 0
B185: 10411.5 | C185: 2.49110906217071 | D185: 1+6.54173838257003i | E185: 6.617729298 | F185: 1.419106032 | G185: 1+0.00981260757385504i | H185: 1.000048142 | I185: 0.009812292649 | J185: 1-0.0823564691512905i | K185: 1.003385563 | L185: -0.08217102657 | M185: 0.999606714440816+0.146896312632501i | N185: 1.010342571 | O185: 0.1459097569 | P185: -0.0248722442212409-0.373027281794652i | Q185: 0.3738555623 | R185: -1.637374522 | S185: 6000 | T185: 1+5368.87089296766i | U185: 5368.870986 | V185: 1.570610068 | W185: 1+4.64541926023063i | X185: 4.751833341 | Y185: 1.358766102 | Z185: 1+0.0891385780511231i | AA185: 1.003964983 | AB185: 0.08890360818 | AC185: 5.05203928817246-1.56691801059207i | AD185: 5.289454889 | AE185: -0.3007475736 | AF185: -0.710158721276973-1.84557571575265i | AG185: 5.922295284 | AH185: -111.0462163 | AI185: 68.95378372 | AL185: 14.46821835 | AM185: -17.23156667 | AO185: 51.42313159 | AP185: -93.81464961 | AV185: 0 | AW185: 0 | AX185: 0 | AY185: 0
B186: 10471 | C186: 2.49110906217071 | D186: 1+6.57912333514775i | E186: 6.65468736 | F186: 1.419954939 | G186: 1+0.00986868500272162i | H186: 1.000048694 | I186: 0.009868364648 | J186: 1-0.0828271227472662i | K186: 1.003424303 | L186: -0.08263849139 | M186: 0.999602206472562+0.147735800756367i | N186: 1.010460508 | O186: 0.1467323752 | P186: -0.0255047492430268-0.370874513533866i | Q186: 0.3717504499 | R186: -1.639457441 | S186: 6000 | T186: 1+5399.55310188392i | U186: 5399.553194 | V186: 1.570611126 | W186: 1+4.67196706275512i | X186: 4.77778989 | Y186: 1.359935441 | Z186: 1+0.0896479902774154i | AA186: 1.00401034 | AB186: 0.08940898188 | AC186: 5.05158049861034-1.5631056051823i | AD186: 5.287888489 | AE186: -0.3000846667 | AF186: -0.708555324822066-1.83363584349873i | AG186: 5.870675819 | AH186: -111.1275769 | AI186: 68.87242306 | AL186: 14.46564576 | AM186: -17.1935849 | AO186: 51.37408472 | AP186: -93.93399204 | AV186: 0 | AW186: 0 | AX186: 0 | AY186: 0
B187: 10532 | C187: 2.49110906217071 | D187: 1+6.61745076552154i | E187: 6.69258206 | F187: 1.420815513 | G187: 1+0.00992617614828231i | H187: 1.000049263 | I187: 0.009925850162 | J187: 1-0.0833096415599472i | K187: 1.003464248 | L187: -0.08311770346 | M187: 0.999597558189569+0.148596452446381i | N187: 1.010582102 | O187: 0.1475755357 | P187: -0.0261420044280067-0.368690336129664i | Q187: 0.3696159742 | R187: -1.641582902 | S187: 6000 | T187: 1+5431.00881186528i | U187: 5431.008904 | V187: 1.570612199 | W187: 1+4.69918413761216i | X187: 4.804407514 | Y187: 1.361121141 | Z187: 1+0.0901702448287402i | AA187: 1.004057106 | AB187: 0.08992704855 | AC187: 5.05110757044539-1.55927079500822i | AD187: 5.286304295 | AE187: -0.2994181065 | AF187: -0.706934150001671-1.82153208394703i | AG187: 5.818057823 | AH187: -111.2111658 | AI187: 68.78883418 | AL187: 14.46304318 | AM187: -17.15539381 | AO187: 51.32406931 | AP187: -94.05577201 | AV187: 0 | AW187: 0 | AX187: 0 | AY187: 0
B188: 10593 | C188: 2.49110906217071 | D188: 1+6.65577819589534i | E188: 6.730481661 | F188: 1.421666396 | G188: 1+0.00998366729384301i | H188: 1.000049836 | I188: 0.009983335611 | J188: 1-0.0837921603726283i | K188: 1.003504423 | L188: -0.08359687727 | M188: 0.999592882906122+0.149457104136395i | N188: 1.010704387 | O188: 0.1484184967 | P188: -0.0267681713749176-0.366528947125013i | Q188: 0.3675051076 | R188: -1.643698435 | S188: 6000 | T188: 1+5462.46452184666i | U188: 5462.464613 | V188: 1.570613259 | W188: 1+4.7264012124692i | X188: 4.831031817 | Y188: 1.362293773 | Z188: 1+0.0906924993800651i | AA188: 1.004104143 | AB188: 0.09044506682 | AC188: 5.05063203831574-1.55550931359545i | AD188: 5.284741546 | AE188: -0.2987645528 | AF188: -0.705335374908577-1.80956470343812i | AG188: 5.765742639 | AH188: -111.294931 | AI188: 68.70506896 | AL188: 14.46047505 | AM188: -17.11794795 | AO188: 51.27432224 | AP188: -94.17698309 | AV188: 0 | AW188: 0 | AX188: 0 | AY188: 0
B189: 10654 | C189: 2.49110906217071 | D189: 1+6.69410562626913i | E189: 6.768386081 | F189: 1.42250775 | G189: 1+0.0100411584394037i | H189: 1.000050411 | I189: 0.01004082099 | J189: 1-0.0842746791853093i | K189: 1.003544828 | L189: -0.0840760126 | M189: 0.999588180622222+0.150317755826409i | N189: 1.010827363 | O189: 0.1492612571 | P189: -0.0273834918536272-0.364389992264924i | Q189: 0.3654174628 | R189: -1.645804198 | S189: 6000 | T189: 1+5493.92023182802i | U189: 5493.920323 | V189: 1.570614307 | W189: 1+4.75361828732624i | X189: 4.857662691 | Y189: 1.36345355 | Z189: 1+0.0912147539313898i | AA189: 1.004151448 | AB189: 0.09096303642 | AC189: 5.05015390279849-1.5518198848334i | AD189: 5.283199731 | AE189: -0.2981237941 | AF189: -0.703758484087844-1.79773129440279i | AG189: 5.713726545 | AH189: -111.3788696 | AI189: 68.62113035 | AL189: 14.45794059 | AM189: -17.08123518 | AO189: 51.22484061 | AP189: -94.29763447 | AV189: 0 | AW189: 0 | AX189: 0 | AY189: 0
B190: 10715 | C190: 2.49110906217071 | D190: 1+6.73243305664293i | E190: 6.806295238 | F190: 1.423339732 | G190: 1+0.0100986495849644i | H190: 1.00005099 | I190: 0.01009830631 | J190: 1-0.0847571979979904i | K190: 1.003585464 | L190: -0.08455510925 | M190: 0.999583451337869+0.151178407516424i | N190: 1.010951031 | O190: 0.1501038159 | P190: -0.0279882010784131-0.362273124392473i | Q190: 0.3633526607 | R190: -1.64790035 | S190: 6000 | T190: 1+5525.3759418094i | U190: 5525.376032 | V190: 1.570615344 | W190: 1+4.78083536218328i | X190: 4.884300028 | Y190: 1.364600678 | Z190: 1+0.0917370084827147i | AA190: 1.004199023 | AB190: 0.09148095709 | AC190: 5.04967316450515-1.54820126158352i | AD190: 5.281678352 | AE190: -0.2974956231 | AF190: -0.702202976130667-1.78602950624705i | AG190: 5.662005888 | AH190: -111.4629788 | AI190: 68.53702124 | AL190: 14.45543899 | AM190: -17.04524363 | AO190: 51.17562155 | AP190: -94.41773513 | AV190: 0 | AW190: 0 | AX190: 0 | AY190: 0
B191: 10777.5 | C191: 2.49110906217071 | D191: 1+6.7717029648128i | E191: 6.845141419 | F191: 1.424182613 | G191: 1+0.0101575544472192i | H191: 1.000051587 | I191: 0.01015720513 | J191: 1-0.0852515820273767i | K191: 1.003627337 | L191: -0.0850459466 | M191: 0.999578577755102+0.152060222772586i | N191: 1.011078456 | O191: 0.150966883 | P191: -0.028597013627785-0.360126755011627i | Q191: 0.3612603893 | R191: -1.650038238 | S191: 6000 | T191: 1+5557.60515285588i | U191: 5557.605243 | V191: 1.570616393 | W191: 1+4.80872170937287i | X191: 4.911598974 | Y191: 1.365763107 | Z191: 1+0.0922721053590721i | AA191: 1.004248048 | AB191: 0.09201156246 | AC191: 5.04917790588623-1.54456581988879i | AD191: 5.280140254 | AE191: -0.2968648489 | AF191: -0.700630886002162-1.77417408492284i | AG191: 5.609316084 | AH191: -111.54933 | AI191: 68.45067 | AL191: 14.45290917 | AM191: -17.00910293 | AO191: 51.12546157 | AP191: -94.54022707 | AV191: 0 | AW191: 0 | AX191: 0 | AY191: 0
B192: 10840 | C192: 2.49110906217071 | D192: 1+6.81097287298267i | E192: 6.883992408 | F192: 1.425015982 | G192: 1+0.010216459309474i | H192: 1.000052187 | I192: 0.01021610388 | J192: 1-0.085745966056763i | K192: 1.003669453 | L192: -0.08553674288 | M192: 0.999573675827664+0.152942038028748i | N192: 1.011206606 | O192: 0.1518297363 | P192: -0.0291951663654428-0.358002856493557i | Q192: 0.3591913181 | R192: -1.652166357 | S192: 6000 | T192: 1+5589.83436390236i | U192: 5589.834453 | V192: 1.570617431 | W192: 1+4.83660805656246i | X192: 4.938904483 | Y192: 1.366912684 | Z192: 1+0.0928072022354295i | AA192: 1.004297355 | AB192: 0.09254211589 | AC192: 5.04867991631909-1.54100214784321i | AD192: 5.278622597 | AE192: -0.2962468624 | AF192: -0.699080220873382-1.7624520174881i | AG192: 5.556928869 | AH192: -111.6358542 | AI192: 68.36414576 | AL192: 14.45041225 | AM192: -16.97369491 | AO192: 51.07557128 | AP192: -94.66215933 | AV192: 0 | AW192: 0 | AX192: 0 | AY192: 0
B193: 10902.5 | C193: 2.49110906217071 | D193: 1+6.85024278115254i | E193: 6.922848125 | F193: 1.425839996 | G193: 1+0.0102753641717288i | H193: 1.00005279 | I193: 0.01027500256 | J193: 1-0.0862403500861493i | K193: 1.00371181 | L193: -0.08602749785 | M193: 0.999568745555556+0.15382385328491i | N193: 1.011335481 | O193: 0.1526923745 | P193: -0.0297828922296499-0.355901077521897i | Q193: 0.3571450653 | R193: -1.654284866 | S193: 6000 | T193: 1+5622.06357494884i | U193: 5622.063664 | V193: 1.570618456 | W193: 1+4.86449440375205i | X193: 4.966216448 | Y193: 1.368049619 | Z193: 1+0.0933422991117868i | AA193: 1.004346944 | AB193: 0.09307261707 | AC193: 5.04817919656844-1.53750899337368i | AD193: 5.27712489 | AE193: -0.2956414546 | AF193: -0.697550484408658-1.75086095093057i | AG193: 5.504840525 | AH193: -111.7225485 | AI193: 68.27745146 | AL193: 14.44794745 | AM193: -16.9390076 | AO193: 51.02594773 | AP193: -94.78354094 | AV193: 0 | AW193: 0 | AX193: 0 | AY193: 0
B194: 10965 | C194: 2.49110906217071 | D194: 1+6.88951268932242i | E194: 6.96170849 | F194: 1.426654812 | G194: 1+0.0103342690339836i | H194: 1.000053397 | I194: 0.01033390117 | J194: 1-0.0867347341155357i | K194: 1.003754409 | L194: -0.08651821129 | M194: 0.999563786938775+0.154705668541072i | N194: 1.01146508 | O194: 0.1535547966 | P194: -0.0303604178225068-0.353821073875603i | Q194: 0.3551212572 | R194: -1.656393919 | S194: 6000 | T194: 1+5654.29278599534i | U194: 5654.292874 | V194: 1.57061947 | W194: 1+4.89238075094164i | X194: 4.993534761 | Y194: 1.369174115 | Z194: 1+0.0938773959881444i | AA194: 1.004396817 | AB194: 0.09360306571 | AC194: 5.04767574743325-1.53408513286066i | AD194: 5.275646657 | AE194: -0.2950484209 | AF194: -0.696041193849964-1.73939858792372i | AG194: 5.453047397 | AH194: -111.80941 | AI194: 68.19058999 | AL194: 14.44551401 | AM194: -16.90502927 | AO194: 50.97658805 | AP194: -94.90438075 | AV194: 0 | AW194: 0 | AX194: 0 | AY194: 0
B195: 11028.75 | C195: 2.49110906217071 | D195: 1+6.92956799565569i | E195: 7.00135077 | F195: 1.427476605 | G195: 1+0.0103943519934835i | H195: 1.00005402 | I195: 0.01039397767 | J195: 1-0.0872390058255097i | K195: 1.003798109 | L195: -0.08701869596 | M195: 0.99955869994898+0.155605120102357i | N195: 1.011598017 | O195: 0.1544342432 | P195: -0.0309392142193743-0.351721553331514i | Q195: 0.3530797163 | R195: -1.658535566 | S195: 6000 | T195: 1+5687.16658126275i | U195: 5687.166669 | V195: 1.570620492 | W195: 1+4.92082482507502i | X195: 5.021405875 | Y195: 1.370308495 | Z195: 1+0.0944231948020289i | AA195: 1.004447978 | AB195: 0.09414406891 | AC195: 5.04715941836676-1.53066294160704i | AD195: 5.274158439 | AE195: -0.2944560665 | AF195: -0.694522293893195-1.7278372418917i | AG195: 5.400518821 | AH195: -111.898178 | AI195: 68.10182201 | AL195: 14.44306344 | AM195: -16.87108986 | AO195: 50.92651004 | AP195: -95.02708812 | AV195: 0 | AW195: 0 | AX195: 0 | AY195: 0
B196: 11092.5 | C196: 2.49110906217071 | D196: 1+6.96962330198896i | E196: 7.040997726 | F196: 1.428289144 | G196: 1+0.0104544349529834i | H196: 1.000054646 | I196: 0.0104540541 | J196: 1-0.0877432775354838i | K196: 1.003842061 | L196: -0.08751913694 | M196: 0.999553583469388+0.156504571663642i | N196: 1.011731707 | O196: 0.1553134625 | P196: -0.0315078552159572-0.349643986233201i | Q196: 0.3510607669 | R196: -1.660667689 | S196: 6000 | T196: 1+5720.04037653016i | U196: 5720.040464 | V196: 1.570621503 | W196: 1+4.9492688992084i | X196: 5.049283379 | Y196: 1.37143035 | Z196: 1+0.0949689936159135i | AA196: 1.004499432 | AB196: 0.09468501684 | AC196: 5.04664025143273-1.52731035920528i | AD196: 5.272689519 | AE196: -0.2938761698 | AF196: -0.69302369257696-1.71640514092819i | AG196: 5.348289919 | AH196: -111.987114 | AI196: 68.01288602 | AL196: 14.44064397 | AM196: -16.83786423 | AO196: 50.8767006 | AP196: -95.14924975 | AV196: 0 | AW196: 0 | AX196: 0 | AY196: 0
B197: 11156.25 | C197: 2.49110906217071 | D197: 1+7.00967860832223i | E197: 7.080649278 | F197: 1.429092582 | G197: 1+0.0105145179124833i | H197: 1.000055276 | I197: 0.01051413046 | J197: 1-0.0882475492454578i | K197: 1.003886263 | L197: -0.08801953397 | M197: 0.9995484375+0.157404023224928i | N197: 1.01186615 | O197: 0.1561924534 | P197: -0.0320665622025638-0.34758802901309i | Q197: 0.3490640376 | R197: -1.662790439 | S197: 6000 | T197: 1+5752.91417179758i | U197: 5752.914259 | V197: 1.570622502 | W197: 1+4.97771297334179i | X197: 5.077167167 | Y197: 1.372539884 | Z197: 1+0.095514792429798i | AA197: 1.004551181 | AB197: 0.0952259092 | AC197: 5.04611824758355-1.52402617352291i | AD197: 5.271239432 | AE197: -0.2933085269 | AF197: -0.69154491848682-1.70510001575295i | AG197: 5.296357022 | AH197: -112.0762151 | AI197: 67.92378492 | AL197: 14.43825487 | AM197: -16.80534069 | AO197: 50.82715681 | AP197: -95.27087439 | AV197: 0 | AW197: 0 | AX197: 0 | AY197: 0
B198: 11220 | C198: 2.49110906217071 | D198: 1+7.0497339146555i | E198: 7.120305349 | F198: 1.429887072 | G198: 1+0.0105746008719832i | H198: 1.00005591 | I198: 0.01057420674 | J198: 1-0.0887518209554319i | K198: 1.003930718 | L198: -0.08851988681 | M198: 0.999543262040816+0.158303474786213i | N198: 1.012001345 | O198: 0.1570712145 | P198: -0.0326155505555626-0.345553345064139i | Q198: 0.3470891649 | R198: -1.664903967 | S198: 6000 | T198: 1+5785.78796706499i | U198: 5785.788053 | V198: 1.570623489 | W198: 1+5.00615704747517i | X198: 5.105057138 | Y198: 1.373637296 | Z198: 1+0.0960605912436826i | AA198: 1.004603224 | AB198: 0.09576674567 | AC198: 5.04559340780501-1.52080919987766i | AD198: 5.269807725 | AE198: -0.2927529388 | AF198: -0.69008551309712-1.69391965055662i | AG198: 5.244716526 | AH198: -112.1654784 | AI198: 67.83452157 | AL198: 14.4358954 | AM198: -16.77350783 | AO198: 50.77787579 | AP198: -95.3919706 | AV198: 0 | AW198: 0 | AX198: 0 | AY198: 0
B199: 11285.5 | C199: 2.49110906217071 | D199: 1+7.09088877841752i | E199: 7.161054648 | F199: 1.430694206 | G199: 1+0.0106363331676263i | H199: 1.000056564 | I199: 0.01063593209 | J199: 1-0.0892699354182286i | K199: 1.003976654 | L199: -0.08903392854 | M199: 0.999537913795011+0.159227617174671i | N199: 1.012141035 | O199: 0.1579738581 | P199: -0.0331697069229221-0.343484617674628i | Q199: 0.3450824714 | R199: -1.667066061 | S199: 6000 | T199: 1+5819.56418024171i | U199: 5819.564266 | V199: 1.570624493 | W199: 1+5.03538193932985i | X199: 5.133719049 | Y199: 1.374752413 | Z199: 1+0.0966213727701051i | AA199: 1.004657001 | AB199: 0.09632237011 | AC199: 5.04505120795921-1.51757270509284i | AD199: 5.268355399 | AE199: -0.2921944497 | AF199: -0.688605750381406-1.68256004345263i | AG199: 5.191959281 | AH199: -112.2573582 | AI199: 67.74264178 | AL199: 14.43350129 | AM199: -16.74150876 | AO199: 50.72751265 | AP199: -95.51584946 | AV199: 0 | AW199: 0 | AX199: 0 | AY199: 0
B200: 11351 | C200: 2.49110906217071 | D200: 1+7.13204364217955i | E200: 7.201808559 | F200: 1.431492206 | G200: 1+0.0106980654632693i | H200: 1.000057223 | I200: 0.01069765737 | J200: 1-0.0897880498810256i | K200: 1.004022855 | L200: -0.0895479231 | M200: 0.999532534418141+0.160151759563129i | N200: 1.012281519 | O200: 0.1588762567 | P200: -0.0337140460530656-0.341437648945799i | Q200: 0.3430980982 | R200: -1.669218728 | S200: 6000 | T200: 1+5853.34039341843i | U200: 5853.340479 | V200: 1.570625484 | W200: 1+5.06460683118455i | X200: 5.162387273 | Y200: 1.375855146 | Z200: 1+0.0971821542965277i | AA200: 1.004711088 | AB200: 0.0968779349 | AC200: 5.04450601656377-1.51440471321645i | AD200: 5.266921547 | AE200: -0.2916482732 | AF200: -0.687145492990459-1.67132756414411i | AG200: 5.139503205 | AH200: -112.3494034 | AI200: 67.65059663 | AL200: 14.43113699 | AM200: -16.71021515 | AO200: 50.67742088 | AP200: -95.63918822 | AV200: 0 | AW200: 0 | AX200: 0 | AY200: 0
B201: 11416.5 | C201: 2.49110906217071 | D201: 1+7.17319850594157i | E201: 7.242567004 | F201: 1.432281224 | G201: 1+0.0107597977589124i | H201: 1.000057885 | I201: 0.01075938256 | J201: 1-0.0903061643438223i | K201: 1.004069322 | L201: -0.09006187022 | M201: 0.999527123910204+0.161075901951586i | N201: 1.012422796 | O201: 0.159778409 | P201: -0.0342487829738692-0.339412095633314i | Q201: 0.3411356765 | R201: -1.671362121 | S201: 6000 | T201: 1+5887.11660659514i | U201: 5887.116692 | V201: 1.570626464 | W201: 1+5.09383172303923i | X201: 5.191061705 | Y201: 1.376945698 | Z201: 1+0.0977429358229502i | AA201: 1.004765486 | AB201: 0.0974334397 | AC201: 5.04395783479279-1.51130402479258i | AD201: 5.265505721 | AE201: -0.2911142065 | AF201: -0.685704283407077-1.66021997544044i | AG201: 5.087344599 | AH201: -112.441611 | AI201: 67.55838904 | AL201: 14.42880178 | AM201: -16.67961539 | AO201: 50.62759748 | AP201: -95.76199557 | AV201: 0 | AW201: 0 | AX201: 0 | AY201: 0
... 435 more rows

Sheet Schematic Management_LM34xx (hidden)
A2: =CHOOSE(With_CDC,CHOOSE(With_RCS, "SCH34938_NO_RCS_NO_CDC", "SCH34938_RCS_LIM_NO_CDC","SCH34938_RCS_LIM_DAC_NO_CDC","SCH34938_RCS_LIM_DACplus_NO_CDC"),CHOOSE(With_RCS, "SCH34938_NO_RCS","SCH34938_RCS_LIM","SCH34938_RCS_LIM_DAC","SCH34938_RCS_LIM_DACplus")) -> SCH34938_NO_RCS_NO_CDC
B6: "SCH34938_NO_RCS_NO_CDC" | D6: "SCH34938_RCS_LIM_NO_CDC" | F6: "SCH34938_RCS_LIM_DAC_NO_CDC" | H6: "SCH34938_RCS_LIM_DAC+_NO_CDC"
B17: "SCH34938_NO_RCS" | D17: "SCH34938_RCS_LIM" | F17: "SCH34938_RCS_LIM_DAC" | H17: "SCH34938_RCS_LIM_DAC+"

Sheet Schematic Management LM251772 (hidden)
A2: =CHOOSE(With_CDC,CHOOSE(With_RCS, "SCH251772_NO_RCS_NO_CDC", "SCH251772_RCS_LIM_NO_CDC","SCH251772_RCS_LIM_DAC_NO_CDC","SCH251772_RCS_LIM_DACplus_NO_CDC"),CHOOSE(With_RCS, "SCH251772_NO_RCS","SCH251772_RCS_LIM","SCH251772_RCS_LIM_DAC","SCH251772_RCS_LIM_DACplus")) -> SCH251772_NO_RCS_NO_CDC
B6: "SCH251772_NO_RCS_NO_CDC" | D6: "SCH251772_RCS_LIM_NO_CDC" | F6: "SCH251772_RCS_LIM_DAC_NO_CDC" | H6: "SCH251772_RCS_LIM_DAC+_NO_CDC"
B17: "SCH251772_NO_RCS" | D17: "SCH251772_RCS_LIM" | F17: "SCH251772_RCS_LIM_DAC" | H17: "SCH251772_RCS_LIM_DAC+"

Sheet IL Stability Calculations (hidden)
A1: IL_Direction | B1: ='CFG Setting'!E145 -> 1
A2: VOUT_IL | B2: =IF(B1=1,Vout,Vin) -> 20 | D2: Divider Network & IL Poles/Zeros | G2: Modulator | M2: Power Stage Poles/Zeros | R2: Complex Pole Pair | T2: Total System
A3: VIN_IL | B3: =IF(B1=1,Vin,Vout) -> 12 | G3: Acs | H3: =Acs -> 25 | I3: A/V | J3: gm | K3: =gm -> 0.0006 | M3: z_ESR | O3: =Fesr -> 1061032.954 | P3: Hz | Q3: p3 | R3: =Fsw/2 -> 1050000 | S3: Hz | T3: Adc | U3: =Am*Afb*AEA -> 14946.65437 | V3: V/V
A4: Iload | B4: ='Variable Management'!B253 ->  | D4: IL zero, z1 | E4: =1/(2*Pi*RcIL*Cc1IL) -> 99.59633485 | F4: Hz | G4: Am | H4: =Am -> 49.82218124 | I4: V/V | M4: p_dom | O4: =Fp_dominant -> 1591.549431 | P4: Hz | Q4: pterm1 | R4: =Q*PS_Pole2 -> 141753.0476 | T4: Crossover | U4: =BM8/1000 ->  | V4: kHz
